{"text_format":"1","workbook":"xlsx","n_sheets":3,"sheets":["Transaction","Stock2021-2022","InitialStock2021-2022"],"not_rendered":{"charts":0,"images":0,"macros":1,"external_links":0,"defined_names":6,"comments":0,"pivot_tables":0},"unopened":[],"bounds":{"document_bytes":16777216,"sheet_cells":100000,"rows_first":2000,"rows_last":500,"rows_between":2000,"halvings":0,"cell_chars":16384,"cell_head_chars":4096},"cells_cut":0,"cells_raw":0,"read":"whole","date_system":"1900"}

{"sheet":"Transaction","index":0,"n_rows":5889,"n_cols":13,"rows_kept":5889,"cut":false,"hidden":false,"merged":[[0,0,0,9]]}
["N E W   U N I F O R M        2021 - 2022 "]
["Date","ItemCode","Description","Price (LBP)","Quantity in Stock","Transaction Type","Quantity","Receipt number","NewStock","Notes",null,"Price",{"$f":"SUM(L3:L4444)","v":5575000}]
["2021-09-20","C34-F-SS-14","قميص كم قصير-بنات (لون موف)للقسم المتوسط والثانوي  ",125000,200,"Sell",1,null,199,null,"Locked",{"$f":"IF(G3<>\"\",D3*G3,\"\")","v":125000}]
["2021-09-20","C0-Tergal-7","مريول tergal   لقسم الروضات مع تطريز إضافي أحرف وأرقام والشعار ",100000,20,"Sell",1,null,19,null,"Locked",{"$f":"IF(G4<>\"\",D4*G4,\"\")","v":100000}]
["2021-09-20","C0-Tergal-6","مريول tergal   لقسم الروضات مع تطريز إضافي أحرف وأرقام والشعار ",100000,25,"Sell",1,null,24,null,"Locked",100000]
["2021-09-20","C0-Tergal-5","مريول tergal   لقسم الروضات مع تطريز إضافي أحرف وأرقام والشعار ",100000,162,"Sell",1,null,161,null,"Locked",100000]
["2021-09-20","C12-F-LS-10","قميص كم طويل-بنات(لون زهري) للقسم الإبتدائي",145000,300,"Sell",1,null,299,null,"Locked",145000]
["2021-09-20","C12-F-SS-10","قميص كم قصير –بنات (لون زهري )للقسم الإبتدائي",125000,300,"Sell",1,null,299,null,"Locked",125000]
["2021-09-20","C34-M-LS-S","قميص كم طويل-بنين(لون رمادي)للقسم المتوسط والثانوي  ",145000,150,"Sell",1,null,149,null,"Locked",145000]
["2021-09-20","C34-M-SS-S","قميص كم قصير-بنين(لون رمادي) للقسم المتوسط والثانوي",125000,150,"Sell",1,null,149,null,"Locked",125000]
["2021-09-20","CA-Gilet-M","جيلية صوف نوعية ممتازة مع تطريز –خيط تركي (50%صوف-50%أكريليك)",145000,150,"Sell",1,null,149,null,"Locked",145000]
["2021-09-20","C34-F-LS-Hijab-14","قميص كم طويل للمحجبات-بنات(لون موف)للقسم المتوسط والثانوي ",145000,35,"Sell",1,null,34,null,"Locked",145000]
["2021-09-20","C12-M-SS-14","قميص كم قصير-بنين(لون أزرق)للقسم الإبتدائي ",125000,200,"Sell",1,null,199,null,"Locked",125000]
["2021-09-20","C12-M-LS-14","قميص كم طويل –بنين (لون أزرق )للقسم الإبتدائي",145000,200,"Sell",1,null,199,null,"Locked",145000]
["2021-09-20","C12-F-SS-8","قميص كم قصير –بنات (لون زهري )للقسم الإبتدائي",125000,300,"Sell",1,null,299,null,"Locked",125000]
["2021-09-20","C12-F-LS-8","قميص كم طويل-بنات(لون زهري) للقسم الإبتدائي",145000,300,"Sell",1,null,299,null,"Locked",145000]
["2021-09-20","CA-Gilet-10","جيلية صوف نوعية ممتازة مع تطريز –خيط تركي (50%صوف-50%أكريليك)",145000,300,"Sell",1,null,299,null,"Locked",145000]
["2021-09-20","CA-Gilet-16","جيلية صوف نوعية ممتازة مع تطريز –خيط تركي (50%صوف-50%أكريليك)",145000,250,"Sell",1,null,249,null,"Locked",145000]
["2021-09-20","C0-Tergal-4","مريول tergal   لقسم الروضات مع تطريز إضافي أحرف وأرقام والشعار ",100000,155,"Sell",1,null,154,null,"Locked",100000]
["2021-09-20","C0-Tergal-4","مريول tergal   لقسم الروضات مع تطريز إضافي أحرف وأرقام والشعار ",100000,154,"Sell",1,null,153,null,"Locked",100000]
["2021-09-20","C0-Tergal-5","مريول tergal   لقسم الروضات مع تطريز إضافي أحرف وأرقام والشعار ",100000,161,"Sell",1,null,160,null,"Locked",100000]
["2021-09-20","C12-M-SS-12","قميص كم قصير-بنين(لون أزرق)للقسم الإبتدائي ",125000,250,"Sell",2,null,248,null,"Locked",250000]
["2021-09-20","C12-F-SS-12","قميص كم قصير –بنات (لون زهري )للقسم الإبتدائي",125000,250,"Sell",4,null,246,null,"Locked",500000]
["2021-09-20","C34-F-LS-16","قميص كم طويل-بنات (لون موف)للقسم المتوسط والثانوي",145000,200,"Sell",1,null,199,null,"Locked",145000]
["2021-09-20","C12-F-SS-8","قميص كم قصير –بنات (لون زهري )للقسم الإبتدائي",125000,299,"Sell",1,null,298,null,"Locked",125000]
["2021-09-20","C12-F-LS-8","قميص كم طويل-بنات(لون زهري) للقسم الإبتدائي",145000,299,"Sell",1,null,298,null,"Locked",145000]
["2021-09-20","CA-Gilet-8","جيلية صوف نوعية ممتازة مع تطريز –خيط تركي (50%صوف-50%أكريليك)",145000,300,"Sell",1,null,299,null,"Locked",145000]
["2021-09-20","C0-Tergal-4","مريول tergal   لقسم الروضات مع تطريز إضافي أحرف وأرقام والشعار ",100000,153,"Sell",1,null,152,null,"Locked",100000]
["2021-09-20","C0-Tergal-3","مريول tergal   لقسم الروضات مع تطريز إضافي أحرف وأرقام والشعار ",100000,56,"Sell",1,null,55,null,"Locked",100000]
["2021-09-20","C12-F-LS-8","قميص كم طويل-بنات(لون زهري) للقسم الإبتدائي",145000,298,"Sell",1,null,297,null,"Locked",145000]
["2021-09-20","CA-Gilet-10","جيلية صوف نوعية ممتازة مع تطريز –خيط تركي (50%صوف-50%أكريليك)",145000,299,"Sell",1,null,298,null,"Locked",145000]
["2021-09-20","C12-M-LS-12","قميص كم طويل –بنين (لون أزرق )للقسم الإبتدائي",145000,250,"Sell",1,null,249,null,"Locked",145000]
["2021-09-20","C34-F-LS-L","قميص كم طويل-بنات (لون موف)للقسم المتوسط والثانوي",145000,100,"Sell",1,null,99,null,"Locked",145000]
["2021-09-20","C34-F-LS-S","قميص كم طويل-بنات (لون موف)للقسم المتوسط والثانوي",145000,150,"Sell",1,null,149,null,"Locked",145000]
["2021-09-20","C34-M-SS-16","قميص كم قصير-بنين(لون رمادي) للقسم المتوسط والثانوي",125000,200,"Sell",1,null,199,null,"Locked",125000]
["2021-09-20","C34-F-LS-M","قميص كم طويل-بنات (لون موف)للقسم المتوسط والثانوي",145000,150,"Sell",1,null,149,null,"Locked",145000]
["2021-09-20","C12-M-SS-6","قميص كم قصير-بنين(لون أزرق)للقسم الإبتدائي ",125000,150,"Sell",1,null,149,null,"Locked",125000]
["2021-09-20","C12-M-LS-6","قميص كم طويل –بنين (لون أزرق )للقسم الإبتدائي",145000,150,"Sell",1,null,149,null,"Locked",145000]
["2021-09-20","C34-M-SS-14","قميص كم قصير-بنين(لون رمادي) للقسم المتوسط والثانوي",125000,200,"Sell",1,null,199,null,"Locked",125000]
["2021-09-20","C34-M-LS-14","قميص كم طويل-بنين(لون رمادي)للقسم المتوسط والثانوي  ",145000,200,"Sell",1,null,199,null,"Locked",145000]
["2021-09-20","CA-Gilet-6","جيلية صوف نوعية ممتازة مع تطريز –خيط تركي (50%صوف-50%أكريليك)",145000,100,"Sell",1,null,99,null,"Locked",145000]
[null,null,{"$f":"IF(B42=\"\",\"\",VLOOKUP(B42,itemsdata,2,\"false\"))","v":""},{"$f":"IF(B42=\"\",\"\",VLOOKUP(B42,itemsdata,5,\"false\"))","v":""},{"$f":"IF(B42=\"\",\"\",VLOOKUP(B42,itemsdata,3,\"false\"))","v":""},null,null,null,null,null,null,""]
[null,null,"","","",null,null,null,null,null,null,""]
[null,null,"","","",null,null,null,null,null,null,""]
[null,null,"","","",null,null,null,null,null,null,""]
[null,null,"","","",null,null,null,null,null,null,""]
[null,null,"","","",null,null,null,null,null,null,""]
[null,null,"","","",null,null,null,null,null,null,""]
[null,null,"","","",null,null,null,null,null,null,""]
[null,null,"","","",null,null,null,null,null,null,""]
[null,null,"","","",null,null,null,null,null,null,""]
[null,null,"","","",null,null,null,null,null,null,""]
[null,null,"","","",null,null,null,null,null,null,""]
[null,null,"","","",null,null,null,null,null,null,""]
[null,null,"","","",null,null,null,null,null,null,""]
[null,null,"","","",null,null,null,null,null,null,""]
[null,null,{"$f":"IF(B57=\"\",\"\",VLOOKUP(B57,itemsdata,2,\"false\"))","v":""},{"$f":"IF(B57=\"\",\"\",VLOOKUP(B57,itemsdata,5,\"false\"))","v":""},{"$f":"IF(B57=\"\",\"\",VLOOKUP(B57,itemsdata,3,\"false\"))","v":""},null,null,null,null,null,null,""]
[null,null,"","","",null,null,null,null,null,null,""]
[null,null,"","","",null,null,null,null,null,null,""]
[null,null,"","","",null,null,null,null,null,null,""]
[null,null,"","","",null,null,null,null,null,null,""]
[null,null,"","","",null,null,null,null,null,null,""]
[null,null,"","","",null,null,null,null,null,null,""]
[null,null,"","","",null,null,null,null,null,null,{"$f":"IF(G64<>\"\",D64*G64,\"\")","v":""}]
[null,null,"","","",null,null,null,null,null,null,""]
[null,null,"","","",null,null,null,null,null,null,""]
[null,null,"","","",null,null,null,null,null,null,""]
[null,null,"","","",null,null,null,null,null,null,""]
[null,null,"","","",null,null,null,null,null,null,""]
[null,null,"","","",null,null,null,null,null,null,""]
[null,null,"","","",null,null,null,null,null,null,""]
[null,null,"","","",null,null,null,null,null,null,""]
[null,null,"","","",null,null,null,null,null,null,""]
[null,null,"","","",null,null,null,null,null,null,""]
[null,null,"","","",null,null,null,null,null,null,""]
[null,null,"","","",null,null,null,null,null,null,""]
[null,null,"","","",null,null,null,null,null,null,""]
[null,null,"","","",null,null,null,null,null,null,""]
[null,null,"","","",null,null,null,null,null,null,""]
[null,null,"","","",null,null,null,null,null,null,""]
[null,null,"","","",null,null,null,null,null,null,""]
[null,null,"","","",null,null,null,null,null,null,""]
[null,null,"","","",null,null,null,null,null,null,""]
[null,null,"","","",null,null,null,null,null,null,""]
[null,null,"","","",null,null,null,null,null,null,""]
[null,null,"","","",null,null,null,null,null,null,""]
[null,null,"","","",null,null,null,null,null,null,""]
[null,null,"","","",null,null,null,null,null,null,""]
[null,null,"","","",null,null,null,null,null,null,""]
[null,null,"","","",null,null,null,null,null,null,""]
[null,null,"","","",null,null,null,null,null,null,""]
[null,null,"","","",null,null,null,null,null,null,""]
[null,null,"","","",null,null,null,null,null,null,""]
[null,null,"","","",null,null,null,null,null,null,""]
[null,null,"","","",null,null,null,null,null,null,""]
[null,null,"","","",null,null,null,null,null,null,""]
[null,null,"","","",null,null,null,null,null,null,""]
[null,null,"","","",null,null,null,null,null,null,""]
[null,null,"","","",null,null,null,null,null,null,""]
[null,null,"","","",null,null,null,null,null,null,""]
[null,null,"","","",null,null,null,null,null,null,""]
[null,null,"","","",null,null,null,null,null,null,""]
[null,null,"","","",null,null,null,null,null,null,""]
[null,null,"","","",null,null,null,null,null,null,""]
[null,null,"","","",null,null,null,null,null,null,""]
[null,null,"","","",null,null,null,null,null,null,""]
[null,null,"","","",null,null,null,null,null,null,""]
[null,null,"","","",null,null,null,null,null,null,""]
[null,null,"","","",null,null,null,null,null,null,""]
[null,null,"","","",null,null,null,null,null,null,""]
[null,null,"","","",null,null,null,null,null,null,""]
[null,null,"","","",null,null,null,null,null,null,""]
[null,null,"","","",null,null,null,null,null,null,""]
[null,null,"","","",null,null,null,null,null,null,""]
[null,null,"","","",null,null,null,null,null,null,""]
[null,null,"","","",null,null,null,null,null,null,""]
[null,null,"","","",null,null,null,null,null,null,""]
[null,null,"","","",null,null,null,null,null,null,""]
[null,null,"","","",null,null,null,null,null,null,""]
[null,null,"","","",null,null,null,null,null,null,""]
[null,null,{"$f":"IF(B121=\"\",\"\",VLOOKUP(B121,itemsdata,2,\"false\"))","v":""},{"$f":"IF(B121=\"\",\"\",VLOOKUP(B121,itemsdata,5,\"false\"))","v":""},{"$f":"IF(B121=\"\",\"\",VLOOKUP(B121,itemsdata,3,\"false\"))","v":""},null,null,null,null,null,null,""]
[null,null,"","","",null,null,null,null,null,null,""]
[null,null,"","","",null,null,null,null,null,null,""]
[null,null,"","","",null,null,null,null,null,null,""]
[null,null,"","","",null,null,null,null,null,null,""]
[null,null,"","","",null,null,null,null,null,null,""]
[null,null,"","","",null,null,null,null,null,null,""]
[null,null,"","","",null,null,null,null,null,null,{"$f":"IF(G128<>\"\",D128*G128,\"\")","v":""}]
[null,null,"","","",null,null,null,null,null,null,""]
[null,null,"","","",null,null,null,null,null,null,""]
[null,null,"","","",null,null,null,null,null,null,""]
[null,null,"","","",null,null,null,null,null,null,""]
[null,null,"","","",null,null,null,null,null,null,""]
[null,null,"","","",null,null,null,null,null,null,""]
[null,null,"","","",null,null,null,null,null,null,""]
[null,null,"","","",null,null,null,null,null,null,""]
[null,null,"","","",null,null,null,null,null,null,""]
[null,null,"","","",null,null,null,null,null,null,""]
[null,null,"","","",null,null,null,null,null,null,""]
[null,null,"","","",null,null,null,null,null,null,""]
[null,null,"","","",null,null,null,null,null,null,""]
[null,null,"","","",null,null,null,null,null,null,""]
[null,null,"","","",null,null,null,null,null,null,""]
[null,null,"","","",null,null,null,null,null,null,""]
[null,null,"","","",null,null,null,null,null,null,""]
[null,null,"","","",null,null,null,null,null,null,""]
[null,null,"","","",null,null,null,null,null,null,""]
[null,null,"","","",null,null,null,null,null,null,""]
[null,null,"","","",null,null,null,null,null,null,""]
[null,null,"","","",null,null,null,null,null,null,""]
[null,null,"","","",null,null,null,null,null,null,""]
[null,null,"","","",null,null,null,null,null,null,""]
[null,null,"","","",null,null,null,null,null,null,""]
[null,null,"","","",null,null,null,null,null,null,""]
[null,null,"","","",null,null,null,null,null,null,""]
[null,null,"","","",null,null,null,null,null,null,""]
[null,null,"","","",null,null,null,null,null,null,""]
[null,null,"","","",null,null,null,null,null,null,""]
[null,null,"","","",null,null,null,null,null,null,""]
[null,null,"","","",null,null,null,null,null,null,""]
[null,null,"","","",null,null,null,null,null,null,""]
[null,null,"","","",null,null,null,null,null,null,""]
[null,null,"","","",null,null,null,null,null,null,""]
[null,null,"","","",null,null,null,null,null,null,""]
[null,null,"","","",null,null,null,null,null,null,""]
[null,null,"","","",null,null,null,null,null,null,""]
[null,null,"","","",null,null,null,null,null,null,""]
[null,null,"","","",null,null,null,null,null,null,""]
[null,null,"","","",null,null,null,null,null,null,""]
[null,null,"","","",null,null,null,null,null,null,""]
[null,null,"","","",null,null,null,null,null,null,""]
[null,null,"","","",null,null,null,null,null,null,""]
[null,null,"","","",null,null,null,null,null,null,""]
[null,null,"","","",null,null,null,null,null,null,""]
[null,null,"","","",null,null,null,null,null,null,""]
[null,null,"","","",null,null,null,null,null,null,""]
[null,null,"","","",null,null,null,null,null,null,""]
[null,null,"","","",null,null,null,null,null,null,""]
[null,null,"","","",null,null,null,null,null,null,""]
[null,null,"","","",null,null,null,null,null,null,""]
[null,null,"","","",null,null,null,null,null,null,""]
[null,null,"","","",null,null,null,null,null,null,""]
[null,null,"","","",null,null,null,null,null,null,""]
[null,null,"","","",null,null,null,null,null,null,""]
[null,null,{"$f":"IF(B185=\"\",\"\",VLOOKUP(B185,itemsdata,2,\"false\"))","v":""},{"$f":"IF(B185=\"\",\"\",VLOOKUP(B185,itemsdata,5,\"false\"))","v":""},{"$f":"IF(B185=\"\",\"\",VLOOKUP(B185,itemsdata,3,\"false\"))","v":""},null,null,null,null,null,null,""]
[null,null,"","","",null,null,null,null,null,null,""]
[null,null,"","","",null,null,null,null,null,null,""]
[null,null,"","","",null,null,null,null,null,null,""]
[null,null,"","","",null,null,null,null,null,null,""]
[null,null,"","","",null,null,null,null,null,null,""]
[null,null,"","","",null,null,null,null,null,null,""]
[null,null,"","","",null,null,null,null,null,null,{"$f":"IF(G192<>\"\",D192*G192,\"\")","v":""}]
[null,null,"","","",null,null,null,null,null,null,""]
[null,null,"","","",null,null,null,null,null,null,""]
[null,null,"","","",null,null,null,null,null,null,""]
[null,null,"","","",null,null,null,null,null,null,""]
[null,null,"","","",null,null,null,null,null,null,""]
[null,null,"","","",null,null,null,null,null,null,""]
[null,null,"","","",null,null,null,null,null,null,""]
[null,null,"","","",null,null,null,null,null,null,""]
[null,null,"","","",null,null,null,null,null,null,""]
[null,null,"","","",null,null,null,null,null,null,""]
[null,null,"","","",null,null,null,null,null,null,""]
[null,null,"","","",null,null,null,null,null,null,""]
[null,null,"","","",null,null,null,null,null,null,""]
[null,null,"","","",null,null,null,null,null,null,""]
[null,null,"","","",null,null,null,null,null,null,""]
[null,null,"","","",null,null,null,null,null,null,""]
[null,null,"","","",null,null,null,null,null,null,""]
[null,null,"","","",null,null,null,null,null,null,""]
[null,null,"","","",null,null,null,null,null,null,""]
[null,null,"","","",null,null,null,null,null,null,""]
[null,null,"","","",null,null,null,null,null,null,""]
[null,null,"","","",null,null,null,null,null,null,""]
[null,null,"","","",null,null,null,null,null,null,""]
[null,null,"","","",null,null,null,null,null,null,""]
[null,null,"","","",null,null,null,null,null,null,""]
[null,null,"","","",null,null,null,null,null,null,""]
[null,null,"","","",null,null,null,null,null,null,""]
[null,null,"","","",null,null,null,null,null,null,""]
[null,null,"","","",null,null,null,null,null,null,""]
[null,null,"","","",null,null,null,null,null,null,""]
[null,null,"","","",null,null,null,null,null,null,""]
[null,null,"","","",null,null,null,null,null,null,""]
[null,null,"","","",null,null,null,null,null,null,""]
[null,null,"","","",null,null,null,null,null,null,""]
[null,null,"","","",null,null,null,null,null,null,""]
[null,null,"","","",null,null,null,null,null,null,""]
[null,null,"","","",null,null,null,null,null,null,""]
[null,null,"","","",null,null,null,null,null,null,""]
[null,null,"","","",null,null,null,null,null,null,""]
[null,null,"","","",null,null,null,null,null,null,""]
[null,null,"","","",null,null,null,null,null,null,""]
[null,null,"","","",null,null,null,null,null,null,""]
[null,null,"","","",null,null,null,null,null,null,""]
[null,null,"","","",null,null,null,null,null,null,""]
[null,null,"","","",null,null,null,null,null,null,""]
[null,null,"","","",null,null,null,null,null,null,""]
[null,null,"","","",null,null,null,null,null,null,""]
[null,null,"","","",null,null,null,null,null,null,""]
[null,null,"","","",null,null,null,null,null,null,""]
[null,null,"","","",null,null,null,null,null,null,""]
[null,null,"","","",null,null,null,null,null,null,""]
[null,null,"","","",null,null,null,null,null,null,""]
[null,null,"","","",null,null,null,null,null,null,""]
[null,null,"","","",null,null,null,null,null,null,""]
[null,null,"","","",null,null,null,null,null,null,""]
[null,null,"","","",null,null,null,null,null,null,""]
[null,null,{"$f":"IF(B249=\"\",\"\",VLOOKUP(B249,itemsdata,2,\"false\"))","v":""},{"$f":"IF(B249=\"\",\"\",VLOOKUP(B249,itemsdata,5,\"false\"))","v":""},{"$f":"IF(B249=\"\",\"\",VLOOKUP(B249,itemsdata,3,\"false\"))","v":""},null,null,null,null,null,null,""]
[null,null,"","","",null,null,null,null,null,null,""]
[null,null,"","","",null,null,null,null,null,null,""]
[null,null,"","","",null,null,null,null,null,null,""]
[null,null,"","","",null,null,null,null,null,null,""]
[null,null,"","","",null,null,null,null,null,null,""]
[null,null,"","","",null,null,null,null,null,null,""]
[null,null,"","","",null,null,null,null,null,null,{"$f":"IF(G256<>\"\",D256*G256,\"\")","v":""}]
[null,null,"","","",null,null,null,null,null,null,""]
[null,null,"","","",null,null,null,null,null,null,""]
[null,null,"","","",null,null,null,null,null,null,""]
[null,null,"","","",null,null,null,null,null,null,""]
[null,null,"","","",null,null,null,null,null,null,""]
[null,null,"","","",null,null,null,null,null,null,""]
[null,null,"","","",null,null,null,null,null,null,""]
[null,null,"","","",null,null,null,null,null,null,""]
[null,null,"","","",null,null,null,null,null,null,""]
[null,null,"","","",null,null,null,null,null,null,""]
[null,null,"","","",null,null,null,null,null,null,""]
[null,null,"","","",null,null,null,null,null,null,""]
[null,null,"","","",null,null,null,null,null,null,""]
[null,null,"","","",null,null,null,null,null,null,""]
[null,null,"","","",null,null,null,null,null,null,""]
[null,null,"","","",null,null,null,null,null,null,""]
[null,null,"","","",null,null,null,null,null,null,""]
[null,null,"","","",null,null,null,null,null,null,""]
[null,null,"","","",null,null,null,null,null,null,""]
[null,null,"","","",null,null,null,null,null,null,""]
[null,null,"","","",null,null,null,null,null,null,""]
[null,null,"","","",null,null,null,null,null,null,""]
[null,null,"","","",null,null,null,null,null,null,""]
[null,null,"","","",null,null,null,null,null,null,""]
[null,null,"","","",null,null,null,null,null,null,""]
[null,null,"","","",null,null,null,null,null,null,""]
[null,null,"","","",null,null,null,null,null,null,""]
[null,null,"","","",null,null,null,null,null,null,""]
[null,null,"","","",null,null,null,null,null,null,""]
[null,null,"","","",null,null,null,null,null,null,""]
[null,null,"","","",null,null,null,null,null,null,""]
[null,null,"","","",null,null,null,null,null,null,""]
[null,null,"","","",null,null,null,null,null,null,""]
[null,null,"","","",null,null,null,null,null,null,""]
[null,null,"","","",null,null,null,null,null,null,""]
[null,null,"","","",null,null,null,null,null,null,""]
[null,null,"","","",null,null,null,null,null,null,""]
[null,null,"","","",null,null,null,null,null,null,""]
[null,null,"","","",null,null,null,null,null,null,""]
[null,null,"","","",null,null,null,null,null,null,""]
[null,null,"","","",null,null,null,null,null,null,""]
[null,null,"","","",null,null,null,null,null,null,""]
[null,null,"","","",null,null,null,null,null,null,""]
[null,null,"","","",null,null,null,null,null,null,""]
[null,null,"","","",null,null,null,null,null,null,""]
[null,null,"","","",null,null,null,null,null,null,""]
[null,null,"","","",null,null,null,null,null,null,""]
[null,null,"","","",null,null,null,null,null,null,""]
[null,null,"","","",null,null,null,null,null,null,""]
[null,null,"","","",null,null,null,null,null,null,""]
[null,null,"","","",null,null,null,null,null,null,""]
[null,null,"","","",null,null,null,null,null,null,""]
[null,null,"","","",null,null,null,null,null,null,""]
[null,null,"","","",null,null,null,null,null,null,""]
[null,null,"","","",null,null,null,null,null,null,""]
[null,null,"","","",null,null,null,null,null,null,""]
[null,null,{"$f":"IF(B313=\"\",\"\",VLOOKUP(B313,itemsdata,2,\"false\"))","v":""},{"$f":"IF(B313=\"\",\"\",VLOOKUP(B313,itemsdata,5,\"false\"))","v":""},{"$f":"IF(B313=\"\",\"\",VLOOKUP(B313,itemsdata,3,\"false\"))","v":""},null,null,null,null,null,null,""]
[null,null,"","","",null,null,null,null,null,null,""]
[null,null,"","","",null,null,null,null,null,null,""]
[null,null,"","","",null,null,null,null,null,null,""]
[null,null,"","","",null,null,null,null,null,null,""]
[null,null,"","","",null,null,null,null,null,null,""]
[null,null,"","","",null,null,null,null,null,null,""]
[null,null,"","","",null,null,null,null,null,null,{"$f":"IF(G320<>\"\",D320*G320,\"\")","v":""}]
[null,null,"","","",null,null,null,null,null,null,""]
[null,null,"","","",null,null,null,null,null,null,""]
[null,null,"","","",null,null,null,null,null,null,""]
[null,null,"","","",null,null,null,null,null,null,""]
[null,null,"","","",null,null,null,null,null,null,""]
[null,null,"","","",null,null,null,null,null,null,""]
[null,null,"","","",null,null,null,null,null,null,""]
[null,null,"","","",null,null,null,null,null,null,""]
[null,null,"","","",null,null,null,null,null,null,""]
[null,null,"","","",null,null,null,null,null,null,""]
[null,null,"","","",null,null,null,null,null,null,""]
[null,null,"","","",null,null,null,null,null,null,""]
[null,null,"","","",null,null,null,null,null,null,""]
[null,null,"","","",null,null,null,null,null,null,""]
[null,null,"","","",null,null,null,null,null,null,""]
[null,null,"","","",null,null,null,null,null,null,""]
[null,null,"","","",null,null,null,null,null,null,""]
[null,null,"","","",null,null,null,null,null,null,""]
[null,null,"","","",null,null,null,null,null,null,""]
[null,null,"","","",null,null,null,null,null,null,""]
[null,null,"","","",null,null,null,null,null,null,""]
[null,null,"","","",null,null,null,null,null,null,""]
[null,null,"","","",null,null,null,null,null,null,""]
[null,null,"","","",null,null,null,null,null,null,""]
[null,null,"","","",null,null,null,null,null,null,""]
[null,null,"","","",null,null,null,null,null,null,""]
[null,null,"","","",null,null,null,null,null,null,""]
[null,null,"","","",null,null,null,null,null,null,""]
[null,null,"","","",null,null,null,null,null,null,""]
[null,null,"","","",null,null,null,null,null,null,""]
[null,null,"","","",null,null,null,null,null,null,""]
[null,null,"","","",null,null,null,null,null,null,""]
[null,null,"","","",null,null,null,null,null,null,""]
[null,null,"","","",null,null,null,null,null,null,""]
[null,null,"","","",null,null,null,null,null,null,""]
[null,null,"","","",null,null,null,null,null,null,""]
[null,null,"","","",null,null,null,null,null,null,""]
[null,null,"","","",null,null,null,null,null,null,""]
[null,null,"","","",null,null,null,null,null,null,""]
[null,null,"","","",null,null,null,null,null,null,""]
[null,null,"","","",null,null,null,null,null,null,""]
[null,null,"","","",null,null,null,null,null,null,""]
[null,null,"","","",null,null,null,null,null,null,""]
[null,null,"","","",null,null,null,null,null,null,""]
[null,null,"","","",null,null,null,null,null,null,""]
[null,null,"","","",null,null,null,null,null,null,""]
[null,null,"","","",null,null,null,null,null,null,""]
[null,null,"","","",null,null,null,null,null,null,""]
[null,null,"","","",null,null,null,null,null,null,""]
[null,null,"","","",null,null,null,null,null,null,""]
[null,null,"","","",null,null,null,null,null,null,""]
[null,null,"","","",null,null,null,null,null,null,""]
[null,null,"","","",null,null,null,null,null,null,""]
[null,null,"","","",null,null,null,null,null,null,""]
[null,null,"","","",null,null,null,null,null,null,""]
[null,null,"","","",null,null,null,null,null,null,""]
[null,null,{"$f":"IF(B377=\"\",\"\",VLOOKUP(B377,itemsdata,2,\"false\"))","v":""},{"$f":"IF(B377=\"\",\"\",VLOOKUP(B377,itemsdata,5,\"false\"))","v":""},{"$f":"IF(B377=\"\",\"\",VLOOKUP(B377,itemsdata,3,\"false\"))","v":""},null,null,null,null,null,null,""]
[null,null,"","","",null,null,null,null,null,null,""]
[null,null,"","","",null,null,null,null,null,null,""]
[null,null,"","","",null,null,null,null,null,null,""]
[null,null,"","","",null,null,null,null,null,null,""]
[null,null,"","","",null,null,null,null,null,null,""]
[null,null,"","","",null,null,null,null,null,null,""]
[null,null,"","","",null,null,null,null,null,null,{"$f":"IF(G384<>\"\",D384*G384,\"\")","v":""}]
[null,null,"","","",null,null,null,null,null,null,""]
[null,null,"","","",null,null,null,null,null,null,""]
[null,null,"","","",null,null,null,null,null,null,""]
[null,null,"","","",null,null,null,null,null,null,""]
[null,null,"","","",null,null,null,null,null,null,""]
[null,null,"","","",null,null,null,null,null,null,""]
[null,null,"","","",null,null,null,null,null,null,""]
[null,null,"","","",null,null,null,null,null,null,""]
[null,null,"","","",null,null,null,null,null,null,""]
[null,null,"","","",null,null,null,null,null,null,""]
[null,null,"","","",null,null,null,null,null,null,""]
[null,null,"","","",null,null,null,null,null,null,""]
[null,null,"","","",null,null,null,null,null,null,""]
[null,null,"","","",null,null,null,null,null,null,""]
[null,null,"","","",null,null,null,null,null,null,""]
[null,null,"","","",null,null,null,null,null,null,""]
[null,null,"","","",null,null,null,null,null,null,""]
[null,null,"","","",null,null,null,null,null,null,""]
[null,null,"","","",null,null,null,null,null,null,""]
[null,null,"","","",null,null,null,null,null,null,""]
[null,null,"","","",null,null,null,null,null,null,""]
[null,null,"","","",null,null,null,null,null,null,""]
[null,null,"","","",null,null,null,null,null,null,""]
[null,null,"","","",null,null,null,null,null,null,""]
[null,null,"","","",null,null,null,null,null,null,""]
[null,null,"","","",null,null,null,null,null,null,""]
[null,null,"","","",null,null,null,null,null,null,""]
[null,null,"","","",null,null,null,null,null,null,""]
[null,null,"","","",null,null,null,null,null,null,""]
[null,null,"","","",null,null,null,null,null,null,""]
[null,null,"","","",null,null,null,null,null,null,""]
[null,null,"","","",null,null,null,null,null,null,""]
[null,null,"","","",null,null,null,null,null,null,""]
[null,null,"","","",null,null,null,null,null,null,""]
[null,null,"","","",null,null,null,null,null,null,""]
[null,null,"","","",null,null,null,null,null,null,""]
[null,null,"","","",null,null,null,null,null,null,""]
[null,null,"","","",null,null,null,null,null,null,""]
[null,null,"","","",null,null,null,null,null,null,""]
[null,null,"","","",null,null,null,null,null,null,""]
[null,null,"","","",null,null,null,null,null,null,""]
[null,null,"","","",null,null,null,null,null,null,""]
[null,null,"","","",null,null,null,null,null,null,""]
[null,null,"","","",null,null,null,null,null,null,""]
[null,null,"","","",null,null,null,null,null,null,""]
[null,null,"","","",null,null,null,null,null,null,""]
[null,null,"","","",null,null,null,null,null,null,""]
[null,null,"","","",null,null,null,null,null,null,""]
[null,null,"","","",null,null,null,null,null,null,""]
[null,null,"","","",null,null,null,null,null,null,""]
[null,null,"","","",null,null,null,null,null,null,""]
[null,null,"","","",null,null,null,null,null,null,""]
[null,null,"","","",null,null,null,null,null,null,""]
[null,null,"","","",null,null,null,null,null,null,""]
[null,null,"","","",null,null,null,null,null,null,""]
[null,null,"","","",null,null,null,null,null,null,""]
[null,null,{"$f":"IF(B441=\"\",\"\",VLOOKUP(B441,itemsdata,2,\"false\"))","v":""},{"$f":"IF(B441=\"\",\"\",VLOOKUP(B441,itemsdata,5,\"false\"))","v":""},{"$f":"IF(B441=\"\",\"\",VLOOKUP(B441,itemsdata,3,\"false\"))","v":""},null,null,null,null,null,null,""]
[null,null,"","","",null,null,null,null,null,null,""]
[null,null,"","","",null,null,null,null,null,null,""]
[null,null,"","","",null,null,null,null,null,null,""]
[null,null,"","","",null,null,null,null,null,null,""]
[null,null,"","","",null,null,null,null,null,null,""]
[null,null,"","","",null,null,null,null,null,null,""]
[null,null,"","","",null,null,null,null,null,null,{"$f":"IF(G448<>\"\",D448*G448,\"\")","v":""}]
[null,null,"","","",null,null,null,null,null,null,""]
[null,null,"","","",null,null,null,null,null,null,""]
[null,null,"","","",null,null,null,null,null,null,""]
[null,null,"","","",null,null,null,null,null,null,""]
[null,null,"","","",null,null,null,null,null,null,""]
[null,null,"","","",null,null,null,null,null,null,""]
[null,null,"","","",null,null,null,null,null,null,""]
[null,null,"","","",null,null,null,null,null,null,""]
[null,null,"","","",null,null,null,null,null,null,""]
[null,null,"","","",null,null,null,null,null,null,""]
[null,null,"","","",null,null,null,null,null,null,""]
[null,null,"","","",null,null,null,null,null,null,""]
[null,null,"","","",null,null,null,null,null,null,""]
[null,null,"","","",null,null,null,null,null,null,""]
[null,null,"","","",null,null,null,null,null,null,""]
[null,null,"","","",null,null,null,null,null,null,""]
[null,null,"","","",null,null,null,null,null,null,""]
[null,null,"","","",null,null,null,null,null,null,""]
[null,null,"","","",null,null,null,null,null,null,""]
[null,null,"","","",null,null,null,null,null,null,""]
[null,null,"","","",null,null,null,null,null,null,""]
[null,null,"","","",null,null,null,null,null,null,""]
[null,null,"","","",null,null,null,null,null,null,""]
[null,null,"","","",null,null,null,null,null,null,""]
[null,null,"","","",null,null,null,null,null,null,""]
[null,null,"","","",null,null,null,null,null,null,""]
[null,null,"","","",null,null,null,null,null,null,""]
[null,null,"","","",null,null,null,null,null,null,""]
[null,null,"","","",null,null,null,null,null,null,""]
[null,null,"","","",null,null,null,null,null,null,""]
[null,null,"","","",null,null,null,null,null,null,""]
[null,null,"","","",null,null,null,null,null,null,""]
[null,null,"","","",null,null,null,null,null,null,""]
[null,null,"","","",null,null,null,null,null,null,""]
[null,null,"","","",null,null,null,null,null,null,""]
[null,null,"","","",null,null,null,null,null,null,""]
[null,null,"","","",null,null,null,null,null,null,""]
[null,null,"","","",null,null,null,null,null,null,""]
[null,null,"","","",null,null,null,null,null,null,""]
[null,null,"","","",null,null,null,null,null,null,""]
[null,null,"","","",null,null,null,null,null,null,""]
[null,null,"","","",null,null,null,null,null,null,""]
[null,null,"","","",null,null,null,null,null,null,""]
[null,null,"","","",null,null,null,null,null,null,""]
[null,null,"","","",null,null,null,null,null,null,""]
[null,null,"","","",null,null,null,null,null,null,""]
[null,null,"","","",null,null,null,null,null,null,""]
[null,null,"","","",null,null,null,null,null,null,""]
[null,null,"","","",null,null,null,null,null,null,""]
[null,null,"","","",null,null,null,null,null,null,""]
[null,null,"","","",null,null,null,null,null,null,""]
[null,null,"","","",null,null,null,null,null,null,""]
[null,null,"","","",null,null,null,null,null,null,""]
[null,null,"","","",null,null,null,null,null,null,""]
[null,null,"","","",null,null,null,null,null,null,""]
[null,null,"","","",null,null,null,null,null,null,""]
[null,null,{"$f":"IF(B505=\"\",\"\",VLOOKUP(B505,itemsdata,2,\"false\"))","v":""},{"$f":"IF(B505=\"\",\"\",VLOOKUP(B505,itemsdata,5,\"false\"))","v":""},{"$f":"IF(B505=\"\",\"\",VLOOKUP(B505,itemsdata,3,\"false\"))","v":""},null,null,null,null,null,null,""]
[null,null,"","","",null,null,null,null,null,null,""]
[null,null,"","","",null,null,null,null,null,null,""]
[null,null,"","","",null,null,null,null,null,null,""]
[null,null,"","","",null,null,null,null,null,null,""]
[null,null,"","","",null,null,null,null,null,null,""]
[null,null,"","","",null,null,null,null,null,null,""]
[null,null,"","","",null,null,null,null,null,null,{"$f":"IF(G512<>\"\",D512*G512,\"\")","v":""}]
[null,null,"","","",null,null,null,null,null,null,""]
[null,null,"","","",null,null,null,null,null,null,""]
[null,null,"","","",null,null,null,null,null,null,""]
[null,null,"","","",null,null,null,null,null,null,""]
[null,null,"","","",null,null,null,null,null,null,""]
[null,null,"","","",null,null,null,null,null,null,""]
[null,null,"","","",null,null,null,null,null,null,""]
[null,null,"","","",null,null,null,null,null,null,""]
[null,null,"","","",null,null,null,null,null,null,""]
[null,null,"","","",null,null,null,null,null,null,""]
[null,null,"","","",null,null,null,null,null,null,""]
[null,null,"","","",null,null,null,null,null,null,""]
[null,null,"","","",null,null,null,null,null,null,""]
[null,null,"","","",null,null,null,null,null,null,""]
[null,null,"","","",null,null,null,null,null,null,""]
[null,null,"","","",null,null,null,null,null,null,""]
[null,null,"","","",null,null,null,null,null,null,""]
[null,null,"","","",null,null,null,null,null,null,""]
[null,null,"","","",null,null,null,null,null,null,""]
[null,null,"","","",null,null,null,null,null,null,""]
[null,null,"","","",null,null,null,null,null,null,""]
[null,null,"","","",null,null,null,null,null,null,""]
[null,null,"","","",null,null,null,null,null,null,""]
[null,null,"","","",null,null,null,null,null,null,""]
[null,null,"","","",null,null,null,null,null,null,""]
[null,null,"","","",null,null,null,null,null,null,""]
[null,null,"","","",null,null,null,null,null,null,""]
[null,null,"","","",null,null,null,null,null,null,""]
[null,null,"","","",null,null,null,null,null,null,""]
[null,null,"","","",null,null,null,null,null,null,""]
[null,null,"","","",null,null,null,null,null,null,""]
[null,null,"","","",null,null,null,null,null,null,""]
[null,null,"","","",null,null,null,null,null,null,""]
[null,null,"","","",null,null,null,null,null,null,""]
[null,null,"","","",null,null,null,null,null,null,""]
[null,null,"","","",null,null,null,null,null,null,""]
[null,null,"","","",null,null,null,null,null,null,""]
[null,null,"","","",null,null,null,null,null,null,""]
[null,null,"","","",null,null,null,null,null,null,""]
[null,null,"","","",null,null,null,null,null,null,""]
[null,null,"","","",null,null,null,null,null,null,""]
[null,null,"","","",null,null,null,null,null,null,""]
[null,null,"","","",null,null,null,null,null,null,""]
[null,null,"","","",null,null,null,null,null,null,""]
[null,null,"","","",null,null,null,null,null,null,""]
[null,null,"","","",null,null,null,null,null,null,""]
[null,null,"","","",null,null,null,null,null,null,""]
[null,null,"","","",null,null,null,null,null,null,""]
[null,null,"","","",null,null,null,null,null,null,""]
[null,null,"","","",null,null,null,null,null,null,""]
[null,null,"","","",null,null,null,null,null,null,""]
[null,null,"","","",null,null,null,null,null,null,""]
[null,null,"","","",null,null,null,null,null,null,""]
[null,null,"","","",null,null,null,null,null,null,""]
[null,null,"","","",null,null,null,null,null,null,""]
[null,null,"","","",null,null,null,null,null,null,""]
[null,null,{"$f":"IF(B569=\"\",\"\",VLOOKUP(B569,itemsdata,2,\"false\"))","v":""},{"$f":"IF(B569=\"\",\"\",VLOOKUP(B569,itemsdata,5,\"false\"))","v":""},{"$f":"IF(B569=\"\",\"\",VLOOKUP(B569,itemsdata,3,\"false\"))","v":""},null,null,null,null,null,null,""]
[null,null,"","","",null,null,null,null,null,null,""]
[null,null,"","","",null,null,null,null,null,null,""]
[null,null,"","","",null,null,null,null,null,null,""]
[null,null,"","","",null,null,null,null,null,null,""]
[null,null,"","","",null,null,null,null,null,null,""]
[null,null,"","","",null,null,null,null,null,null,""]
[null,null,"","","",null,null,null,null,null,null,{"$f":"IF(G576<>\"\",D576*G576,\"\")","v":""}]
[null,null,"","","",null,null,null,null,null,null,""]
[null,null,"","","",null,null,null,null,null,null,""]
[null,null,"","","",null,null,null,null,null,null,""]
[null,null,"","","",null,null,null,null,null,null,""]
[null,null,"","","",null,null,null,null,null,null,""]
[null,null,"","","",null,null,null,null,null,null,""]
[null,null,"","","",null,null,null,null,null,null,""]
[null,null,"","","",null,null,null,null,null,null,""]
[null,null,"","","",null,null,null,null,null,null,""]
[null,null,"","","",null,null,null,null,null,null,""]
[null,null,"","","",null,null,null,null,null,null,""]
[null,null,"","","",null,null,null,null,null,null,""]
[null,null,"","","",null,null,null,null,null,null,""]
[null,null,"","","",null,null,null,null,null,null,""]
[null,null,"","","",null,null,null,null,null,null,""]
[null,null,"","","",null,null,null,null,null,null,""]
[null,null,"","","",null,null,null,null,null,null,""]
[null,null,"","","",null,null,null,null,null,null,""]
[null,null,"","","",null,null,null,null,null,null,""]
[null,null,"","","",null,null,null,null,null,null,""]
[null,null,"","","",null,null,null,null,null,null,""]
[null,null,"","","",null,null,null,null,null,null,""]
[null,null,"","","",null,null,null,null,null,null,""]
[null,null,"","","",null,null,null,null,null,null,""]
[null,null,"","","",null,null,null,null,null,null,""]
[null,null,"","","",null,null,null,null,null,null,""]
[null,null,"","","",null,null,null,null,null,null,""]
[null,null,"","","",null,null,null,null,null,null,""]
[null,null,"","","",null,null,null,null,null,null,""]
[null,null,"","","",null,null,null,null,null,null,""]
[null,null,"","","",null,null,null,null,null,null,""]
[null,null,"","","",null,null,null,null,null,null,""]
[null,null,"","","",null,null,null,null,null,null,""]
[null,null,"","","",null,null,null,null,null,null,""]
[null,null,"","","",null,null,null,null,null,null,""]
[null,null,"","","",null,null,null,null,null,null,""]
[null,null,"","","",null,null,null,null,null,null,""]
[null,null,"","","",null,null,null,null,null,null,""]
[null,null,"","","",null,null,null,null,null,null,""]
[null,null,"","","",null,null,null,null,null,null,""]
[null,null,"","","",null,null,null,null,null,null,""]
[null,null,"","","",null,null,null,null,null,null,""]
[null,null,"","","",null,null,null,null,null,null,""]
[null,null,"","","",null,null,null,null,null,null,""]
[null,null,"","","",null,null,null,null,null,null,""]
[null,null,"","","",null,null,null,null,null,null,""]
[null,null,"","","",null,null,null,null,null,null,""]
[null,null,"","","",null,null,null,null,null,null,""]
[null,null,"","","",null,null,null,null,null,null,""]
[null,null,"","","",null,null,null,null,null,null,""]
[null,null,"","","",null,null,null,null,null,null,""]
[null,null,"","","",null,null,null,null,null,null,""]
[null,null,"","","",null,null,null,null,null,null,""]
[null,null,"","","",null,null,null,null,null,null,""]
[null,null,"","","",null,null,null,null,null,null,""]
[null,null,"","","",null,null,null,null,null,null,""]
[null,null,{"$f":"IF(B633=\"\",\"\",VLOOKUP(B633,itemsdata,2,\"false\"))","v":""},{"$f":"IF(B633=\"\",\"\",VLOOKUP(B633,itemsdata,5,\"false\"))","v":""},{"$f":"IF(B633=\"\",\"\",VLOOKUP(B633,itemsdata,3,\"false\"))","v":""},null,null,null,null,null,null,""]
[null,null,"","","",null,null,null,null,null,null,""]
[null,null,"","","",null,null,null,null,null,null,""]
[null,null,"","","",null,null,null,null,null,null,""]
[null,null,"","","",null,null,null,null,null,null,""]
[null,null,"","","",null,null,null,null,null,null,""]
[null,null,"","","",null,null,null,null,null,null,""]
[null,null,"","","",null,null,null,null,null,null,{"$f":"IF(G640<>\"\",D640*G640,\"\")","v":""}]
[null,null,"","","",null,null,null,null,null,null,""]
[null,null,"","","",null,null,null,null,null,null,""]
[null,null,"","","",null,null,null,null,null,null,""]
[null,null,"","","",null,null,null,null,null,null,""]
[null,null,"","","",null,null,null,null,null,null,""]
[null,null,"","","",null,null,null,null,null,null,""]
[null,null,"","","",null,null,null,null,null,null,""]
[null,null,"","","",null,null,null,null,null,null,""]
[null,null,"","","",null,null,null,null,null,null,""]
[null,null,"","","",null,null,null,null,null,null,""]
[null,null,"","","",null,null,null,null,null,null,""]
[null,null,"","","",null,null,null,null,null,null,""]
[null,null,"","","",null,null,null,null,null,null,""]
[null,null,"","","",null,null,null,null,null,null,""]
[null,null,"","","",null,null,null,null,null,null,""]
[null,null,"","","",null,null,null,null,null,null,""]
[null,null,"","","",null,null,null,null,null,null,""]
[null,null,"","","",null,null,null,null,null,null,""]
[null,null,"","","",null,null,null,null,null,null,""]
[null,null,"","","",null,null,null,null,null,null,""]
[null,null,"","","",null,null,null,null,null,null,""]
[null,null,"","","",null,null,null,null,null,null,""]
[null,null,"","","",null,null,null,null,null,null,""]
[null,null,"","","",null,null,null,null,null,null,""]
[null,null,"","","",null,null,null,null,null,null,""]
[null,null,"","","",null,null,null,null,null,null,""]
[null,null,"","","",null,null,null,null,null,null,""]
[null,null,"","","",null,null,null,null,null,null,""]
[null,null,"","","",null,null,null,null,null,null,""]
[null,null,"","","",null,null,null,null,null,null,""]
[null,null,"","","",null,null,null,null,null,null,""]
[null,null,"","","",null,null,null,null,null,null,""]
[null,null,"","","",null,null,null,null,null,null,""]
[null,null,"","","",null,null,null,null,null,null,""]
[null,null,"","","",null,null,null,null,null,null,""]
[null,null,"","","",null,null,null,null,null,null,""]
[null,null,"","","",null,null,null,null,null,null,""]
[null,null,"","","",null,null,null,null,null,null,""]
[null,null,"","","",null,null,null,null,null,null,""]
[null,null,"","","",null,null,null,null,null,null,""]
[null,null,"","","",null,null,null,null,null,null,""]
[null,null,"","","",null,null,null,null,null,null,""]
[null,null,"","","",null,null,null,null,null,null,""]
[null,null,"","","",null,null,null,null,null,null,""]
[null,null,"","","",null,null,null,null,null,null,""]
[null,null,"","","",null,null,null,null,null,null,""]
[null,null,"","","",null,null,null,null,null,null,""]
[null,null,"","","",null,null,null,null,null,null,""]
[null,null,"","","",null,null,null,null,null,null,""]
[null,null,"","","",null,null,null,null,null,null,""]
[null,null,"","","",null,null,null,null,null,null,""]
[null,null,"","","",null,null,null,null,null,null,""]
[null,null,"","","",null,null,null,null,null,null,""]
[null,null,"","","",null,null,null,null,null,null,""]
[null,null,"","","",null,null,null,null,null,null,""]
[null,null,"","","",null,null,null,null,null,null,""]
[null,null,{"$f":"IF(B697=\"\",\"\",VLOOKUP(B697,itemsdata,2,\"false\"))","v":""},{"$f":"IF(B697=\"\",\"\",VLOOKUP(B697,itemsdata,5,\"false\"))","v":""},{"$f":"IF(B697=\"\",\"\",VLOOKUP(B697,itemsdata,3,\"false\"))","v":""},null,null,null,null,null,null,""]
[null,null,"","","",null,null,null,null,null,null,""]
[null,null,"","","",null,null,null,null,null,null,""]
[null,null,"","","",null,null,null,null,null,null,""]
[null,null,"","","",null,null,null,null,null,null,""]
[null,null,"","","",null,null,null,null,null,null,""]
[null,null,"","","",null,null,null,null,null,null,""]
[null,null,"","","",null,null,null,null,null,null,{"$f":"IF(G704<>\"\",D704*G704,\"\")","v":""}]
[null,null,"","","",null,null,null,null,null,null,""]
[null,null,"","","",null,null,null,null,null,null,""]
[null,null,"","","",null,null,null,null,null,null,""]
[null,null,"","","",null,null,null,null,null,null,""]
[null,null,"","","",null,null,null,null,null,null,""]
[null,null,"","","",null,null,null,null,null,null,""]
[null,null,"","","",null,null,null,null,null,null,""]
[null,null,"","","",null,null,null,null,null,null,""]
[null,null,"","","",null,null,null,null,null,null,""]
[null,null,"","","",null,null,null,null,null,null,""]
[null,null,"","","",null,null,null,null,null,null,""]
[null,null,"","","",null,null,null,null,null,null,""]
[null,null,"","","",null,null,null,null,null,null,""]
[null,null,"","","",null,null,null,null,null,null,""]
[null,null,"","","",null,null,null,null,null,null,""]
[null,null,"","","",null,null,null,null,null,null,""]
[null,null,"","","",null,null,null,null,null,null,""]
[null,null,"","","",null,null,null,null,null,null,""]
[null,null,"","","",null,null,null,null,null,null,""]
[null,null,"","","",null,null,null,null,null,null,""]
[null,null,"","","",null,null,null,null,null,null,""]
[null,null,"","","",null,null,null,null,null,null,""]
[null,null,"","","",null,null,null,null,null,null,""]
[null,null,"","","",null,null,null,null,null,null,""]
[null,null,"","","",null,null,null,null,null,null,""]
[null,null,"","","",null,null,null,null,null,null,""]
[null,null,"","","",null,null,null,null,null,null,""]
[null,null,"","","",null,null,null,null,null,null,""]
[null,null,"","","",null,null,null,null,null,null,""]
[null,null,"","","",null,null,null,null,null,null,""]
[null,null,"","","",null,null,null,null,null,null,""]
[null,null,"","","",null,null,null,null,null,null,""]
[null,null,"","","",null,null,null,null,null,null,""]
[null,null,"","","",null,null,null,null,null,null,""]
[null,null,"","","",null,null,null,null,null,null,""]
[null,null,"","","",null,null,null,null,null,null,""]
[null,null,"","","",null,null,null,null,null,null,""]
[null,null,"","","",null,null,null,null,null,null,""]
[null,null,"","","",null,null,null,null,null,null,""]
[null,null,"","","",null,null,null,null,null,null,""]
[null,null,"","","",null,null,null,null,null,null,""]
[null,null,"","","",null,null,null,null,null,null,""]
[null,null,"","","",null,null,null,null,null,null,""]
[null,null,"","","",null,null,null,null,null,null,""]
[null,null,"","","",null,null,null,null,null,null,""]
[null,null,"","","",null,null,null,null,null,null,""]
[null,null,"","","",null,null,null,null,null,null,""]
[null,null,"","","",null,null,null,null,null,null,""]
[null,null,"","","",null,null,null,null,null,null,""]
[null,null,"","","",null,null,null,null,null,null,""]
[null,null,"","","",null,null,null,null,null,null,""]
[null,null,"","","",null,null,null,null,null,null,""]
[null,null,"","","",null,null,null,null,null,null,""]
[null,null,"","","",null,null,null,null,null,null,""]
[null,null,"","","",null,null,null,null,null,null,""]
[null,null,"","","",null,null,null,null,null,null,""]
[null,null,{"$f":"IF(B761=\"\",\"\",VLOOKUP(B761,itemsdata,2,\"false\"))","v":""},{"$f":"IF(B761=\"\",\"\",VLOOKUP(B761,itemsdata,5,\"false\"))","v":""},{"$f":"IF(B761=\"\",\"\",VLOOKUP(B761,itemsdata,3,\"false\"))","v":""},null,null,null,null,null,null,""]
[null,null,"","","",null,null,null,null,null,null,""]
[null,null,"","","",null,null,null,null,null,null,""]
[null,null,"","","",null,null,null,null,null,null,""]
[null,null,"","","",null,null,null,null,null,null,""]
[null,null,"","","",null,null,null,null,null,null,""]
[null,null,"","","",null,null,null,null,null,null,""]
[null,null,"","","",null,null,null,null,null,null,{"$f":"IF(G768<>\"\",D768*G768,\"\")","v":""}]
[null,null,"","","",null,null,null,null,null,null,""]
[null,null,"","","",null,null,null,null,null,null,""]
[null,null,"","","",null,null,null,null,null,null,""]
[null,null,"","","",null,null,null,null,null,null,""]
[null,null,"","","",null,null,null,null,null,null,""]
[null,null,"","","",null,null,null,null,null,null,""]
[null,null,"","","",null,null,null,null,null,null,""]
[null,null,"","","",null,null,null,null,null,null,""]
[null,null,"","","",null,null,null,null,null,null,""]
[null,null,"","","",null,null,null,null,null,null,""]
[null,null,"","","",null,null,null,null,null,null,""]
[null,null,"","","",null,null,null,null,null,null,""]
[null,null,"","","",null,null,null,null,null,null,""]
[null,null,"","","",null,null,null,null,null,null,""]
[null,null,"","","",null,null,null,null,null,null,""]
[null,null,"","","",null,null,null,null,null,null,""]
[null,null,"","","",null,null,null,null,null,null,""]
[null,null,"","","",null,null,null,null,null,null,""]
[null,null,"","","",null,null,null,null,null,null,""]
[null,null,"","","",null,null,null,null,null,null,""]
[null,null,"","","",null,null,null,null,null,null,""]
[null,null,"","","",null,null,null,null,null,null,""]
[null,null,"","","",null,null,null,null,null,null,""]
[null,null,"","","",null,null,null,null,null,null,""]
[null,null,"","","",null,null,null,null,null,null,""]
[null,null,"","","",null,null,null,null,null,null,""]
[null,null,"","","",null,null,null,null,null,null,""]
[null,null,"","","",null,null,null,null,null,null,""]
[null,null,"","","",null,null,null,null,null,null,""]
[null,null,"","","",null,null,null,null,null,null,""]
[null,null,"","","",null,null,null,null,null,null,""]
[null,null,"","","",null,null,null,null,null,null,""]
[null,null,"","","",null,null,null,null,null,null,""]
[null,null,"","","",null,null,null,null,null,null,""]
[null,null,"","","",null,null,null,null,null,null,""]
[null,null,"","","",null,null,null,null,null,null,""]
[null,null,"","","",null,null,null,null,null,null,""]
[null,null,"","","",null,null,null,null,null,null,""]
[null,null,"","","",null,null,null,null,null,null,""]
[null,null,"","","",null,null,null,null,null,null,""]
[null,null,"","","",null,null,null,null,null,null,""]
[null,null,"","","",null,null,null,null,null,null,""]
[null,null,"","","",null,null,null,null,null,null,""]
[null,null,"","","",null,null,null,null,null,null,""]
[null,null,"","","",null,null,null,null,null,null,""]
[null,null,"","","",null,null,null,null,null,null,""]
[null,null,"","","",null,null,null,null,null,null,""]
[null,null,"","","",null,null,null,null,null,null,""]
[null,null,"","","",null,null,null,null,null,null,""]
[null,null,"","","",null,null,null,null,null,null,""]
[null,null,"","","",null,null,null,null,null,null,""]
[null,null,"","","",null,null,null,null,null,null,""]
[null,null,"","","",null,null,null,null,null,null,""]
[null,null,"","","",null,null,null,null,null,null,""]
[null,null,"","","",null,null,null,null,null,null,""]
[null,null,"","","",null,null,null,null,null,null,""]
[null,null,{"$f":"IF(B825=\"\",\"\",VLOOKUP(B825,itemsdata,2,\"false\"))","v":""},{"$f":"IF(B825=\"\",\"\",VLOOKUP(B825,itemsdata,5,\"false\"))","v":""},{"$f":"IF(B825=\"\",\"\",VLOOKUP(B825,itemsdata,3,\"false\"))","v":""},null,null,null,null,null,null,""]
[null,null,"","","",null,null,null,null,null,null,""]
[null,null,"","","",null,null,null,null,null,null,""]
[null,null,"","","",null,null,null,null,null,null,""]
[null,null,"","","",null,null,null,null,null,null,""]
[null,null,"","","",null,null,null,null,null,null,""]
[null,null,"","","",null,null,null,null,null,null,""]
[null,null,"","","",null,null,null,null,null,null,{"$f":"IF(G832<>\"\",D832*G832,\"\")","v":""}]
[null,null,"","","",null,null,null,null,null,null,""]
[null,null,"","","",null,null,null,null,null,null,""]
[null,null,"","","",null,null,null,null,null,null,""]
[null,null,"","","",null,null,null,null,null,null,""]
[null,null,"","","",null,null,null,null,null,null,""]
[null,null,"","","",null,null,null,null,null,null,""]
[null,null,"","","",null,null,null,null,null,null,""]
[null,null,"","","",null,null,null,null,null,null,""]
[null,null,"","","",null,null,null,null,null,null,""]
[null,null,"","","",null,null,null,null,null,null,""]
[null,null,"","","",null,null,null,null,null,null,""]
[null,null,"","","",null,null,null,null,null,null,""]
[null,null,"","","",null,null,null,null,null,null,""]
[null,null,"","","",null,null,null,null,null,null,""]
[null,null,"","","",null,null,null,null,null,null,""]
[null,null,"","","",null,null,null,null,null,null,""]
[null,null,"","","",null,null,null,null,null,null,""]
[null,null,"","","",null,null,null,null,null,null,""]
[null,null,"","","",null,null,null,null,null,null,""]
[null,null,"","","",null,null,null,null,null,null,""]
[null,null,"","","",null,null,null,null,null,null,""]
[null,null,"","","",null,null,null,null,null,null,""]
[null,null,"","","",null,null,null,null,null,null,""]
[null,null,"","","",null,null,null,null,null,null,""]
[null,null,"","","",null,null,null,null,null,null,""]
[null,null,"","","",null,null,null,null,null,null,""]
[null,null,"","","",null,null,null,null,null,null,""]
[null,null,"","","",null,null,null,null,null,null,""]
[null,null,"","","",null,null,null,null,null,null,""]
[null,null,"","","",null,null,null,null,null,null,""]
[null,null,"","","",null,null,null,null,null,null,""]
[null,null,"","","",null,null,null,null,null,null,""]
[null,null,"","","",null,null,null,null,null,null,""]
[null,null,"","","",null,null,null,null,null,null,""]
[null,null,"","","",null,null,null,null,null,null,""]
[null,null,"","","",null,null,null,null,null,null,""]
[null,null,"","","",null,null,null,null,null,null,""]
[null,null,"","","",null,null,null,null,null,null,""]
[null,null,"","","",null,null,null,null,null,null,""]
[null,null,"","","",null,null,null,null,null,null,""]
[null,null,"","","",null,null,null,null,null,null,""]
[null,null,"","","",null,null,null,null,null,null,""]
[null,null,"","","",null,null,null,null,null,null,""]
[null,null,"","","",null,null,null,null,null,null,""]
[null,null,"","","",null,null,null,null,null,null,""]
[null,null,"","","",null,null,null,null,null,null,""]
[null,null,"","","",null,null,null,null,null,null,""]
[null,null,"","","",null,null,null,null,null,null,""]
[null,null,"","","",null,null,null,null,null,null,""]
[null,null,"","","",null,null,null,null,null,null,""]
[null,null,"","","",null,null,null,null,null,null,""]
[null,null,"","","",null,null,null,null,null,null,""]
[null,null,"","","",null,null,null,null,null,null,""]
[null,null,"","","",null,null,null,null,null,null,""]
[null,null,"","","",null,null,null,null,null,null,""]
[null,null,"","","",null,null,null,null,null,null,""]
[null,null,{"$f":"IF(B889=\"\",\"\",VLOOKUP(B889,itemsdata,2,\"false\"))","v":""},{"$f":"IF(B889=\"\",\"\",VLOOKUP(B889,itemsdata,5,\"false\"))","v":""},{"$f":"IF(B889=\"\",\"\",VLOOKUP(B889,itemsdata,3,\"false\"))","v":""},null,null,null,null,null,null,""]
[null,null,"","","",null,null,null,null,null,null,""]
[null,null,"","","",null,null,null,null,null,null,""]
[null,null,"","","",null,null,null,null,null,null,""]
[null,null,"","","",null,null,null,null,null,null,""]
[null,null,"","","",null,null,null,null,null,null,""]
[null,null,"","","",null,null,null,null,null,null,""]
[null,null,"","","",null,null,null,null,null,null,{"$f":"IF(G896<>\"\",D896*G896,\"\")","v":""}]
[null,null,"","","",null,null,null,null,null,null,""]
[null,null,"","","",null,null,null,null,null,null,""]
[null,null,"","","",null,null,null,null,null,null,""]
[null,null,"","","",null,null,null,null,null,null,""]
[null,null,"","","",null,null,null,null,null,null,""]
[null,null,"","","",null,null,null,null,null,null,""]
[null,null,"","","",null,null,null,null,null,null,""]
[null,null,"","","",null,null,null,null,null,null,""]
[null,null,"","","",null,null,null,null,null,null,""]
[null,null,"","","",null,null,null,null,null,null,""]
[null,null,"","","",null,null,null,null,null,null,""]
[null,null,"","","",null,null,null,null,null,null,""]
[null,null,"","","",null,null,null,null,null,null,""]
[null,null,"","","",null,null,null,null,null,null,""]
[null,null,"","","",null,null,null,null,null,null,""]
[null,null,"","","",null,null,null,null,null,null,""]
[null,null,"","","",null,null,null,null,null,null,""]
[null,null,"","","",null,null,null,null,null,null,""]
[null,null,"","","",null,null,null,null,null,null,""]
[null,null,"","","",null,null,null,null,null,null,""]
[null,null,"","","",null,null,null,null,null,null,""]
[null,null,"","","",null,null,null,null,null,null,""]
[null,null,"","","",null,null,null,null,null,null,""]
[null,null,"","","",null,null,null,null,null,null,""]
[null,null,"","","",null,null,null,null,null,null,""]
[null,null,"","","",null,null,null,null,null,null,""]
[null,null,"","","",null,null,null,null,null,null,""]
[null,null,"","","",null,null,null,null,null,null,""]
[null,null,"","","",null,null,null,null,null,null,""]
[null,null,"","","",null,null,null,null,null,null,""]
[null,null,"","","",null,null,null,null,null,null,""]
[null,null,"","","",null,null,null,null,null,null,""]
[null,null,"","","",null,null,null,null,null,null,""]
[null,null,"","","",null,null,null,null,null,null,""]
[null,null,"","","",null,null,null,null,null,null,""]
[null,null,"","","",null,null,null,null,null,null,""]
[null,null,"","","",null,null,null,null,null,null,""]
[null,null,"","","",null,null,null,null,null,null,""]
[null,null,"","","",null,null,null,null,null,null,""]
[null,null,"","","",null,null,null,null,null,null,""]
[null,null,"","","",null,null,null,null,null,null,""]
[null,null,"","","",null,null,null,null,null,null,""]
[null,null,"","","",null,null,null,null,null,null,""]
[null,null,"","","",null,null,null,null,null,null,""]
[null,null,"","","",null,null,null,null,null,null,""]
[null,null,"","","",null,null,null,null,null,null,""]
[null,null,"","","",null,null,null,null,null,null,""]
[null,null,"","","",null,null,null,null,null,null,""]
[null,null,"","","",null,null,null,null,null,null,""]
[null,null,"","","",null,null,null,null,null,null,""]
[null,null,"","","",null,null,null,null,null,null,""]
[null,null,"","","",null,null,null,null,null,null,""]
[null,null,"","","",null,null,null,null,null,null,""]
[null,null,"","","",null,null,null,null,null,null,""]
[null,null,"","","",null,null,null,null,null,null,""]
[null,null,"","","",null,null,null,null,null,null,""]
[null,null,{"$f":"IF(B953=\"\",\"\",VLOOKUP(B953,itemsdata,2,\"false\"))","v":""},{"$f":"IF(B953=\"\",\"\",VLOOKUP(B953,itemsdata,5,\"false\"))","v":""},{"$f":"IF(B953=\"\",\"\",VLOOKUP(B953,itemsdata,3,\"false\"))","v":""},null,null,null,null,null,null,""]
[null,null,"","","",null,null,null,null,null,null,""]
[null,null,"","","",null,null,null,null,null,null,""]
[null,null,"","","",null,null,null,null,null,null,""]
[null,null,"","","",null,null,null,null,null,null,""]
[null,null,"","","",null,null,null,null,null,null,""]
[null,null,"","","",null,null,null,null,null,null,""]
[null,null,"","","",null,null,null,null,null,null,{"$f":"IF(G960<>\"\",D960*G960,\"\")","v":""}]
[null,null,"","","",null,null,null,null,null,null,""]
[null,null,"","","",null,null,null,null,null,null,""]
[null,null,"","","",null,null,null,null,null,null,""]
[null,null,"","","",null,null,null,null,null,null,""]
[null,null,"","","",null,null,null,null,null,null,""]
[null,null,"","","",null,null,null,null,null,null,""]
[null,null,"","","",null,null,null,null,null,null,""]
[null,null,"","","",null,null,null,null,null,null,""]
[null,null,"","","",null,null,null,null,null,null,""]
[null,null,"","","",null,null,null,null,null,null,""]
[null,null,"","","",null,null,null,null,null,null,""]
[null,null,"","","",null,null,null,null,null,null,""]
[null,null,"","","",null,null,null,null,null,null,""]
[null,null,"","","",null,null,null,null,null,null,""]
[null,null,"","","",null,null,null,null,null,null,""]
[null,null,"","","",null,null,null,null,null,null,""]
[null,null,"","","",null,null,null,null,null,null,""]
[null,null,"","","",null,null,null,null,null,null,""]
[null,null,"","","",null,null,null,null,null,null,""]
[null,null,"","","",null,null,null,null,null,null,""]
[null,null,"","","",null,null,null,null,null,null,""]
[null,null,"","","",null,null,null,null,null,null,""]
[null,null,"","","",null,null,null,null,null,null,""]
[null,null,"","","",null,null,null,null,null,null,""]
[null,null,"","","",null,null,null,null,null,null,""]
[null,null,"","","",null,null,null,null,null,null,""]
[null,null,"","","",null,null,null,null,null,null,""]
[null,null,"","","",null,null,null,null,null,null,""]
[null,null,"","","",null,null,null,null,null,null,""]
[null,null,"","","",null,null,null,null,null,null,""]
[null,null,"","","",null,null,null,null,null,null,""]
[null,null,"","","",null,null,null,null,null,null,""]
[null,null,"","","",null,null,null,null,null,null,""]
[null,null,"","","",null,null,null,null,null,null,""]
[null,null,"","","",null,null,null,null,null,null,""]
[null,null,"","","",null,null,null,null,null,null,""]
[null,null,"","","",null,null,null,null,null,null,""]
[null,null,"","","",null,null,null,null,null,null,""]
[null,null,"","","",null,null,null,null,null,null,""]
[null,null,"","","",null,null,null,null,null,null,""]
[null,null,"","","",null,null,null,null,null,null,""]
[null,null,"","","",null,null,null,null,null,null,""]
[null,null,"","","",null,null,null,null,null,null,""]
[null,null,"","","",null,null,null,null,null,null,""]
[null,null,"","","",null,null,null,null,null,null,""]
[null,null,"","","",null,null,null,null,null,null,""]
[null,null,"","","",null,null,null,null,null,null,""]
[null,null,"","","",null,null,null,null,null,null,""]
[null,null,"","","",null,null,null,null,null,null,""]
[null,null,"","","",null,null,null,null,null,null,""]
[null,null,"","","",null,null,null,null,null,null,""]
[null,null,"","","",null,null,null,null,null,null,""]
[null,null,"","","",null,null,null,null,null,null,""]
[null,null,"","","",null,null,null,null,null,null,""]
[null,null,"","","",null,null,null,null,null,null,""]
[null,null,"","","",null,null,null,null,null,null,""]
[null,null,{"$f":"IF(B1017=\"\",\"\",VLOOKUP(B1017,itemsdata,2,\"false\"))","v":""},{"$f":"IF(B1017=\"\",\"\",VLOOKUP(B1017,itemsdata,5,\"false\"))","v":""},{"$f":"IF(B1017=\"\",\"\",VLOOKUP(B1017,itemsdata,3,\"false\"))","v":""},null,null,null,null,null,null,""]
[null,null,"","","",null,null,null,null,null,null,""]
[null,null,"","","",null,null,null,null,null,null,""]
[null,null,"","","",null,null,null,null,null,null,""]
[null,null,"","","",null,null,null,null,null,null,""]
[null,null,"","","",null,null,null,null,null,null,""]
[null,null,"","","",null,null,null,null,null,null,""]
[null,null,"","","",null,null,null,null,null,null,{"$f":"IF(G1024<>\"\",D1024*G1024,\"\")","v":""}]
[null,null,"","","",null,null,null,null,null,null,""]
[null,null,"","","",null,null,null,null,null,null,""]
[null,null,"","","",null,null,null,null,null,null,""]
[null,null,"","","",null,null,null,null,null,null,""]
[null,null,"","","",null,null,null,null,null,null,""]
[null,null,"","","",null,null,null,null,null,null,""]
[null,null,"","","",null,null,null,null,null,null,""]
[null,null,"","","",null,null,null,null,null,null,""]
[null,null,"","","",null,null,null,null,null,null,""]
[null,null,"","","",null,null,null,null,null,null,""]
[null,null,"","","",null,null,null,null,null,null,""]
[null,null,"","","",null,null,null,null,null,null,""]
[null,null,"","","",null,null,null,null,null,null,""]
[null,null,"","","",null,null,null,null,null,null,""]
[null,null,"","","",null,null,null,null,null,null,""]
[null,null,"","","",null,null,null,null,null,null,""]
[null,null,"","","",null,null,null,null,null,null,""]
[null,null,"","","",null,null,null,null,null,null,""]
[null,null,"","","",null,null,null,null,null,null,""]
[null,null,"","","",null,null,null,null,null,null,""]
[null,null,"","","",null,null,null,null,null,null,""]
[null,null,"","","",null,null,null,null,null,null,""]
[null,null,"","","",null,null,null,null,null,null,""]
[null,null,"","","",null,null,null,null,null,null,""]
[null,null,"","","",null,null,null,null,null,null,""]
[null,null,"","","",null,null,null,null,null,null,""]
[null,null,"","","",null,null,null,null,null,null,""]
[null,null,"","","",null,null,null,null,null,null,""]
[null,null,"","","",null,null,null,null,null,null,""]
[null,null,"","","",null,null,null,null,null,null,""]
[null,null,"","","",null,null,null,null,null,null,""]
[null,null,"","","",null,null,null,null,null,null,""]
[null,null,"","","",null,null,null,null,null,null,""]
[null,null,"","","",null,null,null,null,null,null,""]
[null,null,"","","",null,null,null,null,null,null,""]
[null,null,"","","",null,null,null,null,null,null,""]
[null,null,"","","",null,null,null,null,null,null,""]
[null,null,"","","",null,null,null,null,null,null,""]
[null,null,"","","",null,null,null,null,null,null,""]
[null,null,"","","",null,null,null,null,null,null,""]
[null,null,"","","",null,null,null,null,null,null,""]
[null,null,"","","",null,null,null,null,null,null,""]
[null,null,"","","",null,null,null,null,null,null,""]
[null,null,"","","",null,null,null,null,null,null,""]
[null,null,"","","",null,null,null,null,null,null,""]
[null,null,"","","",null,null,null,null,null,null,""]
[null,null,"","","",null,null,null,null,null,null,""]
[null,null,"","","",null,null,null,null,null,null,""]
[null,null,"","","",null,null,null,null,null,null,""]
[null,null,"","","",null,null,null,null,null,null,""]
[null,null,"","","",null,null,null,null,null,null,""]
[null,null,"","","",null,null,null,null,null,null,""]
[null,null,"","","",null,null,null,null,null,null,""]
[null,null,"","","",null,null,null,null,null,null,""]
[null,null,"","","",null,null,null,null,null,null,""]
[null,null,"","","",null,null,null,null,null,null,""]
[null,null,{"$f":"IF(B1081=\"\",\"\",VLOOKUP(B1081,itemsdata,2,\"false\"))","v":""},{"$f":"IF(B1081=\"\",\"\",VLOOKUP(B1081,itemsdata,5,\"false\"))","v":""},{"$f":"IF(B1081=\"\",\"\",VLOOKUP(B1081,itemsdata,3,\"false\"))","v":""},null,null,null,null,null,null,""]
[null,null,"","","",null,null,null,null,null,null,""]
[null,null,"","","",null,null,null,null,null,null,""]
[null,null,"","","",null,null,null,null,null,null,""]
[null,null,"","","",null,null,null,null,null,null,""]
[null,null,"","","",null,null,null,null,null,null,""]
[null,null,"","","",null,null,null,null,null,null,""]
[null,null,"","","",null,null,null,null,null,null,{"$f":"IF(G1088<>\"\",D1088*G1088,\"\")","v":""}]
[null,null,"","","",null,null,null,null,null,null,""]
[null,null,"","","",null,null,null,null,null,null,""]
[null,null,"","","",null,null,null,null,null,null,""]
[null,null,"","","",null,null,null,null,null,null,""]
[null,null,"","","",null,null,null,null,null,null,""]
[null,null,"","","",null,null,null,null,null,null,""]
[null,null,"","","",null,null,null,null,null,null,""]
[null,null,"","","",null,null,null,null,null,null,""]
[null,null,"","","",null,null,null,null,null,null,""]
[null,null,"","","",null,null,null,null,null,null,""]
[null,null,"","","",null,null,null,null,null,null,""]
[null,null,"","","",null,null,null,null,null,null,""]
[null,null,"","","",null,null,null,null,null,null,""]
[null,null,"","","",null,null,null,null,null,null,""]
[null,null,"","","",null,null,null,null,null,null,""]
[null,null,"","","",null,null,null,null,null,null,""]
[null,null,"","","",null,null,null,null,null,null,""]
[null,null,"","","",null,null,null,null,null,null,""]
[null,null,"","","",null,null,null,null,null,null,""]
[null,null,"","","",null,null,null,null,null,null,""]
[null,null,"","","",null,null,null,null,null,null,""]
[null,null,"","","",null,null,null,null,null,null,""]
[null,null,"","","",null,null,null,null,null,null,""]
[null,null,"","","",null,null,null,null,null,null,""]
[null,null,"","","",null,null,null,null,null,null,""]
[null,null,"","","",null,null,null,null,null,null,""]
[null,null,"","","",null,null,null,null,null,null,""]
[null,null,"","","",null,null,null,null,null,null,""]
[null,null,"","","",null,null,null,null,null,null,""]
[null,null,"","","",null,null,null,null,null,null,""]
[null,null,"","","",null,null,null,null,null,null,""]
[null,null,"","","",null,null,null,null,null,null,""]
[null,null,"","","",null,null,null,null,null,null,""]
[null,null,"","","",null,null,null,null,null,null,""]
[null,null,"","","",null,null,null,null,null,null,""]
[null,null,"","","",null,null,null,null,null,null,""]
[null,null,"","","",null,null,null,null,null,null,""]
[null,null,"","","",null,null,null,null,null,null,""]
[null,null,"","","",null,null,null,null,null,null,""]
[null,null,"","","",null,null,null,null,null,null,""]
[null,null,"","","",null,null,null,null,null,null,""]
[null,null,"","","",null,null,null,null,null,null,""]
[null,null,"","","",null,null,null,null,null,null,""]
[null,null,"","","",null,null,null,null,null,null,""]
[null,null,"","","",null,null,null,null,null,null,""]
[null,null,"","","",null,null,null,null,null,null,""]
[null,null,"","","",null,null,null,null,null,null,""]
[null,null,"","","",null,null,null,null,null,null,""]
[null,null,"","","",null,null,null,null,null,null,""]
[null,null,"","","",null,null,null,null,null,null,""]
[null,null,"","","",null,null,null,null,null,null,""]
[null,null,"","","",null,null,null,null,null,null,""]
[null,null,"","","",null,null,null,null,null,null,""]
[null,null,"","","",null,null,null,null,null,null,""]
[null,null,"","","",null,null,null,null,null,null,""]
[null,null,"","","",null,null,null,null,null,null,""]
[null,null,{"$f":"IF(B1145=\"\",\"\",VLOOKUP(B1145,itemsdata,2,\"false\"))","v":""},{"$f":"IF(B1145=\"\",\"\",VLOOKUP(B1145,itemsdata,5,\"false\"))","v":""},{"$f":"IF(B1145=\"\",\"\",VLOOKUP(B1145,itemsdata,3,\"false\"))","v":""},null,null,null,null,null,null,""]
[null,null,"","","",null,null,null,null,null,null,""]
[null,null,"","","",null,null,null,null,null,null,""]
[null,null,"","","",null,null,null,null,null,null,""]
[null,null,"","","",null,null,null,null,null,null,""]
[null,null,"","","",null,null,null,null,null,null,""]
[null,null,"","","",null,null,null,null,null,null,""]
[null,null,"","","",null,null,null,null,null,null,{"$f":"IF(G1152<>\"\",D1152*G1152,\"\")","v":""}]
[null,null,"","","",null,null,null,null,null,null,""]
[null,null,"","","",null,null,null,null,null,null,""]
[null,null,"","","",null,null,null,null,null,null,""]
[null,null,"","","",null,null,null,null,null,null,""]
[null,null,"","","",null,null,null,null,null,null,""]
[null,null,"","","",null,null,null,null,null,null,""]
[null,null,"","","",null,null,null,null,null,null,""]
[null,null,"","","",null,null,null,null,null,null,""]
[null,null,"","","",null,null,null,null,null,null,""]
[null,null,"","","",null,null,null,null,null,null,""]
[null,null,"","","",null,null,null,null,null,null,""]
[null,null,"","","",null,null,null,null,null,null,""]
[null,null,"","","",null,null,null,null,null,null,""]
[null,null,"","","",null,null,null,null,null,null,""]
[null,null,"","","",null,null,null,null,null,null,""]
[null,null,"","","",null,null,null,null,null,null,""]
[null,null,"","","",null,null,null,null,null,null,""]
[null,null,"","","",null,null,null,null,null,null,""]
[null,null,"","","",null,null,null,null,null,null,""]
[null,null,"","","",null,null,null,null,null,null,""]
[null,null,"","","",null,null,null,null,null,null,""]
[null,null,"","","",null,null,null,null,null,null,""]
[null,null,"","","",null,null,null,null,null,null,""]
[null,null,"","","",null,null,null,null,null,null,""]
[null,null,"","","",null,null,null,null,null,null,""]
[null,null,"","","",null,null,null,null,null,null,""]
[null,null,"","","",null,null,null,null,null,null,""]
[null,null,"","","",null,null,null,null,null,null,""]
[null,null,"","","",null,null,null,null,null,null,""]
[null,null,"","","",null,null,null,null,null,null,""]
[null,null,"","","",null,null,null,null,null,null,""]
[null,null,"","","",null,null,null,null,null,null,""]
[null,null,"","","",null,null,null,null,null,null,""]
[null,null,"","","",null,null,null,null,null,null,""]
[null,null,"","","",null,null,null,null,null,null,""]
[null,null,"","","",null,null,null,null,null,null,""]
[null,null,"","","",null,null,null,null,null,null,""]
[null,null,"","","",null,null,null,null,null,null,""]
[null,null,"","","",null,null,null,null,null,null,""]
[null,null,"","","",null,null,null,null,null,null,""]
[null,null,"","","",null,null,null,null,null,null,""]
[null,null,"","","",null,null,null,null,null,null,""]
[null,null,"","","",null,null,null,null,null,null,""]
[null,null,"","","",null,null,null,null,null,null,""]
[null,null,"","","",null,null,null,null,null,null,""]
[null,null,"","","",null,null,null,null,null,null,""]
[null,null,"","","",null,null,null,null,null,null,""]
[null,null,"","","",null,null,null,null,null,null,""]
[null,null,"","","",null,null,null,null,null,null,""]
[null,null,"","","",null,null,null,null,null,null,""]
[null,null,"","","",null,null,null,null,null,null,""]
[null,null,"","","",null,null,null,null,null,null,""]
[null,null,"","","",null,null,null,null,null,null,""]
[null,null,"","","",null,null,null,null,null,null,""]
[null,null,"","","",null,null,null,null,null,null,""]
[null,null,"","","",null,null,null,null,null,null,""]
[null,null,{"$f":"IF(B1209=\"\",\"\",VLOOKUP(B1209,itemsdata,2,\"false\"))","v":""},{"$f":"IF(B1209=\"\",\"\",VLOOKUP(B1209,itemsdata,5,\"false\"))","v":""},{"$f":"IF(B1209=\"\",\"\",VLOOKUP(B1209,itemsdata,3,\"false\"))","v":""},null,null,null,null,null,null,""]
[null,null,"","","",null,null,null,null,null,null,""]
[null,null,"","","",null,null,null,null,null,null,""]
[null,null,"","","",null,null,null,null,null,null,""]
[null,null,"","","",null,null,null,null,null,null,""]
[null,null,"","","",null,null,null,null,null,null,""]
[null,null,"","","",null,null,null,null,null,null,""]
[null,null,"","","",null,null,null,null,null,null,{"$f":"IF(G1216<>\"\",D1216*G1216,\"\")","v":""}]
[null,null,"","","",null,null,null,null,null,null,""]
[null,null,"","","",null,null,null,null,null,null,""]
[null,null,"","","",null,null,null,null,null,null,""]
[null,null,"","","",null,null,null,null,null,null,""]
[null,null,"","","",null,null,null,null,null,null,""]
[null,null,"","","",null,null,null,null,null,null,""]
[null,null,"","","",null,null,null,null,null,null,""]
[null,null,"","","",null,null,null,null,null,null,""]
[null,null,"","","",null,null,null,null,null,null,""]
[null,null,"","","",null,null,null,null,null,null,""]
[null,null,"","","",null,null,null,null,null,null,""]
[null,null,"","","",null,null,null,null,null,null,""]
[null,null,"","","",null,null,null,null,null,null,""]
[null,null,"","","",null,null,null,null,null,null,""]
[null,null,"","","",null,null,null,null,null,null,""]
[null,null,"","","",null,null,null,null,null,null,""]
[null,null,"","","",null,null,null,null,null,null,""]
[null,null,"","","",null,null,null,null,null,null,""]
[null,null,"","","",null,null,null,null,null,null,""]
[null,null,"","","",null,null,null,null,null,null,""]
[null,null,"","","",null,null,null,null,null,null,""]
[null,null,"","","",null,null,null,null,null,null,""]
[null,null,"","","",null,null,null,null,null,null,""]
[null,null,"","","",null,null,null,null,null,null,""]
[null,null,"","","",null,null,null,null,null,null,""]
[null,null,"","","",null,null,null,null,null,null,""]
[null,null,"","","",null,null,null,null,null,null,""]
[null,null,"","","",null,null,null,null,null,null,""]
[null,null,"","","",null,null,null,null,null,null,""]
[null,null,"","","",null,null,null,null,null,null,""]
[null,null,"","","",null,null,null,null,null,null,""]
[null,null,"","","",null,null,null,null,null,null,""]
[null,null,"","","",null,null,null,null,null,null,""]
[null,null,"","","",null,null,null,null,null,null,""]
[null,null,"","","",null,null,null,null,null,null,""]
[null,null,"","","",null,null,null,null,null,null,""]
[null,null,"","","",null,null,null,null,null,null,""]
[null,null,"","","",null,null,null,null,null,null,""]
[null,null,"","","",null,null,null,null,null,null,""]
[null,null,"","","",null,null,null,null,null,null,""]
[null,null,"","","",null,null,null,null,null,null,""]
[null,null,"","","",null,null,null,null,null,null,""]
[null,null,"","","",null,null,null,null,null,null,""]
[null,null,"","","",null,null,null,null,null,null,""]
[null,null,"","","",null,null,null,null,null,null,""]
[null,null,"","","",null,null,null,null,null,null,""]
[null,null,"","","",null,null,null,null,null,null,""]
[null,null,"","","",null,null,null,null,null,null,""]
[null,null,"","","",null,null,null,null,null,null,""]
[null,null,"","","",null,null,null,null,null,null,""]
[null,null,"","","",null,null,null,null,null,null,""]
[null,null,"","","",null,null,null,null,null,null,""]
[null,null,"","","",null,null,null,null,null,null,""]
[null,null,"","","",null,null,null,null,null,null,""]
[null,null,"","","",null,null,null,null,null,null,""]
[null,null,"","","",null,null,null,null,null,null,""]
[null,null,{"$f":"IF(B1273=\"\",\"\",VLOOKUP(B1273,itemsdata,2,\"false\"))","v":""},{"$f":"IF(B1273=\"\",\"\",VLOOKUP(B1273,itemsdata,5,\"false\"))","v":""},{"$f":"IF(B1273=\"\",\"\",VLOOKUP(B1273,itemsdata,3,\"false\"))","v":""},null,null,null,null,null,null,""]
[null,null,"","","",null,null,null,null,null,null,""]
[null,null,"","","",null,null,null,null,null,null,""]
[null,null,"","","",null,null,null,null,null,null,""]
[null,null,"","","",null,null,null,null,null,null,""]
[null,null,"","","",null,null,null,null,null,null,""]
[null,null,"","","",null,null,null,null,null,null,""]
[null,null,"","","",null,null,null,null,null,null,{"$f":"IF(G1280<>\"\",D1280*G1280,\"\")","v":""}]
[null,null,"","","",null,null,null,null,null,null,""]
[null,null,"","","",null,null,null,null,null,null,""]
[null,null,"","","",null,null,null,null,null,null,""]
[null,null,"","","",null,null,null,null,null,null,""]
[null,null,"","","",null,null,null,null,null,null,""]
[null,null,"","","",null,null,null,null,null,null,""]
[null,null,"","","",null,null,null,null,null,null,""]
[null,null,"","","",null,null,null,null,null,null,""]
[null,null,"","","",null,null,null,null,null,null,""]
[null,null,"","","",null,null,null,null,null,null,""]
[null,null,"","","",null,null,null,null,null,null,""]
[null,null,"","","",null,null,null,null,null,null,""]
[null,null,"","","",null,null,null,null,null,null,""]
[null,null,"","","",null,null,null,null,null,null,""]
[null,null,"","","",null,null,null,null,null,null,""]
[null,null,"","","",null,null,null,null,null,null,""]
[null,null,"","","",null,null,null,null,null,null,""]
[null,null,"","","",null,null,null,null,null,null,""]
[null,null,"","","",null,null,null,null,null,null,""]
[null,null,"","","",null,null,null,null,null,null,""]
[null,null,"","","",null,null,null,null,null,null,""]
[null,null,"","","",null,null,null,null,null,null,""]
[null,null,"","","",null,null,null,null,null,null,""]
[null,null,"","","",null,null,null,null,null,null,""]
[null,null,"","","",null,null,null,null,null,null,""]
[null,null,"","","",null,null,null,null,null,null,""]
[null,null,"","","",null,null,null,null,null,null,""]
[null,null,"","","",null,null,null,null,null,null,""]
[null,null,"","","",null,null,null,null,null,null,""]
[null,null,"","","",null,null,null,null,null,null,""]
[null,null,"","","",null,null,null,null,null,null,""]
[null,null,"","","",null,null,null,null,null,null,""]
[null,null,"","","",null,null,null,null,null,null,""]
[null,null,"","","",null,null,null,null,null,null,""]
[null,null,"","","",null,null,null,null,null,null,""]
[null,null,"","","",null,null,null,null,null,null,""]
[null,null,"","","",null,null,null,null,null,null,""]
[null,null,"","","",null,null,null,null,null,null,""]
[null,null,"","","",null,null,null,null,null,null,""]
[null,null,"","","",null,null,null,null,null,null,""]
[null,null,"","","",null,null,null,null,null,null,""]
[null,null,"","","",null,null,null,null,null,null,""]
[null,null,"","","",null,null,null,null,null,null,""]
[null,null,"","","",null,null,null,null,null,null,""]
[null,null,"","","",null,null,null,null,null,null,""]
[null,null,"","","",null,null,null,null,null,null,""]
[null,null,"","","",null,null,null,null,null,null,""]
[null,null,"","","",null,null,null,null,null,null,""]
[null,null,"","","",null,null,null,null,null,null,""]
[null,null,"","","",null,null,null,null,null,null,""]
[null,null,"","","",null,null,null,null,null,null,""]
[null,null,"","","",null,null,null,null,null,null,""]
[null,null,"","","",null,null,null,null,null,null,""]
[null,null,"","","",null,null,null,null,null,null,""]
[null,null,"","","",null,null,null,null,null,null,""]
[null,null,"","","",null,null,null,null,null,null,""]
[null,null,{"$f":"IF(B1337=\"\",\"\",VLOOKUP(B1337,itemsdata,2,\"false\"))","v":""},{"$f":"IF(B1337=\"\",\"\",VLOOKUP(B1337,itemsdata,5,\"false\"))","v":""},{"$f":"IF(B1337=\"\",\"\",VLOOKUP(B1337,itemsdata,3,\"false\"))","v":""},null,null,null,null,null,null,""]
[null,null,"","","",null,null,null,null,null,null,""]
[null,null,"","","",null,null,null,null,null,null,""]
[null,null,"","","",null,null,null,null,null,null,""]
[null,null,"","","",null,null,null,null,null,null,""]
[null,null,"","","",null,null,null,null,null,null,""]
[null,null,"","","",null,null,null,null,null,null,""]
[null,null,"","","",null,null,null,null,null,null,{"$f":"IF(G1344<>\"\",D1344*G1344,\"\")","v":""}]
[null,null,"","","",null,null,null,null,null,null,""]
[null,null,"","","",null,null,null,null,null,null,""]
[null,null,"","","",null,null,null,null,null,null,""]
[null,null,"","","",null,null,null,null,null,null,""]
[null,null,"","","",null,null,null,null,null,null,""]
[null,null,"","","",null,null,null,null,null,null,""]
[null,null,"","","",null,null,null,null,null,null,""]
[null,null,"","","",null,null,null,null,null,null,""]
[null,null,"","","",null,null,null,null,null,null,""]
[null,null,"","","",null,null,null,null,null,null,""]
[null,null,"","","",null,null,null,null,null,null,""]
[null,null,"","","",null,null,null,null,null,null,""]
[null,null,"","","",null,null,null,null,null,null,""]
[null,null,"","","",null,null,null,null,null,null,""]
[null,null,"","","",null,null,null,null,null,null,""]
[null,null,"","","",null,null,null,null,null,null,""]
[null,null,"","","",null,null,null,null,null,null,""]
[null,null,"","","",null,null,null,null,null,null,""]
[null,null,"","","",null,null,null,null,null,null,""]
[null,null,"","","",null,null,null,null,null,null,""]
[null,null,"","","",null,null,null,null,null,null,""]
[null,null,"","","",null,null,null,null,null,null,""]
[null,null,"","","",null,null,null,null,null,null,""]
[null,null,"","","",null,null,null,null,null,null,""]
[null,null,"","","",null,null,null,null,null,null,""]
[null,null,"","","",null,null,null,null,null,null,""]
[null,null,"","","",null,null,null,null,null,null,""]
[null,null,"","","",null,null,null,null,null,null,""]
[null,null,"","","",null,null,null,null,null,null,""]
[null,null,"","","",null,null,null,null,null,null,""]
[null,null,"","","",null,null,null,null,null,null,""]
[null,null,"","","",null,null,null,null,null,null,""]
[null,null,"","","",null,null,null,null,null,null,""]
[null,null,"","","",null,null,null,null,null,null,""]
[null,null,"","","",null,null,null,null,null,null,""]
[null,null,"","","",null,null,null,null,null,null,""]
[null,null,"","","",null,null,null,null,null,null,""]
[null,null,"","","",null,null,null,null,null,null,""]
[null,null,"","","",null,null,null,null,null,null,""]
[null,null,"","","",null,null,null,null,null,null,""]
[null,null,"","","",null,null,null,null,null,null,""]
[null,null,"","","",null,null,null,null,null,null,""]
[null,null,"","","",null,null,null,null,null,null,""]
[null,null,"","","",null,null,null,null,null,null,""]
[null,null,"","","",null,null,null,null,null,null,""]
[null,null,"","","",null,null,null,null,null,null,""]
[null,null,"","","",null,null,null,null,null,null,""]
[null,null,"","","",null,null,null,null,null,null,""]
[null,null,"","","",null,null,null,null,null,null,""]
[null,null,"","","",null,null,null,null,null,null,""]
[null,null,"","","",null,null,null,null,null,null,""]
[null,null,"","","",null,null,null,null,null,null,""]
[null,null,"","","",null,null,null,null,null,null,""]
[null,null,"","","",null,null,null,null,null,null,""]
[null,null,"","","",null,null,null,null,null,null,""]
[null,null,"","","",null,null,null,null,null,null,""]
[null,null,{"$f":"IF(B1401=\"\",\"\",VLOOKUP(B1401,itemsdata,2,\"false\"))","v":""},{"$f":"IF(B1401=\"\",\"\",VLOOKUP(B1401,itemsdata,5,\"false\"))","v":""},{"$f":"IF(B1401=\"\",\"\",VLOOKUP(B1401,itemsdata,3,\"false\"))","v":""},null,null,null,null,null,null,""]
[null,null,"","","",null,null,null,null,null,null,""]
[null,null,"","","",null,null,null,null,null,null,""]
[null,null,"","","",null,null,null,null,null,null,""]
[null,null,"","","",null,null,null,null,null,null,""]
[null,null,"","","",null,null,null,null,null,null,""]
[null,null,"","","",null,null,null,null,null,null,""]
[null,null,"","","",null,null,null,null,null,null,{"$f":"IF(G1408<>\"\",D1408*G1408,\"\")","v":""}]
[null,null,"","","",null,null,null,null,null,null,""]
[null,null,"","","",null,null,null,null,null,null,""]
[null,null,"","","",null,null,null,null,null,null,""]
[null,null,"","","",null,null,null,null,null,null,""]
[null,null,"","","",null,null,null,null,null,null,""]
[null,null,"","","",null,null,null,null,null,null,""]
[null,null,"","","",null,null,null,null,null,null,""]
[null,null,"","","",null,null,null,null,null,null,""]
[null,null,"","","",null,null,null,null,null,null,""]
[null,null,"","","",null,null,null,null,null,null,""]
[null,null,"","","",null,null,null,null,null,null,""]
[null,null,"","","",null,null,null,null,null,null,""]
[null,null,"","","",null,null,null,null,null,null,""]
[null,null,"","","",null,null,null,null,null,null,""]
[null,null,"","","",null,null,null,null,null,null,""]
[null,null,"","","",null,null,null,null,null,null,""]
[null,null,"","","",null,null,null,null,null,null,""]
[null,null,"","","",null,null,null,null,null,null,""]
[null,null,"","","",null,null,null,null,null,null,""]
[null,null,"","","",null,null,null,null,null,null,""]
[null,null,"","","",null,null,null,null,null,null,""]
[null,null,"","","",null,null,null,null,null,null,""]
[null,null,"","","",null,null,null,null,null,null,""]
[null,null,"","","",null,null,null,null,null,null,""]
[null,null,"","","",null,null,null,null,null,null,""]
[null,null,"","","",null,null,null,null,null,null,""]
[null,null,"","","",null,null,null,null,null,null,""]
[null,null,"","","",null,null,null,null,null,null,""]
[null,null,"","","",null,null,null,null,null,null,""]
[null,null,"","","",null,null,null,null,null,null,""]
[null,null,"","","",null,null,null,null,null,null,""]
[null,null,"","","",null,null,null,null,null,null,""]
[null,null,"","","",null,null,null,null,null,null,""]
[null,null,"","","",null,null,null,null,null,null,""]
[null,null,"","","",null,null,null,null,null,null,""]
[null,null,"","","",null,null,null,null,null,null,""]
[null,null,"","","",null,null,null,null,null,null,""]
[null,null,"","","",null,null,null,null,null,null,""]
[null,null,"","","",null,null,null,null,null,null,""]
[null,null,"","","",null,null,null,null,null,null,""]
[null,null,"","","",null,null,null,null,null,null,""]
[null,null,"","","",null,null,null,null,null,null,""]
[null,null,"","","",null,null,null,null,null,null,""]
[null,null,"","","",null,null,null,null,null,null,""]
[null,null,"","","",null,null,null,null,null,null,""]
[null,null,"","","",null,null,null,null,null,null,""]
[null,null,"","","",null,null,null,null,null,null,""]
[null,null,"","","",null,null,null,null,null,null,""]
[null,null,"","","",null,null,null,null,null,null,""]
[null,null,"","","",null,null,null,null,null,null,""]
[null,null,"","","",null,null,null,null,null,null,""]
[null,null,"","","",null,null,null,null,null,null,""]
[null,null,"","","",null,null,null,null,null,null,""]
[null,null,"","","",null,null,null,null,null,null,""]
[null,null,"","","",null,null,null,null,null,null,""]
[null,null,"","","",null,null,null,null,null,null,""]
[null,null,{"$f":"IF(B1465=\"\",\"\",VLOOKUP(B1465,itemsdata,2,\"false\"))","v":""},{"$f":"IF(B1465=\"\",\"\",VLOOKUP(B1465,itemsdata,5,\"false\"))","v":""},{"$f":"IF(B1465=\"\",\"\",VLOOKUP(B1465,itemsdata,3,\"false\"))","v":""},null,null,null,null,null,null,""]
[null,null,"","","",null,null,null,null,null,null,""]
[null,null,"","","",null,null,null,null,null,null,""]
[null,null,"","","",null,null,null,null,null,null,""]
[null,null,"","","",null,null,null,null,null,null,""]
[null,null,"","","",null,null,null,null,null,null,""]
[null,null,"","","",null,null,null,null,null,null,""]
[null,null,"","","",null,null,null,null,null,null,{"$f":"IF(G1472<>\"\",D1472*G1472,\"\")","v":""}]
[null,null,"","","",null,null,null,null,null,null,""]
[null,null,"","","",null,null,null,null,null,null,""]
[null,null,"","","",null,null,null,null,null,null,""]
[null,null,"","","",null,null,null,null,null,null,""]
[null,null,"","","",null,null,null,null,null,null,""]
[null,null,"","","",null,null,null,null,null,null,""]
[null,null,"","","",null,null,null,null,null,null,""]
[null,null,"","","",null,null,null,null,null,null,""]
[null,null,"","","",null,null,null,null,null,null,""]
[null,null,"","","",null,null,null,null,null,null,""]
[null,null,"","","",null,null,null,null,null,null,""]
[null,null,"","","",null,null,null,null,null,null,""]
[null,null,"","","",null,null,null,null,null,null,""]
[null,null,"","","",null,null,null,null,null,null,""]
[null,null,"","","",null,null,null,null,null,null,""]
[null,null,"","","",null,null,null,null,null,null,""]
[null,null,"","","",null,null,null,null,null,null,""]
[null,null,"","","",null,null,null,null,null,null,""]
[null,null,"","","",null,null,null,null,null,null,""]
[null,null,"","","",null,null,null,null,null,null,""]
[null,null,"","","",null,null,null,null,null,null,""]
[null,null,"","","",null,null,null,null,null,null,""]
[null,null,"","","",null,null,null,null,null,null,""]
[null,null,"","","",null,null,null,null,null,null,""]
[null,null,"","","",null,null,null,null,null,null,""]
[null,null,"","","",null,null,null,null,null,null,""]
[null,null,"","","",null,null,null,null,null,null,""]
[null,null,"","","",null,null,null,null,null,null,""]
[null,null,"","","",null,null,null,null,null,null,""]
[null,null,"","","",null,null,null,null,null,null,""]
[null,null,"","","",null,null,null,null,null,null,""]
[null,null,"","","",null,null,null,null,null,null,""]
[null,null,"","","",null,null,null,null,null,null,""]
[null,null,"","","",null,null,null,null,null,null,""]
[null,null,"","","",null,null,null,null,null,null,""]
[null,null,"","","",null,null,null,null,null,null,""]
[null,null,"","","",null,null,null,null,null,null,""]
[null,null,"","","",null,null,null,null,null,null,""]
[null,null,"","","",null,null,null,null,null,null,""]
[null,null,"","","",null,null,null,null,null,null,""]
[null,null,"","","",null,null,null,null,null,null,""]
[null,null,"","","",null,null,null,null,null,null,""]
[null,null,"","","",null,null,null,null,null,null,""]
[null,null,"","","",null,null,null,null,null,null,""]
[null,null,"","","",null,null,null,null,null,null,""]
[null,null,"","","",null,null,null,null,null,null,""]
[null,null,"","","",null,null,null,null,null,null,""]
[null,null,"","","",null,null,null,null,null,null,""]
[null,null,"","","",null,null,null,null,null,null,""]
[null,null,"","","",null,null,null,null,null,null,""]
[null,null,"","","",null,null,null,null,null,null,""]
[null,null,"","","",null,null,null,null,null,null,""]
[null,null,"","","",null,null,null,null,null,null,""]
[null,null,"","","",null,null,null,null,null,null,""]
[null,null,"","","",null,null,null,null,null,null,""]
[null,null,"","","",null,null,null,null,null,null,""]
[null,null,{"$f":"IF(B1529=\"\",\"\",VLOOKUP(B1529,itemsdata,2,\"false\"))","v":""},{"$f":"IF(B1529=\"\",\"\",VLOOKUP(B1529,itemsdata,5,\"false\"))","v":""},{"$f":"IF(B1529=\"\",\"\",VLOOKUP(B1529,itemsdata,3,\"false\"))","v":""},null,null,null,null,null,null,""]
[null,null,"","","",null,null,null,null,null,null,""]
[null,null,"","","",null,null,null,null,null,null,""]
[null,null,"","","",null,null,null,null,null,null,""]
[null,null,"","","",null,null,null,null,null,null,""]
[null,null,"","","",null,null,null,null,null,null,""]
[null,null,"","","",null,null,null,null,null,null,""]
[null,null,"","","",null,null,null,null,null,null,{"$f":"IF(G1536<>\"\",D1536*G1536,\"\")","v":""}]
[null,null,"","","",null,null,null,null,null,null,""]
[null,null,"","","",null,null,null,null,null,null,""]
[null,null,"","","",null,null,null,null,null,null,""]
[null,null,"","","",null,null,null,null,null,null,""]
[null,null,"","","",null,null,null,null,null,null,""]
[null,null,"","","",null,null,null,null,null,null,""]
[null,null,"","","",null,null,null,null,null,null,""]
[null,null,"","","",null,null,null,null,null,null,""]
[null,null,"","","",null,null,null,null,null,null,""]
[null,null,"","","",null,null,null,null,null,null,""]
[null,null,"","","",null,null,null,null,null,null,""]
[null,null,"","","",null,null,null,null,null,null,""]
[null,null,"","","",null,null,null,null,null,null,""]
[null,null,"","","",null,null,null,null,null,null,""]
[null,null,"","","",null,null,null,null,null,null,""]
[null,null,"","","",null,null,null,null,null,null,""]
[null,null,"","","",null,null,null,null,null,null,""]
[null,null,"","","",null,null,null,null,null,null,""]
[null,null,"","","",null,null,null,null,null,null,""]
[null,null,"","","",null,null,null,null,null,null,""]
[null,null,"","","",null,null,null,null,null,null,""]
[null,null,"","","",null,null,null,null,null,null,""]
[null,null,"","","",null,null,null,null,null,null,""]
[null,null,"","","",null,null,null,null,null,null,""]
[null,null,"","","",null,null,null,null,null,null,""]
[null,null,"","","",null,null,null,null,null,null,""]
[null,null,"","","",null,null,null,null,null,null,""]
[null,null,"","","",null,null,null,null,null,null,""]
[null,null,"","","",null,null,null,null,null,null,""]
[null,null,"","","",null,null,null,null,null,null,""]
[null,null,"","","",null,null,null,null,null,null,""]
[null,null,"","","",null,null,null,null,null,null,""]
[null,null,"","","",null,null,null,null,null,null,""]
[null,null,"","","",null,null,null,null,null,null,""]
[null,null,"","","",null,null,null,null,null,null,""]
[null,null,"","","",null,null,null,null,null,null,""]
[null,null,"","","",null,null,null,null,null,null,""]
[null,null,"","","",null,null,null,null,null,null,""]
[null,null,"","","",null,null,null,null,null,null,""]
[null,null,"","","",null,null,null,null,null,null,""]
[null,null,"","","",null,null,null,null,null,null,""]
[null,null,"","","",null,null,null,null,null,null,""]
[null,null,"","","",null,null,null,null,null,null,""]
[null,null,"","","",null,null,null,null,null,null,""]
[null,null,"","","",null,null,null,null,null,null,""]
[null,null,"","","",null,null,null,null,null,null,""]
[null,null,"","","",null,null,null,null,null,null,""]
[null,null,"","","",null,null,null,null,null,null,""]
[null,null,"","","",null,null,null,null,null,null,""]
[null,null,"","","",null,null,null,null,null,null,""]
[null,null,"","","",null,null,null,null,null,null,""]
[null,null,"","","",null,null,null,null,null,null,""]
[null,null,"","","",null,null,null,null,null,null,""]
[null,null,"","","",null,null,null,null,null,null,""]
[null,null,"","","",null,null,null,null,null,null,""]
[null,null,"","","",null,null,null,null,null,null,""]
[null,null,{"$f":"IF(B1593=\"\",\"\",VLOOKUP(B1593,itemsdata,2,\"false\"))","v":""},{"$f":"IF(B1593=\"\",\"\",VLOOKUP(B1593,itemsdata,5,\"false\"))","v":""},{"$f":"IF(B1593=\"\",\"\",VLOOKUP(B1593,itemsdata,3,\"false\"))","v":""},null,null,null,null,null,null,""]
[null,null,"","","",null,null,null,null,null,null,""]
[null,null,"","","",null,null,null,null,null,null,""]
[null,null,"","","",null,null,null,null,null,null,""]
[null,null,"","","",null,null,null,null,null,null,""]
[null,null,"","","",null,null,null,null,null,null,""]
[null,null,"","","",null,null,null,null,null,null,""]
[null,null,"","","",null,null,null,null,null,null,{"$f":"IF(G1600<>\"\",D1600*G1600,\"\")","v":""}]
[null,null,"","","",null,null,null,null,null,null,""]
[null,null,"","","",null,null,null,null,null,null,""]
[null,null,"","","",null,null,null,null,null,null,""]
[null,null,"","","",null,null,null,null,null,null,""]
[null,null,"","","",null,null,null,null,null,null,""]
[null,null,"","","",null,null,null,null,null,null,""]
[null,null,"","","",null,null,null,null,null,null,""]
[null,null,"","","",null,null,null,null,null,null,""]
[null,null,"","","",null,null,null,null,null,null,""]
[null,null,"","","",null,null,null,null,null,null,""]
[null,null,"","","",null,null,null,null,null,null,""]
[null,null,"","","",null,null,null,null,null,null,""]
[null,null,"","","",null,null,null,null,null,null,""]
[null,null,"","","",null,null,null,null,null,null,""]
[null,null,"","","",null,null,null,null,null,null,""]
[null,null,"","","",null,null,null,null,null,null,""]
[null,null,"","","",null,null,null,null,null,null,""]
[null,null,"","","",null,null,null,null,null,null,""]
[null,null,"","","",null,null,null,null,null,null,""]
[null,null,"","","",null,null,null,null,null,null,""]
[null,null,"","","",null,null,null,null,null,null,""]
[null,null,"","","",null,null,null,null,null,null,""]
[null,null,"","","",null,null,null,null,null,null,""]
[null,null,"","","",null,null,null,null,null,null,""]
[null,null,"","","",null,null,null,null,null,null,""]
[null,null,"","","",null,null,null,null,null,null,""]
[null,null,"","","",null,null,null,null,null,null,""]
[null,null,"","","",null,null,null,null,null,null,""]
[null,null,"","","",null,null,null,null,null,null,""]
[null,null,"","","",null,null,null,null,null,null,""]
[null,null,"","","",null,null,null,null,null,null,""]
[null,null,"","","",null,null,null,null,null,null,""]
[null,null,"","","",null,null,null,null,null,null,""]
[null,null,"","","",null,null,null,null,null,null,""]
[null,null,"","","",null,null,null,null,null,null,""]
[null,null,"","","",null,null,null,null,null,null,""]
[null,null,"","","",null,null,null,null,null,null,""]
[null,null,"","","",null,null,null,null,null,null,""]
[null,null,"","","",null,null,null,null,null,null,""]
[null,null,"","","",null,null,null,null,null,null,""]
[null,null,"","","",null,null,null,null,null,null,""]
[null,null,"","","",null,null,null,null,null,null,""]
[null,null,"","","",null,null,null,null,null,null,""]
[null,null,"","","",null,null,null,null,null,null,""]
[null,null,"","","",null,null,null,null,null,null,""]
[null,null,"","","",null,null,null,null,null,null,""]
[null,null,"","","",null,null,null,null,null,null,""]
[null,null,"","","",null,null,null,null,null,null,""]
[null,null,"","","",null,null,null,null,null,null,""]
[null,null,"","","",null,null,null,null,null,null,""]
[null,null,"","","",null,null,null,null,null,null,""]
[null,null,"","","",null,null,null,null,null,null,""]
[null,null,"","","",null,null,null,null,null,null,""]
[null,null,"","","",null,null,null,null,null,null,""]
[null,null,"","","",null,null,null,null,null,null,""]
[null,null,"","","",null,null,null,null,null,null,""]
[null,null,{"$f":"IF(B1657=\"\",\"\",VLOOKUP(B1657,itemsdata,2,\"false\"))","v":""},{"$f":"IF(B1657=\"\",\"\",VLOOKUP(B1657,itemsdata,5,\"false\"))","v":""},{"$f":"IF(B1657=\"\",\"\",VLOOKUP(B1657,itemsdata,3,\"false\"))","v":""},null,null,null,null,null,null,""]
[null,null,"","","",null,null,null,null,null,null,""]
[null,null,"","","",null,null,null,null,null,null,""]
[null,null,"","","",null,null,null,null,null,null,""]
[null,null,"","","",null,null,null,null,null,null,""]
[null,null,"","","",null,null,null,null,null,null,""]
[null,null,"","","",null,null,null,null,null,null,""]
[null,null,"","","",null,null,null,null,null,null,{"$f":"IF(G1664<>\"\",D1664*G1664,\"\")","v":""}]
[null,null,"","","",null,null,null,null,null,null,""]
[null,null,"","","",null,null,null,null,null,null,""]
[null,null,"","","",null,null,null,null,null,null,""]
[null,null,"","","",null,null,null,null,null,null,""]
[null,null,"","","",null,null,null,null,null,null,""]
[null,null,"","","",null,null,null,null,null,null,""]
[null,null,"","","",null,null,null,null,null,null,""]
[null,null,"","","",null,null,null,null,null,null,""]
[null,null,"","","",null,null,null,null,null,null,""]
[null,null,"","","",null,null,null,null,null,null,""]
[null,null,"","","",null,null,null,null,null,null,""]
[null,null,"","","",null,null,null,null,null,null,""]
[null,null,"","","",null,null,null,null,null,null,""]
[null,null,"","","",null,null,null,null,null,null,""]
[null,null,"","","",null,null,null,null,null,null,""]
[null,null,"","","",null,null,null,null,null,null,""]
[null,null,"","","",null,null,null,null,null,null,""]
[null,null,"","","",null,null,null,null,null,null,""]
[null,null,"","","",null,null,null,null,null,null,""]
[null,null,"","","",null,null,null,null,null,null,""]
[null,null,"","","",null,null,null,null,null,null,""]
[null,null,"","","",null,null,null,null,null,null,""]
[null,null,"","","",null,null,null,null,null,null,""]
[null,null,"","","",null,null,null,null,null,null,""]
[null,null,"","","",null,null,null,null,null,null,""]
[null,null,"","","",null,null,null,null,null,null,""]
[null,null,"","","",null,null,null,null,null,null,""]
[null,null,"","","",null,null,null,null,null,null,""]
[null,null,"","","",null,null,null,null,null,null,""]
[null,null,"","","",null,null,null,null,null,null,""]
[null,null,"","","",null,null,null,null,null,null,""]
[null,null,"","","",null,null,null,null,null,null,""]
[null,null,"","","",null,null,null,null,null,null,""]
[null,null,"","","",null,null,null,null,null,null,""]
[null,null,"","","",null,null,null,null,null,null,""]
[null,null,"","","",null,null,null,null,null,null,""]
[null,null,"","","",null,null,null,null,null,null,""]
[null,null,"","","",null,null,null,null,null,null,""]
[null,null,"","","",null,null,null,null,null,null,""]
[null,null,"","","",null,null,null,null,null,null,""]
[null,null,"","","",null,null,null,null,null,null,""]
[null,null,"","","",null,null,null,null,null,null,""]
[null,null,"","","",null,null,null,null,null,null,""]
[null,null,"","","",null,null,null,null,null,null,""]
[null,null,"","","",null,null,null,null,null,null,""]
[null,null,"","","",null,null,null,null,null,null,""]
[null,null,"","","",null,null,null,null,null,null,""]
[null,null,"","","",null,null,null,null,null,null,""]
[null,null,"","","",null,null,null,null,null,null,""]
[null,null,"","","",null,null,null,null,null,null,""]
[null,null,"","","",null,null,null,null,null,null,""]
[null,null,"","","",null,null,null,null,null,null,""]
[null,null,"","","",null,null,null,null,null,null,""]
[null,null,"","","",null,null,null,null,null,null,""]
[null,null,"","","",null,null,null,null,null,null,""]
[null,null,"","","",null,null,null,null,null,null,""]
[null,null,{"$f":"IF(B1721=\"\",\"\",VLOOKUP(B1721,itemsdata,2,\"false\"))","v":""},{"$f":"IF(B1721=\"\",\"\",VLOOKUP(B1721,itemsdata,5,\"false\"))","v":""},{"$f":"IF(B1721=\"\",\"\",VLOOKUP(B1721,itemsdata,3,\"false\"))","v":""},null,null,null,null,null,null,""]
[null,null,"","","",null,null,null,null,null,null,""]
[null,null,"","","",null,null,null,null,null,null,""]
[null,null,"","","",null,null,null,null,null,null,""]
[null,null,"","","",null,null,null,null,null,null,""]
[null,null,"","","",null,null,null,null,null,null,""]
[null,null,"","","",null,null,null,null,null,null,""]
[null,null,"","","",null,null,null,null,null,null,{"$f":"IF(G1728<>\"\",D1728*G1728,\"\")","v":""}]
[null,null,"","","",null,null,null,null,null,null,""]
[null,null,"","","",null,null,null,null,null,null,""]
[null,null,"","","",null,null,null,null,null,null,""]
[null,null,"","","",null,null,null,null,null,null,""]
[null,null,"","","",null,null,null,null,null,null,""]
[null,null,"","","",null,null,null,null,null,null,""]
[null,null,"","","",null,null,null,null,null,null,""]
[null,null,"","","",null,null,null,null,null,null,""]
[null,null,"","","",null,null,null,null,null,null,""]
[null,null,"","","",null,null,null,null,null,null,""]
[null,null,"","","",null,null,null,null,null,null,""]
[null,null,"","","",null,null,null,null,null,null,""]
[null,null,"","","",null,null,null,null,null,null,""]
[null,null,"","","",null,null,null,null,null,null,""]
[null,null,"","","",null,null,null,null,null,null,""]
[null,null,"","","",null,null,null,null,null,null,""]
[null,null,"","","",null,null,null,null,null,null,""]
[null,null,"","","",null,null,null,null,null,null,""]
[null,null,"","","",null,null,null,null,null,null,""]
[null,null,"","","",null,null,null,null,null,null,""]
[null,null,"","","",null,null,null,null,null,null,""]
[null,null,"","","",null,null,null,null,null,null,""]
[null,null,"","","",null,null,null,null,null,null,""]
[null,null,"","","",null,null,null,null,null,null,""]
[null,null,"","","",null,null,null,null,null,null,""]
[null,null,"","","",null,null,null,null,null,null,""]
[null,null,"","","",null,null,null,null,null,null,""]
[null,null,"","","",null,null,null,null,null,null,""]
[null,null,"","","",null,null,null,null,null,null,""]
[null,null,"","","",null,null,null,null,null,null,""]
[null,null,"","","",null,null,null,null,null,null,""]
[null,null,"","","",null,null,null,null,null,null,""]
[null,null,"","","",null,null,null,null,null,null,""]
[null,null,"","","",null,null,null,null,null,null,""]
[null,null,"","","",null,null,null,null,null,null,""]
[null,null,"","","",null,null,null,null,null,null,""]
[null,null,"","","",null,null,null,null,null,null,""]
[null,null,"","","",null,null,null,null,null,null,""]
[null,null,"","","",null,null,null,null,null,null,""]
[null,null,"","","",null,null,null,null,null,null,""]
[null,null,"","","",null,null,null,null,null,null,""]
[null,null,"","","",null,null,null,null,null,null,""]
[null,null,"","","",null,null,null,null,null,null,""]
[null,null,"","","",null,null,null,null,null,null,""]
[null,null,"","","",null,null,null,null,null,null,""]
[null,null,"","","",null,null,null,null,null,null,""]
[null,null,"","","",null,null,null,null,null,null,""]
[null,null,"","","",null,null,null,null,null,null,""]
[null,null,"","","",null,null,null,null,null,null,""]
[null,null,"","","",null,null,null,null,null,null,""]
[null,null,"","","",null,null,null,null,null,null,""]
[null,null,"","","",null,null,null,null,null,null,""]
[null,null,"","","",null,null,null,null,null,null,""]
[null,null,"","","",null,null,null,null,null,null,""]
[null,null,"","","",null,null,null,null,null,null,""]
[null,null,"","","",null,null,null,null,null,null,""]
[null,null,{"$f":"IF(B1785=\"\",\"\",VLOOKUP(B1785,itemsdata,2,\"false\"))","v":""},{"$f":"IF(B1785=\"\",\"\",VLOOKUP(B1785,itemsdata,5,\"false\"))","v":""},{"$f":"IF(B1785=\"\",\"\",VLOOKUP(B1785,itemsdata,3,\"false\"))","v":""},null,null,null,null,null,null,""]
[null,null,"","","",null,null,null,null,null,null,""]
[null,null,"","","",null,null,null,null,null,null,""]
[null,null,"","","",null,null,null,null,null,null,""]
[null,null,"","","",null,null,null,null,null,null,""]
[null,null,"","","",null,null,null,null,null,null,""]
[null,null,"","","",null,null,null,null,null,null,""]
[null,null,"","","",null,null,null,null,null,null,{"$f":"IF(G1792<>\"\",D1792*G1792,\"\")","v":""}]
[null,null,"","","",null,null,null,null,null,null,""]
[null,null,"","","",null,null,null,null,null,null,""]
[null,null,"","","",null,null,null,null,null,null,""]
[null,null,"","","",null,null,null,null,null,null,""]
[null,null,"","","",null,null,null,null,null,null,""]
[null,null,"","","",null,null,null,null,null,null,""]
[null,null,"","","",null,null,null,null,null,null,""]
[null,null,"","","",null,null,null,null,null,null,""]
[null,null,"","","",null,null,null,null,null,null,""]
[null,null,"","","",null,null,null,null,null,null,""]
[null,null,"","","",null,null,null,null,null,null,""]
[null,null,"","","",null,null,null,null,null,null,""]
[null,null,"","","",null,null,null,null,null,null,""]
[null,null,"","","",null,null,null,null,null,null,""]
[null,null,"","","",null,null,null,null,null,null,""]
[null,null,"","","",null,null,null,null,null,null,""]
[null,null,"","","",null,null,null,null,null,null,""]
[null,null,"","","",null,null,null,null,null,null,""]
[null,null,"","","",null,null,null,null,null,null,""]
[null,null,"","","",null,null,null,null,null,null,""]
[null,null,"","","",null,null,null,null,null,null,""]
[null,null,"","","",null,null,null,null,null,null,""]
[null,null,"","","",null,null,null,null,null,null,""]
[null,null,"","","",null,null,null,null,null,null,""]
[null,null,"","","",null,null,null,null,null,null,""]
[null,null,"","","",null,null,null,null,null,null,""]
[null,null,"","","",null,null,null,null,null,null,""]
[null,null,"","","",null,null,null,null,null,null,""]
[null,null,"","","",null,null,null,null,null,null,""]
[null,null,"","","",null,null,null,null,null,null,""]
[null,null,"","","",null,null,null,null,null,null,""]
[null,null,"","","",null,null,null,null,null,null,""]
[null,null,"","","",null,null,null,null,null,null,""]
[null,null,"","","",null,null,null,null,null,null,""]
[null,null,"","","",null,null,null,null,null,null,""]
[null,null,"","","",null,null,null,null,null,null,""]
[null,null,"","","",null,null,null,null,null,null,""]
[null,null,"","","",null,null,null,null,null,null,""]
[null,null,"","","",null,null,null,null,null,null,""]
[null,null,"","","",null,null,null,null,null,null,""]
[null,null,"","","",null,null,null,null,null,null,""]
[null,null,"","","",null,null,null,null,null,null,""]
[null,null,"","","",null,null,null,null,null,null,""]
[null,null,"","","",null,null,null,null,null,null,""]
[null,null,"","","",null,null,null,null,null,null,""]
[null,null,"","","",null,null,null,null,null,null,""]
[null,null,"","","",null,null,null,null,null,null,""]
[null,null,"","","",null,null,null,null,null,null,""]
[null,null,"","","",null,null,null,null,null,null,""]
[null,null,"","","",null,null,null,null,null,null,""]
[null,null,"","","",null,null,null,null,null,null,""]
[null,null,"","","",null,null,null,null,null,null,""]
[null,null,"","","",null,null,null,null,null,null,""]
[null,null,"","","",null,null,null,null,null,null,""]
[null,null,"","","",null,null,null,null,null,null,""]
[null,null,"","","",null,null,null,null,null,null,""]
[null,null,{"$f":"IF(B1849=\"\",\"\",VLOOKUP(B1849,itemsdata,2,\"false\"))","v":""},{"$f":"IF(B1849=\"\",\"\",VLOOKUP(B1849,itemsdata,5,\"false\"))","v":""},{"$f":"IF(B1849=\"\",\"\",VLOOKUP(B1849,itemsdata,3,\"false\"))","v":""},null,null,null,null,null,null,""]
[null,null,"","","",null,null,null,null,null,null,""]
[null,null,"","","",null,null,null,null,null,null,""]
[null,null,"","","",null,null,null,null,null,null,""]
[null,null,"","","",null,null,null,null,null,null,""]
[null,null,"","","",null,null,null,null,null,null,""]
[null,null,"","","",null,null,null,null,null,null,""]
[null,null,"","","",null,null,null,null,null,null,{"$f":"IF(G1856<>\"\",D1856*G1856,\"\")","v":""}]
[null,null,"","","",null,null,null,null,null,null,""]
[null,null,"","","",null,null,null,null,null,null,""]
[null,null,"","","",null,null,null,null,null,null,""]
[null,null,"","","",null,null,null,null,null,null,""]
[null,null,"","","",null,null,null,null,null,null,""]
[null,null,"","","",null,null,null,null,null,null,""]
[null,null,"","","",null,null,null,null,null,null,""]
[null,null,"","","",null,null,null,null,null,null,""]
[null,null,"","","",null,null,null,null,null,null,""]
[null,null,"","","",null,null,null,null,null,null,""]
[null,null,"","","",null,null,null,null,null,null,""]
[null,null,"","","",null,null,null,null,null,null,""]
[null,null,"","","",null,null,null,null,null,null,""]
[null,null,"","","",null,null,null,null,null,null,""]
[null,null,"","","",null,null,null,null,null,null,""]
[null,null,"","","",null,null,null,null,null,null,""]
[null,null,"","","",null,null,null,null,null,null,""]
[null,null,"","","",null,null,null,null,null,null,""]
[null,null,"","","",null,null,null,null,null,null,""]
[null,null,"","","",null,null,null,null,null,null,""]
[null,null,"","","",null,null,null,null,null,null,""]
[null,null,"","","",null,null,null,null,null,null,""]
[null,null,"","","",null,null,null,null,null,null,""]
[null,null,"","","",null,null,null,null,null,null,""]
[null,null,"","","",null,null,null,null,null,null,""]
[null,null,"","","",null,null,null,null,null,null,""]
[null,null,"","","",null,null,null,null,null,null,""]
[null,null,"","","",null,null,null,null,null,null,""]
[null,null,"","","",null,null,null,null,null,null,""]
[null,null,"","","",null,null,null,null,null,null,""]
[null,null,"","","",null,null,null,null,null,null,""]
[null,null,"","","",null,null,null,null,null,null,""]
[null,null,"","","",null,null,null,null,null,null,""]
[null,null,"","","",null,null,null,null,null,null,""]
[null,null,"","","",null,null,null,null,null,null,""]
[null,null,"","","",null,null,null,null,null,null,""]
[null,null,"","","",null,null,null,null,null,null,""]
[null,null,"","","",null,null,null,null,null,null,""]
[null,null,"","","",null,null,null,null,null,null,""]
[null,null,"","","",null,null,null,null,null,null,""]
[null,null,"","","",null,null,null,null,null,null,""]
[null,null,"","","",null,null,null,null,null,null,""]
[null,null,"","","",null,null,null,null,null,null,""]
[null,null,"","","",null,null,null,null,null,null,""]
[null,null,"","","",null,null,null,null,null,null,""]
[null,null,"","","",null,null,null,null,null,null,""]
[null,null,"","","",null,null,null,null,null,null,""]
[null,null,"","","",null,null,null,null,null,null,""]
[null,null,"","","",null,null,null,null,null,null,""]
[null,null,"","","",null,null,null,null,null,null,""]
[null,null,"","","",null,null,null,null,null,null,""]
[null,null,"","","",null,null,null,null,null,null,""]
[null,null,"","","",null,null,null,null,null,null,""]
[null,null,"","","",null,null,null,null,null,null,""]
[null,null,"","","",null,null,null,null,null,null,""]
[null,null,"","","",null,null,null,null,null,null,""]
[null,null,{"$f":"IF(B1913=\"\",\"\",VLOOKUP(B1913,itemsdata,2,\"false\"))","v":""},{"$f":"IF(B1913=\"\",\"\",VLOOKUP(B1913,itemsdata,5,\"false\"))","v":""},{"$f":"IF(B1913=\"\",\"\",VLOOKUP(B1913,itemsdata,3,\"false\"))","v":""},null,null,null,null,null,null,""]
[null,null,"","","",null,null,null,null,null,null,""]
[null,null,"","","",null,null,null,null,null,null,""]
[null,null,"","","",null,null,null,null,null,null,""]
[null,null,"","","",null,null,null,null,null,null,""]
[null,null,"","","",null,null,null,null,null,null,""]
[null,null,"","","",null,null,null,null,null,null,""]
[null,null,"","","",null,null,null,null,null,null,{"$f":"IF(G1920<>\"\",D1920*G1920,\"\")","v":""}]
[null,null,"","","",null,null,null,null,null,null,""]
[null,null,"","","",null,null,null,null,null,null,""]
[null,null,"","","",null,null,null,null,null,null,""]
[null,null,"","","",null,null,null,null,null,null,""]
[null,null,"","","",null,null,null,null,null,null,""]
[null,null,"","","",null,null,null,null,null,null,""]
[null,null,"","","",null,null,null,null,null,null,""]
[null,null,"","","",null,null,null,null,null,null,""]
[null,null,"","","",null,null,null,null,null,null,""]
[null,null,"","","",null,null,null,null,null,null,""]
[null,null,"","","",null,null,null,null,null,null,""]
[null,null,"","","",null,null,null,null,null,null,""]
[null,null,"","","",null,null,null,null,null,null,""]
[null,null,"","","",null,null,null,null,null,null,""]
[null,null,"","","",null,null,null,null,null,null,""]
[null,null,"","","",null,null,null,null,null,null,""]
[null,null,"","","",null,null,null,null,null,null,""]
[null,null,"","","",null,null,null,null,null,null,""]
[null,null,"","","",null,null,null,null,null,null,""]
[null,null,"","","",null,null,null,null,null,null,""]
[null,null,"","","",null,null,null,null,null,null,""]
[null,null,"","","",null,null,null,null,null,null,""]
[null,null,"","","",null,null,null,null,null,null,""]
[null,null,"","","",null,null,null,null,null,null,""]
[null,null,"","","",null,null,null,null,null,null,""]
[null,null,"","","",null,null,null,null,null,null,""]
[null,null,"","","",null,null,null,null,null,null,""]
[null,null,"","","",null,null,null,null,null,null,""]
[null,null,"","","",null,null,null,null,null,null,""]
[null,null,"","","",null,null,null,null,null,null,""]
[null,null,"","","",null,null,null,null,null,null,""]
[null,null,"","","",null,null,null,null,null,null,""]
[null,null,"","","",null,null,null,null,null,null,""]
[null,null,"","","",null,null,null,null,null,null,""]
[null,null,"","","",null,null,null,null,null,null,""]
[null,null,"","","",null,null,null,null,null,null,""]
[null,null,"","","",null,null,null,null,null,null,""]
[null,null,"","","",null,null,null,null,null,null,""]
[null,null,"","","",null,null,null,null,null,null,""]
[null,null,"","","",null,null,null,null,null,null,""]
[null,null,"","","",null,null,null,null,null,null,""]
[null,null,"","","",null,null,null,null,null,null,""]
[null,null,"","","",null,null,null,null,null,null,""]
[null,null,"","","",null,null,null,null,null,null,""]
[null,null,"","","",null,null,null,null,null,null,""]
[null,null,"","","",null,null,null,null,null,null,""]
[null,null,"","","",null,null,null,null,null,null,""]
[null,null,"","","",null,null,null,null,null,null,""]
[null,null,"","","",null,null,null,null,null,null,""]
[null,null,"","","",null,null,null,null,null,null,""]
[null,null,"","","",null,null,null,null,null,null,""]
[null,null,"","","",null,null,null,null,null,null,""]
[null,null,"","","",null,null,null,null,null,null,""]
[null,null,"","","",null,null,null,null,null,null,""]
[null,null,"","","",null,null,null,null,null,null,""]
[null,null,"","","",null,null,null,null,null,null,""]
[null,null,{"$f":"IF(B1977=\"\",\"\",VLOOKUP(B1977,itemsdata,2,\"false\"))","v":""},{"$f":"IF(B1977=\"\",\"\",VLOOKUP(B1977,itemsdata,5,\"false\"))","v":""},{"$f":"IF(B1977=\"\",\"\",VLOOKUP(B1977,itemsdata,3,\"false\"))","v":""},null,null,null,null,null,null,""]
[null,null,"","","",null,null,null,null,null,null,""]
[null,null,"","","",null,null,null,null,null,null,""]
[null,null,"","","",null,null,null,null,null,null,""]
[null,null,"","","",null,null,null,null,null,null,""]
[null,null,"","","",null,null,null,null,null,null,""]
[null,null,"","","",null,null,null,null,null,null,""]
[null,null,"","","",null,null,null,null,null,null,{"$f":"IF(G1984<>\"\",D1984*G1984,\"\")","v":""}]
[null,null,"","","",null,null,null,null,null,null,""]
[null,null,"","","",null,null,null,null,null,null,""]
[null,null,"","","",null,null,null,null,null,null,""]
[null,null,"","","",null,null,null,null,null,null,""]
[null,null,"","","",null,null,null,null,null,null,""]
[null,null,"","","",null,null,null,null,null,null,""]
[null,null,"","","",null,null,null,null,null,null,""]
[null,null,"","","",null,null,null,null,null,null,""]
[null,null,"","","",null,null,null,null,null,null,""]
[null,null,"","","",null,null,null,null,null,null,""]
[null,null,"","","",null,null,null,null,null,null,""]
[null,null,"","","",null,null,null,null,null,null,""]
[null,null,"","","",null,null,null,null,null,null,""]
[null,null,"","","",null,null,null,null,null,null,""]
[null,null,"","","",null,null,null,null,null,null,""]
[null,null,"","","",null,null,null,null,null,null,""]
[null,null,"","","",null,null,null,null,null,null,""]
[null,null,"","","",null,null,null,null,null,null,""]
[null,null,"","","",null,null,null,null,null,null,""]
[null,null,"","","",null,null,null,null,null,null,""]
[null,null,"","","",null,null,null,null,null,null,""]
[null,null,"","","",null,null,null,null,null,null,""]
[null,null,"","","",null,null,null,null,null,null,""]
[null,null,"","","",null,null,null,null,null,null,""]
[null,null,"","","",null,null,null,null,null,null,""]
[null,null,"","","",null,null,null,null,null,null,""]
[null,null,"","","",null,null,null,null,null,null,""]
[null,null,"","","",null,null,null,null,null,null,""]
[null,null,"","","",null,null,null,null,null,null,""]
[null,null,"","","",null,null,null,null,null,null,""]
[null,null,"","","",null,null,null,null,null,null,""]
[null,null,"","","",null,null,null,null,null,null,""]
[null,null,"","","",null,null,null,null,null,null,""]
[null,null,"","","",null,null,null,null,null,null,""]
[null,null,"","","",null,null,null,null,null,null,""]
[null,null,"","","",null,null,null,null,null,null,""]
[null,null,"","","",null,null,null,null,null,null,""]
[null,null,"","","",null,null,null,null,null,null,""]
[null,null,"","","",null,null,null,null,null,null,""]
[null,null,"","","",null,null,null,null,null,null,""]
[null,null,"","","",null,null,null,null,null,null,""]
[null,null,"","","",null,null,null,null,null,null,""]
[null,null,"","","",null,null,null,null,null,null,""]
[null,null,"","","",null,null,null,null,null,null,""]
[null,null,"","","",null,null,null,null,null,null,""]
[null,null,"","","",null,null,null,null,null,null,""]
[null,null,"","","",null,null,null,null,null,null,""]
[null,null,"","","",null,null,null,null,null,null,""]
[null,null,"","","",null,null,null,null,null,null,""]
[null,null,"","","",null,null,null,null,null,null,""]
[null,null,"","","",null,null,null,null,null,null,""]
[null,null,"","","",null,null,null,null,null,null,""]
[null,null,"","","",null,null,null,null,null,null,""]
[null,null,"","","",null,null,null,null,null,null,""]
[null,null,"","","",null,null,null,null,null,null,""]
[null,null,"","","",null,null,null,null,null,null,""]
[null,null,{"$f":"IF(B2041=\"\",\"\",VLOOKUP(B2041,itemsdata,2,\"false\"))","v":""},{"$f":"IF(B2041=\"\",\"\",VLOOKUP(B2041,itemsdata,5,\"false\"))","v":""},{"$f":"IF(B2041=\"\",\"\",VLOOKUP(B2041,itemsdata,3,\"false\"))","v":""},null,null,null,null,null,null,""]
[null,null,"","","",null,null,null,null,null,null,""]
[null,null,"","","",null,null,null,null,null,null,""]
[null,null,"","","",null,null,null,null,null,null,""]
[null,null,"","","",null,null,null,null,null,null,""]
[null,null,"","","",null,null,null,null,null,null,""]
[null,null,"","","",null,null,null,null,null,null,""]
[null,null,"","","",null,null,null,null,null,null,{"$f":"IF(G2048<>\"\",D2048*G2048,\"\")","v":""}]
[null,null,"","","",null,null,null,null,null,null,""]
[null,null,"","","",null,null,null,null,null,null,""]
[null,null,"","","",null,null,null,null,null,null,""]
[null,null,"","","",null,null,null,null,null,null,""]
[null,null,"","","",null,null,null,null,null,null,""]
[null,null,"","","",null,null,null,null,null,null,""]
[null,null,"","","",null,null,null,null,null,null,""]
[null,null,"","","",null,null,null,null,null,null,""]
[null,null,"","","",null,null,null,null,null,null,""]
[null,null,"","","",null,null,null,null,null,null,""]
[null,null,"","","",null,null,null,null,null,null,""]
[null,null,"","","",null,null,null,null,null,null,""]
[null,null,"","","",null,null,null,null,null,null,""]
[null,null,"","","",null,null,null,null,null,null,""]
[null,null,"","","",null,null,null,null,null,null,""]
[null,null,"","","",null,null,null,null,null,null,""]
[null,null,"","","",null,null,null,null,null,null,""]
[null,null,"","","",null,null,null,null,null,null,""]
[null,null,"","","",null,null,null,null,null,null,""]
[null,null,"","","",null,null,null,null,null,null,""]
[null,null,"","","",null,null,null,null,null,null,""]
[null,null,"","","",null,null,null,null,null,null,""]
[null,null,"","","",null,null,null,null,null,null,""]
[null,null,"","","",null,null,null,null,null,null,""]
[null,null,"","","",null,null,null,null,null,null,""]
[null,null,"","","",null,null,null,null,null,null,""]
[null,null,"","","",null,null,null,null,null,null,""]
[null,null,"","","",null,null,null,null,null,null,""]
[null,null,"","","",null,null,null,null,null,null,""]
[null,null,"","","",null,null,null,null,null,null,""]
[null,null,"","","",null,null,null,null,null,null,""]
[null,null,"","","",null,null,null,null,null,null,""]
[null,null,"","","",null,null,null,null,null,null,""]
[null,null,"","","",null,null,null,null,null,null,""]
[null,null,"","","",null,null,null,null,null,null,""]
[null,null,"","","",null,null,null,null,null,null,""]
[null,null,"","","",null,null,null,null,null,null,""]
[null,null,"","","",null,null,null,null,null,null,""]
[null,null,"","","",null,null,null,null,null,null,""]
[null,null,"","","",null,null,null,null,null,null,""]
[null,null,"","","",null,null,null,null,null,null,""]
[null,null,"","","",null,null,null,null,null,null,""]
[null,null,"","","",null,null,null,null,null,null,""]
[null,null,"","","",null,null,null,null,null,null,""]
[null,null,"","","",null,null,null,null,null,null,""]
[null,null,"","","",null,null,null,null,null,null,""]
[null,null,"","","",null,null,null,null,null,null,""]
[null,null,"","","",null,null,null,null,null,null,""]
[null,null,"","","",null,null,null,null,null,null,""]
[null,null,"","","",null,null,null,null,null,null,""]
[null,null,"","","",null,null,null,null,null,null,""]
[null,null,"","","",null,null,null,null,null,null,""]
[null,null,"","","",null,null,null,null,null,null,""]
[null,null,"","","",null,null,null,null,null,null,""]
[null,null,"","","",null,null,null,null,null,null,""]
[null,null,"","","",null,null,null,null,null,null,""]
[null,null,{"$f":"IF(B2105=\"\",\"\",VLOOKUP(B2105,itemsdata,2,\"false\"))","v":""},{"$f":"IF(B2105=\"\",\"\",VLOOKUP(B2105,itemsdata,5,\"false\"))","v":""},{"$f":"IF(B2105=\"\",\"\",VLOOKUP(B2105,itemsdata,3,\"false\"))","v":""},null,null,null,null,null,null,""]
[null,null,"","","",null,null,null,null,null,null,""]
[null,null,"","","",null,null,null,null,null,null,""]
[null,null,"","","",null,null,null,null,null,null,""]
[null,null,"","","",null,null,null,null,null,null,""]
[null,null,"","","",null,null,null,null,null,null,""]
[null,null,"","","",null,null,null,null,null,null,""]
[null,null,"","","",null,null,null,null,null,null,{"$f":"IF(G2112<>\"\",D2112*G2112,\"\")","v":""}]
[null,null,"","","",null,null,null,null,null,null,""]
[null,null,"","","",null,null,null,null,null,null,""]
[null,null,"","","",null,null,null,null,null,null,""]
[null,null,"","","",null,null,null,null,null,null,""]
[null,null,"","","",null,null,null,null,null,null,""]
[null,null,"","","",null,null,null,null,null,null,""]
[null,null,"","","",null,null,null,null,null,null,""]
[null,null,"","","",null,null,null,null,null,null,""]
[null,null,"","","",null,null,null,null,null,null,""]
[null,null,"","","",null,null,null,null,null,null,""]
[null,null,"","","",null,null,null,null,null,null,""]
[null,null,"","","",null,null,null,null,null,null,""]
[null,null,"","","",null,null,null,null,null,null,""]
[null,null,"","","",null,null,null,null,null,null,""]
[null,null,"","","",null,null,null,null,null,null,""]
[null,null,"","","",null,null,null,null,null,null,""]
[null,null,"","","",null,null,null,null,null,null,""]
[null,null,"","","",null,null,null,null,null,null,""]
[null,null,"","","",null,null,null,null,null,null,""]
[null,null,"","","",null,null,null,null,null,null,""]
[null,null,"","","",null,null,null,null,null,null,""]
[null,null,"","","",null,null,null,null,null,null,""]
[null,null,"","","",null,null,null,null,null,null,""]
[null,null,"","","",null,null,null,null,null,null,""]
[null,null,"","","",null,null,null,null,null,null,""]
[null,null,"","","",null,null,null,null,null,null,""]
[null,null,"","","",null,null,null,null,null,null,""]
[null,null,"","","",null,null,null,null,null,null,""]
[null,null,"","","",null,null,null,null,null,null,""]
[null,null,"","","",null,null,null,null,null,null,""]
[null,null,"","","",null,null,null,null,null,null,""]
[null,null,"","","",null,null,null,null,null,null,""]
[null,null,"","","",null,null,null,null,null,null,""]
[null,null,"","","",null,null,null,null,null,null,""]
[null,null,"","","",null,null,null,null,null,null,""]
[null,null,"","","",null,null,null,null,null,null,""]
[null,null,"","","",null,null,null,null,null,null,""]
[null,null,"","","",null,null,null,null,null,null,""]
[null,null,"","","",null,null,null,null,null,null,""]
[null,null,"","","",null,null,null,null,null,null,""]
[null,null,"","","",null,null,null,null,null,null,""]
[null,null,"","","",null,null,null,null,null,null,""]
[null,null,"","","",null,null,null,null,null,null,""]
[null,null,"","","",null,null,null,null,null,null,""]
[null,null,"","","",null,null,null,null,null,null,""]
[null,null,"","","",null,null,null,null,null,null,""]
[null,null,"","","",null,null,null,null,null,null,""]
[null,null,"","","",null,null,null,null,null,null,""]
[null,null,"","","",null,null,null,null,null,null,""]
[null,null,"","","",null,null,null,null,null,null,""]
[null,null,"","","",null,null,null,null,null,null,""]
[null,null,"","","",null,null,null,null,null,null,""]
[null,null,"","","",null,null,null,null,null,null,""]
[null,null,"","","",null,null,null,null,null,null,""]
[null,null,"","","",null,null,null,null,null,null,""]
[null,null,"","","",null,null,null,null,null,null,""]
[null,null,{"$f":"IF(B2169=\"\",\"\",VLOOKUP(B2169,itemsdata,2,\"false\"))","v":""},{"$f":"IF(B2169=\"\",\"\",VLOOKUP(B2169,itemsdata,5,\"false\"))","v":""},{"$f":"IF(B2169=\"\",\"\",VLOOKUP(B2169,itemsdata,3,\"false\"))","v":""},null,null,null,null,null,null,""]
[null,null,"","","",null,null,null,null,null,null,""]
[null,null,"","","",null,null,null,null,null,null,""]
[null,null,"","","",null,null,null,null,null,null,""]
[null,null,"","","",null,null,null,null,null,null,""]
[null,null,"","","",null,null,null,null,null,null,""]
[null,null,"","","",null,null,null,null,null,null,""]
[null,null,"","","",null,null,null,null,null,null,{"$f":"IF(G2176<>\"\",D2176*G2176,\"\")","v":""}]
[null,null,"","","",null,null,null,null,null,null,""]
[null,null,"","","",null,null,null,null,null,null,""]
[null,null,"","","",null,null,null,null,null,null,""]
[null,null,"","","",null,null,null,null,null,null,""]
[null,null,"","","",null,null,null,null,null,null,""]
[null,null,"","","",null,null,null,null,null,null,""]
[null,null,"","","",null,null,null,null,null,null,""]
[null,null,"","","",null,null,null,null,null,null,""]
[null,null,"","","",null,null,null,null,null,null,""]
[null,null,"","","",null,null,null,null,null,null,""]
[null,null,"","","",null,null,null,null,null,null,""]
[null,null,"","","",null,null,null,null,null,null,""]
[null,null,"","","",null,null,null,null,null,null,""]
[null,null,"","","",null,null,null,null,null,null,""]
[null,null,"","","",null,null,null,null,null,null,""]
[null,null,"","","",null,null,null,null,null,null,""]
[null,null,"","","",null,null,null,null,null,null,""]
[null,null,"","","",null,null,null,null,null,null,""]
[null,null,"","","",null,null,null,null,null,null,""]
[null,null,"","","",null,null,null,null,null,null,""]
[null,null,"","","",null,null,null,null,null,null,""]
[null,null,"","","",null,null,null,null,null,null,""]
[null,null,"","","",null,null,null,null,null,null,""]
[null,null,"","","",null,null,null,null,null,null,""]
[null,null,"","","",null,null,null,null,null,null,""]
[null,null,"","","",null,null,null,null,null,null,""]
[null,null,"","","",null,null,null,null,null,null,""]
[null,null,"","","",null,null,null,null,null,null,""]
[null,null,"","","",null,null,null,null,null,null,""]
[null,null,"","","",null,null,null,null,null,null,""]
[null,null,"","","",null,null,null,null,null,null,""]
[null,null,"","","",null,null,null,null,null,null,""]
[null,null,"","","",null,null,null,null,null,null,""]
[null,null,"","","",null,null,null,null,null,null,""]
[null,null,"","","",null,null,null,null,null,null,""]
[null,null,"","","",null,null,null,null,null,null,""]
[null,null,"","","",null,null,null,null,null,null,""]
[null,null,"","","",null,null,null,null,null,null,""]
[null,null,"","","",null,null,null,null,null,null,""]
[null,null,"","","",null,null,null,null,null,null,""]
[null,null,"","","",null,null,null,null,null,null,""]
[null,null,"","","",null,null,null,null,null,null,""]
[null,null,"","","",null,null,null,null,null,null,""]
[null,null,"","","",null,null,null,null,null,null,""]
[null,null,"","","",null,null,null,null,null,null,""]
[null,null,"","","",null,null,null,null,null,null,""]
[null,null,"","","",null,null,null,null,null,null,""]
[null,null,"","","",null,null,null,null,null,null,""]
[null,null,"","","",null,null,null,null,null,null,""]
[null,null,"","","",null,null,null,null,null,null,""]
[null,null,"","","",null,null,null,null,null,null,""]
[null,null,"","","",null,null,null,null,null,null,""]
[null,null,"","","",null,null,null,null,null,null,""]
[null,null,"","","",null,null,null,null,null,null,""]
[null,null,"","","",null,null,null,null,null,null,""]
[null,null,"","","",null,null,null,null,null,null,""]
[null,null,{"$f":"IF(B2233=\"\",\"\",VLOOKUP(B2233,itemsdata,2,\"false\"))","v":""},{"$f":"IF(B2233=\"\",\"\",VLOOKUP(B2233,itemsdata,5,\"false\"))","v":""},{"$f":"IF(B2233=\"\",\"\",VLOOKUP(B2233,itemsdata,3,\"false\"))","v":""},null,null,null,null,null,null,""]
[null,null,"","","",null,null,null,null,null,null,""]
[null,null,"","","",null,null,null,null,null,null,""]
[null,null,"","","",null,null,null,null,null,null,""]
[null,null,"","","",null,null,null,null,null,null,""]
[null,null,"","","",null,null,null,null,null,null,""]
[null,null,"","","",null,null,null,null,null,null,""]
[null,null,"","","",null,null,null,null,null,null,{"$f":"IF(G2240<>\"\",D2240*G2240,\"\")","v":""}]
[null,null,"","","",null,null,null,null,null,null,""]
[null,null,"","","",null,null,null,null,null,null,""]
[null,null,"","","",null,null,null,null,null,null,""]
[null,null,"","","",null,null,null,null,null,null,""]
[null,null,"","","",null,null,null,null,null,null,""]
[null,null,"","","",null,null,null,null,null,null,""]
[null,null,"","","",null,null,null,null,null,null,""]
[null,null,"","","",null,null,null,null,null,null,""]
[null,null,"","","",null,null,null,null,null,null,""]
[null,null,"","","",null,null,null,null,null,null,""]
[null,null,"","","",null,null,null,null,null,null,""]
[null,null,"","","",null,null,null,null,null,null,""]
[null,null,"","","",null,null,null,null,null,null,""]
[null,null,"","","",null,null,null,null,null,null,""]
[null,null,"","","",null,null,null,null,null,null,""]
[null,null,"","","",null,null,null,null,null,null,""]
[null,null,"","","",null,null,null,null,null,null,""]
[null,null,"","","",null,null,null,null,null,null,""]
[null,null,"","","",null,null,null,null,null,null,""]
[null,null,"","","",null,null,null,null,null,null,""]
[null,null,"","","",null,null,null,null,null,null,""]
[null,null,"","","",null,null,null,null,null,null,""]
[null,null,"","","",null,null,null,null,null,null,""]
[null,null,"","","",null,null,null,null,null,null,""]
[null,null,"","","",null,null,null,null,null,null,""]
[null,null,"","","",null,null,null,null,null,null,""]
[null,null,"","","",null,null,null,null,null,null,""]
[null,null,"","","",null,null,null,null,null,null,""]
[null,null,"","","",null,null,null,null,null,null,""]
[null,null,"","","",null,null,null,null,null,null,""]
[null,null,"","","",null,null,null,null,null,null,""]
[null,null,"","","",null,null,null,null,null,null,""]
[null,null,"","","",null,null,null,null,null,null,""]
[null,null,"","","",null,null,null,null,null,null,""]
[null,null,"","","",null,null,null,null,null,null,""]
[null,null,"","","",null,null,null,null,null,null,""]
[null,null,"","","",null,null,null,null,null,null,""]
[null,null,"","","",null,null,null,null,null,null,""]
[null,null,"","","",null,null,null,null,null,null,""]
[null,null,"","","",null,null,null,null,null,null,""]
[null,null,"","","",null,null,null,null,null,null,""]
[null,null,"","","",null,null,null,null,null,null,""]
[null,null,"","","",null,null,null,null,null,null,""]
[null,null,"","","",null,null,null,null,null,null,""]
[null,null,"","","",null,null,null,null,null,null,""]
[null,null,"","","",null,null,null,null,null,null,""]
[null,null,"","","",null,null,null,null,null,null,""]
[null,null,"","","",null,null,null,null,null,null,""]
[null,null,"","","",null,null,null,null,null,null,""]
[null,null,"","","",null,null,null,null,null,null,""]
[null,null,"","","",null,null,null,null,null,null,""]
[null,null,"","","",null,null,null,null,null,null,""]
[null,null,"","","",null,null,null,null,null,null,""]
[null,null,"","","",null,null,null,null,null,null,""]
[null,null,"","","",null,null,null,null,null,null,""]
[null,null,"","","",null,null,null,null,null,null,""]
[null,null,{"$f":"IF(B2297=\"\",\"\",VLOOKUP(B2297,itemsdata,2,\"false\"))","v":""},{"$f":"IF(B2297=\"\",\"\",VLOOKUP(B2297,itemsdata,5,\"false\"))","v":""},{"$f":"IF(B2297=\"\",\"\",VLOOKUP(B2297,itemsdata,3,\"false\"))","v":""},null,null,null,null,null,null,""]
[null,null,"","","",null,null,null,null,null,null,""]
[null,null,"","","",null,null,null,null,null,null,""]
[null,null,"","","",null,null,null,null,null,null,""]
[null,null,"","","",null,null,null,null,null,null,""]
[null,null,"","","",null,null,null,null,null,null,""]
[null,null,"","","",null,null,null,null,null,null,""]
[null,null,"","","",null,null,null,null,null,null,{"$f":"IF(G2304<>\"\",D2304*G2304,\"\")","v":""}]
[null,null,"","","",null,null,null,null,null,null,""]
[null,null,"","","",null,null,null,null,null,null,""]
[null,null,"","","",null,null,null,null,null,null,""]
[null,null,"","","",null,null,null,null,null,null,""]
[null,null,"","","",null,null,null,null,null,null,""]
[null,null,"","","",null,null,null,null,null,null,""]
[null,null,"","","",null,null,null,null,null,null,""]
[null,null,"","","",null,null,null,null,null,null,""]
[null,null,"","","",null,null,null,null,null,null,""]
[null,null,"","","",null,null,null,null,null,null,""]
[null,null,"","","",null,null,null,null,null,null,""]
[null,null,"","","",null,null,null,null,null,null,""]
[null,null,"","","",null,null,null,null,null,null,""]
[null,null,"","","",null,null,null,null,null,null,""]
[null,null,"","","",null,null,null,null,null,null,""]
[null,null,"","","",null,null,null,null,null,null,""]
[null,null,"","","",null,null,null,null,null,null,""]
[null,null,"","","",null,null,null,null,null,null,""]
[null,null,"","","",null,null,null,null,null,null,""]
[null,null,"","","",null,null,null,null,null,null,""]
[null,null,"","","",null,null,null,null,null,null,""]
[null,null,"","","",null,null,null,null,null,null,""]
[null,null,"","","",null,null,null,null,null,null,""]
[null,null,"","","",null,null,null,null,null,null,""]
[null,null,"","","",null,null,null,null,null,null,""]
[null,null,"","","",null,null,null,null,null,null,""]
[null,null,"","","",null,null,null,null,null,null,""]
[null,null,"","","",null,null,null,null,null,null,""]
[null,null,"","","",null,null,null,null,null,null,""]
[null,null,"","","",null,null,null,null,null,null,""]
[null,null,"","","",null,null,null,null,null,null,""]
[null,null,"","","",null,null,null,null,null,null,""]
[null,null,"","","",null,null,null,null,null,null,""]
[null,null,"","","",null,null,null,null,null,null,""]
[null,null,"","","",null,null,null,null,null,null,""]
[null,null,"","","",null,null,null,null,null,null,""]
[null,null,"","","",null,null,null,null,null,null,""]
[null,null,"","","",null,null,null,null,null,null,""]
[null,null,"","","",null,null,null,null,null,null,""]
[null,null,"","","",null,null,null,null,null,null,""]
[null,null,"","","",null,null,null,null,null,null,""]
[null,null,"","","",null,null,null,null,null,null,""]
[null,null,"","","",null,null,null,null,null,null,""]
[null,null,"","","",null,null,null,null,null,null,""]
[null,null,"","","",null,null,null,null,null,null,""]
[null,null,"","","",null,null,null,null,null,null,""]
[null,null,"","","",null,null,null,null,null,null,""]
[null,null,"","","",null,null,null,null,null,null,""]
[null,null,"","","",null,null,null,null,null,null,""]
[null,null,"","","",null,null,null,null,null,null,""]
[null,null,"","","",null,null,null,null,null,null,""]
[null,null,"","","",null,null,null,null,null,null,""]
[null,null,"","","",null,null,null,null,null,null,""]
[null,null,"","","",null,null,null,null,null,null,""]
[null,null,"","","",null,null,null,null,null,null,""]
[null,null,"","","",null,null,null,null,null,null,""]
[null,null,{"$f":"IF(B2361=\"\",\"\",VLOOKUP(B2361,itemsdata,2,\"false\"))","v":""},{"$f":"IF(B2361=\"\",\"\",VLOOKUP(B2361,itemsdata,5,\"false\"))","v":""},{"$f":"IF(B2361=\"\",\"\",VLOOKUP(B2361,itemsdata,3,\"false\"))","v":""},null,null,null,null,null,null,""]
[null,null,"","","",null,null,null,null,null,null,""]
[null,null,"","","",null,null,null,null,null,null,""]
[null,null,"","","",null,null,null,null,null,null,""]
[null,null,"","","",null,null,null,null,null,null,""]
[null,null,"","","",null,null,null,null,null,null,""]
[null,null,"","","",null,null,null,null,null,null,""]
[null,null,"","","",null,null,null,null,null,null,{"$f":"IF(G2368<>\"\",D2368*G2368,\"\")","v":""}]
[null,null,"","","",null,null,null,null,null,null,""]
[null,null,"","","",null,null,null,null,null,null,""]
[null,null,"","","",null,null,null,null,null,null,""]
[null,null,"","","",null,null,null,null,null,null,""]
[null,null,"","","",null,null,null,null,null,null,""]
[null,null,"","","",null,null,null,null,null,null,""]
[null,null,"","","",null,null,null,null,null,null,""]
[null,null,"","","",null,null,null,null,null,null,""]
[null,null,"","","",null,null,null,null,null,null,""]
[null,null,"","","",null,null,null,null,null,null,""]
[null,null,"","","",null,null,null,null,null,null,""]
[null,null,"","","",null,null,null,null,null,null,""]
[null,null,"","","",null,null,null,null,null,null,""]
[null,null,"","","",null,null,null,null,null,null,""]
[null,null,"","","",null,null,null,null,null,null,""]
[null,null,"","","",null,null,null,null,null,null,""]
[null,null,"","","",null,null,null,null,null,null,""]
[null,null,"","","",null,null,null,null,null,null,""]
[null,null,"","","",null,null,null,null,null,null,""]
[null,null,"","","",null,null,null,null,null,null,""]
[null,null,"","","",null,null,null,null,null,null,""]
[null,null,"","","",null,null,null,null,null,null,""]
[null,null,"","","",null,null,null,null,null,null,""]
[null,null,"","","",null,null,null,null,null,null,""]
[null,null,"","","",null,null,null,null,null,null,""]
[null,null,"","","",null,null,null,null,null,null,""]
[null,null,"","","",null,null,null,null,null,null,""]
[null,null,"","","",null,null,null,null,null,null,""]
[null,null,"","","",null,null,null,null,null,null,""]
[null,null,"","","",null,null,null,null,null,null,""]
[null,null,"","","",null,null,null,null,null,null,""]
[null,null,"","","",null,null,null,null,null,null,""]
[null,null,"","","",null,null,null,null,null,null,""]
[null,null,"","","",null,null,null,null,null,null,""]
[null,null,"","","",null,null,null,null,null,null,""]
[null,null,"","","",null,null,null,null,null,null,""]
[null,null,"","","",null,null,null,null,null,null,""]
[null,null,"","","",null,null,null,null,null,null,""]
[null,null,"","","",null,null,null,null,null,null,""]
[null,null,"","","",null,null,null,null,null,null,""]
[null,null,"","","",null,null,null,null,null,null,""]
[null,null,"","","",null,null,null,null,null,null,""]
[null,null,"","","",null,null,null,null,null,null,""]
[null,null,"","","",null,null,null,null,null,null,""]
[null,null,"","","",null,null,null,null,null,null,""]
[null,null,"","","",null,null,null,null,null,null,""]
[null,null,"","","",null,null,null,null,null,null,""]
[null,null,"","","",null,null,null,null,null,null,""]
[null,null,"","","",null,null,null,null,null,null,""]
[null,null,"","","",null,null,null,null,null,null,""]
[null,null,"","","",null,null,null,null,null,null,""]
[null,null,"","","",null,null,null,null,null,null,""]
[null,null,"","","",null,null,null,null,null,null,""]
[null,null,"","","",null,null,null,null,null,null,""]
[null,null,"","","",null,null,null,null,null,null,""]
[null,null,"","","",null,null,null,null,null,null,""]
[null,null,{"$f":"IF(B2425=\"\",\"\",VLOOKUP(B2425,itemsdata,2,\"false\"))","v":""},{"$f":"IF(B2425=\"\",\"\",VLOOKUP(B2425,itemsdata,5,\"false\"))","v":""},{"$f":"IF(B2425=\"\",\"\",VLOOKUP(B2425,itemsdata,3,\"false\"))","v":""},null,null,null,null,null,null,""]
[null,null,"","","",null,null,null,null,null,null,""]
[null,null,"","","",null,null,null,null,null,null,""]
[null,null,"","","",null,null,null,null,null,null,""]
[null,null,"","","",null,null,null,null,null,null,""]
[null,null,"","","",null,null,null,null,null,null,""]
[null,null,"","","",null,null,null,null,null,null,""]
[null,null,"","","",null,null,null,null,null,null,{"$f":"IF(G2432<>\"\",D2432*G2432,\"\")","v":""}]
[null,null,"","","",null,null,null,null,null,null,""]
[null,null,"","","",null,null,null,null,null,null,""]
[null,null,"","","",null,null,null,null,null,null,""]
[null,null,"","","",null,null,null,null,null,null,""]
[null,null,"","","",null,null,null,null,null,null,""]
[null,null,"","","",null,null,null,null,null,null,""]
[null,null,"","","",null,null,null,null,null,null,""]
[null,null,"","","",null,null,null,null,null,null,""]
[null,null,"","","",null,null,null,null,null,null,""]
[null,null,"","","",null,null,null,null,null,null,""]
[null,null,"","","",null,null,null,null,null,null,""]
[null,null,"","","",null,null,null,null,null,null,""]
[null,null,"","","",null,null,null,null,null,null,""]
[null,null,"","","",null,null,null,null,null,null,""]
[null,null,"","","",null,null,null,null,null,null,""]
[null,null,"","","",null,null,null,null,null,null,""]
[null,null,"","","",null,null,null,null,null,null,""]
[null,null,"","","",null,null,null,null,null,null,""]
[null,null,"","","",null,null,null,null,null,null,""]
[null,null,"","","",null,null,null,null,null,null,""]
[null,null,"","","",null,null,null,null,null,null,""]
[null,null,"","","",null,null,null,null,null,null,""]
[null,null,"","","",null,null,null,null,null,null,""]
[null,null,"","","",null,null,null,null,null,null,""]
[null,null,"","","",null,null,null,null,null,null,""]
[null,null,"","","",null,null,null,null,null,null,""]
[null,null,"","","",null,null,null,null,null,null,""]
[null,null,"","","",null,null,null,null,null,null,""]
[null,null,"","","",null,null,null,null,null,null,""]
[null,null,"","","",null,null,null,null,null,null,""]
[null,null,"","","",null,null,null,null,null,null,""]
[null,null,"","","",null,null,null,null,null,null,""]
[null,null,"","","",null,null,null,null,null,null,""]
[null,null,"","","",null,null,null,null,null,null,""]
[null,null,"","","",null,null,null,null,null,null,""]
[null,null,"","","",null,null,null,null,null,null,""]
[null,null,"","","",null,null,null,null,null,null,""]
[null,null,"","","",null,null,null,null,null,null,""]
[null,null,"","","",null,null,null,null,null,null,""]
[null,null,"","","",null,null,null,null,null,null,""]
[null,null,"","","",null,null,null,null,null,null,""]
[null,null,"","","",null,null,null,null,null,null,""]
[null,null,"","","",null,null,null,null,null,null,""]
[null,null,"","","",null,null,null,null,null,null,""]
[null,null,"","","",null,null,null,null,null,null,""]
[null,null,"","","",null,null,null,null,null,null,""]
[null,null,"","","",null,null,null,null,null,null,""]
[null,null,"","","",null,null,null,null,null,null,""]
[null,null,"","","",null,null,null,null,null,null,""]
[null,null,"","","",null,null,null,null,null,null,""]
[null,null,"","","",null,null,null,null,null,null,""]
[null,null,"","","",null,null,null,null,null,null,""]
[null,null,"","","",null,null,null,null,null,null,""]
[null,null,"","","",null,null,null,null,null,null,""]
[null,null,"","","",null,null,null,null,null,null,""]
[null,null,"","","",null,null,null,null,null,null,""]
[null,null,{"$f":"IF(B2489=\"\",\"\",VLOOKUP(B2489,itemsdata,2,\"false\"))","v":""},{"$f":"IF(B2489=\"\",\"\",VLOOKUP(B2489,itemsdata,5,\"false\"))","v":""},{"$f":"IF(B2489=\"\",\"\",VLOOKUP(B2489,itemsdata,3,\"false\"))","v":""},null,null,null,null,null,null,""]
[null,null,"","","",null,null,null,null,null,null,""]
[null,null,"","","",null,null,null,null,null,null,""]
[null,null,"","","",null,null,null,null,null,null,""]
[null,null,"","","",null,null,null,null,null,null,""]
[null,null,"","","",null,null,null,null,null,null,""]
[null,null,"","","",null,null,null,null,null,null,""]
[null,null,"","","",null,null,null,null,null,null,{"$f":"IF(G2496<>\"\",D2496*G2496,\"\")","v":""}]
[null,null,"","","",null,null,null,null,null,null,""]
[null,null,"","","",null,null,null,null,null,null,""]
[null,null,"","","",null,null,null,null,null,null,""]
[null,null,"","","",null,null,null,null,null,null,""]
[null,null,"","","",null,null,null,null,null,null,""]
[null,null,"","","",null,null,null,null,null,null,""]
[null,null,"","","",null,null,null,null,null,null,""]
[null,null,"","","",null,null,null,null,null,null,""]
[null,null,"","","",null,null,null,null,null,null,""]
[null,null,"","","",null,null,null,null,null,null,""]
[null,null,"","","",null,null,null,null,null,null,""]
[null,null,"","","",null,null,null,null,null,null,""]
[null,null,"","","",null,null,null,null,null,null,""]
[null,null,"","","",null,null,null,null,null,null,""]
[null,null,"","","",null,null,null,null,null,null,""]
[null,null,"","","",null,null,null,null,null,null,""]
[null,null,"","","",null,null,null,null,null,null,""]
[null,null,"","","",null,null,null,null,null,null,""]
[null,null,"","","",null,null,null,null,null,null,""]
[null,null,"","","",null,null,null,null,null,null,""]
[null,null,"","","",null,null,null,null,null,null,""]
[null,null,"","","",null,null,null,null,null,null,""]
[null,null,"","","",null,null,null,null,null,null,""]
[null,null,"","","",null,null,null,null,null,null,""]
[null,null,"","","",null,null,null,null,null,null,""]
[null,null,"","","",null,null,null,null,null,null,""]
[null,null,"","","",null,null,null,null,null,null,""]
[null,null,"","","",null,null,null,null,null,null,""]
[null,null,"","","",null,null,null,null,null,null,""]
[null,null,"","","",null,null,null,null,null,null,""]
[null,null,"","","",null,null,null,null,null,null,""]
[null,null,"","","",null,null,null,null,null,null,""]
[null,null,"","","",null,null,null,null,null,null,""]
[null,null,"","","",null,null,null,null,null,null,""]
[null,null,"","","",null,null,null,null,null,null,""]
[null,null,"","","",null,null,null,null,null,null,""]
[null,null,"","","",null,null,null,null,null,null,""]
[null,null,"","","",null,null,null,null,null,null,""]
[null,null,"","","",null,null,null,null,null,null,""]
[null,null,"","","",null,null,null,null,null,null,""]
[null,null,"","","",null,null,null,null,null,null,""]
[null,null,"","","",null,null,null,null,null,null,""]
[null,null,"","","",null,null,null,null,null,null,""]
[null,null,"","","",null,null,null,null,null,null,""]
[null,null,"","","",null,null,null,null,null,null,""]
[null,null,"","","",null,null,null,null,null,null,""]
[null,null,"","","",null,null,null,null,null,null,""]
[null,null,"","","",null,null,null,null,null,null,""]
[null,null,"","","",null,null,null,null,null,null,""]
[null,null,"","","",null,null,null,null,null,null,""]
[null,null,"","","",null,null,null,null,null,null,""]
[null,null,"","","",null,null,null,null,null,null,""]
[null,null,"","","",null,null,null,null,null,null,""]
[null,null,"","","",null,null,null,null,null,null,""]
[null,null,"","","",null,null,null,null,null,null,""]
[null,null,"","","",null,null,null,null,null,null,""]
[null,null,{"$f":"IF(B2553=\"\",\"\",VLOOKUP(B2553,itemsdata,2,\"false\"))","v":""},{"$f":"IF(B2553=\"\",\"\",VLOOKUP(B2553,itemsdata,5,\"false\"))","v":""},{"$f":"IF(B2553=\"\",\"\",VLOOKUP(B2553,itemsdata,3,\"false\"))","v":""},null,null,null,null,null,null,""]
[null,null,"","","",null,null,null,null,null,null,""]
[null,null,"","","",null,null,null,null,null,null,""]
[null,null,"","","",null,null,null,null,null,null,""]
[null,null,"","","",null,null,null,null,null,null,""]
[null,null,"","","",null,null,null,null,null,null,""]
[null,null,"","","",null,null,null,null,null,null,""]
[null,null,"","","",null,null,null,null,null,null,{"$f":"IF(G2560<>\"\",D2560*G2560,\"\")","v":""}]
[null,null,"","","",null,null,null,null,null,null,""]
[null,null,"","","",null,null,null,null,null,null,""]
[null,null,"","","",null,null,null,null,null,null,""]
[null,null,"","","",null,null,null,null,null,null,""]
[null,null,"","","",null,null,null,null,null,null,""]
[null,null,"","","",null,null,null,null,null,null,""]
[null,null,"","","",null,null,null,null,null,null,""]
[null,null,"","","",null,null,null,null,null,null,""]
[null,null,"","","",null,null,null,null,null,null,""]
[null,null,"","","",null,null,null,null,null,null,""]
[null,null,"","","",null,null,null,null,null,null,""]
[null,null,"","","",null,null,null,null,null,null,""]
[null,null,"","","",null,null,null,null,null,null,""]
[null,null,"","","",null,null,null,null,null,null,""]
[null,null,"","","",null,null,null,null,null,null,""]
[null,null,"","","",null,null,null,null,null,null,""]
[null,null,"","","",null,null,null,null,null,null,""]
[null,null,"","","",null,null,null,null,null,null,""]
[null,null,"","","",null,null,null,null,null,null,""]
[null,null,"","","",null,null,null,null,null,null,""]
[null,null,"","","",null,null,null,null,null,null,""]
[null,null,"","","",null,null,null,null,null,null,""]
[null,null,"","","",null,null,null,null,null,null,""]
[null,null,"","","",null,null,null,null,null,null,""]
[null,null,"","","",null,null,null,null,null,null,""]
[null,null,"","","",null,null,null,null,null,null,""]
[null,null,"","","",null,null,null,null,null,null,""]
[null,null,"","","",null,null,null,null,null,null,""]
[null,null,"","","",null,null,null,null,null,null,""]
[null,null,"","","",null,null,null,null,null,null,""]
[null,null,"","","",null,null,null,null,null,null,""]
[null,null,"","","",null,null,null,null,null,null,""]
[null,null,"","","",null,null,null,null,null,null,""]
[null,null,"","","",null,null,null,null,null,null,""]
[null,null,"","","",null,null,null,null,null,null,""]
[null,null,"","","",null,null,null,null,null,null,""]
[null,null,"","","",null,null,null,null,null,null,""]
[null,null,"","","",null,null,null,null,null,null,""]
[null,null,"","","",null,null,null,null,null,null,""]
[null,null,"","","",null,null,null,null,null,null,""]
[null,null,"","","",null,null,null,null,null,null,""]
[null,null,"","","",null,null,null,null,null,null,""]
[null,null,"","","",null,null,null,null,null,null,""]
[null,null,"","","",null,null,null,null,null,null,""]
[null,null,"","","",null,null,null,null,null,null,""]
[null,null,"","","",null,null,null,null,null,null,""]
[null,null,"","","",null,null,null,null,null,null,""]
[null,null,"","","",null,null,null,null,null,null,""]
[null,null,"","","",null,null,null,null,null,null,""]
[null,null,"","","",null,null,null,null,null,null,""]
[null,null,"","","",null,null,null,null,null,null,""]
[null,null,"","","",null,null,null,null,null,null,""]
[null,null,"","","",null,null,null,null,null,null,""]
[null,null,"","","",null,null,null,null,null,null,""]
[null,null,"","","",null,null,null,null,null,null,""]
[null,null,"","","",null,null,null,null,null,null,""]
[null,null,{"$f":"IF(B2617=\"\",\"\",VLOOKUP(B2617,itemsdata,2,\"false\"))","v":""},{"$f":"IF(B2617=\"\",\"\",VLOOKUP(B2617,itemsdata,5,\"false\"))","v":""},{"$f":"IF(B2617=\"\",\"\",VLOOKUP(B2617,itemsdata,3,\"false\"))","v":""},null,null,null,null,null,null,""]
[null,null,"","","",null,null,null,null,null,null,""]
[null,null,"","","",null,null,null,null,null,null,""]
[null,null,"","","",null,null,null,null,null,null,""]
[null,null,"","","",null,null,null,null,null,null,""]
[null,null,"","","",null,null,null,null,null,null,""]
[null,null,"","","",null,null,null,null,null,null,""]
[null,null,"","","",null,null,null,null,null,null,{"$f":"IF(G2624<>\"\",D2624*G2624,\"\")","v":""}]
[null,null,"","","",null,null,null,null,null,null,""]
[null,null,"","","",null,null,null,null,null,null,""]
[null,null,"","","",null,null,null,null,null,null,""]
[null,null,"","","",null,null,null,null,null,null,""]
[null,null,"","","",null,null,null,null,null,null,""]
[null,null,"","","",null,null,null,null,null,null,""]
[null,null,"","","",null,null,null,null,null,null,""]
[null,null,"","","",null,null,null,null,null,null,""]
[null,null,"","","",null,null,null,null,null,null,""]
[null,null,"","","",null,null,null,null,null,null,""]
[null,null,"","","",null,null,null,null,null,null,""]
[null,null,"","","",null,null,null,null,null,null,""]
[null,null,"","","",null,null,null,null,null,null,""]
[null,null,"","","",null,null,null,null,null,null,""]
[null,null,"","","",null,null,null,null,null,null,""]
[null,null,"","","",null,null,null,null,null,null,""]
[null,null,"","","",null,null,null,null,null,null,""]
[null,null,"","","",null,null,null,null,null,null,""]
[null,null,"","","",null,null,null,null,null,null,""]
[null,null,"","","",null,null,null,null,null,null,""]
[null,null,"","","",null,null,null,null,null,null,""]
[null,null,"","","",null,null,null,null,null,null,""]
[null,null,"","","",null,null,null,null,null,null,""]
[null,null,"","","",null,null,null,null,null,null,""]
[null,null,"","","",null,null,null,null,null,null,""]
[null,null,"","","",null,null,null,null,null,null,""]
[null,null,"","","",null,null,null,null,null,null,""]
[null,null,"","","",null,null,null,null,null,null,""]
[null,null,"","","",null,null,null,null,null,null,""]
[null,null,"","","",null,null,null,null,null,null,""]
[null,null,"","","",null,null,null,null,null,null,""]
[null,null,"","","",null,null,null,null,null,null,""]
[null,null,"","","",null,null,null,null,null,null,""]
[null,null,"","","",null,null,null,null,null,null,""]
[null,null,"","","",null,null,null,null,null,null,""]
[null,null,"","","",null,null,null,null,null,null,""]
[null,null,"","","",null,null,null,null,null,null,""]
[null,null,"","","",null,null,null,null,null,null,""]
[null,null,"","","",null,null,null,null,null,null,""]
[null,null,"","","",null,null,null,null,null,null,""]
[null,null,"","","",null,null,null,null,null,null,""]
[null,null,"","","",null,null,null,null,null,null,""]
[null,null,"","","",null,null,null,null,null,null,""]
[null,null,"","","",null,null,null,null,null,null,""]
[null,null,"","","",null,null,null,null,null,null,""]
[null,null,"","","",null,null,null,null,null,null,""]
[null,null,"","","",null,null,null,null,null,null,""]
[null,null,"","","",null,null,null,null,null,null,""]
[null,null,"","","",null,null,null,null,null,null,""]
[null,null,"","","",null,null,null,null,null,null,""]
[null,null,"","","",null,null,null,null,null,null,""]
[null,null,"","","",null,null,null,null,null,null,""]
[null,null,"","","",null,null,null,null,null,null,""]
[null,null,"","","",null,null,null,null,null,null,""]
[null,null,"","","",null,null,null,null,null,null,""]
[null,null,"","","",null,null,null,null,null,null,""]
[null,null,{"$f":"IF(B2681=\"\",\"\",VLOOKUP(B2681,itemsdata,2,\"false\"))","v":""},{"$f":"IF(B2681=\"\",\"\",VLOOKUP(B2681,itemsdata,5,\"false\"))","v":""},{"$f":"IF(B2681=\"\",\"\",VLOOKUP(B2681,itemsdata,3,\"false\"))","v":""},null,null,null,null,null,null,""]
[null,null,"","","",null,null,null,null,null,null,""]
[null,null,"","","",null,null,null,null,null,null,""]
[null,null,"","","",null,null,null,null,null,null,""]
[null,null,"","","",null,null,null,null,null,null,""]
[null,null,"","","",null,null,null,null,null,null,""]
[null,null,"","","",null,null,null,null,null,null,""]
[null,null,"","","",null,null,null,null,null,null,{"$f":"IF(G2688<>\"\",D2688*G2688,\"\")","v":""}]
[null,null,"","","",null,null,null,null,null,null,""]
[null,null,"","","",null,null,null,null,null,null,""]
[null,null,"","","",null,null,null,null,null,null,""]
[null,null,"","","",null,null,null,null,null,null,""]
[null,null,"","","",null,null,null,null,null,null,""]
[null,null,"","","",null,null,null,null,null,null,""]
[null,null,"","","",null,null,null,null,null,null,""]
[null,null,"","","",null,null,null,null,null,null,""]
[null,null,"","","",null,null,null,null,null,null,""]
[null,null,"","","",null,null,null,null,null,null,""]
[null,null,"","","",null,null,null,null,null,null,""]
[null,null,"","","",null,null,null,null,null,null,""]
[null,null,"","","",null,null,null,null,null,null,""]
[null,null,"","","",null,null,null,null,null,null,""]
[null,null,"","","",null,null,null,null,null,null,""]
[null,null,"","","",null,null,null,null,null,null,""]
[null,null,"","","",null,null,null,null,null,null,""]
[null,null,"","","",null,null,null,null,null,null,""]
[null,null,"","","",null,null,null,null,null,null,""]
[null,null,"","","",null,null,null,null,null,null,""]
[null,null,"","","",null,null,null,null,null,null,""]
[null,null,"","","",null,null,null,null,null,null,""]
[null,null,"","","",null,null,null,null,null,null,""]
[null,null,"","","",null,null,null,null,null,null,""]
[null,null,"","","",null,null,null,null,null,null,""]
[null,null,"","","",null,null,null,null,null,null,""]
[null,null,"","","",null,null,null,null,null,null,""]
[null,null,"","","",null,null,null,null,null,null,""]
[null,null,"","","",null,null,null,null,null,null,""]
[null,null,"","","",null,null,null,null,null,null,""]
[null,null,"","","",null,null,null,null,null,null,""]
[null,null,"","","",null,null,null,null,null,null,""]
[null,null,"","","",null,null,null,null,null,null,""]
[null,null,"","","",null,null,null,null,null,null,""]
[null,null,"","","",null,null,null,null,null,null,""]
[null,null,"","","",null,null,null,null,null,null,""]
[null,null,"","","",null,null,null,null,null,null,""]
[null,null,"","","",null,null,null,null,null,null,""]
[null,null,"","","",null,null,null,null,null,null,""]
[null,null,"","","",null,null,null,null,null,null,""]
[null,null,"","","",null,null,null,null,null,null,""]
[null,null,"","","",null,null,null,null,null,null,""]
[null,null,"","","",null,null,null,null,null,null,""]
[null,null,"","","",null,null,null,null,null,null,""]
[null,null,"","","",null,null,null,null,null,null,""]
[null,null,"","","",null,null,null,null,null,null,""]
[null,null,"","","",null,null,null,null,null,null,""]
[null,null,"","","",null,null,null,null,null,null,""]
[null,null,"","","",null,null,null,null,null,null,""]
[null,null,"","","",null,null,null,null,null,null,""]
[null,null,"","","",null,null,null,null,null,null,""]
[null,null,"","","",null,null,null,null,null,null,""]
[null,null,"","","",null,null,null,null,null,null,""]
[null,null,"","","",null,null,null,null,null,null,""]
[null,null,"","","",null,null,null,null,null,null,""]
[null,null,"","","",null,null,null,null,null,null,""]
[null,null,{"$f":"IF(B2745=\"\",\"\",VLOOKUP(B2745,itemsdata,2,\"false\"))","v":""},{"$f":"IF(B2745=\"\",\"\",VLOOKUP(B2745,itemsdata,5,\"false\"))","v":""},{"$f":"IF(B2745=\"\",\"\",VLOOKUP(B2745,itemsdata,3,\"false\"))","v":""},null,null,null,null,null,null,""]
[null,null,"","","",null,null,null,null,null,null,""]
[null,null,"","","",null,null,null,null,null,null,""]
[null,null,"","","",null,null,null,null,null,null,""]
[null,null,"","","",null,null,null,null,null,null,""]
[null,null,"","","",null,null,null,null,null,null,""]
[null,null,"","","",null,null,null,null,null,null,""]
[null,null,"","","",null,null,null,null,null,null,{"$f":"IF(G2752<>\"\",D2752*G2752,\"\")","v":""}]
[null,null,"","","",null,null,null,null,null,null,""]
[null,null,"","","",null,null,null,null,null,null,""]
[null,null,"","","",null,null,null,null,null,null,""]
[null,null,"","","",null,null,null,null,null,null,""]
[null,null,"","","",null,null,null,null,null,null,""]
[null,null,"","","",null,null,null,null,null,null,""]
[null,null,"","","",null,null,null,null,null,null,""]
[null,null,"","","",null,null,null,null,null,null,""]
[null,null,"","","",null,null,null,null,null,null,""]
[null,null,"","","",null,null,null,null,null,null,""]
[null,null,"","","",null,null,null,null,null,null,""]
[null,null,"","","",null,null,null,null,null,null,""]
[null,null,"","","",null,null,null,null,null,null,""]
[null,null,"","","",null,null,null,null,null,null,""]
[null,null,"","","",null,null,null,null,null,null,""]
[null,null,"","","",null,null,null,null,null,null,""]
[null,null,"","","",null,null,null,null,null,null,""]
[null,null,"","","",null,null,null,null,null,null,""]
[null,null,"","","",null,null,null,null,null,null,""]
[null,null,"","","",null,null,null,null,null,null,""]
[null,null,"","","",null,null,null,null,null,null,""]
[null,null,"","","",null,null,null,null,null,null,""]
[null,null,"","","",null,null,null,null,null,null,""]
[null,null,"","","",null,null,null,null,null,null,""]
[null,null,"","","",null,null,null,null,null,null,""]
[null,null,"","","",null,null,null,null,null,null,""]
[null,null,"","","",null,null,null,null,null,null,""]
[null,null,"","","",null,null,null,null,null,null,""]
[null,null,"","","",null,null,null,null,null,null,""]
[null,null,"","","",null,null,null,null,null,null,""]
[null,null,"","","",null,null,null,null,null,null,""]
[null,null,"","","",null,null,null,null,null,null,""]
[null,null,"","","",null,null,null,null,null,null,""]
[null,null,"","","",null,null,null,null,null,null,""]
[null,null,"","","",null,null,null,null,null,null,""]
[null,null,"","","",null,null,null,null,null,null,""]
[null,null,"","","",null,null,null,null,null,null,""]
[null,null,"","","",null,null,null,null,null,null,""]
[null,null,"","","",null,null,null,null,null,null,""]
[null,null,"","","",null,null,null,null,null,null,""]
[null,null,"","","",null,null,null,null,null,null,""]
[null,null,"","","",null,null,null,null,null,null,""]
[null,null,"","","",null,null,null,null,null,null,""]
[null,null,"","","",null,null,null,null,null,null,""]
[null,null,"","","",null,null,null,null,null,null,""]
[null,null,"","","",null,null,null,null,null,null,""]
[null,null,"","","",null,null,null,null,null,null,""]
[null,null,"","","",null,null,null,null,null,null,""]
[null,null,"","","",null,null,null,null,null,null,""]
[null,null,"","","",null,null,null,null,null,null,""]
[null,null,"","","",null,null,null,null,null,null,""]
[null,null,"","","",null,null,null,null,null,null,""]
[null,null,"","","",null,null,null,null,null,null,""]
[null,null,"","","",null,null,null,null,null,null,""]
[null,null,"","","",null,null,null,null,null,null,""]
[null,null,"","","",null,null,null,null,null,null,""]
[null,null,{"$f":"IF(B2809=\"\",\"\",VLOOKUP(B2809,itemsdata,2,\"false\"))","v":""},{"$f":"IF(B2809=\"\",\"\",VLOOKUP(B2809,itemsdata,5,\"false\"))","v":""},{"$f":"IF(B2809=\"\",\"\",VLOOKUP(B2809,itemsdata,3,\"false\"))","v":""},null,null,null,null,null,null,""]
[null,null,"","","",null,null,null,null,null,null,""]
[null,null,"","","",null,null,null,null,null,null,""]
[null,null,"","","",null,null,null,null,null,null,""]
[null,null,"","","",null,null,null,null,null,null,""]
[null,null,"","","",null,null,null,null,null,null,""]
[null,null,"","","",null,null,null,null,null,null,""]
[null,null,"","","",null,null,null,null,null,null,{"$f":"IF(G2816<>\"\",D2816*G2816,\"\")","v":""}]
[null,null,"","","",null,null,null,null,null,null,""]
[null,null,"","","",null,null,null,null,null,null,""]
[null,null,"","","",null,null,null,null,null,null,""]
[null,null,"","","",null,null,null,null,null,null,""]
[null,null,"","","",null,null,null,null,null,null,""]
[null,null,"","","",null,null,null,null,null,null,""]
[null,null,"","","",null,null,null,null,null,null,""]
[null,null,"","","",null,null,null,null,null,null,""]
[null,null,"","","",null,null,null,null,null,null,""]
[null,null,"","","",null,null,null,null,null,null,""]
[null,null,"","","",null,null,null,null,null,null,""]
[null,null,"","","",null,null,null,null,null,null,""]
[null,null,"","","",null,null,null,null,null,null,""]
[null,null,"","","",null,null,null,null,null,null,""]
[null,null,"","","",null,null,null,null,null,null,""]
[null,null,"","","",null,null,null,null,null,null,""]
[null,null,"","","",null,null,null,null,null,null,""]
[null,null,"","","",null,null,null,null,null,null,""]
[null,null,"","","",null,null,null,null,null,null,""]
[null,null,"","","",null,null,null,null,null,null,""]
[null,null,"","","",null,null,null,null,null,null,""]
[null,null,"","","",null,null,null,null,null,null,""]
[null,null,"","","",null,null,null,null,null,null,""]
[null,null,"","","",null,null,null,null,null,null,""]
[null,null,"","","",null,null,null,null,null,null,""]
[null,null,"","","",null,null,null,null,null,null,""]
[null,null,"","","",null,null,null,null,null,null,""]
[null,null,"","","",null,null,null,null,null,null,""]
[null,null,"","","",null,null,null,null,null,null,""]
[null,null,"","","",null,null,null,null,null,null,""]
[null,null,"","","",null,null,null,null,null,null,""]
[null,null,"","","",null,null,null,null,null,null,""]
[null,null,"","","",null,null,null,null,null,null,""]
[null,null,"","","",null,null,null,null,null,null,""]
[null,null,"","","",null,null,null,null,null,null,""]
[null,null,"","","",null,null,null,null,null,null,""]
[null,null,"","","",null,null,null,null,null,null,""]
[null,null,"","","",null,null,null,null,null,null,""]
[null,null,"","","",null,null,null,null,null,null,""]
[null,null,"","","",null,null,null,null,null,null,""]
[null,null,"","","",null,null,null,null,null,null,""]
[null,null,"","","",null,null,null,null,null,null,""]
[null,null,"","","",null,null,null,null,null,null,""]
[null,null,"","","",null,null,null,null,null,null,""]
[null,null,"","","",null,null,null,null,null,null,""]
[null,null,"","","",null,null,null,null,null,null,""]
[null,null,"","","",null,null,null,null,null,null,""]
[null,null,"","","",null,null,null,null,null,null,""]
[null,null,"","","",null,null,null,null,null,null,""]
[null,null,"","","",null,null,null,null,null,null,""]
[null,null,"","","",null,null,null,null,null,null,""]
[null,null,"","","",null,null,null,null,null,null,""]
[null,null,"","","",null,null,null,null,null,null,""]
[null,null,"","","",null,null,null,null,null,null,""]
[null,null,"","","",null,null,null,null,null,null,""]
[null,null,"","","",null,null,null,null,null,null,""]
[null,null,{"$f":"IF(B2873=\"\",\"\",VLOOKUP(B2873,itemsdata,2,\"false\"))","v":""},{"$f":"IF(B2873=\"\",\"\",VLOOKUP(B2873,itemsdata,5,\"false\"))","v":""},{"$f":"IF(B2873=\"\",\"\",VLOOKUP(B2873,itemsdata,3,\"false\"))","v":""},null,null,null,null,null,null,""]
[null,null,"","","",null,null,null,null,null,null,""]
[null,null,"","","",null,null,null,null,null,null,""]
[null,null,"","","",null,null,null,null,null,null,""]
[null,null,"","","",null,null,null,null,null,null,""]
[null,null,"","","",null,null,null,null,null,null,""]
[null,null,"","","",null,null,null,null,null,null,""]
[null,null,"","","",null,null,null,null,null,null,{"$f":"IF(G2880<>\"\",D2880*G2880,\"\")","v":""}]
[null,null,"","","",null,null,null,null,null,null,""]
[null,null,"","","",null,null,null,null,null,null,""]
[null,null,"","","",null,null,null,null,null,null,""]
[null,null,"","","",null,null,null,null,null,null,""]
[null,null,"","","",null,null,null,null,null,null,""]
[null,null,"","","",null,null,null,null,null,null,""]
[null,null,"","","",null,null,null,null,null,null,""]
[null,null,"","","",null,null,null,null,null,null,""]
[null,null,"","","",null,null,null,null,null,null,""]
[null,null,"","","",null,null,null,null,null,null,""]
[null,null,"","","",null,null,null,null,null,null,""]
[null,null,"","","",null,null,null,null,null,null,""]
[null,null,"","","",null,null,null,null,null,null,""]
[null,null,"","","",null,null,null,null,null,null,""]
[null,null,"","","",null,null,null,null,null,null,""]
[null,null,"","","",null,null,null,null,null,null,""]
[null,null,"","","",null,null,null,null,null,null,""]
[null,null,"","","",null,null,null,null,null,null,""]
[null,null,"","","",null,null,null,null,null,null,""]
[null,null,"","","",null,null,null,null,null,null,""]
[null,null,"","","",null,null,null,null,null,null,""]
[null,null,"","","",null,null,null,null,null,null,""]
[null,null,"","","",null,null,null,null,null,null,""]
[null,null,"","","",null,null,null,null,null,null,""]
[null,null,"","","",null,null,null,null,null,null,""]
[null,null,"","","",null,null,null,null,null,null,""]
[null,null,"","","",null,null,null,null,null,null,""]
[null,null,"","","",null,null,null,null,null,null,""]
[null,null,"","","",null,null,null,null,null,null,""]
[null,null,"","","",null,null,null,null,null,null,""]
[null,null,"","","",null,null,null,null,null,null,""]
[null,null,"","","",null,null,null,null,null,null,""]
[null,null,"","","",null,null,null,null,null,null,""]
[null,null,"","","",null,null,null,null,null,null,""]
[null,null,"","","",null,null,null,null,null,null,""]
[null,null,"","","",null,null,null,null,null,null,""]
[null,null,"","","",null,null,null,null,null,null,""]
[null,null,"","","",null,null,null,null,null,null,""]
[null,null,"","","",null,null,null,null,null,null,""]
[null,null,"","","",null,null,null,null,null,null,""]
[null,null,"","","",null,null,null,null,null,null,""]
[null,null,"","","",null,null,null,null,null,null,""]
[null,null,"","","",null,null,null,null,null,null,""]
[null,null,"","","",null,null,null,null,null,null,""]
[null,null,"","","",null,null,null,null,null,null,""]
[null,null,"","","",null,null,null,null,null,null,""]
[null,null,"","","",null,null,null,null,null,null,""]
[null,null,"","","",null,null,null,null,null,null,""]
[null,null,"","","",null,null,null,null,null,null,""]
[null,null,"","","",null,null,null,null,null,null,""]
[null,null,"","","",null,null,null,null,null,null,""]
[null,null,"","","",null,null,null,null,null,null,""]
[null,null,"","","",null,null,null,null,null,null,""]
[null,null,"","","",null,null,null,null,null,null,""]
[null,null,"","","",null,null,null,null,null,null,""]
[null,null,"","","",null,null,null,null,null,null,""]
[null,null,{"$f":"IF(B2937=\"\",\"\",VLOOKUP(B2937,itemsdata,2,\"false\"))","v":""},{"$f":"IF(B2937=\"\",\"\",VLOOKUP(B2937,itemsdata,5,\"false\"))","v":""},{"$f":"IF(B2937=\"\",\"\",VLOOKUP(B2937,itemsdata,3,\"false\"))","v":""},null,null,null,null,null,null,""]
[null,null,"","","",null,null,null,null,null,null,""]
[null,null,"","","",null,null,null,null,null,null,""]
[null,null,"","","",null,null,null,null,null,null,""]
[null,null,"","","",null,null,null,null,null,null,""]
[null,null,"","","",null,null,null,null,null,null,""]
[null,null,"","","",null,null,null,null,null,null,""]
[null,null,"","","",null,null,null,null,null,null,{"$f":"IF(G2944<>\"\",D2944*G2944,\"\")","v":""}]
[null,null,"","","",null,null,null,null,null,null,""]
[null,null,"","","",null,null,null,null,null,null,""]
[null,null,"","","",null,null,null,null,null,null,""]
[null,null,"","","",null,null,null,null,null,null,""]
[null,null,"","","",null,null,null,null,null,null,""]
[null,null,"","","",null,null,null,null,null,null,""]
[null,null,"","","",null,null,null,null,null,null,""]
[null,null,"","","",null,null,null,null,null,null,""]
[null,null,"","","",null,null,null,null,null,null,""]
[null,null,"","","",null,null,null,null,null,null,""]
[null,null,"","","",null,null,null,null,null,null,""]
[null,null,"","","",null,null,null,null,null,null,""]
[null,null,"","","",null,null,null,null,null,null,""]
[null,null,"","","",null,null,null,null,null,null,""]
[null,null,"","","",null,null,null,null,null,null,""]
[null,null,"","","",null,null,null,null,null,null,""]
[null,null,"","","",null,null,null,null,null,null,""]
[null,null,"","","",null,null,null,null,null,null,""]
[null,null,"","","",null,null,null,null,null,null,""]
[null,null,"","","",null,null,null,null,null,null,""]
[null,null,"","","",null,null,null,null,null,null,""]
[null,null,"","","",null,null,null,null,null,null,""]
[null,null,"","","",null,null,null,null,null,null,""]
[null,null,"","","",null,null,null,null,null,null,""]
[null,null,"","","",null,null,null,null,null,null,""]
[null,null,"","","",null,null,null,null,null,null,""]
[null,null,"","","",null,null,null,null,null,null,""]
[null,null,"","","",null,null,null,null,null,null,""]
[null,null,"","","",null,null,null,null,null,null,""]
[null,null,"","","",null,null,null,null,null,null,""]
[null,null,"","","",null,null,null,null,null,null,""]
[null,null,"","","",null,null,null,null,null,null,""]
[null,null,"","","",null,null,null,null,null,null,""]
[null,null,"","","",null,null,null,null,null,null,""]
[null,null,"","","",null,null,null,null,null,null,""]
[null,null,"","","",null,null,null,null,null,null,""]
[null,null,"","","",null,null,null,null,null,null,""]
[null,null,"","","",null,null,null,null,null,null,""]
[null,null,"","","",null,null,null,null,null,null,""]
[null,null,"","","",null,null,null,null,null,null,""]
[null,null,"","","",null,null,null,null,null,null,""]
[null,null,"","","",null,null,null,null,null,null,""]
[null,null,"","","",null,null,null,null,null,null,""]
[null,null,"","","",null,null,null,null,null,null,""]
[null,null,"","","",null,null,null,null,null,null,""]
[null,null,"","","",null,null,null,null,null,null,""]
[null,null,"","","",null,null,null,null,null,null,""]
[null,null,"","","",null,null,null,null,null,null,""]
[null,null,"","","",null,null,null,null,null,null,""]
[null,null,"","","",null,null,null,null,null,null,""]
[null,null,"","","",null,null,null,null,null,null,""]
[null,null,"","","",null,null,null,null,null,null,""]
[null,null,"","","",null,null,null,null,null,null,""]
[null,null,"","","",null,null,null,null,null,null,""]
[null,null,"","","",null,null,null,null,null,null,""]
[null,null,"","","",null,null,null,null,null,null,""]
[null,null,{"$f":"IF(B3001=\"\",\"\",VLOOKUP(B3001,itemsdata,2,\"false\"))","v":""},{"$f":"IF(B3001=\"\",\"\",VLOOKUP(B3001,itemsdata,5,\"false\"))","v":""},{"$f":"IF(B3001=\"\",\"\",VLOOKUP(B3001,itemsdata,3,\"false\"))","v":""},null,null,null,null,null,null,""]
[null,null,"","","",null,null,null,null,null,null,""]
[null,null,"","","",null,null,null,null,null,null,""]
[null,null,"","","",null,null,null,null,null,null,""]
[null,null,"","","",null,null,null,null,null,null,""]
[null,null,"","","",null,null,null,null,null,null,""]
[null,null,"","","",null,null,null,null,null,null,""]
[null,null,"","","",null,null,null,null,null,null,{"$f":"IF(G3008<>\"\",D3008*G3008,\"\")","v":""}]
[null,null,"","","",null,null,null,null,null,null,""]
[null,null,"","","",null,null,null,null,null,null,""]
[null,null,"","","",null,null,null,null,null,null,""]
[null,null,"","","",null,null,null,null,null,null,""]
[null,null,"","","",null,null,null,null,null,null,""]
[null,null,"","","",null,null,null,null,null,null,""]
[null,null,"","","",null,null,null,null,null,null,""]
[null,null,"","","",null,null,null,null,null,null,""]
[null,null,"","","",null,null,null,null,null,null,""]
[null,null,"","","",null,null,null,null,null,null,""]
[null,null,"","","",null,null,null,null,null,null,""]
[null,null,"","","",null,null,null,null,null,null,""]
[null,null,"","","",null,null,null,null,null,null,""]
[null,null,"","","",null,null,null,null,null,null,""]
[null,null,"","","",null,null,null,null,null,null,""]
[null,null,"","","",null,null,null,null,null,null,""]
[null,null,"","","",null,null,null,null,null,null,""]
[null,null,"","","",null,null,null,null,null,null,""]
[null,null,"","","",null,null,null,null,null,null,""]
[null,null,"","","",null,null,null,null,null,null,""]
[null,null,"","","",null,null,null,null,null,null,""]
[null,null,"","","",null,null,null,null,null,null,""]
[null,null,"","","",null,null,null,null,null,null,""]
[null,null,"","","",null,null,null,null,null,null,""]
[null,null,"","","",null,null,null,null,null,null,""]
[null,null,"","","",null,null,null,null,null,null,""]
[null,null,"","","",null,null,null,null,null,null,""]
[null,null,"","","",null,null,null,null,null,null,""]
[null,null,"","","",null,null,null,null,null,null,""]
[null,null,"","","",null,null,null,null,null,null,""]
[null,null,"","","",null,null,null,null,null,null,""]
[null,null,"","","",null,null,null,null,null,null,""]
[null,null,"","","",null,null,null,null,null,null,""]
[null,null,"","","",null,null,null,null,null,null,""]
[null,null,"","","",null,null,null,null,null,null,""]
[null,null,"","","",null,null,null,null,null,null,""]
[null,null,"","","",null,null,null,null,null,null,""]
[null,null,"","","",null,null,null,null,null,null,""]
[null,null,"","","",null,null,null,null,null,null,""]
[null,null,"","","",null,null,null,null,null,null,""]
[null,null,"","","",null,null,null,null,null,null,""]
[null,null,"","","",null,null,null,null,null,null,""]
[null,null,"","","",null,null,null,null,null,null,""]
[null,null,"","","",null,null,null,null,null,null,""]
[null,null,"","","",null,null,null,null,null,null,""]
[null,null,"","","",null,null,null,null,null,null,""]
[null,null,"","","",null,null,null,null,null,null,""]
[null,null,"","","",null,null,null,null,null,null,""]
[null,null,"","","",null,null,null,null,null,null,""]
[null,null,"","","",null,null,null,null,null,null,""]
[null,null,"","","",null,null,null,null,null,null,""]
[null,null,"","","",null,null,null,null,null,null,""]
[null,null,"","","",null,null,null,null,null,null,""]
[null,null,"","","",null,null,null,null,null,null,""]
[null,null,"","","",null,null,null,null,null,null,""]
[null,null,"","","",null,null,null,null,null,null,""]
[null,null,{"$f":"IF(B3065=\"\",\"\",VLOOKUP(B3065,itemsdata,2,\"false\"))","v":""},{"$f":"IF(B3065=\"\",\"\",VLOOKUP(B3065,itemsdata,5,\"false\"))","v":""},{"$f":"IF(B3065=\"\",\"\",VLOOKUP(B3065,itemsdata,3,\"false\"))","v":""},null,null,null,null,null,null,""]
[null,null,"","","",null,null,null,null,null,null,""]
[null,null,"","","",null,null,null,null,null,null,""]
[null,null,"","","",null,null,null,null,null,null,""]
[null,null,"","","",null,null,null,null,null,null,""]
[null,null,"","","",null,null,null,null,null,null,""]
[null,null,"","","",null,null,null,null,null,null,""]
[null,null,"","","",null,null,null,null,null,null,{"$f":"IF(G3072<>\"\",D3072*G3072,\"\")","v":""}]
[null,null,"","","",null,null,null,null,null,null,""]
[null,null,"","","",null,null,null,null,null,null,""]
[null,null,"","","",null,null,null,null,null,null,""]
[null,null,"","","",null,null,null,null,null,null,""]
[null,null,"","","",null,null,null,null,null,null,""]
[null,null,"","","",null,null,null,null,null,null,""]
[null,null,"","","",null,null,null,null,null,null,""]
[null,null,"","","",null,null,null,null,null,null,""]
[null,null,"","","",null,null,null,null,null,null,""]
[null,null,"","","",null,null,null,null,null,null,""]
[null,null,"","","",null,null,null,null,null,null,""]
[null,null,"","","",null,null,null,null,null,null,""]
[null,null,"","","",null,null,null,null,null,null,""]
[null,null,"","","",null,null,null,null,null,null,""]
[null,null,"","","",null,null,null,null,null,null,""]
[null,null,"","","",null,null,null,null,null,null,""]
[null,null,"","","",null,null,null,null,null,null,""]
[null,null,"","","",null,null,null,null,null,null,""]
[null,null,"","","",null,null,null,null,null,null,""]
[null,null,"","","",null,null,null,null,null,null,""]
[null,null,"","","",null,null,null,null,null,null,""]
[null,null,"","","",null,null,null,null,null,null,""]
[null,null,"","","",null,null,null,null,null,null,""]
[null,null,"","","",null,null,null,null,null,null,""]
[null,null,"","","",null,null,null,null,null,null,""]
[null,null,"","","",null,null,null,null,null,null,""]
[null,null,"","","",null,null,null,null,null,null,""]
[null,null,"","","",null,null,null,null,null,null,""]
[null,null,"","","",null,null,null,null,null,null,""]
[null,null,"","","",null,null,null,null,null,null,""]
[null,null,"","","",null,null,null,null,null,null,""]
[null,null,"","","",null,null,null,null,null,null,""]
[null,null,"","","",null,null,null,null,null,null,""]
[null,null,"","","",null,null,null,null,null,null,""]
[null,null,"","","",null,null,null,null,null,null,""]
[null,null,"","","",null,null,null,null,null,null,""]
[null,null,"","","",null,null,null,null,null,null,""]
[null,null,"","","",null,null,null,null,null,null,""]
[null,null,"","","",null,null,null,null,null,null,""]
[null,null,"","","",null,null,null,null,null,null,""]
[null,null,"","","",null,null,null,null,null,null,""]
[null,null,"","","",null,null,null,null,null,null,""]
[null,null,"","","",null,null,null,null,null,null,""]
[null,null,"","","",null,null,null,null,null,null,""]
[null,null,"","","",null,null,null,null,null,null,""]
[null,null,"","","",null,null,null,null,null,null,""]
[null,null,"","","",null,null,null,null,null,null,""]
[null,null,"","","",null,null,null,null,null,null,""]
[null,null,"","","",null,null,null,null,null,null,""]
[null,null,"","","",null,null,null,null,null,null,""]
[null,null,"","","",null,null,null,null,null,null,""]
[null,null,"","","",null,null,null,null,null,null,""]
[null,null,"","","",null,null,null,null,null,null,""]
[null,null,"","","",null,null,null,null,null,null,""]
[null,null,"","","",null,null,null,null,null,null,""]
[null,null,"","","",null,null,null,null,null,null,""]
[null,null,{"$f":"IF(B3129=\"\",\"\",VLOOKUP(B3129,itemsdata,2,\"false\"))","v":""},{"$f":"IF(B3129=\"\",\"\",VLOOKUP(B3129,itemsdata,5,\"false\"))","v":""},{"$f":"IF(B3129=\"\",\"\",VLOOKUP(B3129,itemsdata,3,\"false\"))","v":""},null,null,null,null,null,null,""]
[null,null,"","","",null,null,null,null,null,null,""]
[null,null,"","","",null,null,null,null,null,null,""]
[null,null,"","","",null,null,null,null,null,null,""]
[null,null,"","","",null,null,null,null,null,null,""]
[null,null,"","","",null,null,null,null,null,null,""]
[null,null,"","","",null,null,null,null,null,null,""]
[null,null,"","","",null,null,null,null,null,null,{"$f":"IF(G3136<>\"\",D3136*G3136,\"\")","v":""}]
[null,null,"","","",null,null,null,null,null,null,""]
[null,null,"","","",null,null,null,null,null,null,""]
[null,null,"","","",null,null,null,null,null,null,""]
[null,null,"","","",null,null,null,null,null,null,""]
[null,null,"","","",null,null,null,null,null,null,""]
[null,null,"","","",null,null,null,null,null,null,""]
[null,null,"","","",null,null,null,null,null,null,""]
[null,null,"","","",null,null,null,null,null,null,""]
[null,null,"","","",null,null,null,null,null,null,""]
[null,null,"","","",null,null,null,null,null,null,""]
[null,null,"","","",null,null,null,null,null,null,""]
[null,null,"","","",null,null,null,null,null,null,""]
[null,null,"","","",null,null,null,null,null,null,""]
[null,null,"","","",null,null,null,null,null,null,""]
[null,null,"","","",null,null,null,null,null,null,""]
[null,null,"","","",null,null,null,null,null,null,""]
[null,null,"","","",null,null,null,null,null,null,""]
[null,null,"","","",null,null,null,null,null,null,""]
[null,null,"","","",null,null,null,null,null,null,""]
[null,null,"","","",null,null,null,null,null,null,""]
[null,null,"","","",null,null,null,null,null,null,""]
[null,null,"","","",null,null,null,null,null,null,""]
[null,null,"","","",null,null,null,null,null,null,""]
[null,null,"","","",null,null,null,null,null,null,""]
[null,null,"","","",null,null,null,null,null,null,""]
[null,null,"","","",null,null,null,null,null,null,""]
[null,null,"","","",null,null,null,null,null,null,""]
[null,null,"","","",null,null,null,null,null,null,""]
[null,null,"","","",null,null,null,null,null,null,""]
[null,null,"","","",null,null,null,null,null,null,""]
[null,null,"","","",null,null,null,null,null,null,""]
[null,null,"","","",null,null,null,null,null,null,""]
[null,null,"","","",null,null,null,null,null,null,""]
[null,null,"","","",null,null,null,null,null,null,""]
[null,null,"","","",null,null,null,null,null,null,""]
[null,null,"","","",null,null,null,null,null,null,""]
[null,null,"","","",null,null,null,null,null,null,""]
[null,null,"","","",null,null,null,null,null,null,""]
[null,null,"","","",null,null,null,null,null,null,""]
[null,null,"","","",null,null,null,null,null,null,""]
[null,null,"","","",null,null,null,null,null,null,""]
[null,null,"","","",null,null,null,null,null,null,""]
[null,null,"","","",null,null,null,null,null,null,""]
[null,null,"","","",null,null,null,null,null,null,""]
[null,null,"","","",null,null,null,null,null,null,""]
[null,null,"","","",null,null,null,null,null,null,""]
[null,null,"","","",null,null,null,null,null,null,""]
[null,null,"","","",null,null,null,null,null,null,""]
[null,null,"","","",null,null,null,null,null,null,""]
[null,null,"","","",null,null,null,null,null,null,""]
[null,null,"","","",null,null,null,null,null,null,""]
[null,null,"","","",null,null,null,null,null,null,""]
[null,null,"","","",null,null,null,null,null,null,""]
[null,null,"","","",null,null,null,null,null,null,""]
[null,null,"","","",null,null,null,null,null,null,""]
[null,null,"","","",null,null,null,null,null,null,""]
[null,null,{"$f":"IF(B3193=\"\",\"\",VLOOKUP(B3193,itemsdata,2,\"false\"))","v":""},{"$f":"IF(B3193=\"\",\"\",VLOOKUP(B3193,itemsdata,5,\"false\"))","v":""},{"$f":"IF(B3193=\"\",\"\",VLOOKUP(B3193,itemsdata,3,\"false\"))","v":""},null,null,null,null,null,null,""]
[null,null,"","","",null,null,null,null,null,null,""]
[null,null,"","","",null,null,null,null,null,null,""]
[null,null,"","","",null,null,null,null,null,null,""]
[null,null,"","","",null,null,null,null,null,null,""]
[null,null,"","","",null,null,null,null,null,null,""]
[null,null,"","","",null,null,null,null,null,null,""]
[null,null,"","","",null,null,null,null,null,null,{"$f":"IF(G3200<>\"\",D3200*G3200,\"\")","v":""}]
[null,null,"","","",null,null,null,null,null,null,""]
[null,null,"","","",null,null,null,null,null,null,""]
[null,null,"","","",null,null,null,null,null,null,""]
[null,null,"","","",null,null,null,null,null,null,""]
[null,null,"","","",null,null,null,null,null,null,""]
[null,null,"","","",null,null,null,null,null,null,""]
[null,null,"","","",null,null,null,null,null,null,""]
[null,null,"","","",null,null,null,null,null,null,""]
[null,null,"","","",null,null,null,null,null,null,""]
[null,null,"","","",null,null,null,null,null,null,""]
[null,null,"","","",null,null,null,null,null,null,""]
[null,null,"","","",null,null,null,null,null,null,""]
[null,null,"","","",null,null,null,null,null,null,""]
[null,null,"","","",null,null,null,null,null,null,""]
[null,null,"","","",null,null,null,null,null,null,""]
[null,null,"","","",null,null,null,null,null,null,""]
[null,null,"","","",null,null,null,null,null,null,""]
[null,null,"","","",null,null,null,null,null,null,""]
[null,null,"","","",null,null,null,null,null,null,""]
[null,null,"","","",null,null,null,null,null,null,""]
[null,null,"","","",null,null,null,null,null,null,""]
[null,null,"","","",null,null,null,null,null,null,""]
[null,null,"","","",null,null,null,null,null,null,""]
[null,null,"","","",null,null,null,null,null,null,""]
[null,null,"","","",null,null,null,null,null,null,""]
[null,null,"","","",null,null,null,null,null,null,""]
[null,null,"","","",null,null,null,null,null,null,""]
[null,null,"","","",null,null,null,null,null,null,""]
[null,null,"","","",null,null,null,null,null,null,""]
[null,null,"","","",null,null,null,null,null,null,""]
[null,null,"","","",null,null,null,null,null,null,""]
[null,null,"","","",null,null,null,null,null,null,""]
[null,null,"","","",null,null,null,null,null,null,""]
[null,null,"","","",null,null,null,null,null,null,""]
[null,null,"","","",null,null,null,null,null,null,""]
[null,null,"","","",null,null,null,null,null,null,""]
[null,null,"","","",null,null,null,null,null,null,""]
[null,null,"","","",null,null,null,null,null,null,""]
[null,null,"","","",null,null,null,null,null,null,""]
[null,null,"","","",null,null,null,null,null,null,""]
[null,null,"","","",null,null,null,null,null,null,""]
[null,null,"","","",null,null,null,null,null,null,""]
[null,null,"","","",null,null,null,null,null,null,""]
[null,null,"","","",null,null,null,null,null,null,""]
[null,null,"","","",null,null,null,null,null,null,""]
[null,null,"","","",null,null,null,null,null,null,""]
[null,null,"","","",null,null,null,null,null,null,""]
[null,null,"","","",null,null,null,null,null,null,""]
[null,null,"","","",null,null,null,null,null,null,""]
[null,null,"","","",null,null,null,null,null,null,""]
[null,null,"","","",null,null,null,null,null,null,""]
[null,null,"","","",null,null,null,null,null,null,""]
[null,null,"","","",null,null,null,null,null,null,""]
[null,null,"","","",null,null,null,null,null,null,""]
[null,null,"","","",null,null,null,null,null,null,""]
[null,null,"","","",null,null,null,null,null,null,""]
[null,null,{"$f":"IF(B3257=\"\",\"\",VLOOKUP(B3257,itemsdata,2,\"false\"))","v":""},{"$f":"IF(B3257=\"\",\"\",VLOOKUP(B3257,itemsdata,5,\"false\"))","v":""},{"$f":"IF(B3257=\"\",\"\",VLOOKUP(B3257,itemsdata,3,\"false\"))","v":""},null,null,null,null,null,null,""]
[null,null,"","","",null,null,null,null,null,null,""]
[null,null,"","","",null,null,null,null,null,null,""]
[null,null,"","","",null,null,null,null,null,null,""]
[null,null,"","","",null,null,null,null,null,null,""]
[null,null,"","","",null,null,null,null,null,null,""]
[null,null,"","","",null,null,null,null,null,null,""]
[null,null,"","","",null,null,null,null,null,null,{"$f":"IF(G3264<>\"\",D3264*G3264,\"\")","v":""}]
[null,null,"","","",null,null,null,null,null,null,""]
[null,null,"","","",null,null,null,null,null,null,""]
[null,null,"","","",null,null,null,null,null,null,""]
[null,null,"","","",null,null,null,null,null,null,""]
[null,null,"","","",null,null,null,null,null,null,""]
[null,null,"","","",null,null,null,null,null,null,""]
[null,null,"","","",null,null,null,null,null,null,""]
[null,null,"","","",null,null,null,null,null,null,""]
[null,null,"","","",null,null,null,null,null,null,""]
[null,null,"","","",null,null,null,null,null,null,""]
[null,null,"","","",null,null,null,null,null,null,""]
[null,null,"","","",null,null,null,null,null,null,""]
[null,null,"","","",null,null,null,null,null,null,""]
[null,null,"","","",null,null,null,null,null,null,""]
[null,null,"","","",null,null,null,null,null,null,""]
[null,null,"","","",null,null,null,null,null,null,""]
[null,null,"","","",null,null,null,null,null,null,""]
[null,null,"","","",null,null,null,null,null,null,""]
[null,null,"","","",null,null,null,null,null,null,""]
[null,null,"","","",null,null,null,null,null,null,""]
[null,null,"","","",null,null,null,null,null,null,""]
[null,null,"","","",null,null,null,null,null,null,""]
[null,null,"","","",null,null,null,null,null,null,""]
[null,null,"","","",null,null,null,null,null,null,""]
[null,null,"","","",null,null,null,null,null,null,""]
[null,null,"","","",null,null,null,null,null,null,""]
[null,null,"","","",null,null,null,null,null,null,""]
[null,null,"","","",null,null,null,null,null,null,""]
[null,null,"","","",null,null,null,null,null,null,""]
[null,null,"","","",null,null,null,null,null,null,""]
[null,null,"","","",null,null,null,null,null,null,""]
[null,null,"","","",null,null,null,null,null,null,""]
[null,null,"","","",null,null,null,null,null,null,""]
[null,null,"","","",null,null,null,null,null,null,""]
[null,null,"","","",null,null,null,null,null,null,""]
[null,null,"","","",null,null,null,null,null,null,""]
[null,null,"","","",null,null,null,null,null,null,""]
[null,null,"","","",null,null,null,null,null,null,""]
[null,null,"","","",null,null,null,null,null,null,""]
[null,null,"","","",null,null,null,null,null,null,""]
[null,null,"","","",null,null,null,null,null,null,""]
[null,null,"","","",null,null,null,null,null,null,""]
[null,null,"","","",null,null,null,null,null,null,""]
[null,null,"","","",null,null,null,null,null,null,""]
[null,null,"","","",null,null,null,null,null,null,""]
[null,null,"","","",null,null,null,null,null,null,""]
[null,null,"","","",null,null,null,null,null,null,""]
[null,null,"","","",null,null,null,null,null,null,""]
[null,null,"","","",null,null,null,null,null,null,""]
[null,null,"","","",null,null,null,null,null,null,""]
[null,null,"","","",null,null,null,null,null,null,""]
[null,null,"","","",null,null,null,null,null,null,""]
[null,null,"","","",null,null,null,null,null,null,""]
[null,null,"","","",null,null,null,null,null,null,""]
[null,null,"","","",null,null,null,null,null,null,""]
[null,null,"","","",null,null,null,null,null,null,""]
[null,null,{"$f":"IF(B3321=\"\",\"\",VLOOKUP(B3321,itemsdata,2,\"false\"))","v":""},{"$f":"IF(B3321=\"\",\"\",VLOOKUP(B3321,itemsdata,5,\"false\"))","v":""},{"$f":"IF(B3321=\"\",\"\",VLOOKUP(B3321,itemsdata,3,\"false\"))","v":""},null,null,null,null,null,null,""]
[null,null,"","","",null,null,null,null,null,null,""]
[null,null,"","","",null,null,null,null,null,null,""]
[null,null,"","","",null,null,null,null,null,null,""]
[null,null,"","","",null,null,null,null,null,null,""]
[null,null,"","","",null,null,null,null,null,null,""]
[null,null,"","","",null,null,null,null,null,null,""]
[null,null,"","","",null,null,null,null,null,null,{"$f":"IF(G3328<>\"\",D3328*G3328,\"\")","v":""}]
[null,null,"","","",null,null,null,null,null,null,""]
[null,null,"","","",null,null,null,null,null,null,""]
[null,null,"","","",null,null,null,null,null,null,""]
[null,null,"","","",null,null,null,null,null,null,""]
[null,null,"","","",null,null,null,null,null,null,""]
[null,null,"","","",null,null,null,null,null,null,""]
[null,null,"","","",null,null,null,null,null,null,""]
[null,null,"","","",null,null,null,null,null,null,""]
[null,null,"","","",null,null,null,null,null,null,""]
[null,null,"","","",null,null,null,null,null,null,""]
[null,null,"","","",null,null,null,null,null,null,""]
[null,null,"","","",null,null,null,null,null,null,""]
[null,null,"","","",null,null,null,null,null,null,""]
[null,null,"","","",null,null,null,null,null,null,""]
[null,null,"","","",null,null,null,null,null,null,""]
[null,null,"","","",null,null,null,null,null,null,""]
[null,null,"","","",null,null,null,null,null,null,""]
[null,null,"","","",null,null,null,null,null,null,""]
[null,null,"","","",null,null,null,null,null,null,""]
[null,null,"","","",null,null,null,null,null,null,""]
[null,null,"","","",null,null,null,null,null,null,""]
[null,null,"","","",null,null,null,null,null,null,""]
[null,null,"","","",null,null,null,null,null,null,""]
[null,null,"","","",null,null,null,null,null,null,""]
[null,null,"","","",null,null,null,null,null,null,""]
[null,null,"","","",null,null,null,null,null,null,""]
[null,null,"","","",null,null,null,null,null,null,""]
[null,null,"","","",null,null,null,null,null,null,""]
[null,null,"","","",null,null,null,null,null,null,""]
[null,null,"","","",null,null,null,null,null,null,""]
[null,null,"","","",null,null,null,null,null,null,""]
[null,null,"","","",null,null,null,null,null,null,""]
[null,null,"","","",null,null,null,null,null,null,""]
[null,null,"","","",null,null,null,null,null,null,""]
[null,null,"","","",null,null,null,null,null,null,""]
[null,null,"","","",null,null,null,null,null,null,""]
[null,null,"","","",null,null,null,null,null,null,""]
[null,null,"","","",null,null,null,null,null,null,""]
[null,null,"","","",null,null,null,null,null,null,""]
[null,null,"","","",null,null,null,null,null,null,""]
[null,null,"","","",null,null,null,null,null,null,""]
[null,null,"","","",null,null,null,null,null,null,""]
[null,null,"","","",null,null,null,null,null,null,""]
[null,null,"","","",null,null,null,null,null,null,""]
[null,null,"","","",null,null,null,null,null,null,""]
[null,null,"","","",null,null,null,null,null,null,""]
[null,null,"","","",null,null,null,null,null,null,""]
[null,null,"","","",null,null,null,null,null,null,""]
[null,null,"","","",null,null,null,null,null,null,""]
[null,null,"","","",null,null,null,null,null,null,""]
[null,null,"","","",null,null,null,null,null,null,""]
[null,null,"","","",null,null,null,null,null,null,""]
[null,null,"","","",null,null,null,null,null,null,""]
[null,null,"","","",null,null,null,null,null,null,""]
[null,null,"","","",null,null,null,null,null,null,""]
[null,null,"","","",null,null,null,null,null,null,""]
[null,null,{"$f":"IF(B3385=\"\",\"\",VLOOKUP(B3385,itemsdata,2,\"false\"))","v":""},{"$f":"IF(B3385=\"\",\"\",VLOOKUP(B3385,itemsdata,5,\"false\"))","v":""},{"$f":"IF(B3385=\"\",\"\",VLOOKUP(B3385,itemsdata,3,\"false\"))","v":""},null,null,null,null,null,null,""]
[null,null,"","","",null,null,null,null,null,null,""]
[null,null,"","","",null,null,null,null,null,null,""]
[null,null,"","","",null,null,null,null,null,null,""]
[null,null,"","","",null,null,null,null,null,null,""]
[null,null,"","","",null,null,null,null,null,null,""]
[null,null,"","","",null,null,null,null,null,null,""]
[null,null,"","","",null,null,null,null,null,null,{"$f":"IF(G3392<>\"\",D3392*G3392,\"\")","v":""}]
[null,null,"","","",null,null,null,null,null,null,""]
[null,null,"","","",null,null,null,null,null,null,""]
[null,null,"","","",null,null,null,null,null,null,""]
[null,null,"","","",null,null,null,null,null,null,""]
[null,null,"","","",null,null,null,null,null,null,""]
[null,null,"","","",null,null,null,null,null,null,""]
[null,null,"","","",null,null,null,null,null,null,""]
[null,null,"","","",null,null,null,null,null,null,""]
[null,null,"","","",null,null,null,null,null,null,""]
[null,null,"","","",null,null,null,null,null,null,""]
[null,null,"","","",null,null,null,null,null,null,""]
[null,null,"","","",null,null,null,null,null,null,""]
[null,null,"","","",null,null,null,null,null,null,""]
[null,null,"","","",null,null,null,null,null,null,""]
[null,null,"","","",null,null,null,null,null,null,""]
[null,null,"","","",null,null,null,null,null,null,""]
[null,null,"","","",null,null,null,null,null,null,""]
[null,null,"","","",null,null,null,null,null,null,""]
[null,null,"","","",null,null,null,null,null,null,""]
[null,null,"","","",null,null,null,null,null,null,""]
[null,null,"","","",null,null,null,null,null,null,""]
[null,null,"","","",null,null,null,null,null,null,""]
[null,null,"","","",null,null,null,null,null,null,""]
[null,null,"","","",null,null,null,null,null,null,""]
[null,null,"","","",null,null,null,null,null,null,""]
[null,null,"","","",null,null,null,null,null,null,""]
[null,null,"","","",null,null,null,null,null,null,""]
[null,null,"","","",null,null,null,null,null,null,""]
[null,null,"","","",null,null,null,null,null,null,""]
[null,null,"","","",null,null,null,null,null,null,""]
[null,null,"","","",null,null,null,null,null,null,""]
[null,null,"","","",null,null,null,null,null,null,""]
[null,null,"","","",null,null,null,null,null,null,""]
[null,null,"","","",null,null,null,null,null,null,""]
[null,null,"","","",null,null,null,null,null,null,""]
[null,null,"","","",null,null,null,null,null,null,""]
[null,null,"","","",null,null,null,null,null,null,""]
[null,null,"","","",null,null,null,null,null,null,""]
[null,null,"","","",null,null,null,null,null,null,""]
[null,null,"","","",null,null,null,null,null,null,""]
[null,null,"","","",null,null,null,null,null,null,""]
[null,null,"","","",null,null,null,null,null,null,""]
[null,null,"","","",null,null,null,null,null,null,""]
[null,null,"","","",null,null,null,null,null,null,""]
[null,null,"","","",null,null,null,null,null,null,""]
[null,null,"","","",null,null,null,null,null,null,""]
[null,null,"","","",null,null,null,null,null,null,""]
[null,null,"","","",null,null,null,null,null,null,""]
[null,null,"","","",null,null,null,null,null,null,""]
[null,null,"","","",null,null,null,null,null,null,""]
[null,null,"","","",null,null,null,null,null,null,""]
[null,null,"","","",null,null,null,null,null,null,""]
[null,null,"","","",null,null,null,null,null,null,""]
[null,null,"","","",null,null,null,null,null,null,""]
[null,null,"","","",null,null,null,null,null,null,""]
[null,null,"","","",null,null,null,null,null,null,""]
[null,null,{"$f":"IF(B3449=\"\",\"\",VLOOKUP(B3449,itemsdata,2,\"false\"))","v":""},{"$f":"IF(B3449=\"\",\"\",VLOOKUP(B3449,itemsdata,5,\"false\"))","v":""},{"$f":"IF(B3449=\"\",\"\",VLOOKUP(B3449,itemsdata,3,\"false\"))","v":""},null,null,null,null,null,null,""]
[null,null,"","","",null,null,null,null,null,null,""]
[null,null,"","","",null,null,null,null,null,null,""]
[null,null,"","","",null,null,null,null,null,null,""]
[null,null,"","","",null,null,null,null,null,null,""]
[null,null,"","","",null,null,null,null,null,null,""]
[null,null,"","","",null,null,null,null,null,null,""]
[null,null,"","","",null,null,null,null,null,null,{"$f":"IF(G3456<>\"\",D3456*G3456,\"\")","v":""}]
[null,null,"","","",null,null,null,null,null,null,""]
[null,null,"","","",null,null,null,null,null,null,""]
[null,null,"","","",null,null,null,null,null,null,""]
[null,null,"","","",null,null,null,null,null,null,""]
[null,null,"","","",null,null,null,null,null,null,""]
[null,null,"","","",null,null,null,null,null,null,""]
[null,null,"","","",null,null,null,null,null,null,""]
[null,null,"","","",null,null,null,null,null,null,""]
[null,null,"","","",null,null,null,null,null,null,""]
[null,null,"","","",null,null,null,null,null,null,""]
[null,null,"","","",null,null,null,null,null,null,""]
[null,null,"","","",null,null,null,null,null,null,""]
[null,null,"","","",null,null,null,null,null,null,""]
[null,null,"","","",null,null,null,null,null,null,""]
[null,null,"","","",null,null,null,null,null,null,""]
[null,null,"","","",null,null,null,null,null,null,""]
[null,null,"","","",null,null,null,null,null,null,""]
[null,null,"","","",null,null,null,null,null,null,""]
[null,null,"","","",null,null,null,null,null,null,""]
[null,null,"","","",null,null,null,null,null,null,""]
[null,null,"","","",null,null,null,null,null,null,""]
[null,null,"","","",null,null,null,null,null,null,""]
[null,null,"","","",null,null,null,null,null,null,""]
[null,null,"","","",null,null,null,null,null,null,""]
[null,null,"","","",null,null,null,null,null,null,""]
[null,null,"","","",null,null,null,null,null,null,""]
[null,null,"","","",null,null,null,null,null,null,""]
[null,null,"","","",null,null,null,null,null,null,""]
[null,null,"","","",null,null,null,null,null,null,""]
[null,null,"","","",null,null,null,null,null,null,""]
[null,null,"","","",null,null,null,null,null,null,""]
[null,null,"","","",null,null,null,null,null,null,""]
[null,null,"","","",null,null,null,null,null,null,""]
[null,null,"","","",null,null,null,null,null,null,""]
[null,null,"","","",null,null,null,null,null,null,""]
[null,null,"","","",null,null,null,null,null,null,""]
[null,null,"","","",null,null,null,null,null,null,""]
[null,null,"","","",null,null,null,null,null,null,""]
[null,null,"","","",null,null,null,null,null,null,""]
[null,null,"","","",null,null,null,null,null,null,""]
[null,null,"","","",null,null,null,null,null,null,""]
[null,null,"","","",null,null,null,null,null,null,""]
[null,null,"","","",null,null,null,null,null,null,""]
[null,null,"","","",null,null,null,null,null,null,""]
[null,null,"","","",null,null,null,null,null,null,""]
[null,null,"","","",null,null,null,null,null,null,""]
[null,null,"","","",null,null,null,null,null,null,""]
[null,null,"","","",null,null,null,null,null,null,""]
[null,null,"","","",null,null,null,null,null,null,""]
[null,null,"","","",null,null,null,null,null,null,""]
[null,null,"","","",null,null,null,null,null,null,""]
[null,null,"","","",null,null,null,null,null,null,""]
[null,null,"","","",null,null,null,null,null,null,""]
[null,null,"","","",null,null,null,null,null,null,""]
[null,null,"","","",null,null,null,null,null,null,""]
[null,null,"","","",null,null,null,null,null,null,""]
[null,null,{"$f":"IF(B3513=\"\",\"\",VLOOKUP(B3513,itemsdata,2,\"false\"))","v":""},{"$f":"IF(B3513=\"\",\"\",VLOOKUP(B3513,itemsdata,5,\"false\"))","v":""},{"$f":"IF(B3513=\"\",\"\",VLOOKUP(B3513,itemsdata,3,\"false\"))","v":""},null,null,null,null,null,null,""]
[null,null,"","","",null,null,null,null,null,null,""]
[null,null,"","","",null,null,null,null,null,null,""]
[null,null,"","","",null,null,null,null,null,null,""]
[null,null,"","","",null,null,null,null,null,null,""]
[null,null,"","","",null,null,null,null,null,null,""]
[null,null,"","","",null,null,null,null,null,null,""]
[null,null,"","","",null,null,null,null,null,null,{"$f":"IF(G3520<>\"\",D3520*G3520,\"\")","v":""}]
[null,null,"","","",null,null,null,null,null,null,""]
[null,null,"","","",null,null,null,null,null,null,""]
[null,null,"","","",null,null,null,null,null,null,""]
[null,null,"","","",null,null,null,null,null,null,""]
[null,null,"","","",null,null,null,null,null,null,""]
[null,null,"","","",null,null,null,null,null,null,""]
[null,null,"","","",null,null,null,null,null,null,""]
[null,null,"","","",null,null,null,null,null,null,""]
[null,null,"","","",null,null,null,null,null,null,""]
[null,null,"","","",null,null,null,null,null,null,""]
[null,null,"","","",null,null,null,null,null,null,""]
[null,null,"","","",null,null,null,null,null,null,""]
[null,null,"","","",null,null,null,null,null,null,""]
[null,null,"","","",null,null,null,null,null,null,""]
[null,null,"","","",null,null,null,null,null,null,""]
[null,null,"","","",null,null,null,null,null,null,""]
[null,null,"","","",null,null,null,null,null,null,""]
[null,null,"","","",null,null,null,null,null,null,""]
[null,null,"","","",null,null,null,null,null,null,""]
[null,null,"","","",null,null,null,null,null,null,""]
[null,null,"","","",null,null,null,null,null,null,""]
[null,null,"","","",null,null,null,null,null,null,""]
[null,null,"","","",null,null,null,null,null,null,""]
[null,null,"","","",null,null,null,null,null,null,""]
[null,null,"","","",null,null,null,null,null,null,""]
[null,null,"","","",null,null,null,null,null,null,""]
[null,null,"","","",null,null,null,null,null,null,""]
[null,null,"","","",null,null,null,null,null,null,""]
[null,null,"","","",null,null,null,null,null,null,""]
[null,null,"","","",null,null,null,null,null,null,""]
[null,null,"","","",null,null,null,null,null,null,""]
[null,null,"","","",null,null,null,null,null,null,""]
[null,null,"","","",null,null,null,null,null,null,""]
[null,null,"","","",null,null,null,null,null,null,""]
[null,null,"","","",null,null,null,null,null,null,""]
[null,null,"","","",null,null,null,null,null,null,""]
[null,null,"","","",null,null,null,null,null,null,""]
[null,null,"","","",null,null,null,null,null,null,""]
[null,null,"","","",null,null,null,null,null,null,""]
[null,null,"","","",null,null,null,null,null,null,""]
[null,null,"","","",null,null,null,null,null,null,""]
[null,null,"","","",null,null,null,null,null,null,""]
[null,null,"","","",null,null,null,null,null,null,""]
[null,null,"","","",null,null,null,null,null,null,""]
[null,null,"","","",null,null,null,null,null,null,""]
[null,null,"","","",null,null,null,null,null,null,""]
[null,null,"","","",null,null,null,null,null,null,""]
[null,null,"","","",null,null,null,null,null,null,""]
[null,null,"","","",null,null,null,null,null,null,""]
[null,null,"","","",null,null,null,null,null,null,""]
[null,null,"","","",null,null,null,null,null,null,""]
[null,null,"","","",null,null,null,null,null,null,""]
[null,null,"","","",null,null,null,null,null,null,""]
[null,null,"","","",null,null,null,null,null,null,""]
[null,null,"","","",null,null,null,null,null,null,""]
[null,null,"","","",null,null,null,null,null,null,""]
[null,null,{"$f":"IF(B3577=\"\",\"\",VLOOKUP(B3577,itemsdata,2,\"false\"))","v":""},{"$f":"IF(B3577=\"\",\"\",VLOOKUP(B3577,itemsdata,5,\"false\"))","v":""},{"$f":"IF(B3577=\"\",\"\",VLOOKUP(B3577,itemsdata,3,\"false\"))","v":""},null,null,null,null,null,null,""]
[null,null,"","","",null,null,null,null,null,null,""]
[null,null,"","","",null,null,null,null,null,null,""]
[null,null,"","","",null,null,null,null,null,null,""]
[null,null,"","","",null,null,null,null,null,null,""]
[null,null,"","","",null,null,null,null,null,null,""]
[null,null,"","","",null,null,null,null,null,null,""]
[null,null,"","","",null,null,null,null,null,null,{"$f":"IF(G3584<>\"\",D3584*G3584,\"\")","v":""}]
[null,null,"","","",null,null,null,null,null,null,""]
[null,null,"","","",null,null,null,null,null,null,""]
[null,null,"","","",null,null,null,null,null,null,""]
[null,null,"","","",null,null,null,null,null,null,""]
[null,null,"","","",null,null,null,null,null,null,""]
[null,null,"","","",null,null,null,null,null,null,""]
[null,null,"","","",null,null,null,null,null,null,""]
[null,null,"","","",null,null,null,null,null,null,""]
[null,null,"","","",null,null,null,null,null,null,""]
[null,null,"","","",null,null,null,null,null,null,""]
[null,null,"","","",null,null,null,null,null,null,""]
[null,null,"","","",null,null,null,null,null,null,""]
[null,null,"","","",null,null,null,null,null,null,""]
[null,null,"","","",null,null,null,null,null,null,""]
[null,null,"","","",null,null,null,null,null,null,""]
[null,null,"","","",null,null,null,null,null,null,""]
[null,null,"","","",null,null,null,null,null,null,""]
[null,null,"","","",null,null,null,null,null,null,""]
[null,null,"","","",null,null,null,null,null,null,""]
[null,null,"","","",null,null,null,null,null,null,""]
[null,null,"","","",null,null,null,null,null,null,""]
[null,null,"","","",null,null,null,null,null,null,""]
[null,null,"","","",null,null,null,null,null,null,""]
[null,null,"","","",null,null,null,null,null,null,""]
[null,null,"","","",null,null,null,null,null,null,""]
[null,null,"","","",null,null,null,null,null,null,""]
[null,null,"","","",null,null,null,null,null,null,""]
[null,null,"","","",null,null,null,null,null,null,""]
[null,null,"","","",null,null,null,null,null,null,""]
[null,null,"","","",null,null,null,null,null,null,""]
[null,null,"","","",null,null,null,null,null,null,""]
[null,null,"","","",null,null,null,null,null,null,""]
[null,null,"","","",null,null,null,null,null,null,""]
[null,null,"","","",null,null,null,null,null,null,""]
[null,null,"","","",null,null,null,null,null,null,""]
[null,null,"","","",null,null,null,null,null,null,""]
[null,null,"","","",null,null,null,null,null,null,""]
[null,null,"","","",null,null,null,null,null,null,""]
[null,null,"","","",null,null,null,null,null,null,""]
[null,null,"","","",null,null,null,null,null,null,""]
[null,null,"","","",null,null,null,null,null,null,""]
[null,null,"","","",null,null,null,null,null,null,""]
[null,null,"","","",null,null,null,null,null,null,""]
[null,null,"","","",null,null,null,null,null,null,""]
[null,null,"","","",null,null,null,null,null,null,""]
[null,null,"","","",null,null,null,null,null,null,""]
[null,null,"","","",null,null,null,null,null,null,""]
[null,null,"","","",null,null,null,null,null,null,""]
[null,null,"","","",null,null,null,null,null,null,""]
[null,null,"","","",null,null,null,null,null,null,""]
[null,null,"","","",null,null,null,null,null,null,""]
[null,null,"","","",null,null,null,null,null,null,""]
[null,null,"","","",null,null,null,null,null,null,""]
[null,null,"","","",null,null,null,null,null,null,""]
[null,null,"","","",null,null,null,null,null,null,""]
[null,null,"","","",null,null,null,null,null,null,""]
[null,null,{"$f":"IF(B3641=\"\",\"\",VLOOKUP(B3641,itemsdata,2,\"false\"))","v":""},{"$f":"IF(B3641=\"\",\"\",VLOOKUP(B3641,itemsdata,5,\"false\"))","v":""},{"$f":"IF(B3641=\"\",\"\",VLOOKUP(B3641,itemsdata,3,\"false\"))","v":""},null,null,null,null,null,null,""]
[null,null,"","","",null,null,null,null,null,null,""]
[null,null,"","","",null,null,null,null,null,null,""]
[null,null,"","","",null,null,null,null,null,null,""]
[null,null,"","","",null,null,null,null,null,null,""]
[null,null,"","","",null,null,null,null,null,null,""]
[null,null,"","","",null,null,null,null,null,null,""]
[null,null,"","","",null,null,null,null,null,null,{"$f":"IF(G3648<>\"\",D3648*G3648,\"\")","v":""}]
[null,null,"","","",null,null,null,null,null,null,""]
[null,null,"","","",null,null,null,null,null,null,""]
[null,null,"","","",null,null,null,null,null,null,""]
[null,null,"","","",null,null,null,null,null,null,""]
[null,null,"","","",null,null,null,null,null,null,""]
[null,null,"","","",null,null,null,null,null,null,""]
[null,null,"","","",null,null,null,null,null,null,""]
[null,null,"","","",null,null,null,null,null,null,""]
[null,null,"","","",null,null,null,null,null,null,""]
[null,null,"","","",null,null,null,null,null,null,""]
[null,null,"","","",null,null,null,null,null,null,""]
[null,null,"","","",null,null,null,null,null,null,""]
[null,null,"","","",null,null,null,null,null,null,""]
[null,null,"","","",null,null,null,null,null,null,""]
[null,null,"","","",null,null,null,null,null,null,""]
[null,null,"","","",null,null,null,null,null,null,""]
[null,null,"","","",null,null,null,null,null,null,""]
[null,null,"","","",null,null,null,null,null,null,""]
[null,null,"","","",null,null,null,null,null,null,""]
[null,null,"","","",null,null,null,null,null,null,""]
[null,null,"","","",null,null,null,null,null,null,""]
[null,null,"","","",null,null,null,null,null,null,""]
[null,null,"","","",null,null,null,null,null,null,""]
[null,null,"","","",null,null,null,null,null,null,""]
[null,null,"","","",null,null,null,null,null,null,""]
[null,null,"","","",null,null,null,null,null,null,""]
[null,null,"","","",null,null,null,null,null,null,""]
[null,null,"","","",null,null,null,null,null,null,""]
[null,null,"","","",null,null,null,null,null,null,""]
[null,null,"","","",null,null,null,null,null,null,""]
[null,null,"","","",null,null,null,null,null,null,""]
[null,null,"","","",null,null,null,null,null,null,""]
[null,null,"","","",null,null,null,null,null,null,""]
[null,null,"","","",null,null,null,null,null,null,""]
[null,null,"","","",null,null,null,null,null,null,""]
[null,null,"","","",null,null,null,null,null,null,""]
[null,null,"","","",null,null,null,null,null,null,""]
[null,null,"","","",null,null,null,null,null,null,""]
[null,null,"","","",null,null,null,null,null,null,""]
[null,null,"","","",null,null,null,null,null,null,""]
[null,null,"","","",null,null,null,null,null,null,""]
[null,null,"","","",null,null,null,null,null,null,""]
[null,null,"","","",null,null,null,null,null,null,""]
[null,null,"","","",null,null,null,null,null,null,""]
[null,null,"","","",null,null,null,null,null,null,""]
[null,null,"","","",null,null,null,null,null,null,""]
[null,null,"","","",null,null,null,null,null,null,""]
[null,null,"","","",null,null,null,null,null,null,""]
[null,null,"","","",null,null,null,null,null,null,""]
[null,null,"","","",null,null,null,null,null,null,""]
[null,null,"","","",null,null,null,null,null,null,""]
[null,null,"","","",null,null,null,null,null,null,""]
[null,null,"","","",null,null,null,null,null,null,""]
[null,null,"","","",null,null,null,null,null,null,""]
[null,null,"","","",null,null,null,null,null,null,""]
[null,null,"","","",null,null,null,null,null,null,""]
[null,null,{"$f":"IF(B3705=\"\",\"\",VLOOKUP(B3705,itemsdata,2,\"false\"))","v":""},{"$f":"IF(B3705=\"\",\"\",VLOOKUP(B3705,itemsdata,5,\"false\"))","v":""},{"$f":"IF(B3705=\"\",\"\",VLOOKUP(B3705,itemsdata,3,\"false\"))","v":""},null,null,null,null,null,null,""]
[null,null,"","","",null,null,null,null,null,null,""]
[null,null,"","","",null,null,null,null,null,null,""]
[null,null,"","","",null,null,null,null,null,null,""]
[null,null,"","","",null,null,null,null,null,null,""]
[null,null,"","","",null,null,null,null,null,null,""]
[null,null,"","","",null,null,null,null,null,null,""]
[null,null,"","","",null,null,null,null,null,null,{"$f":"IF(G3712<>\"\",D3712*G3712,\"\")","v":""}]
[null,null,"","","",null,null,null,null,null,null,""]
[null,null,"","","",null,null,null,null,null,null,""]
[null,null,"","","",null,null,null,null,null,null,""]
[null,null,"","","",null,null,null,null,null,null,""]
[null,null,"","","",null,null,null,null,null,null,""]
[null,null,"","","",null,null,null,null,null,null,""]
[null,null,"","","",null,null,null,null,null,null,""]
[null,null,"","","",null,null,null,null,null,null,""]
[null,null,"","","",null,null,null,null,null,null,""]
[null,null,"","","",null,null,null,null,null,null,""]
[null,null,"","","",null,null,null,null,null,null,""]
[null,null,"","","",null,null,null,null,null,null,""]
[null,null,"","","",null,null,null,null,null,null,""]
[null,null,"","","",null,null,null,null,null,null,""]
[null,null,"","","",null,null,null,null,null,null,""]
[null,null,"","","",null,null,null,null,null,null,""]
[null,null,"","","",null,null,null,null,null,null,""]
[null,null,"","","",null,null,null,null,null,null,""]
[null,null,"","","",null,null,null,null,null,null,""]
[null,null,"","","",null,null,null,null,null,null,""]
[null,null,"","","",null,null,null,null,null,null,""]
[null,null,"","","",null,null,null,null,null,null,""]
[null,null,"","","",null,null,null,null,null,null,""]
[null,null,"","","",null,null,null,null,null,null,""]
[null,null,"","","",null,null,null,null,null,null,""]
[null,null,"","","",null,null,null,null,null,null,""]
[null,null,"","","",null,null,null,null,null,null,""]
[null,null,"","","",null,null,null,null,null,null,""]
[null,null,"","","",null,null,null,null,null,null,""]
[null,null,"","","",null,null,null,null,null,null,""]
[null,null,"","","",null,null,null,null,null,null,""]
[null,null,"","","",null,null,null,null,null,null,""]
[null,null,"","","",null,null,null,null,null,null,""]
[null,null,"","","",null,null,null,null,null,null,""]
[null,null,"","","",null,null,null,null,null,null,""]
[null,null,"","","",null,null,null,null,null,null,""]
[null,null,"","","",null,null,null,null,null,null,""]
[null,null,"","","",null,null,null,null,null,null,""]
[null,null,"","","",null,null,null,null,null,null,""]
[null,null,"","","",null,null,null,null,null,null,""]
[null,null,"","","",null,null,null,null,null,null,""]
[null,null,"","","",null,null,null,null,null,null,""]
[null,null,"","","",null,null,null,null,null,null,""]
[null,null,"","","",null,null,null,null,null,null,""]
[null,null,"","","",null,null,null,null,null,null,""]
[null,null,"","","",null,null,null,null,null,null,""]
[null,null,"","","",null,null,null,null,null,null,""]
[null,null,"","","",null,null,null,null,null,null,""]
[null,null,"","","",null,null,null,null,null,null,""]
[null,null,"","","",null,null,null,null,null,null,""]
[null,null,"","","",null,null,null,null,null,null,""]
[null,null,"","","",null,null,null,null,null,null,""]
[null,null,"","","",null,null,null,null,null,null,""]
[null,null,"","","",null,null,null,null,null,null,""]
[null,null,"","","",null,null,null,null,null,null,""]
[null,null,"","","",null,null,null,null,null,null,""]
[null,null,{"$f":"IF(B3769=\"\",\"\",VLOOKUP(B3769,itemsdata,2,\"false\"))","v":""},{"$f":"IF(B3769=\"\",\"\",VLOOKUP(B3769,itemsdata,5,\"false\"))","v":""},{"$f":"IF(B3769=\"\",\"\",VLOOKUP(B3769,itemsdata,3,\"false\"))","v":""},null,null,null,null,null,null,""]
[null,null,"","","",null,null,null,null,null,null,""]
[null,null,"","","",null,null,null,null,null,null,""]
[null,null,"","","",null,null,null,null,null,null,""]
[null,null,"","","",null,null,null,null,null,null,""]
[null,null,"","","",null,null,null,null,null,null,""]
[null,null,"","","",null,null,null,null,null,null,""]
[null,null,"","","",null,null,null,null,null,null,{"$f":"IF(G3776<>\"\",D3776*G3776,\"\")","v":""}]
[null,null,"","","",null,null,null,null,null,null,""]
[null,null,"","","",null,null,null,null,null,null,""]
[null,null,"","","",null,null,null,null,null,null,""]
[null,null,"","","",null,null,null,null,null,null,""]
[null,null,"","","",null,null,null,null,null,null,""]
[null,null,"","","",null,null,null,null,null,null,""]
[null,null,"","","",null,null,null,null,null,null,""]
[null,null,"","","",null,null,null,null,null,null,""]
[null,null,"","","",null,null,null,null,null,null,""]
[null,null,"","","",null,null,null,null,null,null,""]
[null,null,"","","",null,null,null,null,null,null,""]
[null,null,"","","",null,null,null,null,null,null,""]
[null,null,"","","",null,null,null,null,null,null,""]
[null,null,"","","",null,null,null,null,null,null,""]
[null,null,"","","",null,null,null,null,null,null,""]
[null,null,"","","",null,null,null,null,null,null,""]
[null,null,"","","",null,null,null,null,null,null,""]
[null,null,"","","",null,null,null,null,null,null,""]
[null,null,"","","",null,null,null,null,null,null,""]
[null,null,"","","",null,null,null,null,null,null,""]
[null,null,"","","",null,null,null,null,null,null,""]
[null,null,"","","",null,null,null,null,null,null,""]
[null,null,"","","",null,null,null,null,null,null,""]
[null,null,"","","",null,null,null,null,null,null,""]
[null,null,"","","",null,null,null,null,null,null,""]
[null,null,"","","",null,null,null,null,null,null,""]
[null,null,"","","",null,null,null,null,null,null,""]
[null,null,"","","",null,null,null,null,null,null,""]
[null,null,"","","",null,null,null,null,null,null,""]
[null,null,"","","",null,null,null,null,null,null,""]
[null,null,"","","",null,null,null,null,null,null,""]
[null,null,"","","",null,null,null,null,null,null,""]
[null,null,"","","",null,null,null,null,null,null,""]
[null,null,"","","",null,null,null,null,null,null,""]
[null,null,"","","",null,null,null,null,null,null,""]
[null,null,"","","",null,null,null,null,null,null,""]
[null,null,"","","",null,null,null,null,null,null,""]
[null,null,"","","",null,null,null,null,null,null,""]
[null,null,"","","",null,null,null,null,null,null,""]
[null,null,"","","",null,null,null,null,null,null,""]
[null,null,"","","",null,null,null,null,null,null,""]
[null,null,"","","",null,null,null,null,null,null,""]
[null,null,"","","",null,null,null,null,null,null,""]
[null,null,"","","",null,null,null,null,null,null,""]
[null,null,"","","",null,null,null,null,null,null,""]
[null,null,"","","",null,null,null,null,null,null,""]
[null,null,"","","",null,null,null,null,null,null,""]
[null,null,"","","",null,null,null,null,null,null,""]
[null,null,"","","",null,null,null,null,null,null,""]
[null,null,"","","",null,null,null,null,null,null,""]
[null,null,"","","",null,null,null,null,null,null,""]
[null,null,"","","",null,null,null,null,null,null,""]
[null,null,"","","",null,null,null,null,null,null,""]
[null,null,"","","",null,null,null,null,null,null,""]
[null,null,"","","",null,null,null,null,null,null,""]
[null,null,"","","",null,null,null,null,null,null,""]
[null,null,{"$f":"IF(B3833=\"\",\"\",VLOOKUP(B3833,itemsdata,2,\"false\"))","v":""},{"$f":"IF(B3833=\"\",\"\",VLOOKUP(B3833,itemsdata,5,\"false\"))","v":""},{"$f":"IF(B3833=\"\",\"\",VLOOKUP(B3833,itemsdata,3,\"false\"))","v":""},null,null,null,null,null,null,""]
[null,null,"","","",null,null,null,null,null,null,""]
[null,null,"","","",null,null,null,null,null,null,""]
[null,null,"","","",null,null,null,null,null,null,""]
[null,null,"","","",null,null,null,null,null,null,""]
[null,null,"","","",null,null,null,null,null,null,""]
[null,null,"","","",null,null,null,null,null,null,""]
[null,null,"","","",null,null,null,null,null,null,{"$f":"IF(G3840<>\"\",D3840*G3840,\"\")","v":""}]
[null,null,"","","",null,null,null,null,null,null,""]
[null,null,"","","",null,null,null,null,null,null,""]
[null,null,"","","",null,null,null,null,null,null,""]
[null,null,"","","",null,null,null,null,null,null,""]
[null,null,"","","",null,null,null,null,null,null,""]
[null,null,"","","",null,null,null,null,null,null,""]
[null,null,"","","",null,null,null,null,null,null,""]
[null,null,"","","",null,null,null,null,null,null,""]
[null,null,"","","",null,null,null,null,null,null,""]
[null,null,"","","",null,null,null,null,null,null,""]
[null,null,"","","",null,null,null,null,null,null,""]
[null,null,"","","",null,null,null,null,null,null,""]
[null,null,"","","",null,null,null,null,null,null,""]
[null,null,"","","",null,null,null,null,null,null,""]
[null,null,"","","",null,null,null,null,null,null,""]
[null,null,"","","",null,null,null,null,null,null,""]
[null,null,"","","",null,null,null,null,null,null,""]
[null,null,"","","",null,null,null,null,null,null,""]
[null,null,"","","",null,null,null,null,null,null,""]
[null,null,"","","",null,null,null,null,null,null,""]
[null,null,"","","",null,null,null,null,null,null,""]
[null,null,"","","",null,null,null,null,null,null,""]
[null,null,"","","",null,null,null,null,null,null,""]
[null,null,"","","",null,null,null,null,null,null,""]
[null,null,"","","",null,null,null,null,null,null,""]
[null,null,"","","",null,null,null,null,null,null,""]
[null,null,"","","",null,null,null,null,null,null,""]
[null,null,"","","",null,null,null,null,null,null,""]
[null,null,"","","",null,null,null,null,null,null,""]
[null,null,"","","",null,null,null,null,null,null,""]
[null,null,"","","",null,null,null,null,null,null,""]
[null,null,"","","",null,null,null,null,null,null,""]
[null,null,"","","",null,null,null,null,null,null,""]
[null,null,"","","",null,null,null,null,null,null,""]
[null,null,"","","",null,null,null,null,null,null,""]
[null,null,"","","",null,null,null,null,null,null,""]
[null,null,"","","",null,null,null,null,null,null,""]
[null,null,"","","",null,null,null,null,null,null,""]
[null,null,"","","",null,null,null,null,null,null,""]
[null,null,"","","",null,null,null,null,null,null,""]
[null,null,"","","",null,null,null,null,null,null,""]
[null,null,"","","",null,null,null,null,null,null,""]
[null,null,"","","",null,null,null,null,null,null,""]
[null,null,"","","",null,null,null,null,null,null,""]
[null,null,"","","",null,null,null,null,null,null,""]
[null,null,"","","",null,null,null,null,null,null,""]
[null,null,"","","",null,null,null,null,null,null,""]
[null,null,"","","",null,null,null,null,null,null,""]
[null,null,"","","",null,null,null,null,null,null,""]
[null,null,"","","",null,null,null,null,null,null,""]
[null,null,"","","",null,null,null,null,null,null,""]
[null,null,"","","",null,null,null,null,null,null,""]
[null,null,"","","",null,null,null,null,null,null,""]
[null,null,"","","",null,null,null,null,null,null,""]
[null,null,"","","",null,null,null,null,null,null,""]
[null,null,"","","",null,null,null,null,null,null,""]
[null,null,{"$f":"IF(B3897=\"\",\"\",VLOOKUP(B3897,itemsdata,2,\"false\"))","v":""},{"$f":"IF(B3897=\"\",\"\",VLOOKUP(B3897,itemsdata,5,\"false\"))","v":""},{"$f":"IF(B3897=\"\",\"\",VLOOKUP(B3897,itemsdata,3,\"false\"))","v":""},null,null,null,null,null,null,""]
[null,null,"","","",null,null,null,null,null,null,""]
[null,null,"","","",null,null,null,null,null,null,""]
[null,null,"","","",null,null,null,null,null,null,""]
[null,null,"","","",null,null,null,null,null,null,""]
[null,null,"","","",null,null,null,null,null,null,""]
[null,null,"","","",null,null,null,null,null,null,""]
[null,null,"","","",null,null,null,null,null,null,{"$f":"IF(G3904<>\"\",D3904*G3904,\"\")","v":""}]
[null,null,"","","",null,null,null,null,null,null,""]
[null,null,"","","",null,null,null,null,null,null,""]
[null,null,"","","",null,null,null,null,null,null,""]
[null,null,"","","",null,null,null,null,null,null,""]
[null,null,"","","",null,null,null,null,null,null,""]
[null,null,"","","",null,null,null,null,null,null,""]
[null,null,"","","",null,null,null,null,null,null,""]
[null,null,"","","",null,null,null,null,null,null,""]
[null,null,"","","",null,null,null,null,null,null,""]
[null,null,"","","",null,null,null,null,null,null,""]
[null,null,"","","",null,null,null,null,null,null,""]
[null,null,"","","",null,null,null,null,null,null,""]
[null,null,"","","",null,null,null,null,null,null,""]
[null,null,"","","",null,null,null,null,null,null,""]
[null,null,"","","",null,null,null,null,null,null,""]
[null,null,"","","",null,null,null,null,null,null,""]
[null,null,"","","",null,null,null,null,null,null,""]
[null,null,"","","",null,null,null,null,null,null,""]
[null,null,"","","",null,null,null,null,null,null,""]
[null,null,"","","",null,null,null,null,null,null,""]
[null,null,"","","",null,null,null,null,null,null,""]
[null,null,"","","",null,null,null,null,null,null,""]
[null,null,"","","",null,null,null,null,null,null,""]
[null,null,"","","",null,null,null,null,null,null,""]
[null,null,"","","",null,null,null,null,null,null,""]
[null,null,"","","",null,null,null,null,null,null,""]
[null,null,"","","",null,null,null,null,null,null,""]
[null,null,"","","",null,null,null,null,null,null,""]
[null,null,"","","",null,null,null,null,null,null,""]
[null,null,"","","",null,null,null,null,null,null,""]
[null,null,"","","",null,null,null,null,null,null,""]
[null,null,"","","",null,null,null,null,null,null,""]
[null,null,"","","",null,null,null,null,null,null,""]
[null,null,"","","",null,null,null,null,null,null,""]
[null,null,"","","",null,null,null,null,null,null,""]
[null,null,"","","",null,null,null,null,null,null,""]
[null,null,"","","",null,null,null,null,null,null,""]
[null,null,"","","",null,null,null,null,null,null,""]
[null,null,"","","",null,null,null,null,null,null,""]
[null,null,"","","",null,null,null,null,null,null,""]
[null,null,"","","",null,null,null,null,null,null,""]
[null,null,"","","",null,null,null,null,null,null,""]
[null,null,"","","",null,null,null,null,null,null,""]
[null,null,"","","",null,null,null,null,null,null,""]
[null,null,"","","",null,null,null,null,null,null,""]
[null,null,"","","",null,null,null,null,null,null,""]
[null,null,"","","",null,null,null,null,null,null,""]
[null,null,"","","",null,null,null,null,null,null,""]
[null,null,"","","",null,null,null,null,null,null,""]
[null,null,"","","",null,null,null,null,null,null,""]
[null,null,"","","",null,null,null,null,null,null,""]
[null,null,"","","",null,null,null,null,null,null,""]
[null,null,"","","",null,null,null,null,null,null,""]
[null,null,"","","",null,null,null,null,null,null,""]
[null,null,"","","",null,null,null,null,null,null,""]
[null,null,"","","",null,null,null,null,null,null,""]
[null,null,{"$f":"IF(B3961=\"\",\"\",VLOOKUP(B3961,itemsdata,2,\"false\"))","v":""},{"$f":"IF(B3961=\"\",\"\",VLOOKUP(B3961,itemsdata,5,\"false\"))","v":""},{"$f":"IF(B3961=\"\",\"\",VLOOKUP(B3961,itemsdata,3,\"false\"))","v":""},null,null,null,null,null,null,""]
[null,null,"","","",null,null,null,null,null,null,""]
[null,null,"","","",null,null,null,null,null,null,""]
[null,null,"","","",null,null,null,null,null,null,""]
[null,null,"","","",null,null,null,null,null,null,""]
[null,null,"","","",null,null,null,null,null,null,""]
[null,null,"","","",null,null,null,null,null,null,""]
[null,null,"","","",null,null,null,null,null,null,{"$f":"IF(G3968<>\"\",D3968*G3968,\"\")","v":""}]
[null,null,"","","",null,null,null,null,null,null,""]
[null,null,"","","",null,null,null,null,null,null,""]
[null,null,"","","",null,null,null,null,null,null,""]
[null,null,"","","",null,null,null,null,null,null,""]
[null,null,"","","",null,null,null,null,null,null,""]
[null,null,"","","",null,null,null,null,null,null,""]
[null,null,"","","",null,null,null,null,null,null,""]
[null,null,"","","",null,null,null,null,null,null,""]
[null,null,"","","",null,null,null,null,null,null,""]
[null,null,"","","",null,null,null,null,null,null,""]
[null,null,"","","",null,null,null,null,null,null,""]
[null,null,"","","",null,null,null,null,null,null,""]
[null,null,"","","",null,null,null,null,null,null,""]
[null,null,"","","",null,null,null,null,null,null,""]
[null,null,"","","",null,null,null,null,null,null,""]
[null,null,"","","",null,null,null,null,null,null,""]
[null,null,"","","",null,null,null,null,null,null,""]
[null,null,"","","",null,null,null,null,null,null,""]
[null,null,"","","",null,null,null,null,null,null,""]
[null,null,"","","",null,null,null,null,null,null,""]
[null,null,"","","",null,null,null,null,null,null,""]
[null,null,"","","",null,null,null,null,null,null,""]
[null,null,"","","",null,null,null,null,null,null,""]
[null,null,"","","",null,null,null,null,null,null,""]
[null,null,"","","",null,null,null,null,null,null,""]
[null,null,"","","",null,null,null,null,null,null,""]
[null,null,"","","",null,null,null,null,null,null,""]
[null,null,"","","",null,null,null,null,null,null,""]
[null,null,"","","",null,null,null,null,null,null,""]
[null,null,"","","",null,null,null,null,null,null,""]
[null,null,"","","",null,null,null,null,null,null,""]
[null,null,"","","",null,null,null,null,null,null,""]
[null,null,"","","",null,null,null,null,null,null,""]
[null,null,"","","",null,null,null,null,null,null,""]
[null,null,"","","",null,null,null,null,null,null,""]
[null,null,"","","",null,null,null,null,null,null,""]
[null,null,"","","",null,null,null,null,null,null,""]
[null,null,"","","",null,null,null,null,null,null,""]
[null,null,"","","",null,null,null,null,null,null,""]
[null,null,"","","",null,null,null,null,null,null,""]
[null,null,"","","",null,null,null,null,null,null,""]
[null,null,"","","",null,null,null,null,null,null,""]
[null,null,"","","",null,null,null,null,null,null,""]
[null,null,"","","",null,null,null,null,null,null,""]
[null,null,"","","",null,null,null,null,null,null,""]
[null,null,"","","",null,null,null,null,null,null,""]
[null,null,"","","",null,null,null,null,null,null,""]
[null,null,"","","",null,null,null,null,null,null,""]
[null,null,"","","",null,null,null,null,null,null,""]
[null,null,"","","",null,null,null,null,null,null,""]
[null,null,"","","",null,null,null,null,null,null,""]
[null,null,"","","",null,null,null,null,null,null,""]
[null,null,"","","",null,null,null,null,null,null,""]
[null,null,"","","",null,null,null,null,null,null,""]
[null,null,"","","",null,null,null,null,null,null,""]
[null,null,"","","",null,null,null,null,null,null,""]
[null,null,{"$f":"IF(B4025=\"\",\"\",VLOOKUP(B4025,itemsdata,2,\"false\"))","v":""},{"$f":"IF(B4025=\"\",\"\",VLOOKUP(B4025,itemsdata,5,\"false\"))","v":""},{"$f":"IF(B4025=\"\",\"\",VLOOKUP(B4025,itemsdata,3,\"false\"))","v":""},null,null,null,null,null,null,""]
[null,null,"","","",null,null,null,null,null,null,""]
[null,null,"","","",null,null,null,null,null,null,""]
[null,null,"","","",null,null,null,null,null,null,""]
[null,null,"","","",null,null,null,null,null,null,""]
[null,null,"","","",null,null,null,null,null,null,""]
[null,null,"","","",null,null,null,null,null,null,""]
[null,null,"","","",null,null,null,null,null,null,{"$f":"IF(G4032<>\"\",D4032*G4032,\"\")","v":""}]
[null,null,"","","",null,null,null,null,null,null,""]
[null,null,"","","",null,null,null,null,null,null,""]
[null,null,"","","",null,null,null,null,null,null,""]
[null,null,"","","",null,null,null,null,null,null,""]
[null,null,"","","",null,null,null,null,null,null,""]
[null,null,"","","",null,null,null,null,null,null,""]
[null,null,"","","",null,null,null,null,null,null,""]
[null,null,"","","",null,null,null,null,null,null,""]
[null,null,"","","",null,null,null,null,null,null,""]
[null,null,"","","",null,null,null,null,null,null,""]
[null,null,"","","",null,null,null,null,null,null,""]
[null,null,"","","",null,null,null,null,null,null,""]
[null,null,"","","",null,null,null,null,null,null,""]
[null,null,"","","",null,null,null,null,null,null,""]
[null,null,"","","",null,null,null,null,null,null,""]
[null,null,"","","",null,null,null,null,null,null,""]
[null,null,"","","",null,null,null,null,null,null,""]
[null,null,"","","",null,null,null,null,null,null,""]
[null,null,"","","",null,null,null,null,null,null,""]
[null,null,"","","",null,null,null,null,null,null,""]
[null,null,"","","",null,null,null,null,null,null,""]
[null,null,"","","",null,null,null,null,null,null,""]
[null,null,"","","",null,null,null,null,null,null,""]
[null,null,"","","",null,null,null,null,null,null,""]
[null,null,"","","",null,null,null,null,null,null,""]
[null,null,"","","",null,null,null,null,null,null,""]
[null,null,"","","",null,null,null,null,null,null,""]
[null,null,"","","",null,null,null,null,null,null,""]
[null,null,"","","",null,null,null,null,null,null,""]
[null,null,"","","",null,null,null,null,null,null,""]
[null,null,"","","",null,null,null,null,null,null,""]
[null,null,"","","",null,null,null,null,null,null,""]
[null,null,"","","",null,null,null,null,null,null,""]
[null,null,"","","",null,null,null,null,null,null,""]
[null,null,"","","",null,null,null,null,null,null,""]
[null,null,"","","",null,null,null,null,null,null,""]
[null,null,"","","",null,null,null,null,null,null,""]
[null,null,"","","",null,null,null,null,null,null,""]
[null,null,"","","",null,null,null,null,null,null,""]
[null,null,"","","",null,null,null,null,null,null,""]
[null,null,"","","",null,null,null,null,null,null,""]
[null,null,"","","",null,null,null,null,null,null,""]
[null,null,"","","",null,null,null,null,null,null,""]
[null,null,"","","",null,null,null,null,null,null,""]
[null,null,"","","",null,null,null,null,null,null,""]
[null,null,"","","",null,null,null,null,null,null,""]
[null,null,"","","",null,null,null,null,null,null,""]
[null,null,"","","",null,null,null,null,null,null,""]
[null,null,"","","",null,null,null,null,null,null,""]
[null,null,"","","",null,null,null,null,null,null,""]
[null,null,"","","",null,null,null,null,null,null,""]
[null,null,"","","",null,null,null,null,null,null,""]
[null,null,"","","",null,null,null,null,null,null,""]
[null,null,"","","",null,null,null,null,null,null,""]
[null,null,"","","",null,null,null,null,null,null,""]
[null,null,"","","",null,null,null,null,null,null,""]
[null,null,{"$f":"IF(B4089=\"\",\"\",VLOOKUP(B4089,itemsdata,2,\"false\"))","v":""},{"$f":"IF(B4089=\"\",\"\",VLOOKUP(B4089,itemsdata,5,\"false\"))","v":""},{"$f":"IF(B4089=\"\",\"\",VLOOKUP(B4089,itemsdata,3,\"false\"))","v":""},null,null,null,null,null,null,""]
[null,null,"","","",null,null,null,null,null,null,""]
[null,null,"","","",null,null,null,null,null,null,""]
[null,null,"","","",null,null,null,null,null,null,""]
[null,null,"","","",null,null,null,null,null,null,""]
[null,null,"","","",null,null,null,null,null,null,""]
[null,null,"","","",null,null,null,null,null,null,""]
[null,null,"","","",null,null,null,null,null,null,{"$f":"IF(G4096<>\"\",D4096*G4096,\"\")","v":""}]
[null,null,"","","",null,null,null,null,null,null,""]
[null,null,"","","",null,null,null,null,null,null,""]
[null,null,"","","",null,null,null,null,null,null,""]
[null,null,"","","",null,null,null,null,null,null,""]
[null,null,"","","",null,null,null,null,null,null,""]
[null,null,"","","",null,null,null,null,null,null,""]
[null,null,"","","",null,null,null,null,null,null,""]
[null,null,"","","",null,null,null,null,null,null,""]
[null,null,"","","",null,null,null,null,null,null,""]
[null,null,"","","",null,null,null,null,null,null,""]
[null,null,"","","",null,null,null,null,null,null,""]
[null,null,"","","",null,null,null,null,null,null,""]
[null,null,"","","",null,null,null,null,null,null,""]
[null,null,"","","",null,null,null,null,null,null,""]
[null,null,"","","",null,null,null,null,null,null,""]
[null,null,"","","",null,null,null,null,null,null,""]
[null,null,"","","",null,null,null,null,null,null,""]
[null,null,"","","",null,null,null,null,null,null,""]
[null,null,"","","",null,null,null,null,null,null,""]
[null,null,"","","",null,null,null,null,null,null,""]
[null,null,"","","",null,null,null,null,null,null,""]
[null,null,"","","",null,null,null,null,null,null,""]
[null,null,"","","",null,null,null,null,null,null,""]
[null,null,"","","",null,null,null,null,null,null,""]
[null,null,"","","",null,null,null,null,null,null,""]
[null,null,"","","",null,null,null,null,null,null,""]
[null,null,"","","",null,null,null,null,null,null,""]
[null,null,"","","",null,null,null,null,null,null,""]
[null,null,"","","",null,null,null,null,null,null,""]
[null,null,"","","",null,null,null,null,null,null,""]
[null,null,"","","",null,null,null,null,null,null,""]
[null,null,"","","",null,null,null,null,null,null,""]
[null,null,"","","",null,null,null,null,null,null,""]
[null,null,"","","",null,null,null,null,null,null,""]
[null,null,"","","",null,null,null,null,null,null,""]
[null,null,"","","",null,null,null,null,null,null,""]
[null,null,"","","",null,null,null,null,null,null,""]
[null,null,"","","",null,null,null,null,null,null,""]
[null,null,"","","",null,null,null,null,null,null,""]
[null,null,"","","",null,null,null,null,null,null,""]
[null,null,"","","",null,null,null,null,null,null,""]
[null,null,"","","",null,null,null,null,null,null,""]
[null,null,"","","",null,null,null,null,null,null,""]
[null,null,"","","",null,null,null,null,null,null,""]
[null,null,"","","",null,null,null,null,null,null,""]
[null,null,"","","",null,null,null,null,null,null,""]
[null,null,"","","",null,null,null,null,null,null,""]
[null,null,"","","",null,null,null,null,null,null,""]
[null,null,"","","",null,null,null,null,null,null,""]
[null,null,"","","",null,null,null,null,null,null,""]
[null,null,"","","",null,null,null,null,null,null,""]
[null,null,"","","",null,null,null,null,null,null,""]
[null,null,"","","",null,null,null,null,null,null,""]
[null,null,"","","",null,null,null,null,null,null,""]
[null,null,"","","",null,null,null,null,null,null,""]
[null,null,"","","",null,null,null,null,null,null,""]
[null,null,{"$f":"IF(B4153=\"\",\"\",VLOOKUP(B4153,itemsdata,2,\"false\"))","v":""},{"$f":"IF(B4153=\"\",\"\",VLOOKUP(B4153,itemsdata,5,\"false\"))","v":""},{"$f":"IF(B4153=\"\",\"\",VLOOKUP(B4153,itemsdata,3,\"false\"))","v":""},null,null,null,null,null,null,""]
[null,null,"","","",null,null,null,null,null,null,""]
[null,null,"","","",null,null,null,null,null,null,""]
[null,null,"","","",null,null,null,null,null,null,""]
[null,null,"","","",null,null,null,null,null,null,""]
[null,null,"","","",null,null,null,null,null,null,""]
[null,null,"","","",null,null,null,null,null,null,""]
[null,null,"","","",null,null,null,null,null,null,{"$f":"IF(G4160<>\"\",D4160*G4160,\"\")","v":""}]
[null,null,"","","",null,null,null,null,null,null,""]
[null,null,"","","",null,null,null,null,null,null,""]
[null,null,"","","",null,null,null,null,null,null,""]
[null,null,"","","",null,null,null,null,null,null,""]
[null,null,"","","",null,null,null,null,null,null,""]
[null,null,"","","",null,null,null,null,null,null,""]
[null,null,"","","",null,null,null,null,null,null,""]
[null,null,"","","",null,null,null,null,null,null,""]
[null,null,"","","",null,null,null,null,null,null,""]
[null,null,"","","",null,null,null,null,null,null,""]
[null,null,"","","",null,null,null,null,null,null,""]
[null,null,"","","",null,null,null,null,null,null,""]
[null,null,"","","",null,null,null,null,null,null,""]
[null,null,"","","",null,null,null,null,null,null,""]
[null,null,"","","",null,null,null,null,null,null,""]
[null,null,"","","",null,null,null,null,null,null,""]
[null,null,"","","",null,null,null,null,null,null,""]
[null,null,"","","",null,null,null,null,null,null,""]
[null,null,"","","",null,null,null,null,null,null,""]
[null,null,"","","",null,null,null,null,null,null,""]
[null,null,"","","",null,null,null,null,null,null,""]
[null,null,"","","",null,null,null,null,null,null,""]
[null,null,"","","",null,null,null,null,null,null,""]
[null,null,"","","",null,null,null,null,null,null,""]
[null,null,"","","",null,null,null,null,null,null,""]
[null,null,"","","",null,null,null,null,null,null,""]
[null,null,"","","",null,null,null,null,null,null,""]
[null,null,"","","",null,null,null,null,null,null,""]
[null,null,"","","",null,null,null,null,null,null,""]
[null,null,"","","",null,null,null,null,null,null,""]
[null,null,"","","",null,null,null,null,null,null,""]
[null,null,"","","",null,null,null,null,null,null,""]
[null,null,"","","",null,null,null,null,null,null,""]
[null,null,"","","",null,null,null,null,null,null,""]
[null,null,"","","",null,null,null,null,null,null,""]
[null,null,"","","",null,null,null,null,null,null,""]
[null,null,"","","",null,null,null,null,null,null,""]
[null,null,"","","",null,null,null,null,null,null,""]
[null,null,"","","",null,null,null,null,null,null,""]
[null,null,"","","",null,null,null,null,null,null,""]
[null,null,"","","",null,null,null,null,null,null,""]
[null,null,"","","",null,null,null,null,null,null,""]
[null,null,"","","",null,null,null,null,null,null,""]
[null,null,"","","",null,null,null,null,null,null,""]
[null,null,"","","",null,null,null,null,null,null,""]
[null,null,"","","",null,null,null,null,null,null,""]
[null,null,"","","",null,null,null,null,null,null,""]
[null,null,"","","",null,null,null,null,null,null,""]
[null,null,"","","",null,null,null,null,null,null,""]
[null,null,"","","",null,null,null,null,null,null,""]
[null,null,"","","",null,null,null,null,null,null,""]
[null,null,"","","",null,null,null,null,null,null,""]
[null,null,"","","",null,null,null,null,null,null,""]
[null,null,"","","",null,null,null,null,null,null,""]
[null,null,"","","",null,null,null,null,null,null,""]
[null,null,"","","",null,null,null,null,null,null,""]
[null,null,{"$f":"IF(B4217=\"\",\"\",VLOOKUP(B4217,itemsdata,2,\"false\"))","v":""},{"$f":"IF(B4217=\"\",\"\",VLOOKUP(B4217,itemsdata,5,\"false\"))","v":""},{"$f":"IF(B4217=\"\",\"\",VLOOKUP(B4217,itemsdata,3,\"false\"))","v":""},null,null,null,null,null,null,""]
[null,null,"","","",null,null,null,null,null,null,""]
[null,null,"","","",null,null,null,null,null,null,""]
[null,null,"","","",null,null,null,null,null,null,""]
[null,null,"","","",null,null,null,null,null,null,""]
[null,null,"","","",null,null,null,null,null,null,""]
[null,null,"","","",null,null,null,null,null,null,""]
[null,null,"","","",null,null,null,null,null,null,{"$f":"IF(G4224<>\"\",D4224*G4224,\"\")","v":""}]
[null,null,"","","",null,null,null,null,null,null,""]
[null,null,"","","",null,null,null,null,null,null,""]
[null,null,"","","",null,null,null,null,null,null,""]
[null,null,"","","",null,null,null,null,null,null,""]
[null,null,"","","",null,null,null,null,null,null,""]
[null,null,"","","",null,null,null,null,null,null,""]
[null,null,"","","",null,null,null,null,null,null,""]
[null,null,"","","",null,null,null,null,null,null,""]
[null,null,"","","",null,null,null,null,null,null,""]
[null,null,"","","",null,null,null,null,null,null,""]
[null,null,"","","",null,null,null,null,null,null,""]
[null,null,"","","",null,null,null,null,null,null,""]
[null,null,"","","",null,null,null,null,null,null,""]
[null,null,"","","",null,null,null,null,null,null,""]
[null,null,"","","",null,null,null,null,null,null,""]
[null,null,"","","",null,null,null,null,null,null,""]
[null,null,"","","",null,null,null,null,null,null,""]
[null,null,"","","",null,null,null,null,null,null,""]
[null,null,"","","",null,null,null,null,null,null,""]
[null,null,"","","",null,null,null,null,null,null,""]
[null,null,"","","",null,null,null,null,null,null,""]
[null,null,"","","",null,null,null,null,null,null,""]
[null,null,"","","",null,null,null,null,null,null,""]
[null,null,"","","",null,null,null,null,null,null,""]
[null,null,"","","",null,null,null,null,null,null,""]
[null,null,"","","",null,null,null,null,null,null,""]
[null,null,"","","",null,null,null,null,null,null,""]
[null,null,"","","",null,null,null,null,null,null,""]
[null,null,"","","",null,null,null,null,null,null,""]
[null,null,"","","",null,null,null,null,null,null,""]
[null,null,"","","",null,null,null,null,null,null,""]
[null,null,"","","",null,null,null,null,null,null,""]
[null,null,"","","",null,null,null,null,null,null,""]
[null,null,"","","",null,null,null,null,null,null,""]
[null,null,"","","",null,null,null,null,null,null,""]
[null,null,"","","",null,null,null,null,null,null,""]
[null,null,"","","",null,null,null,null,null,null,""]
[null,null,"","","",null,null,null,null,null,null,""]
[null,null,"","","",null,null,null,null,null,null,""]
[null,null,"","","",null,null,null,null,null,null,""]
[null,null,"","","",null,null,null,null,null,null,""]
[null,null,"","","",null,null,null,null,null,null,""]
[null,null,"","","",null,null,null,null,null,null,""]
[null,null,"","","",null,null,null,null,null,null,""]
[null,null,"","","",null,null,null,null,null,null,""]
[null,null,"","","",null,null,null,null,null,null,""]
[null,null,"","","",null,null,null,null,null,null,""]
[null,null,"","","",null,null,null,null,null,null,""]
[null,null,"","","",null,null,null,null,null,null,""]
[null,null,"","","",null,null,null,null,null,null,""]
[null,null,"","","",null,null,null,null,null,null,""]
[null,null,"","","",null,null,null,null,null,null,""]
[null,null,"","","",null,null,null,null,null,null,""]
[null,null,"","","",null,null,null,null,null,null,""]
[null,null,"","","",null,null,null,null,null,null,""]
[null,null,"","","",null,null,null,null,null,null,""]
[null,null,{"$f":"IF(B4281=\"\",\"\",VLOOKUP(B4281,itemsdata,2,\"false\"))","v":""},{"$f":"IF(B4281=\"\",\"\",VLOOKUP(B4281,itemsdata,5,\"false\"))","v":""},{"$f":"IF(B4281=\"\",\"\",VLOOKUP(B4281,itemsdata,3,\"false\"))","v":""},null,null,null,null,null,null,""]
[null,null,"","","",null,null,null,null,null,null,""]
[null,null,"","","",null,null,null,null,null,null,""]
[null,null,"","","",null,null,null,null,null,null,""]
[null,null,"","","",null,null,null,null,null,null,""]
[null,null,"","","",null,null,null,null,null,null,""]
[null,null,"","","",null,null,null,null,null,null,""]
[null,null,"","","",null,null,null,null,null,null,{"$f":"IF(G4288<>\"\",D4288*G4288,\"\")","v":""}]
[null,null,"","","",null,null,null,null,null,null,""]
[null,null,"","","",null,null,null,null,null,null,""]
[null,null,"","","",null,null,null,null,null,null,""]
[null,null,"","","",null,null,null,null,null,null,""]
[null,null,"","","",null,null,null,null,null,null,""]
[null,null,"","","",null,null,null,null,null,null,""]
[null,null,"","","",null,null,null,null,null,null,""]
[null,null,"","","",null,null,null,null,null,null,""]
[null,null,"","","",null,null,null,null,null,null,""]
[null,null,"","","",null,null,null,null,null,null,""]
[null,null,"","","",null,null,null,null,null,null,""]
[null,null,"","","",null,null,null,null,null,null,""]
[null,null,"","","",null,null,null,null,null,null,""]
[null,null,"","","",null,null,null,null,null,null,""]
[null,null,"","","",null,null,null,null,null,null,""]
[null,null,"","","",null,null,null,null,null,null,""]
[null,null,"","","",null,null,null,null,null,null,""]
[null,null,"","","",null,null,null,null,null,null,""]
[null,null,"","","",null,null,null,null,null,null,""]
[null,null,"","","",null,null,null,null,null,null,""]
[null,null,"","","",null,null,null,null,null,null,""]
[null,null,"","","",null,null,null,null,null,null,""]
[null,null,"","","",null,null,null,null,null,null,""]
[null,null,"","","",null,null,null,null,null,null,""]
[null,null,"","","",null,null,null,null,null,null,""]
[null,null,"","","",null,null,null,null,null,null,""]
[null,null,"","","",null,null,null,null,null,null,""]
[null,null,"","","",null,null,null,null,null,null,""]
[null,null,"","","",null,null,null,null,null,null,""]
[null,null,"","","",null,null,null,null,null,null,""]
[null,null,"","","",null,null,null,null,null,null,""]
[null,null,"","","",null,null,null,null,null,null,""]
[null,null,"","","",null,null,null,null,null,null,""]
[null,null,"","","",null,null,null,null,null,null,""]
[null,null,"","","",null,null,null,null,null,null,""]
[null,null,"","","",null,null,null,null,null,null,""]
[null,null,"","","",null,null,null,null,null,null,""]
[null,null,"","","",null,null,null,null,null,null,""]
[null,null,"","","",null,null,null,null,null,null,""]
[null,null,"","","",null,null,null,null,null,null,""]
[null,null,"","","",null,null,null,null,null,null,""]
[null,null,"","","",null,null,null,null,null,null,""]
[null,null,"","","",null,null,null,null,null,null,""]
[null,null,"","","",null,null,null,null,null,null,""]
[null,null,"","","",null,null,null,null,null,null,""]
[null,null,"","","",null,null,null,null,null,null,""]
[null,null,"","","",null,null,null,null,null,null,""]
[null,null,"","","",null,null,null,null,null,null,""]
[null,null,"","","",null,null,null,null,null,null,""]
[null,null,"","","",null,null,null,null,null,null,""]
[null,null,"","","",null,null,null,null,null,null,""]
[null,null,"","","",null,null,null,null,null,null,""]
[null,null,"","","",null,null,null,null,null,null,""]
[null,null,"","","",null,null,null,null,null,null,""]
[null,null,"","","",null,null,null,null,null,null,""]
[null,null,"","","",null,null,null,null,null,null,""]
[null,null,{"$f":"IF(B4345=\"\",\"\",VLOOKUP(B4345,itemsdata,2,\"false\"))","v":""},{"$f":"IF(B4345=\"\",\"\",VLOOKUP(B4345,itemsdata,5,\"false\"))","v":""},{"$f":"IF(B4345=\"\",\"\",VLOOKUP(B4345,itemsdata,3,\"false\"))","v":""},null,null,null,null,null,null,""]
[null,null,"","","",null,null,null,null,null,null,""]
[null,null,"","","",null,null,null,null,null,null,""]
[null,null,"","","",null,null,null,null,null,null,""]
[null,null,"","","",null,null,null,null,null,null,""]
[null,null,"","","",null,null,null,null,null,null,""]
[null,null,"","","",null,null,null,null,null,null,""]
[null,null,"","","",null,null,null,null,null,null,{"$f":"IF(G4352<>\"\",D4352*G4352,\"\")","v":""}]
[null,null,"","","",null,null,null,null,null,null,""]
[null,null,"","","",null,null,null,null,null,null,""]
[null,null,"","","",null,null,null,null,null,null,""]
[null,null,"","","",null,null,null,null,null,null,""]
[null,null,"","","",null,null,null,null,null,null,""]
[null,null,"","","",null,null,null,null,null,null,""]
[null,null,"","","",null,null,null,null,null,null,""]
[null,null,"","","",null,null,null,null,null,null,""]
[null,null,"","","",null,null,null,null,null,null,""]
[null,null,"","","",null,null,null,null,null,null,""]
[null,null,"","","",null,null,null,null,null,null,""]
[null,null,"","","",null,null,null,null,null,null,""]
[null,null,"","","",null,null,null,null,null,null,""]
[null,null,"","","",null,null,null,null,null,null,""]
[null,null,"","","",null,null,null,null,null,null,""]
[null,null,"","","",null,null,null,null,null,null,""]
[null,null,"","","",null,null,null,null,null,null,""]
[null,null,"","","",null,null,null,null,null,null,""]
[null,null,"","","",null,null,null,null,null,null,""]
[null,null,"","","",null,null,null,null,null,null,""]
[null,null,"","","",null,null,null,null,null,null,""]
[null,null,"","","",null,null,null,null,null,null,""]
[null,null,"","","",null,null,null,null,null,null,""]
[null,null,"","","",null,null,null,null,null,null,""]
[null,null,"","","",null,null,null,null,null,null,""]
[null,null,"","","",null,null,null,null,null,null,""]
[null,null,"","","",null,null,null,null,null,null,""]
[null,null,"","","",null,null,null,null,null,null,""]
[null,null,"","","",null,null,null,null,null,null,""]
[null,null,"","","",null,null,null,null,null,null,""]
[null,null,"","","",null,null,null,null,null,null,""]
[null,null,"","","",null,null,null,null,null,null,""]
[null,null,"","","",null,null,null,null,null,null,""]
[null,null,"","","",null,null,null,null,null,null,""]
[null,null,"","","",null,null,null,null,null,null,""]
[null,null,"","","",null,null,null,null,null,null,""]
[null,null,"","","",null,null,null,null,null,null,""]
[null,null,"","","",null,null,null,null,null,null,""]
[null,null,"","","",null,null,null,null,null,null,""]
[null,null,"","","",null,null,null,null,null,null,""]
[null,null,"","","",null,null,null,null,null,null,""]
[null,null,"","","",null,null,null,null,null,null,""]
[null,null,"","","",null,null,null,null,null,null,""]
[null,null,"","","",null,null,null,null,null,null,""]
[null,null,"","","",null,null,null,null,null,null,""]
[null,null,"","","",null,null,null,null,null,null,""]
[null,null,"","","",null,null,null,null,null,null,""]
[null,null,"","","",null,null,null,null,null,null,""]
[null,null,"","","",null,null,null,null,null,null,""]
[null,null,"","","",null,null,null,null,null,null,""]
[null,null,"","","",null,null,null,null,null,null,""]
[null,null,"","","",null,null,null,null,null,null,""]
[null,null,"","","",null,null,null,null,null,null,""]
[null,null,"","","",null,null,null,null,null,null,""]
[null,null,"","","",null,null,null,null,null,null,""]
[null,null,"","","",null,null,null,null,null,null,""]
[null,null,{"$f":"IF(B4409=\"\",\"\",VLOOKUP(B4409,itemsdata,2,\"false\"))","v":""},{"$f":"IF(B4409=\"\",\"\",VLOOKUP(B4409,itemsdata,5,\"false\"))","v":""},{"$f":"IF(B4409=\"\",\"\",VLOOKUP(B4409,itemsdata,3,\"false\"))","v":""},null,null,null,null,null,null,""]
[null,null,"","","",null,null,null,null,null,null,""]
[null,null,"","","",null,null,null,null,null,null,""]
[null,null,"","","",null,null,null,null,null,null,""]
[null,null,"","","",null,null,null,null,null,null,""]
[null,null,"","","",null,null,null,null,null,null,""]
[null,null,"","","",null,null,null,null,null,null,""]
[null,null,"","","",null,null,null,null,null,null,{"$f":"IF(G4416<>\"\",D4416*G4416,\"\")","v":""}]
[null,null,"","","",null,null,null,null,null,null,""]
[null,null,"","","",null,null,null,null,null,null,""]
[null,null,"","","",null,null,null,null,null,null,""]
[null,null,"","","",null,null,null,null,null,null,""]
[null,null,"","","",null,null,null,null,null,null,""]
[null,null,"","","",null,null,null,null,null,null,""]
[null,null,"","","",null,null,null,null,null,null,""]
[null,null,"","","",null,null,null,null,null,null,""]
[null,null,"","","",null,null,null,null,null,null,""]
[null,null,"","","",null,null,null,null,null,null,""]
[null,null,"","","",null,null,null,null,null,null,""]
[null,null,"","","",null,null,null,null,null,null,""]
[null,null,"","","",null,null,null,null,null,null,""]
[null,null,"","","",null,null,null,null,null,null,""]
[null,null,"","","",null,null,null,null,null,null,""]
[null,null,"","","",null,null,null,null,null,null,""]
[null,null,"","","",null,null,null,null,null,null,""]
[null,null,"","","",null,null,null,null,null,null,""]
[null,null,"","","",null,null,null,null,null,null,""]
[null,null,"","","",null,null,null,null,null,null,""]
[null,null,"","","",null,null,null,null,null,null,""]
[null,null,"","","",null,null,null,null,null,null,""]
[null,null,"","","",null,null,null,null,null,null,""]
[null,null,"","","",null,null,null,null,null,null,""]
[null,null,"","","",null,null,null,null,null,null,""]
[null,null,"","","",null,null,null,null,null,null,""]
[null,null,"","","",null,null,null,null,null,null,""]
[null,null,"","","",null,null,null,null,null,null,""]
[null,null,"","","",null,null,null,null,null,null,""]
[null,null,"","","",null,null,null,null,null,null,""]
[null,null,"","","",null,null,null,null,null,null,""]
[null,null,"","","",null,null,null,null,null,null,""]
[null,null,"","","",null,null,null,null,null,null,""]
[null,null,"","","",null,null,null,null,null,null,""]
[null,null,"","","",null,null,null,null,null,null,""]
[null,null,"","","",null,null,null,null,null,null,""]
[null,null,"","","",null,null,null,null,null,null,""]
[null,null,"","","",null,null,null,null,null,null,""]
[null,null,"","","",null,null,null,null,null,null,""]
[null,null,"","","",null,null,null,null,null,null,""]
[null,null,"","","",null,null,null,null,null,null,""]
[null,null,"","","",null,null,null,null,null,null,""]
[null,null,"","","",null,null,null,null,null,null,""]
[null,null,"","","",null,null,null,null,null,null,""]
[null,null,"","","",null,null,null,null,null,null,""]
[null,null,"","","",null,null,null,null,null,null,""]
[null,null,"","","",null,null,null,null,null,null,""]
[null,null,"","","",null,null,null,null,null,null,""]
[null,null,"","","",null,null,null,null,null,null,""]
[null,null,"","","",null,null,null,null,null,null,""]
[null,null,"","","",null,null,null,null,null,null,""]
[null,null,"","","",null,null,null,null,null,null,""]
[null,null,"","","",null,null,null,null,null,null,""]
[null,null,"","","",null,null,null,null,null,null,""]
[null,null,"","","",null,null,null,null,null,null,""]
[null,null,"","","",null,null,null,null,null,null,""]
[null,null,{"$f":"IF(B4473=\"\",\"\",VLOOKUP(B4473,itemsdata,2,\"false\"))","v":""},{"$f":"IF(B4473=\"\",\"\",VLOOKUP(B4473,itemsdata,5,\"false\"))","v":""},{"$f":"IF(B4473=\"\",\"\",VLOOKUP(B4473,itemsdata,3,\"false\"))","v":""},null,null,null,null,null,null,""]
[null,null,"","","",null,null,null,null,null,null,""]
[null,null,"","","",null,null,null,null,null,null,""]
[null,null,"","","",null,null,null,null,null,null,""]
[null,null,"","","",null,null,null,null,null,null,""]
[null,null,"","","",null,null,null,null,null,null,""]
[null,null,"","","",null,null,null,null,null,null,""]
[null,null,"","","",null,null,null,null,null,null,{"$f":"IF(G4480<>\"\",D4480*G4480,\"\")","v":""}]
[null,null,"","","",null,null,null,null,null,null,""]
[null,null,"","","",null,null,null,null,null,null,""]
[null,null,"","","",null,null,null,null,null,null,""]
[null,null,"","","",null,null,null,null,null,null,""]
[null,null,"","","",null,null,null,null,null,null,""]
[null,null,"","","",null,null,null,null,null,null,""]
[null,null,"","","",null,null,null,null,null,null,""]
[null,null,"","","",null,null,null,null,null,null,""]
[null,null,"","","",null,null,null,null,null,null,""]
[null,null,"","","",null,null,null,null,null,null,""]
[null,null,"","","",null,null,null,null,null,null,""]
[null,null,"","","",null,null,null,null,null,null,""]
[null,null,"","","",null,null,null,null,null,null,""]
[null,null,"","","",null,null,null,null,null,null,""]
[null,null,"","","",null,null,null,null,null,null,""]
[null,null,"","","",null,null,null,null,null,null,""]
[null,null,"","","",null,null,null,null,null,null,""]
[null,null,"","","",null,null,null,null,null,null,""]
[null,null,"","","",null,null,null,null,null,null,""]
[null,null,"","","",null,null,null,null,null,null,""]
[null,null,"","","",null,null,null,null,null,null,""]
[null,null,"","","",null,null,null,null,null,null,""]
[null,null,"","","",null,null,null,null,null,null,""]
[null,null,"","","",null,null,null,null,null,null,""]
[null,null,"","","",null,null,null,null,null,null,""]
[null,null,"","","",null,null,null,null,null,null,""]
[null,null,"","","",null,null,null,null,null,null,""]
[null,null,"","","",null,null,null,null,null,null,""]
[null,null,"","","",null,null,null,null,null,null,""]
[null,null,"","","",null,null,null,null,null,null,""]
[null,null,"","","",null,null,null,null,null,null,""]
[null,null,"","","",null,null,null,null,null,null,""]
[null,null,"","","",null,null,null,null,null,null,""]
[null,null,"","","",null,null,null,null,null,null,""]
[null,null,"","","",null,null,null,null,null,null,""]
[null,null,"","","",null,null,null,null,null,null,""]
[null,null,"","","",null,null,null,null,null,null,""]
[null,null,"","","",null,null,null,null,null,null,""]
[null,null,"","","",null,null,null,null,null,null,""]
[null,null,"","","",null,null,null,null,null,null,""]
[null,null,"","","",null,null,null,null,null,null,""]
[null,null,"","","",null,null,null,null,null,null,""]
[null,null,"","","",null,null,null,null,null,null,""]
[null,null,"","","",null,null,null,null,null,null,""]
[null,null,"","","",null,null,null,null,null,null,""]
[null,null,"","","",null,null,null,null,null,null,""]
[null,null,"","","",null,null,null,null,null,null,""]
[null,null,"","","",null,null,null,null,null,null,""]
[null,null,"","","",null,null,null,null,null,null,""]
[null,null,"","","",null,null,null,null,null,null,""]
[null,null,"","","",null,null,null,null,null,null,""]
[null,null,"","","",null,null,null,null,null,null,""]
[null,null,"","","",null,null,null,null,null,null,""]
[null,null,"","","",null,null,null,null,null,null,""]
[null,null,"","","",null,null,null,null,null,null,""]
[null,null,"","","",null,null,null,null,null,null,""]
[null,null,{"$f":"IF(B4537=\"\",\"\",VLOOKUP(B4537,itemsdata,2,\"false\"))","v":""},{"$f":"IF(B4537=\"\",\"\",VLOOKUP(B4537,itemsdata,5,\"false\"))","v":""},{"$f":"IF(B4537=\"\",\"\",VLOOKUP(B4537,itemsdata,3,\"false\"))","v":""},null,null,null,null,null,null,""]
[null,null,"","","",null,null,null,null,null,null,""]
[null,null,"","","",null,null,null,null,null,null,""]
[null,null,"","","",null,null,null,null,null,null,""]
[null,null,"","","",null,null,null,null,null,null,""]
[null,null,"","","",null,null,null,null,null,null,""]
[null,null,"","","",null,null,null,null,null,null,""]
[null,null,"","","",null,null,null,null,null,null,{"$f":"IF(G4544<>\"\",D4544*G4544,\"\")","v":""}]
[null,null,"","","",null,null,null,null,null,null,""]
[null,null,"","","",null,null,null,null,null,null,""]
[null,null,"","","",null,null,null,null,null,null,""]
[null,null,"","","",null,null,null,null,null,null,""]
[null,null,"","","",null,null,null,null,null,null,""]
[null,null,"","","",null,null,null,null,null,null,""]
[null,null,"","","",null,null,null,null,null,null,""]
[null,null,"","","",null,null,null,null,null,null,""]
[null,null,"","","",null,null,null,null,null,null,""]
[null,null,"","","",null,null,null,null,null,null,""]
[null,null,"","","",null,null,null,null,null,null,""]
[null,null,"","","",null,null,null,null,null,null,""]
[null,null,"","","",null,null,null,null,null,null,""]
[null,null,"","","",null,null,null,null,null,null,""]
[null,null,"","","",null,null,null,null,null,null,""]
[null,null,"","","",null,null,null,null,null,null,""]
[null,null,"","","",null,null,null,null,null,null,""]
[null,null,"","","",null,null,null,null,null,null,""]
[null,null,"","","",null,null,null,null,null,null,""]
[null,null,"","","",null,null,null,null,null,null,""]
[null,null,"","","",null,null,null,null,null,null,""]
[null,null,"","","",null,null,null,null,null,null,""]
[null,null,"","","",null,null,null,null,null,null,""]
[null,null,"","","",null,null,null,null,null,null,""]
[null,null,"","","",null,null,null,null,null,null,""]
[null,null,"","","",null,null,null,null,null,null,""]
[null,null,"","","",null,null,null,null,null,null,""]
[null,null,"","","",null,null,null,null,null,null,""]
[null,null,"","","",null,null,null,null,null,null,""]
[null,null,"","","",null,null,null,null,null,null,""]
[null,null,"","","",null,null,null,null,null,null,""]
[null,null,"","","",null,null,null,null,null,null,""]
[null,null,"","","",null,null,null,null,null,null,""]
[null,null,"","","",null,null,null,null,null,null,""]
[null,null,"","","",null,null,null,null,null,null,""]
[null,null,"","","",null,null,null,null,null,null,""]
[null,null,"","","",null,null,null,null,null,null,""]
[null,null,"","","",null,null,null,null,null,null,""]
[null,null,"","","",null,null,null,null,null,null,""]
[null,null,"","","",null,null,null,null,null,null,""]
[null,null,"","","",null,null,null,null,null,null,""]
[null,null,"","","",null,null,null,null,null,null,""]
[null,null,"","","",null,null,null,null,null,null,""]
[null,null,"","","",null,null,null,null,null,null,""]
[null,null,"","","",null,null,null,null,null,null,""]
[null,null,"","","",null,null,null,null,null,null,""]
[null,null,"","","",null,null,null,null,null,null,""]
[null,null,"","","",null,null,null,null,null,null,""]
[null,null,"","","",null,null,null,null,null,null,""]
[null,null,"","","",null,null,null,null,null,null,""]
[null,null,"","","",null,null,null,null,null,null,""]
[null,null,"","","",null,null,null,null,null,null,""]
[null,null,"","","",null,null,null,null,null,null,""]
[null,null,"","","",null,null,null,null,null,null,""]
[null,null,"","","",null,null,null,null,null,null,""]
[null,null,"","","",null,null,null,null,null,null,""]
[null,null,{"$f":"IF(B4601=\"\",\"\",VLOOKUP(B4601,itemsdata,2,\"false\"))","v":""},{"$f":"IF(B4601=\"\",\"\",VLOOKUP(B4601,itemsdata,5,\"false\"))","v":""},{"$f":"IF(B4601=\"\",\"\",VLOOKUP(B4601,itemsdata,3,\"false\"))","v":""},null,null,null,null,null,null,""]
[null,null,"","","",null,null,null,null,null,null,""]
[null,null,"","","",null,null,null,null,null,null,""]
[null,null,"","","",null,null,null,null,null,null,""]
[null,null,"","","",null,null,null,null,null,null,""]
[null,null,"","","",null,null,null,null,null,null,""]
[null,null,"","","",null,null,null,null,null,null,""]
[null,null,"","","",null,null,null,null,null,null,{"$f":"IF(G4608<>\"\",D4608*G4608,\"\")","v":""}]
[null,null,"","","",null,null,null,null,null,null,""]
[null,null,"","","",null,null,null,null,null,null,""]
[null,null,"","","",null,null,null,null,null,null,""]
[null,null,"","","",null,null,null,null,null,null,""]
[null,null,"","","",null,null,null,null,null,null,""]
[null,null,"","","",null,null,null,null,null,null,""]
[null,null,"","","",null,null,null,null,null,null,""]
[null,null,"","","",null,null,null,null,null,null,""]
[null,null,"","","",null,null,null,null,null,null,""]
[null,null,"","","",null,null,null,null,null,null,""]
[null,null,"","","",null,null,null,null,null,null,""]
[null,null,"","","",null,null,null,null,null,null,""]
[null,null,"","","",null,null,null,null,null,null,""]
[null,null,"","","",null,null,null,null,null,null,""]
[null,null,"","","",null,null,null,null,null,null,""]
[null,null,"","","",null,null,null,null,null,null,""]
[null,null,"","","",null,null,null,null,null,null,""]
[null,null,"","","",null,null,null,null,null,null,""]
[null,null,"","","",null,null,null,null,null,null,""]
[null,null,"","","",null,null,null,null,null,null,""]
[null,null,"","","",null,null,null,null,null,null,""]
[null,null,"","","",null,null,null,null,null,null,""]
[null,null,"","","",null,null,null,null,null,null,""]
[null,null,"","","",null,null,null,null,null,null,""]
[null,null,"","","",null,null,null,null,null,null,""]
[null,null,"","","",null,null,null,null,null,null,""]
[null,null,"","","",null,null,null,null,null,null,""]
[null,null,"","","",null,null,null,null,null,null,""]
[null,null,"","","",null,null,null,null,null,null,""]
[null,null,"","","",null,null,null,null,null,null,""]
[null,null,"","","",null,null,null,null,null,null,""]
[null,null,"","","",null,null,null,null,null,null,""]
[null,null,"","","",null,null,null,null,null,null,""]
[null,null,"","","",null,null,null,null,null,null,""]
[null,null,"","","",null,null,null,null,null,null,""]
[null,null,"","","",null,null,null,null,null,null,""]
[null,null,"","","",null,null,null,null,null,null,""]
[null,null,"","","",null,null,null,null,null,null,""]
[null,null,"","","",null,null,null,null,null,null,""]
[null,null,"","","",null,null,null,null,null,null,""]
[null,null,"","","",null,null,null,null,null,null,""]
[null,null,"","","",null,null,null,null,null,null,""]
[null,null,"","","",null,null,null,null,null,null,""]
[null,null,"","","",null,null,null,null,null,null,""]
[null,null,"","","",null,null,null,null,null,null,""]
[null,null,"","","",null,null,null,null,null,null,""]
[null,null,"","","",null,null,null,null,null,null,""]
[null,null,"","","",null,null,null,null,null,null,""]
[null,null,"","","",null,null,null,null,null,null,""]
[null,null,"","","",null,null,null,null,null,null,""]
[null,null,"","","",null,null,null,null,null,null,""]
[null,null,"","","",null,null,null,null,null,null,""]
[null,null,"","","",null,null,null,null,null,null,""]
[null,null,"","","",null,null,null,null,null,null,""]
[null,null,"","","",null,null,null,null,null,null,""]
[null,null,"","","",null,null,null,null,null,null,""]
[null,null,{"$f":"IF(B4665=\"\",\"\",VLOOKUP(B4665,itemsdata,2,\"false\"))","v":""},{"$f":"IF(B4665=\"\",\"\",VLOOKUP(B4665,itemsdata,5,\"false\"))","v":""},{"$f":"IF(B4665=\"\",\"\",VLOOKUP(B4665,itemsdata,3,\"false\"))","v":""},null,null,null,null,null,null,""]
[null,null,"","","",null,null,null,null,null,null,""]
[null,null,"","","",null,null,null,null,null,null,""]
[null,null,"","","",null,null,null,null,null,null,""]
[null,null,"","","",null,null,null,null,null,null,""]
[null,null,"","","",null,null,null,null,null,null,""]
[null,null,"","","",null,null,null,null,null,null,""]
[null,null,"","","",null,null,null,null,null,null,{"$f":"IF(G4672<>\"\",D4672*G4672,\"\")","v":""}]
[null,null,"","","",null,null,null,null,null,null,""]
[null,null,"","","",null,null,null,null,null,null,""]
[null,null,"","","",null,null,null,null,null,null,""]
[null,null,"","","",null,null,null,null,null,null,""]
[null,null,"","","",null,null,null,null,null,null,""]
[null,null,"","","",null,null,null,null,null,null,""]
[null,null,"","","",null,null,null,null,null,null,""]
[null,null,"","","",null,null,null,null,null,null,""]
[null,null,"","","",null,null,null,null,null,null,""]
[null,null,"","","",null,null,null,null,null,null,""]
[null,null,"","","",null,null,null,null,null,null,""]
[null,null,"","","",null,null,null,null,null,null,""]
[null,null,"","","",null,null,null,null,null,null,""]
[null,null,"","","",null,null,null,null,null,null,""]
[null,null,"","","",null,null,null,null,null,null,""]
[null,null,"","","",null,null,null,null,null,null,""]
[null,null,"","","",null,null,null,null,null,null,""]
[null,null,"","","",null,null,null,null,null,null,""]
[null,null,"","","",null,null,null,null,null,null,""]
[null,null,"","","",null,null,null,null,null,null,""]
[null,null,"","","",null,null,null,null,null,null,""]
[null,null,"","","",null,null,null,null,null,null,""]
[null,null,"","","",null,null,null,null,null,null,""]
[null,null,"","","",null,null,null,null,null,null,""]
[null,null,"","","",null,null,null,null,null,null,""]
[null,null,"","","",null,null,null,null,null,null,""]
[null,null,"","","",null,null,null,null,null,null,""]
[null,null,"","","",null,null,null,null,null,null,""]
[null,null,"","","",null,null,null,null,null,null,""]
[null,null,"","","",null,null,null,null,null,null,""]
[null,null,"","","",null,null,null,null,null,null,""]
[null,null,"","","",null,null,null,null,null,null,""]
[null,null,"","","",null,null,null,null,null,null,""]
[null,null,"","","",null,null,null,null,null,null,""]
[null,null,"","","",null,null,null,null,null,null,""]
[null,null,"","","",null,null,null,null,null,null,""]
[null,null,"","","",null,null,null,null,null,null,""]
[null,null,"","","",null,null,null,null,null,null,""]
[null,null,"","","",null,null,null,null,null,null,""]
[null,null,"","","",null,null,null,null,null,null,""]
[null,null,"","","",null,null,null,null,null,null,""]
[null,null,"","","",null,null,null,null,null,null,""]
[null,null,"","","",null,null,null,null,null,null,""]
[null,null,"","","",null,null,null,null,null,null,""]
[null,null,"","","",null,null,null,null,null,null,""]
[null,null,"","","",null,null,null,null,null,null,""]
[null,null,"","","",null,null,null,null,null,null,""]
[null,null,"","","",null,null,null,null,null,null,""]
[null,null,"","","",null,null,null,null,null,null,""]
[null,null,"","","",null,null,null,null,null,null,""]
[null,null,"","","",null,null,null,null,null,null,""]
[null,null,"","","",null,null,null,null,null,null,""]
[null,null,"","","",null,null,null,null,null,null,""]
[null,null,"","","",null,null,null,null,null,null,""]
[null,null,"","","",null,null,null,null,null,null,""]
[null,null,"","","",null,null,null,null,null,null,""]
[null,null,{"$f":"IF(B4729=\"\",\"\",VLOOKUP(B4729,itemsdata,2,\"false\"))","v":""},{"$f":"IF(B4729=\"\",\"\",VLOOKUP(B4729,itemsdata,5,\"false\"))","v":""},{"$f":"IF(B4729=\"\",\"\",VLOOKUP(B4729,itemsdata,3,\"false\"))","v":""},null,null,null,null,null,null,""]
[null,null,"","","",null,null,null,null,null,null,""]
[null,null,"","","",null,null,null,null,null,null,""]
[null,null,"","","",null,null,null,null,null,null,""]
[null,null,"","","",null,null,null,null,null,null,""]
[null,null,"","","",null,null,null,null,null,null,""]
[null,null,"","","",null,null,null,null,null,null,""]
[null,null,"","","",null,null,null,null,null,null,{"$f":"IF(G4736<>\"\",D4736*G4736,\"\")","v":""}]
[null,null,"","","",null,null,null,null,null,null,""]
[null,null,"","","",null,null,null,null,null,null,""]
[null,null,"","","",null,null,null,null,null,null,""]
[null,null,"","","",null,null,null,null,null,null,""]
[null,null,"","","",null,null,null,null,null,null,""]
[null,null,"","","",null,null,null,null,null,null,""]
[null,null,"","","",null,null,null,null,null,null,""]
[null,null,"","","",null,null,null,null,null,null,""]
[null,null,"","","",null,null,null,null,null,null,""]
[null,null,"","","",null,null,null,null,null,null,""]
[null,null,"","","",null,null,null,null,null,null,""]
[null,null,"","","",null,null,null,null,null,null,""]
[null,null,"","","",null,null,null,null,null,null,""]
[null,null,"","","",null,null,null,null,null,null,""]
[null,null,"","","",null,null,null,null,null,null,""]
[null,null,"","","",null,null,null,null,null,null,""]
[null,null,"","","",null,null,null,null,null,null,""]
[null,null,"","","",null,null,null,null,null,null,""]
[null,null,"","","",null,null,null,null,null,null,""]
[null,null,"","","",null,null,null,null,null,null,""]
[null,null,"","","",null,null,null,null,null,null,""]
[null,null,"","","",null,null,null,null,null,null,""]
[null,null,"","","",null,null,null,null,null,null,""]
[null,null,"","","",null,null,null,null,null,null,""]
[null,null,"","","",null,null,null,null,null,null,""]
[null,null,"","","",null,null,null,null,null,null,""]
[null,null,"","","",null,null,null,null,null,null,""]
[null,null,"","","",null,null,null,null,null,null,""]
[null,null,"","","",null,null,null,null,null,null,""]
[null,null,"","","",null,null,null,null,null,null,""]
[null,null,"","","",null,null,null,null,null,null,""]
[null,null,"","","",null,null,null,null,null,null,""]
[null,null,"","","",null,null,null,null,null,null,""]
[null,null,"","","",null,null,null,null,null,null,""]
[null,null,"","","",null,null,null,null,null,null,""]
[null,null,"","","",null,null,null,null,null,null,""]
[null,null,"","","",null,null,null,null,null,null,""]
[null,null,"","","",null,null,null,null,null,null,""]
[null,null,"","","",null,null,null,null,null,null,""]
[null,null,"","","",null,null,null,null,null,null,""]
[null,null,"","","",null,null,null,null,null,null,""]
[null,null,"","","",null,null,null,null,null,null,""]
[null,null,"","","",null,null,null,null,null,null,""]
[null,null,"","","",null,null,null,null,null,null,""]
[null,null,"","","",null,null,null,null,null,null,""]
[null,null,"","","",null,null,null,null,null,null,""]
[null,null,"","","",null,null,null,null,null,null,""]
[null,null,"","","",null,null,null,null,null,null,""]
[null,null,"","","",null,null,null,null,null,null,""]
[null,null,"","","",null,null,null,null,null,null,""]
[null,null,"","","",null,null,null,null,null,null,""]
[null,null,"","","",null,null,null,null,null,null,""]
[null,null,"","","",null,null,null,null,null,null,""]
[null,null,"","","",null,null,null,null,null,null,""]
[null,null,"","","",null,null,null,null,null,null,""]
[null,null,"","","",null,null,null,null,null,null,""]
[null,null,{"$f":"IF(B4793=\"\",\"\",VLOOKUP(B4793,itemsdata,2,\"false\"))","v":""},{"$f":"IF(B4793=\"\",\"\",VLOOKUP(B4793,itemsdata,5,\"false\"))","v":""},{"$f":"IF(B4793=\"\",\"\",VLOOKUP(B4793,itemsdata,3,\"false\"))","v":""},null,null,null,null,null,null,""]
[null,null,"","","",null,null,null,null,null,null,""]
[null,null,"","","",null,null,null,null,null,null,""]
[null,null,"","","",null,null,null,null,null,null,""]
[null,null,"","","",null,null,null,null,null,null,""]
[null,null,"","","",null,null,null,null,null,null,""]
[null,null,"","","",null,null,null,null,null,null,""]
[null,null,"","","",null,null,null,null,null,null,{"$f":"IF(G4800<>\"\",D4800*G4800,\"\")","v":""}]
[null,null,"","","",null,null,null,null,null,null,""]
[null,null,"","","",null,null,null,null,null,null,""]
[null,null,"","","",null,null,null,null,null,null,""]
[null,null,"","","",null,null,null,null,null,null,""]
[null,null,"","","",null,null,null,null,null,null,""]
[null,null,"","","",null,null,null,null,null,null,""]
[null,null,"","","",null,null,null,null,null,null,""]
[null,null,"","","",null,null,null,null,null,null,""]
[null,null,"","","",null,null,null,null,null,null,""]
[null,null,"","","",null,null,null,null,null,null,""]
[null,null,"","","",null,null,null,null,null,null,""]
[null,null,"","","",null,null,null,null,null,null,""]
[null,null,"","","",null,null,null,null,null,null,""]
[null,null,"","","",null,null,null,null,null,null,""]
[null,null,"","","",null,null,null,null,null,null,""]
[null,null,"","","",null,null,null,null,null,null,""]
[null,null,"","","",null,null,null,null,null,null,""]
[null,null,"","","",null,null,null,null,null,null,""]
[null,null,"","","",null,null,null,null,null,null,""]
[null,null,"","","",null,null,null,null,null,null,""]
[null,null,"","","",null,null,null,null,null,null,""]
[null,null,"","","",null,null,null,null,null,null,""]
[null,null,"","","",null,null,null,null,null,null,""]
[null,null,"","","",null,null,null,null,null,null,""]
[null,null,"","","",null,null,null,null,null,null,""]
[null,null,"","","",null,null,null,null,null,null,""]
[null,null,"","","",null,null,null,null,null,null,""]
[null,null,"","","",null,null,null,null,null,null,""]
[null,null,"","","",null,null,null,null,null,null,""]
[null,null,"","","",null,null,null,null,null,null,""]
[null,null,"","","",null,null,null,null,null,null,""]
[null,null,"","","",null,null,null,null,null,null,""]
[null,null,"","","",null,null,null,null,null,null,""]
[null,null,"","","",null,null,null,null,null,null,""]
[null,null,"","","",null,null,null,null,null,null,""]
[null,null,"","","",null,null,null,null,null,null,""]
[null,null,"","","",null,null,null,null,null,null,""]
[null,null,"","","",null,null,null,null,null,null,""]
[null,null,"","","",null,null,null,null,null,null,""]
[null,null,"","","",null,null,null,null,null,null,""]
[null,null,"","","",null,null,null,null,null,null,""]
[null,null,"","","",null,null,null,null,null,null,""]
[null,null,"","","",null,null,null,null,null,null,""]
[null,null,"","","",null,null,null,null,null,null,""]
[null,null,"","","",null,null,null,null,null,null,""]
[null,null,"","","",null,null,null,null,null,null,""]
[null,null,"","","",null,null,null,null,null,null,""]
[null,null,"","","",null,null,null,null,null,null,""]
[null,null,"","","",null,null,null,null,null,null,""]
[null,null,"","","",null,null,null,null,null,null,""]
[null,null,"","","",null,null,null,null,null,null,""]
[null,null,"","","",null,null,null,null,null,null,""]
[null,null,"","","",null,null,null,null,null,null,""]
[null,null,"","","",null,null,null,null,null,null,""]
[null,null,"","","",null,null,null,null,null,null,""]
[null,null,"","","",null,null,null,null,null,null,""]
[null,null,{"$f":"IF(B4857=\"\",\"\",VLOOKUP(B4857,itemsdata,2,\"false\"))","v":""},{"$f":"IF(B4857=\"\",\"\",VLOOKUP(B4857,itemsdata,5,\"false\"))","v":""},{"$f":"IF(B4857=\"\",\"\",VLOOKUP(B4857,itemsdata,3,\"false\"))","v":""},null,null,null,null,null,null,""]
[null,null,"","","",null,null,null,null,null,null,""]
[null,null,"","","",null,null,null,null,null,null,""]
[null,null,"","","",null,null,null,null,null,null,""]
[null,null,"","","",null,null,null,null,null,null,""]
[null,null,"","","",null,null,null,null,null,null,""]
[null,null,"","","",null,null,null,null,null,null,""]
[null,null,"","","",null,null,null,null,null,null,{"$f":"IF(G4864<>\"\",D4864*G4864,\"\")","v":""}]
[null,null,"","","",null,null,null,null,null,null,""]
[null,null,"","","",null,null,null,null,null,null,""]
[null,null,"","","",null,null,null,null,null,null,""]
[null,null,"","","",null,null,null,null,null,null,""]
[null,null,"","","",null,null,null,null,null,null,""]
[null,null,"","","",null,null,null,null,null,null,""]
[null,null,"","","",null,null,null,null,null,null,""]
[null,null,"","","",null,null,null,null,null,null,""]
[null,null,"","","",null,null,null,null,null,null,""]
[null,null,"","","",null,null,null,null,null,null,""]
[null,null,"","","",null,null,null,null,null,null,""]
[null,null,"","","",null,null,null,null,null,null,""]
[null,null,"","","",null,null,null,null,null,null,""]
[null,null,"","","",null,null,null,null,null,null,""]
[null,null,"","","",null,null,null,null,null,null,""]
[null,null,"","","",null,null,null,null,null,null,""]
[null,null,"","","",null,null,null,null,null,null,""]
[null,null,"","","",null,null,null,null,null,null,""]
[null,null,"","","",null,null,null,null,null,null,""]
[null,null,"","","",null,null,null,null,null,null,""]
[null,null,"","","",null,null,null,null,null,null,""]
[null,null,"","","",null,null,null,null,null,null,""]
[null,null,"","","",null,null,null,null,null,null,""]
[null,null,"","","",null,null,null,null,null,null,""]
[null,null,"","","",null,null,null,null,null,null,""]
[null,null,"","","",null,null,null,null,null,null,""]
[null,null,"","","",null,null,null,null,null,null,""]
[null,null,"","","",null,null,null,null,null,null,""]
[null,null,"","","",null,null,null,null,null,null,""]
[null,null,"","","",null,null,null,null,null,null,""]
[null,null,"","","",null,null,null,null,null,null,""]
[null,null,"","","",null,null,null,null,null,null,""]
[null,null,"","","",null,null,null,null,null,null,""]
[null,null,"","","",null,null,null,null,null,null,""]
[null,null,"","","",null,null,null,null,null,null,""]
[null,null,"","","",null,null,null,null,null,null,""]
[null,null,"","","",null,null,null,null,null,null,""]
[null,null,"","","",null,null,null,null,null,null,""]
[null,null,"","","",null,null,null,null,null,null,""]
[null,null,"","","",null,null,null,null,null,null,""]
[null,null,"","","",null,null,null,null,null,null,""]
[null,null,"","","",null,null,null,null,null,null,""]
[null,null,"","","",null,null,null,null,null,null,""]
[null,null,"","","",null,null,null,null,null,null,""]
[null,null,"","","",null,null,null,null,null,null,""]
[null,null,"","","",null,null,null,null,null,null,""]
[null,null,"","","",null,null,null,null,null,null,""]
[null,null,"","","",null,null,null,null,null,null,""]
[null,null,"","","",null,null,null,null,null,null,""]
[null,null,"","","",null,null,null,null,null,null,""]
[null,null,"","","",null,null,null,null,null,null,""]
[null,null,"","","",null,null,null,null,null,null,""]
[null,null,"","","",null,null,null,null,null,null,""]
[null,null,"","","",null,null,null,null,null,null,""]
[null,null,"","","",null,null,null,null,null,null,""]
[null,null,"","","",null,null,null,null,null,null,""]
[null,null,{"$f":"IF(B4921=\"\",\"\",VLOOKUP(B4921,itemsdata,2,\"false\"))","v":""},{"$f":"IF(B4921=\"\",\"\",VLOOKUP(B4921,itemsdata,5,\"false\"))","v":""},{"$f":"IF(B4921=\"\",\"\",VLOOKUP(B4921,itemsdata,3,\"false\"))","v":""},null,null,null,null,null,null,""]
[null,null,"","","",null,null,null,null,null,null,""]
[null,null,"","","",null,null,null,null,null,null,""]
[null,null,"","","",null,null,null,null,null,null,""]
[null,null,"","","",null,null,null,null,null,null,""]
[null,null,"","","",null,null,null,null,null,null,""]
[null,null,"","","",null,null,null,null,null,null,""]
[null,null,"","","",null,null,null,null,null,null,{"$f":"IF(G4928<>\"\",D4928*G4928,\"\")","v":""}]
[null,null,"","","",null,null,null,null,null,null,""]
[null,null,"","","",null,null,null,null,null,null,""]
[null,null,"","","",null,null,null,null,null,null,""]
[null,null,"","","",null,null,null,null,null,null,""]
[null,null,"","","",null,null,null,null,null,null,""]
[null,null,"","","",null,null,null,null,null,null,""]
[null,null,"","","",null,null,null,null,null,null,""]
[null,null,"","","",null,null,null,null,null,null,""]
[null,null,"","","",null,null,null,null,null,null,""]
[null,null,"","","",null,null,null,null,null,null,""]
[null,null,"","","",null,null,null,null,null,null,""]
[null,null,"","","",null,null,null,null,null,null,""]
[null,null,"","","",null,null,null,null,null,null,""]
[null,null,"","","",null,null,null,null,null,null,""]
[null,null,"","","",null,null,null,null,null,null,""]
[null,null,"","","",null,null,null,null,null,null,""]
[null,null,"","","",null,null,null,null,null,null,""]
[null,null,"","","",null,null,null,null,null,null,""]
[null,null,"","","",null,null,null,null,null,null,""]
[null,null,"","","",null,null,null,null,null,null,""]
[null,null,"","","",null,null,null,null,null,null,""]
[null,null,"","","",null,null,null,null,null,null,""]
[null,null,"","","",null,null,null,null,null,null,""]
[null,null,"","","",null,null,null,null,null,null,""]
[null,null,"","","",null,null,null,null,null,null,""]
[null,null,"","","",null,null,null,null,null,null,""]
[null,null,"","","",null,null,null,null,null,null,""]
[null,null,"","","",null,null,null,null,null,null,""]
[null,null,"","","",null,null,null,null,null,null,""]
[null,null,"","","",null,null,null,null,null,null,""]
[null,null,"","","",null,null,null,null,null,null,""]
[null,null,"","","",null,null,null,null,null,null,""]
[null,null,"","","",null,null,null,null,null,null,""]
[null,null,"","","",null,null,null,null,null,null,""]
[null,null,"","","",null,null,null,null,null,null,""]
[null,null,"","","",null,null,null,null,null,null,""]
[null,null,"","","",null,null,null,null,null,null,""]
[null,null,"","","",null,null,null,null,null,null,""]
[null,null,"","","",null,null,null,null,null,null,""]
[null,null,"","","",null,null,null,null,null,null,""]
[null,null,"","","",null,null,null,null,null,null,""]
[null,null,"","","",null,null,null,null,null,null,""]
[null,null,"","","",null,null,null,null,null,null,""]
[null,null,"","","",null,null,null,null,null,null,""]
[null,null,"","","",null,null,null,null,null,null,""]
[null,null,"","","",null,null,null,null,null,null,""]
[null,null,"","","",null,null,null,null,null,null,""]
[null,null,"","","",null,null,null,null,null,null,""]
[null,null,"","","",null,null,null,null,null,null,""]
[null,null,"","","",null,null,null,null,null,null,""]
[null,null,"","","",null,null,null,null,null,null,""]
[null,null,"","","",null,null,null,null,null,null,""]
[null,null,"","","",null,null,null,null,null,null,""]
[null,null,"","","",null,null,null,null,null,null,""]
[null,null,"","","",null,null,null,null,null,null,""]
[null,null,"","","",null,null,null,null,null,null,""]
[null,null,{"$f":"IF(B4985=\"\",\"\",VLOOKUP(B4985,itemsdata,2,\"false\"))","v":""},{"$f":"IF(B4985=\"\",\"\",VLOOKUP(B4985,itemsdata,5,\"false\"))","v":""},{"$f":"IF(B4985=\"\",\"\",VLOOKUP(B4985,itemsdata,3,\"false\"))","v":""},null,null,null,null,null,null,""]
[null,null,"","","",null,null,null,null,null,null,""]
[null,null,"","","",null,null,null,null,null,null,""]
[null,null,"","","",null,null,null,null,null,null,""]
[null,null,"","","",null,null,null,null,null,null,""]
[null,null,"","","",null,null,null,null,null,null,""]
[null,null,"","","",null,null,null,null,null,null,""]
[null,null,"","","",null,null,null,null,null,null,{"$f":"IF(G4992<>\"\",D4992*G4992,\"\")","v":""}]
[null,null,"","","",null,null,null,null,null,null,""]
[null,null,"","","",null,null,null,null,null,null,""]
[null,null,"","","",null,null,null,null,null,null,""]
[null,null,"","","",null,null,null,null,null,null,""]
[null,null,"","","",null,null,null,null,null,null,""]
[null,null,"","","",null,null,null,null,null,null,""]
[null,null,"","","",null,null,null,null,null,null,""]
[null,null,"","","",null,null,null,null,null,null,""]
[null,null,"","","",null,null,null,null,null,null,""]
[null,null,"","","",null,null,null,null,null,null,""]
[null,null,"","","",null,null,null,null,null,null,""]
[null,null,"","","",null,null,null,null,null,null,""]
[null,null,"","","",null,null,null,null,null,null,""]
[null,null,"","","",null,null,null,null,null,null,""]
[null,null,"","","",null,null,null,null,null,null,""]
[null,null,"","","",null,null,null,null,null,null,""]
[null,null,"","","",null,null,null,null,null,null,""]
[null,null,"","","",null,null,null,null,null,null,""]
[null,null,"","","",null,null,null,null,null,null,""]
[null,null,"","","",null,null,null,null,null,null,""]
[null,null,"","","",null,null,null,null,null,null,""]
[null,null,"","","",null,null,null,null,null,null,""]
[null,null,"","","",null,null,null,null,null,null,""]
[null,null,"","","",null,null,null,null,null,null,""]
[null,null,"","","",null,null,null,null,null,null,""]
[null,null,"","","",null,null,null,null,null,null,""]
[null,null,"","","",null,null,null,null,null,null,""]
[null,null,"","","",null,null,null,null,null,null,""]
[null,null,"","","",null,null,null,null,null,null,""]
[null,null,"","","",null,null,null,null,null,null,""]
[null,null,"","","",null,null,null,null,null,null,""]
[null,null,"","","",null,null,null,null,null,null,""]
[null,null,"","","",null,null,null,null,null,null,""]
[null,null,"","","",null,null,null,null,null,null,""]
[null,null,"","","",null,null,null,null,null,null,""]
[null,null,"","","",null,null,null,null,null,null,""]
[null,null,"","","",null,null,null,null,null,null,""]
[null,null,"","","",null,null,null,null,null,null,""]
[null,null,"","","",null,null,null,null,null,null,""]
[null,null,"","","",null,null,null,null,null,null,""]
[null,null,"","","",null,null,null,null,null,null,""]
[null,null,"","","",null,null,null,null,null,null,""]
[null,null,"","","",null,null,null,null,null,null,""]
[null,null,"","","",null,null,null,null,null,null,""]
[null,null,"","","",null,null,null,null,null,null,""]
[null,null,"","","",null,null,null,null,null,null,""]
[null,null,"","","",null,null,null,null,null,null,""]
[null,null,"","","",null,null,null,null,null,null,""]
[null,null,"","","",null,null,null,null,null,null,""]
[null,null,"","","",null,null,null,null,null,null,""]
[null,null,"","","",null,null,null,null,null,null,""]
[null,null,"","","",null,null,null,null,null,null,""]
[null,null,"","","",null,null,null,null,null,null,""]
[null,null,"","","",null,null,null,null,null,null,""]
[null,null,"","","",null,null,null,null,null,null,""]
[null,null,"","","",null,null,null,null,null,null,""]
[null,null,{"$f":"IF(B5049=\"\",\"\",VLOOKUP(B5049,itemsdata,2,\"false\"))","v":""},{"$f":"IF(B5049=\"\",\"\",VLOOKUP(B5049,itemsdata,5,\"false\"))","v":""},{"$f":"IF(B5049=\"\",\"\",VLOOKUP(B5049,itemsdata,3,\"false\"))","v":""},null,null,null,null,null,null,""]
[null,null,"","","",null,null,null,null,null,null,""]
[null,null,"","","",null,null,null,null,null,null,""]
[null,null,"","","",null,null,null,null,null,null,""]
[null,null,"","","",null,null,null,null,null,null,""]
[null,null,"","","",null,null,null,null,null,null,""]
[null,null,"","","",null,null,null,null,null,null,""]
[null,null,"","","",null,null,null,null,null,null,{"$f":"IF(G5056<>\"\",D5056*G5056,\"\")","v":""}]
[null,null,"","","",null,null,null,null,null,null,""]
[null,null,"","","",null,null,null,null,null,null,""]
[null,null,"","","",null,null,null,null,null,null,""]
[null,null,"","","",null,null,null,null,null,null,""]
[null,null,"","","",null,null,null,null,null,null,""]
[null,null,"","","",null,null,null,null,null,null,""]
[null,null,"","","",null,null,null,null,null,null,""]
[null,null,"","","",null,null,null,null,null,null,""]
[null,null,"","","",null,null,null,null,null,null,""]
[null,null,"","","",null,null,null,null,null,null,""]
[null,null,"","","",null,null,null,null,null,null,""]
[null,null,"","","",null,null,null,null,null,null,""]
[null,null,"","","",null,null,null,null,null,null,""]
[null,null,"","","",null,null,null,null,null,null,""]
[null,null,"","","",null,null,null,null,null,null,""]
[null,null,"","","",null,null,null,null,null,null,""]
[null,null,"","","",null,null,null,null,null,null,""]
[null,null,"","","",null,null,null,null,null,null,""]
[null,null,"","","",null,null,null,null,null,null,""]
[null,null,"","","",null,null,null,null,null,null,""]
[null,null,"","","",null,null,null,null,null,null,""]
[null,null,"","","",null,null,null,null,null,null,""]
[null,null,"","","",null,null,null,null,null,null,""]
[null,null,"","","",null,null,null,null,null,null,""]
[null,null,"","","",null,null,null,null,null,null,""]
[null,null,"","","",null,null,null,null,null,null,""]
[null,null,"","","",null,null,null,null,null,null,""]
[null,null,"","","",null,null,null,null,null,null,""]
[null,null,"","","",null,null,null,null,null,null,""]
[null,null,"","","",null,null,null,null,null,null,""]
[null,null,"","","",null,null,null,null,null,null,""]
[null,null,"","","",null,null,null,null,null,null,""]
[null,null,"","","",null,null,null,null,null,null,""]
[null,null,"","","",null,null,null,null,null,null,""]
[null,null,"","","",null,null,null,null,null,null,""]
[null,null,"","","",null,null,null,null,null,null,""]
[null,null,"","","",null,null,null,null,null,null,""]
[null,null,"","","",null,null,null,null,null,null,""]
[null,null,"","","",null,null,null,null,null,null,""]
[null,null,"","","",null,null,null,null,null,null,""]
[null,null,"","","",null,null,null,null,null,null,""]
[null,null,"","","",null,null,null,null,null,null,""]
[null,null,"","","",null,null,null,null,null,null,""]
[null,null,"","","",null,null,null,null,null,null,""]
[null,null,"","","",null,null,null,null,null,null,""]
[null,null,"","","",null,null,null,null,null,null,""]
[null,null,"","","",null,null,null,null,null,null,""]
[null,null,"","","",null,null,null,null,null,null,""]
[null,null,"","","",null,null,null,null,null,null,""]
[null,null,"","","",null,null,null,null,null,null,""]
[null,null,"","","",null,null,null,null,null,null,""]
[null,null,"","","",null,null,null,null,null,null,""]
[null,null,"","","",null,null,null,null,null,null,""]
[null,null,"","","",null,null,null,null,null,null,""]
[null,null,"","","",null,null,null,null,null,null,""]
[null,null,"","","",null,null,null,null,null,null,""]
[null,null,{"$f":"IF(B5113=\"\",\"\",VLOOKUP(B5113,itemsdata,2,\"false\"))","v":""},{"$f":"IF(B5113=\"\",\"\",VLOOKUP(B5113,itemsdata,5,\"false\"))","v":""},{"$f":"IF(B5113=\"\",\"\",VLOOKUP(B5113,itemsdata,3,\"false\"))","v":""},null,null,null,null,null,null,""]
[null,null,"","","",null,null,null,null,null,null,""]
[null,null,"","","",null,null,null,null,null,null,""]
[null,null,"","","",null,null,null,null,null,null,""]
[null,null,"","","",null,null,null,null,null,null,""]
[null,null,"","","",null,null,null,null,null,null,""]
[null,null,"","","",null,null,null,null,null,null,""]
[null,null,"","","",null,null,null,null,null,null,{"$f":"IF(G5120<>\"\",D5120*G5120,\"\")","v":""}]
[null,null,"","","",null,null,null,null,null,null,""]
[null,null,"","","",null,null,null,null,null,null,""]
[null,null,"","","",null,null,null,null,null,null,""]
[null,null,"","","",null,null,null,null,null,null,""]
[null,null,"","","",null,null,null,null,null,null,""]
[null,null,"","","",null,null,null,null,null,null,""]
[null,null,"","","",null,null,null,null,null,null,""]
[null,null,"","","",null,null,null,null,null,null,""]
[null,null,"","","",null,null,null,null,null,null,""]
[null,null,"","","",null,null,null,null,null,null,""]
[null,null,"","","",null,null,null,null,null,null,""]
[null,null,"","","",null,null,null,null,null,null,""]
[null,null,"","","",null,null,null,null,null,null,""]
[null,null,"","","",null,null,null,null,null,null,""]
[null,null,"","","",null,null,null,null,null,null,""]
[null,null,"","","",null,null,null,null,null,null,""]
[null,null,"","","",null,null,null,null,null,null,""]
[null,null,"","","",null,null,null,null,null,null,""]
[null,null,"","","",null,null,null,null,null,null,""]
[null,null,"","","",null,null,null,null,null,null,""]
[null,null,"","","",null,null,null,null,null,null,""]
[null,null,"","","",null,null,null,null,null,null,""]
[null,null,"","","",null,null,null,null,null,null,""]
[null,null,"","","",null,null,null,null,null,null,""]
[null,null,"","","",null,null,null,null,null,null,""]
[null,null,"","","",null,null,null,null,null,null,""]
[null,null,"","","",null,null,null,null,null,null,""]
[null,null,"","","",null,null,null,null,null,null,""]
[null,null,"","","",null,null,null,null,null,null,""]
[null,null,"","","",null,null,null,null,null,null,""]
[null,null,"","","",null,null,null,null,null,null,""]
[null,null,"","","",null,null,null,null,null,null,""]
[null,null,"","","",null,null,null,null,null,null,""]
[null,null,"","","",null,null,null,null,null,null,""]
[null,null,"","","",null,null,null,null,null,null,""]
[null,null,"","","",null,null,null,null,null,null,""]
[null,null,"","","",null,null,null,null,null,null,""]
[null,null,"","","",null,null,null,null,null,null,""]
[null,null,"","","",null,null,null,null,null,null,""]
[null,null,"","","",null,null,null,null,null,null,""]
[null,null,"","","",null,null,null,null,null,null,""]
[null,null,"","","",null,null,null,null,null,null,""]
[null,null,"","","",null,null,null,null,null,null,""]
[null,null,"","","",null,null,null,null,null,null,""]
[null,null,"","","",null,null,null,null,null,null,""]
[null,null,"","","",null,null,null,null,null,null,""]
[null,null,"","","",null,null,null,null,null,null,""]
[null,null,"","","",null,null,null,null,null,null,""]
[null,null,"","","",null,null,null,null,null,null,""]
[null,null,"","","",null,null,null,null,null,null,""]
[null,null,"","","",null,null,null,null,null,null,""]
[null,null,"","","",null,null,null,null,null,null,""]
[null,null,"","","",null,null,null,null,null,null,""]
[null,null,"","","",null,null,null,null,null,null,""]
[null,null,"","","",null,null,null,null,null,null,""]
[null,null,"","","",null,null,null,null,null,null,""]
[null,null,{"$f":"IF(B5177=\"\",\"\",VLOOKUP(B5177,itemsdata,2,\"false\"))","v":""},{"$f":"IF(B5177=\"\",\"\",VLOOKUP(B5177,itemsdata,5,\"false\"))","v":""},{"$f":"IF(B5177=\"\",\"\",VLOOKUP(B5177,itemsdata,3,\"false\"))","v":""},null,null,null,null,null,null,""]
[null,null,"","","",null,null,null,null,null,null,""]
[null,null,"","","",null,null,null,null,null,null,""]
[null,null,"","","",null,null,null,null,null,null,""]
[null,null,"","","",null,null,null,null,null,null,""]
[null,null,"","","",null,null,null,null,null,null,""]
[null,null,"","","",null,null,null,null,null,null,""]
[null,null,"","","",null,null,null,null,null,null,{"$f":"IF(G5184<>\"\",D5184*G5184,\"\")","v":""}]
[null,null,"","","",null,null,null,null,null,null,""]
[null,null,"","","",null,null,null,null,null,null,""]
[null,null,"","","",null,null,null,null,null,null,""]
[null,null,"","","",null,null,null,null,null,null,""]
[null,null,"","","",null,null,null,null,null,null,""]
[null,null,"","","",null,null,null,null,null,null,""]
[null,null,"","","",null,null,null,null,null,null,""]
[null,null,"","","",null,null,null,null,null,null,""]
[null,null,"","","",null,null,null,null,null,null,""]
[null,null,"","","",null,null,null,null,null,null,""]
[null,null,"","","",null,null,null,null,null,null,""]
[null,null,"","","",null,null,null,null,null,null,""]
[null,null,"","","",null,null,null,null,null,null,""]
[null,null,"","","",null,null,null,null,null,null,""]
[null,null,"","","",null,null,null,null,null,null,""]
[null,null,"","","",null,null,null,null,null,null,""]
[null,null,"","","",null,null,null,null,null,null,""]
[null,null,"","","",null,null,null,null,null,null,""]
[null,null,"","","",null,null,null,null,null,null,""]
[null,null,"","","",null,null,null,null,null,null,""]
[null,null,"","","",null,null,null,null,null,null,""]
[null,null,"","","",null,null,null,null,null,null,""]
[null,null,"","","",null,null,null,null,null,null,""]
[null,null,"","","",null,null,null,null,null,null,""]
[null,null,"","","",null,null,null,null,null,null,""]
[null,null,"","","",null,null,null,null,null,null,""]
[null,null,"","","",null,null,null,null,null,null,""]
[null,null,"","","",null,null,null,null,null,null,""]
[null,null,"","","",null,null,null,null,null,null,""]
[null,null,"","","",null,null,null,null,null,null,""]
[null,null,"","","",null,null,null,null,null,null,""]
[null,null,"","","",null,null,null,null,null,null,""]
[null,null,"","","",null,null,null,null,null,null,""]
[null,null,"","","",null,null,null,null,null,null,""]
[null,null,"","","",null,null,null,null,null,null,""]
[null,null,"","","",null,null,null,null,null,null,""]
[null,null,"","","",null,null,null,null,null,null,""]
[null,null,"","","",null,null,null,null,null,null,""]
[null,null,"","","",null,null,null,null,null,null,""]
[null,null,"","","",null,null,null,null,null,null,""]
[null,null,"","","",null,null,null,null,null,null,""]
[null,null,"","","",null,null,null,null,null,null,""]
[null,null,"","","",null,null,null,null,null,null,""]
[null,null,"","","",null,null,null,null,null,null,""]
[null,null,"","","",null,null,null,null,null,null,""]
[null,null,"","","",null,null,null,null,null,null,""]
[null,null,"","","",null,null,null,null,null,null,""]
[null,null,"","","",null,null,null,null,null,null,""]
[null,null,"","","",null,null,null,null,null,null,""]
[null,null,"","","",null,null,null,null,null,null,""]
[null,null,"","","",null,null,null,null,null,null,""]
[null,null,"","","",null,null,null,null,null,null,""]
[null,null,"","","",null,null,null,null,null,null,""]
[null,null,"","","",null,null,null,null,null,null,""]
[null,null,"","","",null,null,null,null,null,null,""]
[null,null,"","","",null,null,null,null,null,null,""]
[null,null,{"$f":"IF(B5241=\"\",\"\",VLOOKUP(B5241,itemsdata,2,\"false\"))","v":""},{"$f":"IF(B5241=\"\",\"\",VLOOKUP(B5241,itemsdata,5,\"false\"))","v":""},{"$f":"IF(B5241=\"\",\"\",VLOOKUP(B5241,itemsdata,3,\"false\"))","v":""},null,null,null,null,null,null,""]
[null,null,"","","",null,null,null,null,null,null,""]
[null,null,"","","",null,null,null,null,null,null,""]
[null,null,"","","",null,null,null,null,null,null,""]
[null,null,"","","",null,null,null,null,null,null,""]
[null,null,"","","",null,null,null,null,null,null,""]
[null,null,"","","",null,null,null,null,null,null,""]
[null,null,"","","",null,null,null,null,null,null,{"$f":"IF(G5248<>\"\",D5248*G5248,\"\")","v":""}]
[null,null,"","","",null,null,null,null,null,null,""]
[null,null,"","","",null,null,null,null,null,null,""]
[null,null,"","","",null,null,null,null,null,null,""]
[null,null,"","","",null,null,null,null,null,null,""]
[null,null,"","","",null,null,null,null,null,null,""]
[null,null,"","","",null,null,null,null,null,null,""]
[null,null,"","","",null,null,null,null,null,null,""]
[null,null,"","","",null,null,null,null,null,null,""]
[null,null,"","","",null,null,null,null,null,null,""]
[null,null,"","","",null,null,null,null,null,null,""]
[null,null,"","","",null,null,null,null,null,null,""]
[null,null,"","","",null,null,null,null,null,null,""]
[null,null,"","","",null,null,null,null,null,null,""]
[null,null,"","","",null,null,null,null,null,null,""]
[null,null,"","","",null,null,null,null,null,null,""]
[null,null,"","","",null,null,null,null,null,null,""]
[null,null,"","","",null,null,null,null,null,null,""]
[null,null,"","","",null,null,null,null,null,null,""]
[null,null,"","","",null,null,null,null,null,null,""]
[null,null,"","","",null,null,null,null,null,null,""]
[null,null,"","","",null,null,null,null,null,null,""]
[null,null,"","","",null,null,null,null,null,null,""]
[null,null,"","","",null,null,null,null,null,null,""]
[null,null,"","","",null,null,null,null,null,null,""]
[null,null,"","","",null,null,null,null,null,null,""]
[null,null,"","","",null,null,null,null,null,null,""]
[null,null,"","","",null,null,null,null,null,null,""]
[null,null,"","","",null,null,null,null,null,null,""]
[null,null,"","","",null,null,null,null,null,null,""]
[null,null,"","","",null,null,null,null,null,null,""]
[null,null,"","","",null,null,null,null,null,null,""]
[null,null,"","","",null,null,null,null,null,null,""]
[null,null,"","","",null,null,null,null,null,null,""]
[null,null,"","","",null,null,null,null,null,null,""]
[null,null,"","","",null,null,null,null,null,null,""]
[null,null,"","","",null,null,null,null,null,null,""]
[null,null,"","","",null,null,null,null,null,null,""]
[null,null,"","","",null,null,null,null,null,null,""]
[null,null,"","","",null,null,null,null,null,null,""]
[null,null,"","","",null,null,null,null,null,null,""]
[null,null,"","","",null,null,null,null,null,null,""]
[null,null,"","","",null,null,null,null,null,null,""]
[null,null,"","","",null,null,null,null,null,null,""]
[null,null,"","","",null,null,null,null,null,null,""]
[null,null,"","","",null,null,null,null,null,null,""]
[null,null,"","","",null,null,null,null,null,null,""]
[null,null,"","","",null,null,null,null,null,null,""]
[null,null,"","","",null,null,null,null,null,null,""]
[null,null,"","","",null,null,null,null,null,null,""]
[null,null,"","","",null,null,null,null,null,null,""]
[null,null,"","","",null,null,null,null,null,null,""]
[null,null,"","","",null,null,null,null,null,null,""]
[null,null,"","","",null,null,null,null,null,null,""]
[null,null,"","","",null,null,null,null,null,null,""]
[null,null,"","","",null,null,null,null,null,null,""]
[null,null,"","","",null,null,null,null,null,null,""]
[null,null,{"$f":"IF(B5305=\"\",\"\",VLOOKUP(B5305,itemsdata,2,\"false\"))","v":""},{"$f":"IF(B5305=\"\",\"\",VLOOKUP(B5305,itemsdata,5,\"false\"))","v":""},{"$f":"IF(B5305=\"\",\"\",VLOOKUP(B5305,itemsdata,3,\"false\"))","v":""},null,null,null,null,null,null,""]
[null,null,"","","",null,null,null,null,null,null,""]
[null,null,"","","",null,null,null,null,null,null,""]
[null,null,"","","",null,null,null,null,null,null,""]
[null,null,"","","",null,null,null,null,null,null,""]
[null,null,"","","",null,null,null,null,null,null,""]
[null,null,"","","",null,null,null,null,null,null,""]
[null,null,"","","",null,null,null,null,null,null,{"$f":"IF(G5312<>\"\",D5312*G5312,\"\")","v":""}]
[null,null,"","","",null,null,null,null,null,null,""]
[null,null,"","","",null,null,null,null,null,null,""]
[null,null,"","","",null,null,null,null,null,null,""]
[null,null,"","","",null,null,null,null,null,null,""]
[null,null,"","","",null,null,null,null,null,null,""]
[null,null,"","","",null,null,null,null,null,null,""]
[null,null,"","","",null,null,null,null,null,null,""]
[null,null,"","","",null,null,null,null,null,null,""]
[null,null,"","","",null,null,null,null,null,null,""]
[null,null,"","","",null,null,null,null,null,null,""]
[null,null,"","","",null,null,null,null,null,null,""]
[null,null,"","","",null,null,null,null,null,null,""]
[null,null,"","","",null,null,null,null,null,null,""]
[null,null,"","","",null,null,null,null,null,null,""]
[null,null,"","","",null,null,null,null,null,null,""]
[null,null,"","","",null,null,null,null,null,null,""]
[null,null,"","","",null,null,null,null,null,null,""]
[null,null,"","","",null,null,null,null,null,null,""]
[null,null,"","","",null,null,null,null,null,null,""]
[null,null,"","","",null,null,null,null,null,null,""]
[null,null,"","","",null,null,null,null,null,null,""]
[null,null,"","","",null,null,null,null,null,null,""]
[null,null,"","","",null,null,null,null,null,null,""]
[null,null,"","","",null,null,null,null,null,null,""]
[null,null,"","","",null,null,null,null,null,null,""]
[null,null,"","","",null,null,null,null,null,null,""]
[null,null,"","","",null,null,null,null,null,null,""]
[null,null,"","","",null,null,null,null,null,null,""]
[null,null,"","","",null,null,null,null,null,null,""]
[null,null,"","","",null,null,null,null,null,null,""]
[null,null,"","","",null,null,null,null,null,null,""]
[null,null,"","","",null,null,null,null,null,null,""]
[null,null,"","","",null,null,null,null,null,null,""]
[null,null,"","","",null,null,null,null,null,null,""]
[null,null,"","","",null,null,null,null,null,null,""]
[null,null,"","","",null,null,null,null,null,null,""]
[null,null,"","","",null,null,null,null,null,null,""]
[null,null,"","","",null,null,null,null,null,null,""]
[null,null,"","","",null,null,null,null,null,null,""]
[null,null,"","","",null,null,null,null,null,null,""]
[null,null,"","","",null,null,null,null,null,null,""]
[null,null,"","","",null,null,null,null,null,null,""]
[null,null,"","","",null,null,null,null,null,null,""]
[null,null,"","","",null,null,null,null,null,null,""]
[null,null,"","","",null,null,null,null,null,null,""]
[null,null,"","","",null,null,null,null,null,null,""]
[null,null,"","","",null,null,null,null,null,null,""]
[null,null,"","","",null,null,null,null,null,null,""]
[null,null,"","","",null,null,null,null,null,null,""]
[null,null,"","","",null,null,null,null,null,null,""]
[null,null,"","","",null,null,null,null,null,null,""]
[null,null,"","","",null,null,null,null,null,null,""]
[null,null,"","","",null,null,null,null,null,null,""]
[null,null,"","","",null,null,null,null,null,null,""]
[null,null,"","","",null,null,null,null,null,null,""]
[null,null,"","","",null,null,null,null,null,null,""]
[null,null,{"$f":"IF(B5369=\"\",\"\",VLOOKUP(B5369,itemsdata,2,\"false\"))","v":""},{"$f":"IF(B5369=\"\",\"\",VLOOKUP(B5369,itemsdata,5,\"false\"))","v":""},{"$f":"IF(B5369=\"\",\"\",VLOOKUP(B5369,itemsdata,3,\"false\"))","v":""},null,null,null,null,null,null,""]
[null,null,"","","",null,null,null,null,null,null,""]
[null,null,"","","",null,null,null,null,null,null,""]
[null,null,"","","",null,null,null,null,null,null,""]
[null,null,"","","",null,null,null,null,null,null,""]
[null,null,"","","",null,null,null,null,null,null,""]
[null,null,"","","",null,null,null,null,null,null,""]
[null,null,"","","",null,null,null,null,null,null,{"$f":"IF(G5376<>\"\",D5376*G5376,\"\")","v":""}]
[null,null,"","","",null,null,null,null,null,null,""]
[null,null,"","","",null,null,null,null,null,null,""]
[null,null,"","","",null,null,null,null,null,null,""]
[null,null,"","","",null,null,null,null,null,null,""]
[null,null,"","","",null,null,null,null,null,null,""]
[null,null,"","","",null,null,null,null,null,null,""]
[null,null,"","","",null,null,null,null,null,null,""]
[null,null,"","","",null,null,null,null,null,null,""]
[null,null,"","","",null,null,null,null,null,null,""]
[null,null,"","","",null,null,null,null,null,null,""]
[null,null,"","","",null,null,null,null,null,null,""]
[null,null,"","","",null,null,null,null,null,null,""]
[null,null,"","","",null,null,null,null,null,null,""]
[null,null,"","","",null,null,null,null,null,null,""]
[null,null,"","","",null,null,null,null,null,null,""]
[null,null,"","","",null,null,null,null,null,null,""]
[null,null,"","","",null,null,null,null,null,null,""]
[null,null,"","","",null,null,null,null,null,null,""]
[null,null,"","","",null,null,null,null,null,null,""]
[null,null,"","","",null,null,null,null,null,null,""]
[null,null,"","","",null,null,null,null,null,null,""]
[null,null,"","","",null,null,null,null,null,null,""]
[null,null,"","","",null,null,null,null,null,null,""]
[null,null,"","","",null,null,null,null,null,null,""]
[null,null,"","","",null,null,null,null,null,null,""]
[null,null,"","","",null,null,null,null,null,null,""]
[null,null,"","","",null,null,null,null,null,null,""]
[null,null,"","","",null,null,null,null,null,null,""]
[null,null,"","","",null,null,null,null,null,null,""]
[null,null,"","","",null,null,null,null,null,null,""]
[null,null,"","","",null,null,null,null,null,null,""]
[null,null,"","","",null,null,null,null,null,null,""]
[null,null,"","","",null,null,null,null,null,null,""]
[null,null,"","","",null,null,null,null,null,null,""]
[null,null,"","","",null,null,null,null,null,null,""]
[null,null,"","","",null,null,null,null,null,null,""]
[null,null,"","","",null,null,null,null,null,null,""]
[null,null,"","","",null,null,null,null,null,null,""]
[null,null,"","","",null,null,null,null,null,null,""]
[null,null,"","","",null,null,null,null,null,null,""]
[null,null,"","","",null,null,null,null,null,null,""]
[null,null,"","","",null,null,null,null,null,null,""]
[null,null,"","","",null,null,null,null,null,null,""]
[null,null,"","","",null,null,null,null,null,null,""]
[null,null,"","","",null,null,null,null,null,null,""]
[null,null,"","","",null,null,null,null,null,null,""]
[null,null,"","","",null,null,null,null,null,null,""]
[null,null,"","","",null,null,null,null,null,null,""]
[null,null,"","","",null,null,null,null,null,null,""]
[null,null,"","","",null,null,null,null,null,null,""]
[null,null,"","","",null,null,null,null,null,null,""]
[null,null,"","","",null,null,null,null,null,null,""]
[null,null,"","","",null,null,null,null,null,null,""]
[null,null,"","","",null,null,null,null,null,null,""]
[null,null,"","","",null,null,null,null,null,null,""]
[null,null,"","","",null,null,null,null,null,null,""]
[null,null,{"$f":"IF(B5433=\"\",\"\",VLOOKUP(B5433,itemsdata,2,\"false\"))","v":""},{"$f":"IF(B5433=\"\",\"\",VLOOKUP(B5433,itemsdata,5,\"false\"))","v":""},{"$f":"IF(B5433=\"\",\"\",VLOOKUP(B5433,itemsdata,3,\"false\"))","v":""},null,null,null,null,null,null,""]
[null,null,"","","",null,null,null,null,null,null,""]
[null,null,"","","",null,null,null,null,null,null,""]
[null,null,"","","",null,null,null,null,null,null,""]
[null,null,"","","",null,null,null,null,null,null,""]
[null,null,"","","",null,null,null,null,null,null,""]
[null,null,"","","",null,null,null,null,null,null,""]
[null,null,"","","",null,null,null,null,null,null,{"$f":"IF(G5440<>\"\",D5440*G5440,\"\")","v":""}]
[null,null,"","","",null,null,null,null,null,null,""]
[null,null,"","","",null,null,null,null,null,null,""]
[null,null,"","","",null,null,null,null,null,null,""]
[null,null,"","","",null,null,null,null,null,null,""]
[null,null,"","","",null,null,null,null,null,null,""]
[null,null,"","","",null,null,null,null,null,null,""]
[null,null,"","","",null,null,null,null,null,null,""]
[null,null,"","","",null,null,null,null,null,null,""]
[null,null,"","","",null,null,null,null,null,null,""]
[null,null,"","","",null,null,null,null,null,null,""]
[null,null,"","","",null,null,null,null,null,null,""]
[null,null,"","","",null,null,null,null,null,null,""]
[null,null,"","","",null,null,null,null,null,null,""]
[null,null,"","","",null,null,null,null,null,null,""]
[null,null,"","","",null,null,null,null,null,null,""]
[null,null,"","","",null,null,null,null,null,null,""]
[null,null,"","","",null,null,null,null,null,null,""]
[null,null,"","","",null,null,null,null,null,null,""]
[null,null,"","","",null,null,null,null,null,null,""]
[null,null,"","","",null,null,null,null,null,null,""]
[null,null,"","","",null,null,null,null,null,null,""]
[null,null,"","","",null,null,null,null,null,null,""]
[null,null,"","","",null,null,null,null,null,null,""]
[null,null,"","","",null,null,null,null,null,null,""]
[null,null,"","","",null,null,null,null,null,null,""]
[null,null,"","","",null,null,null,null,null,null,""]
[null,null,"","","",null,null,null,null,null,null,""]
[null,null,"","","",null,null,null,null,null,null,""]
[null,null,"","","",null,null,null,null,null,null,""]
[null,null,"","","",null,null,null,null,null,null,""]
[null,null,"","","",null,null,null,null,null,null,""]
[null,null,"","","",null,null,null,null,null,null,""]
[null,null,"","","",null,null,null,null,null,null,""]
[null,null,"","","",null,null,null,null,null,null,""]
[null,null,"","","",null,null,null,null,null,null,""]
[null,null,"","","",null,null,null,null,null,null,""]
[null,null,"","","",null,null,null,null,null,null,""]
[null,null,"","","",null,null,null,null,null,null,""]
[null,null,"","","",null,null,null,null,null,null,""]
[null,null,"","","",null,null,null,null,null,null,""]
[null,null,"","","",null,null,null,null,null,null,""]
[null,null,"","","",null,null,null,null,null,null,""]
[null,null,"","","",null,null,null,null,null,null,""]
[null,null,"","","",null,null,null,null,null,null,""]
[null,null,"","","",null,null,null,null,null,null,""]
[null,null,"","","",null,null,null,null,null,null,""]
[null,null,"","","",null,null,null,null,null,null,""]
[null,null,"","","",null,null,null,null,null,null,""]
[null,null,"","","",null,null,null,null,null,null,""]
[null,null,"","","",null,null,null,null,null,null,""]
[null,null,"","","",null,null,null,null,null,null,""]
[null,null,"","","",null,null,null,null,null,null,""]
[null,null,"","","",null,null,null,null,null,null,""]
[null,null,"","","",null,null,null,null,null,null,""]
[null,null,"","","",null,null,null,null,null,null,""]
[null,null,"","","",null,null,null,null,null,null,""]
[null,null,{"$f":"IF(B5497=\"\",\"\",VLOOKUP(B5497,itemsdata,2,\"false\"))","v":""},{"$f":"IF(B5497=\"\",\"\",VLOOKUP(B5497,itemsdata,5,\"false\"))","v":""},{"$f":"IF(B5497=\"\",\"\",VLOOKUP(B5497,itemsdata,3,\"false\"))","v":""},null,null,null,null,null,null,""]
[null,null,"","","",null,null,null,null,null,null,""]
[null,null,"","","",null,null,null,null,null,null,""]
[null,null,"","","",null,null,null,null,null,null,""]
[null,null,"","","",null,null,null,null,null,null,""]
[null,null,"","","",null,null,null,null,null,null,""]
[null,null,"","","",null,null,null,null,null,null,""]
[null,null,"","","",null,null,null,null,null,null,{"$f":"IF(G5504<>\"\",D5504*G5504,\"\")","v":""}]
[null,null,"","","",null,null,null,null,null,null,""]
[null,null,"","","",null,null,null,null,null,null,""]
[null,null,"","","",null,null,null,null,null,null,""]
[null,null,"","","",null,null,null,null,null,null,""]
[null,null,"","","",null,null,null,null,null,null,""]
[null,null,"","","",null,null,null,null,null,null,""]
[null,null,"","","",null,null,null,null,null,null,""]
[null,null,"","","",null,null,null,null,null,null,""]
[null,null,"","","",null,null,null,null,null,null,""]
[null,null,"","","",null,null,null,null,null,null,""]
[null,null,"","","",null,null,null,null,null,null,""]
[null,null,"","","",null,null,null,null,null,null,""]
[null,null,"","","",null,null,null,null,null,null,""]
[null,null,"","","",null,null,null,null,null,null,""]
[null,null,"","","",null,null,null,null,null,null,""]
[null,null,"","","",null,null,null,null,null,null,""]
[null,null,"","","",null,null,null,null,null,null,""]
[null,null,"","","",null,null,null,null,null,null,""]
[null,null,"","","",null,null,null,null,null,null,""]
[null,null,"","","",null,null,null,null,null,null,""]
[null,null,"","","",null,null,null,null,null,null,""]
[null,null,"","","",null,null,null,null,null,null,""]
[null,null,"","","",null,null,null,null,null,null,""]
[null,null,"","","",null,null,null,null,null,null,""]
[null,null,"","","",null,null,null,null,null,null,""]
[null,null,"","","",null,null,null,null,null,null,""]
[null,null,"","","",null,null,null,null,null,null,""]
[null,null,"","","",null,null,null,null,null,null,""]
[null,null,"","","",null,null,null,null,null,null,""]
[null,null,"","","",null,null,null,null,null,null,""]
[null,null,"","","",null,null,null,null,null,null,""]
[null,null,"","","",null,null,null,null,null,null,""]
[null,null,"","","",null,null,null,null,null,null,""]
[null,null,"","","",null,null,null,null,null,null,""]
[null,null,"","","",null,null,null,null,null,null,""]
[null,null,"","","",null,null,null,null,null,null,""]
[null,null,"","","",null,null,null,null,null,null,""]
[null,null,"","","",null,null,null,null,null,null,""]
[null,null,"","","",null,null,null,null,null,null,""]
[null,null,"","","",null,null,null,null,null,null,""]
[null,null,"","","",null,null,null,null,null,null,""]
[null,null,"","","",null,null,null,null,null,null,""]
[null,null,"","","",null,null,null,null,null,null,""]
[null,null,"","","",null,null,null,null,null,null,""]
[null,null,"","","",null,null,null,null,null,null,""]
[null,null,"","","",null,null,null,null,null,null,""]
[null,null,"","","",null,null,null,null,null,null,""]
[null,null,"","","",null,null,null,null,null,null,""]
[null,null,"","","",null,null,null,null,null,null,""]
[null,null,"","","",null,null,null,null,null,null,""]
[null,null,"","","",null,null,null,null,null,null,""]
[null,null,"","","",null,null,null,null,null,null,""]
[null,null,"","","",null,null,null,null,null,null,""]
[null,null,"","","",null,null,null,null,null,null,""]
[null,null,"","","",null,null,null,null,null,null,""]
[null,null,"","","",null,null,null,null,null,null,""]
[null,null,{"$f":"IF(B5561=\"\",\"\",VLOOKUP(B5561,itemsdata,2,\"false\"))","v":""},{"$f":"IF(B5561=\"\",\"\",VLOOKUP(B5561,itemsdata,5,\"false\"))","v":""},{"$f":"IF(B5561=\"\",\"\",VLOOKUP(B5561,itemsdata,3,\"false\"))","v":""},null,null,null,null,null,null,""]
[null,null,"","","",null,null,null,null,null,null,""]
[null,null,"","","",null,null,null,null,null,null,""]
[null,null,"","","",null,null,null,null,null,null,""]
[null,null,"","","",null,null,null,null,null,null,""]
[null,null,"","","",null,null,null,null,null,null,""]
[null,null,"","","",null,null,null,null,null,null,""]
[null,null,"","","",null,null,null,null,null,null,{"$f":"IF(G5568<>\"\",D5568*G5568,\"\")","v":""}]
[null,null,"","","",null,null,null,null,null,null,""]
[null,null,"","","",null,null,null,null,null,null,""]
[null,null,"","","",null,null,null,null,null,null,""]
[null,null,"","","",null,null,null,null,null,null,""]
[null,null,"","","",null,null,null,null,null,null,""]
[null,null,"","","",null,null,null,null,null,null,""]
[null,null,"","","",null,null,null,null,null,null,""]
[null,null,"","","",null,null,null,null,null,null,""]
[null,null,"","","",null,null,null,null,null,null,""]
[null,null,"","","",null,null,null,null,null,null,""]
[null,null,"","","",null,null,null,null,null,null,""]
[null,null,"","","",null,null,null,null,null,null,""]
[null,null,"","","",null,null,null,null,null,null,""]
[null,null,"","","",null,null,null,null,null,null,""]
[null,null,"","","",null,null,null,null,null,null,""]
[null,null,"","","",null,null,null,null,null,null,""]
[null,null,"","","",null,null,null,null,null,null,""]
[null,null,"","","",null,null,null,null,null,null,""]
[null,null,"","","",null,null,null,null,null,null,""]
[null,null,"","","",null,null,null,null,null,null,""]
[null,null,"","","",null,null,null,null,null,null,""]
[null,null,"","","",null,null,null,null,null,null,""]
[null,null,"","","",null,null,null,null,null,null,""]
[null,null,"","","",null,null,null,null,null,null,""]
[null,null,"","","",null,null,null,null,null,null,""]
[null,null,"","","",null,null,null,null,null,null,""]
[null,null,"","","",null,null,null,null,null,null,""]
[null,null,"","","",null,null,null,null,null,null,""]
[null,null,"","","",null,null,null,null,null,null,""]
[null,null,"","","",null,null,null,null,null,null,""]
[null,null,"","","",null,null,null,null,null,null,""]
[null,null,"","","",null,null,null,null,null,null,""]
[null,null,"","","",null,null,null,null,null,null,""]
[null,null,"","","",null,null,null,null,null,null,""]
[null,null,"","","",null,null,null,null,null,null,""]
[null,null,"","","",null,null,null,null,null,null,""]
[null,null,"","","",null,null,null,null,null,null,""]
[null,null,"","","",null,null,null,null,null,null,""]
[null,null,"","","",null,null,null,null,null,null,""]
[null,null,"","","",null,null,null,null,null,null,""]
[null,null,"","","",null,null,null,null,null,null,""]
[null,null,"","","",null,null,null,null,null,null,""]
[null,null,"","","",null,null,null,null,null,null,""]
[null,null,"","","",null,null,null,null,null,null,""]
[null,null,"","","",null,null,null,null,null,null,""]
[null,null,"","","",null,null,null,null,null,null,""]
[null,null,"","","",null,null,null,null,null,null,""]
[null,null,"","","",null,null,null,null,null,null,""]
[null,null,"","","",null,null,null,null,null,null,""]
[null,null,"","","",null,null,null,null,null,null,""]
[null,null,"","","",null,null,null,null,null,null,""]
[null,null,"","","",null,null,null,null,null,null,""]
[null,null,"","","",null,null,null,null,null,null,""]
[null,null,"","","",null,null,null,null,null,null,""]
[null,null,"","","",null,null,null,null,null,null,""]
[null,null,"","","",null,null,null,null,null,null,""]
[null,null,{"$f":"IF(B5625=\"\",\"\",VLOOKUP(B5625,itemsdata,2,\"false\"))","v":""},{"$f":"IF(B5625=\"\",\"\",VLOOKUP(B5625,itemsdata,5,\"false\"))","v":""},{"$f":"IF(B5625=\"\",\"\",VLOOKUP(B5625,itemsdata,3,\"false\"))","v":""},null,null,null,null,null,null,""]
[null,null,"","","",null,null,null,null,null,null,""]
[null,null,"","","",null,null,null,null,null,null,""]
[null,null,"","","",null,null,null,null,null,null,""]
[null,null,"","","",null,null,null,null,null,null,""]
[null,null,"","","",null,null,null,null,null,null,""]
[null,null,"","","",null,null,null,null,null,null,""]
[null,null,"","","",null,null,null,null,null,null,{"$f":"IF(G5632<>\"\",D5632*G5632,\"\")","v":""}]
[null,null,"","","",null,null,null,null,null,null,""]
[null,null,"","","",null,null,null,null,null,null,""]
[null,null,"","","",null,null,null,null,null,null,""]
[null,null,"","","",null,null,null,null,null,null,""]
[null,null,"","","",null,null,null,null,null,null,""]
[null,null,"","","",null,null,null,null,null,null,""]
[null,null,"","","",null,null,null,null,null,null,""]
[null,null,"","","",null,null,null,null,null,null,""]
[null,null,"","","",null,null,null,null,null,null,""]
[null,null,"","","",null,null,null,null,null,null,""]
[null,null,"","","",null,null,null,null,null,null,""]
[null,null,"","","",null,null,null,null,null,null,""]
[null,null,"","","",null,null,null,null,null,null,""]
[null,null,"","","",null,null,null,null,null,null,""]
[null,null,"","","",null,null,null,null,null,null,""]
[null,null,"","","",null,null,null,null,null,null,""]
[null,null,"","","",null,null,null,null,null,null,""]
[null,null,"","","",null,null,null,null,null,null,""]
[null,null,"","","",null,null,null,null,null,null,""]
[null,null,"","","",null,null,null,null,null,null,""]
[null,null,"","","",null,null,null,null,null,null,""]
[null,null,"","","",null,null,null,null,null,null,""]
[null,null,"","","",null,null,null,null,null,null,""]
[null,null,"","","",null,null,null,null,null,null,""]
[null,null,"","","",null,null,null,null,null,null,""]
[null,null,"","","",null,null,null,null,null,null,""]
[null,null,"","","",null,null,null,null,null,null,""]
[null,null,"","","",null,null,null,null,null,null,""]
[null,null,"","","",null,null,null,null,null,null,""]
[null,null,"","","",null,null,null,null,null,null,""]
[null,null,"","","",null,null,null,null,null,null,""]
[null,null,"","","",null,null,null,null,null,null,""]
[null,null,"","","",null,null,null,null,null,null,""]
[null,null,"","","",null,null,null,null,null,null,""]
[null,null,"","","",null,null,null,null,null,null,""]
[null,null,"","","",null,null,null,null,null,null,""]
[null,null,"","","",null,null,null,null,null,null,""]
[null,null,"","","",null,null,null,null,null,null,""]
[null,null,"","","",null,null,null,null,null,null,""]
[null,null,"","","",null,null,null,null,null,null,""]
[null,null,"","","",null,null,null,null,null,null,""]
[null,null,"","","",null,null,null,null,null,null,""]
[null,null,"","","",null,null,null,null,null,null,""]
[null,null,"","","",null,null,null,null,null,null,""]
[null,null,"","","",null,null,null,null,null,null,""]
[null,null,"","","",null,null,null,null,null,null,""]
[null,null,"","","",null,null,null,null,null,null,""]
[null,null,"","","",null,null,null,null,null,null,""]
[null,null,"","","",null,null,null,null,null,null,""]
[null,null,"","","",null,null,null,null,null,null,""]
[null,null,"","","",null,null,null,null,null,null,""]
[null,null,"","","",null,null,null,null,null,null,""]
[null,null,"","","",null,null,null,null,null,null,""]
[null,null,"","","",null,null,null,null,null,null,""]
[null,null,"","","",null,null,null,null,null,null,""]
[null,null,"","","",null,null,null,null,null,null,""]
[null,null,{"$f":"IF(B5689=\"\",\"\",VLOOKUP(B5689,itemsdata,2,\"false\"))","v":""},{"$f":"IF(B5689=\"\",\"\",VLOOKUP(B5689,itemsdata,5,\"false\"))","v":""},{"$f":"IF(B5689=\"\",\"\",VLOOKUP(B5689,itemsdata,3,\"false\"))","v":""},null,null,null,null,null,null,""]
[null,null,"","","",null,null,null,null,null,null,""]
[null,null,"","","",null,null,null,null,null,null,""]
[null,null,"","","",null,null,null,null,null,null,""]
[null,null,"","","",null,null,null,null,null,null,""]
[null,null,"","","",null,null,null,null,null,null,""]
[null,null,"","","",null,null,null,null,null,null,""]
[null,null,"","","",null,null,null,null,null,null,{"$f":"IF(G5696<>\"\",D5696*G5696,\"\")","v":""}]
[null,null,"","","",null,null,null,null,null,null,""]
[null,null,"","","",null,null,null,null,null,null,""]
[null,null,"","","",null,null,null,null,null,null,""]
[null,null,"","","",null,null,null,null,null,null,""]
[null,null,"","","",null,null,null,null,null,null,""]
[null,null,"","","",null,null,null,null,null,null,""]
[null,null,"","","",null,null,null,null,null,null,""]
[null,null,"","","",null,null,null,null,null,null,""]
[null,null,"","","",null,null,null,null,null,null,""]
[null,null,"","","",null,null,null,null,null,null,""]
[null,null,"","","",null,null,null,null,null,null,""]
[null,null,"","","",null,null,null,null,null,null,""]
[null,null,"","","",null,null,null,null,null,null,""]
[null,null,"","","",null,null,null,null,null,null,""]
[null,null,"","","",null,null,null,null,null,null,""]
[null,null,"","","",null,null,null,null,null,null,""]
[null,null,"","","",null,null,null,null,null,null,""]
[null,null,"","","",null,null,null,null,null,null,""]
[null,null,"","","",null,null,null,null,null,null,""]
[null,null,"","","",null,null,null,null,null,null,""]
[null,null,"","","",null,null,null,null,null,null,""]
[null,null,"","","",null,null,null,null,null,null,""]
[null,null,"","","",null,null,null,null,null,null,""]
[null,null,"","","",null,null,null,null,null,null,""]
[null,null,"","","",null,null,null,null,null,null,""]
[null,null,"","","",null,null,null,null,null,null,""]
[null,null,"","","",null,null,null,null,null,null,""]
[null,null,"","","",null,null,null,null,null,null,""]
[null,null,"","","",null,null,null,null,null,null,""]
[null,null,"","","",null,null,null,null,null,null,""]
[null,null,"","","",null,null,null,null,null,null,""]
[null,null,"","","",null,null,null,null,null,null,""]
[null,null,"","","",null,null,null,null,null,null,""]
[null,null,"","","",null,null,null,null,null,null,""]
[null,null,"","","",null,null,null,null,null,null,""]
[null,null,"","","",null,null,null,null,null,null,""]
[null,null,"","","",null,null,null,null,null,null,""]
[null,null,"","","",null,null,null,null,null,null,""]
[null,null,"","","",null,null,null,null,null,null,""]
[null,null,"","","",null,null,null,null,null,null,""]
[null,null,"","","",null,null,null,null,null,null,""]
[null,null,"","","",null,null,null,null,null,null,""]
[null,null,"","","",null,null,null,null,null,null,""]
[null,null,"","","",null,null,null,null,null,null,""]
[null,null,"","","",null,null,null,null,null,null,""]
[null,null,"","","",null,null,null,null,null,null,""]
[null,null,"","","",null,null,null,null,null,null,""]
[null,null,"","","",null,null,null,null,null,null,""]
[null,null,"","","",null,null,null,null,null,null,""]
[null,null,"","","",null,null,null,null,null,null,""]
[null,null,"","","",null,null,null,null,null,null,""]
[null,null,"","","",null,null,null,null,null,null,""]
[null,null,"","","",null,null,null,null,null,null,""]
[null,null,"","","",null,null,null,null,null,null,""]
[null,null,"","","",null,null,null,null,null,null,""]
[null,null,"","","",null,null,null,null,null,null,""]
[null,null,{"$f":"IF(B5753=\"\",\"\",VLOOKUP(B5753,itemsdata,2,\"false\"))","v":""},{"$f":"IF(B5753=\"\",\"\",VLOOKUP(B5753,itemsdata,5,\"false\"))","v":""},{"$f":"IF(B5753=\"\",\"\",VLOOKUP(B5753,itemsdata,3,\"false\"))","v":""},null,null,null,null,null,null,""]
[null,null,"","","",null,null,null,null,null,null,""]
[null,null,"","","",null,null,null,null,null,null,""]
[null,null,"","","",null,null,null,null,null,null,""]
[null,null,"","","",null,null,null,null,null,null,""]
[null,null,"","","",null,null,null,null,null,null,""]
[null,null,"","","",null,null,null,null,null,null,""]
[null,null,"","","",null,null,null,null,null,null,{"$f":"IF(G5760<>\"\",D5760*G5760,\"\")","v":""}]
[null,null,"","","",null,null,null,null,null,null,""]
[null,null,"","","",null,null,null,null,null,null,""]
[null,null,"","","",null,null,null,null,null,null,""]
[null,null,"","","",null,null,null,null,null,null,""]
[null,null,"","","",null,null,null,null,null,null,""]
[null,null,"","","",null,null,null,null,null,null,""]
[null,null,"","","",null,null,null,null,null,null,""]
[null,null,"","","",null,null,null,null,null,null,""]
[null,null,"","","",null,null,null,null,null,null,""]
[null,null,"","","",null,null,null,null,null,null,""]
[null,null,"","","",null,null,null,null,null,null,""]
[null,null,"","","",null,null,null,null,null,null,""]
[null,null,"","","",null,null,null,null,null,null,""]
[null,null,"","","",null,null,null,null,null,null,""]
[null,null,"","","",null,null,null,null,null,null,""]
[null,null,"","","",null,null,null,null,null,null,""]
[null,null,"","","",null,null,null,null,null,null,""]
[null,null,"","","",null,null,null,null,null,null,""]
[null,null,"","","",null,null,null,null,null,null,""]
[null,null,"","","",null,null,null,null,null,null,""]
[null,null,"","","",null,null,null,null,null,null,""]
[null,null,"","","",null,null,null,null,null,null,""]
[null,null,"","","",null,null,null,null,null,null,""]
[null,null,"","","",null,null,null,null,null,null,""]
[null,null,"","","",null,null,null,null,null,null,""]
[null,null,"","","",null,null,null,null,null,null,""]
[null,null,"","","",null,null,null,null,null,null,""]
[null,null,"","","",null,null,null,null,null,null,""]
[null,null,"","","",null,null,null,null,null,null,""]
[null,null,"","","",null,null,null,null,null,null,""]
[null,null,"","","",null,null,null,null,null,null,""]
[null,null,"","","",null,null,null,null,null,null,""]
[null,null,"","","",null,null,null,null,null,null,""]
[null,null,"","","",null,null,null,null,null,null,""]
[null,null,"","","",null,null,null,null,null,null,""]
[null,null,"","","",null,null,null,null,null,null,""]
[null,null,"","","",null,null,null,null,null,null,""]
[null,null,"","","",null,null,null,null,null,null,""]
[null,null,"","","",null,null,null,null,null,null,""]
[null,null,"","","",null,null,null,null,null,null,""]
[null,null,"","","",null,null,null,null,null,null,""]
[null,null,"","","",null,null,null,null,null,null,""]
[null,null,"","","",null,null,null,null,null,null,""]
[null,null,"","","",null,null,null,null,null,null,""]
[null,null,"","","",null,null,null,null,null,null,""]
[null,null,"","","",null,null,null,null,null,null,""]
[null,null,"","","",null,null,null,null,null,null,""]
[null,null,"","","",null,null,null,null,null,null,""]
[null,null,"","","",null,null,null,null,null,null,""]
[null,null,"","","",null,null,null,null,null,null,""]
[null,null,"","","",null,null,null,null,null,null,""]
[null,null,"","","",null,null,null,null,null,null,""]
[null,null,"","","",null,null,null,null,null,null,""]
[null,null,"","","",null,null,null,null,null,null,""]
[null,null,"","","",null,null,null,null,null,null,""]
[null,null,"","","",null,null,null,null,null,null,""]
[null,null,{"$f":"IF(B5817=\"\",\"\",VLOOKUP(B5817,itemsdata,2,\"false\"))","v":""},{"$f":"IF(B5817=\"\",\"\",VLOOKUP(B5817,itemsdata,5,\"false\"))","v":""},{"$f":"IF(B5817=\"\",\"\",VLOOKUP(B5817,itemsdata,3,\"false\"))","v":""},null,null,null,null,null,null,""]
[null,null,"","","",null,null,null,null,null,null,""]
[null,null,"","","",null,null,null,null,null,null,""]
[null,null,"","","",null,null,null,null,null,null,""]
[null,null,"","","",null,null,null,null,null,null,""]
[null,null,"","","",null,null,null,null,null,null,""]
[null,null,"","","",null,null,null,null,null,null,""]
[null,null,"","","",null,null,null,null,null,null,{"$f":"IF(G5824<>\"\",D5824*G5824,\"\")","v":""}]
[null,null,"","","",null,null,null,null,null,null,""]
[null,null,"","","",null,null,null,null,null,null,""]
[null,null,"","","",null,null,null,null,null,null,""]
[null,null,"","","",null,null,null,null,null,null,""]
[null,null,"","","",null,null,null,null,null,null,""]
[null,null,"","","",null,null,null,null,null,null,""]
[null,null,"","","",null,null,null,null,null,null,""]
[null,null,"","","",null,null,null,null,null,null,""]
[null,null,"","","",null,null,null,null,null,null,""]
[null,null,"","","",null,null,null,null,null,null,""]
[null,null,"","","",null,null,null,null,null,null,""]
[null,null,"","","",null,null,null,null,null,null,""]
[null,null,"","","",null,null,null,null,null,null,""]
[null,null,"","","",null,null,null,null,null,null,""]
[null,null,"","","",null,null,null,null,null,null,""]
[null,null,"","","",null,null,null,null,null,null,""]
[null,null,"","","",null,null,null,null,null,null,""]
[null,null,"","","",null,null,null,null,null,null,""]
[null,null,"","","",null,null,null,null,null,null,""]
[null,null,"","","",null,null,null,null,null,null,""]
[null,null,"","","",null,null,null,null,null,null,""]
[null,null,"","","",null,null,null,null,null,null,""]
[null,null,"","","",null,null,null,null,null,null,""]
[null,null,"","","",null,null,null,null,null,null,""]
[null,null,"","","",null,null,null,null,null,null,""]
[null,null,"","","",null,null,null,null,null,null,""]
[null,null,"","","",null,null,null,null,null,null,""]
[null,null,"","","",null,null,null,null,null,null,""]
[null,null,"","","",null,null,null,null,null,null,""]
[null,null,"","","",null,null,null,null,null,null,""]
[null,null,"","","",null,null,null,null,null,null,""]
[null,null,"","","",null,null,null,null,null,null,""]
[null,null,"","","",null,null,null,null,null,null,""]
[null,null,"","","",null,null,null,null,null,null,""]
[null,null,"","","",null,null,null,null,null,null,""]
[null,null,"","","",null,null,null,null,null,null,""]
[null,null,"","","",null,null,null,null,null,null,""]
[null,null,"","","",null,null,null,null,null,null,""]
[null,null,"","","",null,null,null,null,null,null,""]
[null,null,"","","",null,null,null,null,null,null,""]
[null,null,"","","",null,null,null,null,null,null,""]
[null,null,"","","",null,null,null,null,null,null,""]
[null,null,"","","",null,null,null,null,null,null,""]
[null,null,"","","",null,null,null,null,null,null,""]
[null,null,"","","",null,null,null,null,null,null,""]
[null,null,"","","",null,null,null,null,null,null,""]
[null,null,"","","",null,null,null,null,null,null,""]
[null,null,"","","",null,null,null,null,null,null,""]
[null,null,"","","",null,null,null,null,null,null,""]
[null,null,"","","",null,null,null,null,null,null,""]
[null,null,"","","",null,null,null,null,null,null,""]
[null,null,"","","",null,null,null,null,null,null,""]
[null,null,"","","",null,null,null,null,null,null,""]
[null,null,"","","",null,null,null,null,null,null,""]
[null,null,"","","",null,null,null,null,null,null,""]
[null,null,"","","",null,null,null,null,null,null,""]
[null,null,{"$f":"IF(B5881=\"\",\"\",VLOOKUP(B5881,itemsdata,2,\"false\"))","v":""},{"$f":"IF(B5881=\"\",\"\",VLOOKUP(B5881,itemsdata,5,\"false\"))","v":""},{"$f":"IF(B5881=\"\",\"\",VLOOKUP(B5881,itemsdata,3,\"false\"))","v":""},null,null,null,null,null,null,""]
[null,null,"","","",null,null,null,null,null,null,""]
[null,null,"","","",null,null,null,null,null,null,""]
[null,null,"","","",null,null,null,null,null,null,""]
[null,null,"","","",null,null,null,null,null,null,""]
[null,null,"","","",null,null,null,null,null,null,""]
[null,null,"","","",null,null,null,null,null,null,""]
[null,null,"","","",null,null,null,null,null,null,{"$f":"IF(G5888<>\"\",D5888*G5888,\"\")","v":""}]
[null,null,"","","",null,null,null,null,null,null,""]

{"sheet":"Stock2021-2022","index":1,"n_rows":66,"n_cols":10,"rows_kept":66,"cut":false,"hidden":false,"merged":[]}
["CategoryNb","Category","ItemCode","Item Description","Quantity in Stock","Size","Price (LBP)","Size Description","Original Stock"]
["N1","C0-Tergal","C0-Tergal-3","مريول tergal   لقسم الروضات مع تطريز إضافي أحرف وأرقام والشعار ",55,3,100000,"3 سنوات",56]
["N1","C0-Tergal","C0-Tergal-4","مريول tergal   لقسم الروضات مع تطريز إضافي أحرف وأرقام والشعار ",152,4,100000,"3 سنوات",155]
["N1","C0-Tergal","C0-Tergal-5","مريول tergal   لقسم الروضات مع تطريز إضافي أحرف وأرقام والشعار ",160,5,100000,"4 سنوات",162]
["N1","C0-Tergal","C0-Tergal-6","مريول tergal   لقسم الروضات مع تطريز إضافي أحرف وأرقام والشعار ",24,6,100000,"5سنوات ",25]
["N1","C0-Tergal","C0-Tergal-7","مريول tergal   لقسم الروضات مع تطريز إضافي أحرف وأرقام والشعار ",19,7,100000,"6سنوات ",20]
["N2","C12-M-LS","C12-M-LS-6","قميص كم طويل –بنين (لون أزرق )للقسم الإبتدائي",149,6,145000,"6-7 سنوات",150]
["N2","C12-M-LS","C12-M-LS-8","قميص كم طويل –بنين (لون أزرق )للقسم الإبتدائي",300,8,145000,"7-8 سنوات",300]
["N2","C12-M-LS","C12-M-LS-10","قميص كم طويل –بنين (لون أزرق )للقسم الإبتدائي",300,10,145000,"8-9 سنوات",300]
["N2","C12-M-LS","C12-M-LS-12","قميص كم طويل –بنين (لون أزرق )للقسم الإبتدائي",249,12,145000,"9-10 سنوات ",250]
["N2","C12-M-LS","C12-M-LS-14","قميص كم طويل –بنين (لون أزرق )للقسم الإبتدائي",199,14,145000,"10-12 سنة ",200]
["N3","C12-F-LS","C12-F-LS-6","قميص كم طويل-بنات(لون زهري) للقسم الإبتدائي",150,6,145000,"6-7 سنوات",150]
["N3","C12-F-LS","C12-F-LS-8","قميص كم طويل-بنات(لون زهري) للقسم الإبتدائي",297,8,145000,"7-8 سنوات",300]
["N3","C12-F-LS","C12-F-LS-10","قميص كم طويل-بنات(لون زهري) للقسم الإبتدائي",299,10,145000,"8-9 سنوات",300]
["N3","C12-F-LS","C12-F-LS-12","قميص كم طويل-بنات(لون زهري) للقسم الإبتدائي",250,12,145000,"9-10 سنوات ",250]
["N3","C12-F-LS","C12-F-LS-14","قميص كم طويل-بنات(لون زهري) للقسم الإبتدائي",200,14,145000,"10-12 سنة ",200]
["N4","C34-M-LS","C34-M-LS-14","قميص كم طويل-بنين(لون رمادي)للقسم المتوسط والثانوي  ",199,14,145000,null,200]
["N4","C34-M-LS","C34-M-LS-16","قميص كم طويل-بنين(لون رمادي)للقسم المتوسط والثانوي  ",200,16,145000,null,200]
["N4","C34-M-LS","C34-M-LS-S","قميص كم طويل-بنين(لون رمادي)للقسم المتوسط والثانوي  ",149,"S",145000,null,150]
["N4","C34-M-LS","C34-M-LS-M","قميص كم طويل-بنين(لون رمادي)للقسم المتوسط والثانوي  ",150,"M",145000,null,150]
["N4","C34-M-LS","C34-M-LS-L","قميص كم طويل-بنين(لون رمادي)للقسم المتوسط والثانوي  ",100,"L",145000,null,100]
["N4","C34-M-LS","C34-M-LS-XL","قميص كم طويل-بنين(لون رمادي)للقسم المتوسط والثانوي  ",50,"XL",145000,null,50]
["N5","C34-F-LS","C34-F-LS-14","قميص كم طويل-بنات (لون موف)للقسم المتوسط والثانوي",200,14,145000,null,200]
["N5","C34-F-LS","C34-F-LS-16","قميص كم طويل-بنات (لون موف)للقسم المتوسط والثانوي",199,16,145000,null,200]
["N5","C34-F-LS","C34-F-LS-S","قميص كم طويل-بنات (لون موف)للقسم المتوسط والثانوي",149,"S",145000,null,150]
["N5","C34-F-LS","C34-F-LS-M","قميص كم طويل-بنات (لون موف)للقسم المتوسط والثانوي",149,"M",145000,null,150]
["N5","C34-F-LS","C34-F-LS-L","قميص كم طويل-بنات (لون موف)للقسم المتوسط والثانوي",99,"L",145000,null,100]
["N5","C34-F-LS","C34-F-LS-XL","قميص كم طويل-بنات (لون موف)للقسم المتوسط والثانوي",50,"XL",145000,null,50]
["N6","C12-M-SS","C12-M-SS-6","قميص كم قصير-بنين(لون أزرق)للقسم الإبتدائي ",149,6,125000,"6-7سنوات",150]
["N6","C12-M-SS","C12-M-SS-8","قميص كم قصير-بنين(لون أزرق)للقسم الإبتدائي ",300,8,125000,"7-8سنوات",300]
["N6","C12-M-SS","C12-M-SS-10","قميص كم قصير-بنين(لون أزرق)للقسم الإبتدائي ",300,10,125000,"8-9سنوات",300]
["N6","C12-M-SS","C12-M-SS-12","قميص كم قصير-بنين(لون أزرق)للقسم الإبتدائي ",248,12,125000,"9-10سنوات",250]
["N6","C12-M-SS","C12-M-SS-14","قميص كم قصير-بنين(لون أزرق)للقسم الإبتدائي ",199,14,125000,"10-12سنة ",200]
["N7","C12-F-SS","C12-F-SS-6","قميص كم قصير –بنات (لون زهري )للقسم الإبتدائي",150,6,125000,"6-7 سنوات",150]
["N7","C12-F-SS","C12-F-SS-8","قميص كم قصير –بنات (لون زهري )للقسم الإبتدائي",298,8,125000,"7-8 سنوات",300]
["N7","C12-F-SS","C12-F-SS-10","قميص كم قصير –بنات (لون زهري )للقسم الإبتدائي",299,10,125000,"8-9 سنوات",300]
["N7","C12-F-SS","C12-F-SS-12","قميص كم قصير –بنات (لون زهري )للقسم الإبتدائي",246,12,125000,"9-10 سنوات ",250]
["N7","C12-F-SS","C12-F-SS-14","قميص كم قصير –بنات (لون زهري )للقسم الإبتدائي",200,14,125000,"10-12 سنة ",200]
["N8","C34-M-SS","C34-M-SS-14","قميص كم قصير-بنين(لون رمادي) للقسم المتوسط والثانوي",199,14,125000,null,200]
["N8","C34-M-SS","C34-M-SS-16","قميص كم قصير-بنين(لون رمادي) للقسم المتوسط والثانوي",199,16,125000,null,200]
["N8","C34-M-SS","C34-M-SS-S","قميص كم قصير-بنين(لون رمادي) للقسم المتوسط والثانوي",149,"S",125000,null,150]
["N8","C34-M-SS","C34-M-SS-M","قميص كم قصير-بنين(لون رمادي) للقسم المتوسط والثانوي",150,"M",125000,null,150]
["N8","C34-M-SS","C34-M-SS-L","قميص كم قصير-بنين(لون رمادي) للقسم المتوسط والثانوي",100,"L",125000,null,100]
["N8","C34-M-SS","C34-M-SS-XL","قميص كم قصير-بنين(لون رمادي) للقسم المتوسط والثانوي",50,"XL",125000,null,50]
["N9","C34-F-SS","C34-F-SS-14","قميص كم قصير-بنات (لون موف)للقسم المتوسط والثانوي  ",199,14,125000,null,200]
["N9","C34-F-SS","C34-F-SS-16","قميص كم قصير-بنات (لون موف)للقسم المتوسط والثانوي  ",200,16,125000,null,200]
["N9","C34-F-SS","C34-F-SS-S","قميص كم قصير-بنات (لون موف)للقسم المتوسط والثانوي  ",150,"S",125000,null,150,"mo"]
["N9","C34-F-SS","C34-F-SS-M","قميص كم قصير-بنات (لون موف)للقسم المتوسط والثانوي  ",150,"M",125000,null,150]
["N9","C34-F-SS","C34-F-SS-L","قميص كم قصير-بنات (لون موف)للقسم المتوسط والثانوي  ",100,"L",125000,null,100]
["N9","C34-F-SS","C34-F-SS-XL","قميص كم قصير-بنات (لون موف)للقسم المتوسط والثانوي  ",50,"XL",125000,null,50]
["N11","CA-Gilet","CA-Gilet-6","جيلية صوف نوعية ممتازة مع تطريز –خيط تركي (50%صوف-50%أكريليك)",99,6,145000,null,100]
["N11","CA-Gilet","CA-Gilet-8","جيلية صوف نوعية ممتازة مع تطريز –خيط تركي (50%صوف-50%أكريليك)",299,8,145000,null,300]
["N11","CA-Gilet","CA-Gilet-10","جيلية صوف نوعية ممتازة مع تطريز –خيط تركي (50%صوف-50%أكريليك)",298,10,145000,null,300]
["N11","CA-Gilet","CA-Gilet-12","جيلية صوف نوعية ممتازة مع تطريز –خيط تركي (50%صوف-50%أكريليك)",300,12,145000,null,300]
["N11","CA-Gilet","CA-Gilet-14","جيلية صوف نوعية ممتازة مع تطريز –خيط تركي (50%صوف-50%أكريليك)",250,14,145000,null,250]
["N11","CA-Gilet","CA-Gilet-16","جيلية صوف نوعية ممتازة مع تطريز –خيط تركي (50%صوف-50%أكريليك)",249,16,145000,null,250]
["N11","CA-Gilet","CA-Gilet-S","جيلية صوف نوعية ممتازة مع تطريز –خيط تركي (50%صوف-50%أكريليك)",200,"S",145000,null,200]
["N11","CA-Gilet","CA-Gilet-M","جيلية صوف نوعية ممتازة مع تطريز –خيط تركي (50%صوف-50%أكريليك)",149,"M",145000,null,150]
["N11","CA-Gilet","CA-Gilet-L","جيلية صوف نوعية ممتازة مع تطريز –خيط تركي (50%صوف-50%أكريليك)",100,"L",145000,null,100]
["N11","CA-Gilet","CA-Gilet-XL","جيلية صوف نوعية ممتازة مع تطريز –خيط تركي (50%صوف-50%أكريليك)",50,"XL",145000,null,50]
["N12","C34-F-LS-Hijab","C34-F-LS-Hijab-14","قميص كم طويل للمحجبات-بنات(لون موف)للقسم المتوسط والثانوي ",34,14,145000,null,35]
["N12","C34-F-LS-Hijab","C34-F-LS-Hijab-16","قميص كم طويل للمحجبات-بنات(لون موف)للقسم المتوسط والثانوي ",35,16,145000,null,35]
["N12","C34-F-LS-Hijab","C34-F-LS-Hijab-S","قميص كم طويل للمحجبات-بنات(لون موف)للقسم المتوسط والثانوي ",35,"S",145000,null,35]
["N12","C34-F-LS-Hijab","C34-F-LS-Hijab-M","قميص كم طويل للمحجبات-بنات(لون موف)للقسم المتوسط والثانوي ",25,"M",145000,null,25]
["N12","C34-F-LS-Hijab","C34-F-LS-Hijab-L","قميص كم طويل للمحجبات-بنات(لون موف)للقسم المتوسط والثانوي ",20,"L",145000,null,20]
["N12","C34-F-LS-Hijab","C34-F-LS-Hijab-XL","قميص كم طويل للمحجبات-بنات(لون موف)للقسم المتوسط والثانوي ",10,"XL",145000,null,10]

{"sheet":"InitialStock2021-2022","index":2,"n_rows":80,"n_cols":8,"rows_kept":80,"cut":false,"hidden":true,"merged":[]}
["CategoryNb","Category","ItemCode","Item Description","Quantity in Stock","Price (LBP)","Size","Size Description"]
["N1","C0-Tergal","C0-Tergal-4","مريول tergal   لقسم الروضات مع تطريز إضافي أحرف وأرقام والشعار ",200,100000,4,"3 سنوات"]
["N1","C0-Tergal","C0-Tergal-5","مريول tergal   لقسم الروضات مع تطريز إضافي أحرف وأرقام والشعار ",300,100000,5,"4 سنوات"]
["N1","C0-Tergal","C0-Tergal-6","مريول tergal   لقسم الروضات مع تطريز إضافي أحرف وأرقام والشعار ",300,100000,6,"5سنوات "]
["N1","C0-Tergal","C0-Tergal-7","مريول tergal   لقسم الروضات مع تطريز إضافي أحرف وأرقام والشعار ",300,100000,7,"6سنوات "]
[null,null,null,"مريول tergal   لقسم الروضات مع تطريز إضافي أحرف وأرقام والشعار  Total",{"$f":"SUBTOTAL(9,E2:E5)","v":1100}]
["N2","C12-M-LS","C12-M-LS-6","قميص كم طويل –بنين (لون أزرق )للقسم الإبتدائي",150,145000,6,"6-7 سنوات"]
["N2","C12-M-LS","C12-M-LS-8","قميص كم طويل –بنين (لون أزرق )للقسم الإبتدائي",300,145000,8,"7-8 سنوات"]
["N2","C12-M-LS","C12-M-LS-10","قميص كم طويل –بنين (لون أزرق )للقسم الإبتدائي",300,145000,10,"8-9 سنوات"]
["N2","C12-M-LS","C12-M-LS-12","قميص كم طويل –بنين (لون أزرق )للقسم الإبتدائي",250,145000,12,"9-10 سنوات "]
["N2","C12-M-LS","C12-M-LS-14","قميص كم طويل –بنين (لون أزرق )للقسم الإبتدائي",200,145000,14,"10-12 سنة "]
[null,null,null,"قميص كم طويل –بنين (لون أزرق )للقسم الإبتدائي Total",{"$f":"SUBTOTAL(9,E7:E11)","v":1200}]
["N3","C12-F-LS","C12-F-LS-6","قميص كم طويل-بنات(لون زهري) للقسم الإبتدائي",150,145000,6,"6-7 سنوات"]
["N3","C12-F-LS","C12-F-LS-8","قميص كم طويل-بنات(لون زهري) للقسم الإبتدائي",300,145000,8,"7-8 سنوات"]
["N3","C12-F-LS","C12-F-LS-10","قميص كم طويل-بنات(لون زهري) للقسم الإبتدائي",300,145000,10,"8-9 سنوات"]
["N3","C12-F-LS","C12-F-LS-12","قميص كم طويل-بنات(لون زهري) للقسم الإبتدائي",250,145000,12,"9-10 سنوات "]
["N3","C12-F-LS","C12-F-LS-14","قميص كم طويل-بنات(لون زهري) للقسم الإبتدائي",200,145000,14,"10-12 سنة "]
[null,null,null,"قميص كم طويل-بنات(لون زهري) للقسم الإبتدائي Total",{"$f":"SUBTOTAL(9,E13:E17)","v":1200}]
["N4","C34-M-LS","C34-M-LS-14","قميص كم طويل-بنين(لون رمادي)للقسم المتوسط والثانوي  ",200,145000,14]
["N4","C34-M-LS","C34-M-LS-16","قميص كم طويل-بنين(لون رمادي)للقسم المتوسط والثانوي  ",200,145000,16]
["N4","C34-M-LS","C34-M-LS-S","قميص كم طويل-بنين(لون رمادي)للقسم المتوسط والثانوي  ",150,145000,"S"]
["N4","C34-M-LS","C34-M-LS-M","قميص كم طويل-بنين(لون رمادي)للقسم المتوسط والثانوي  ",150,145000,"M"]
["N4","C34-M-LS","C34-M-LS-L","قميص كم طويل-بنين(لون رمادي)للقسم المتوسط والثانوي  ",100,145000,"L"]
["N4","C34-M-LS","C34-M-LS-XL","قميص كم طويل-بنين(لون رمادي)للقسم المتوسط والثانوي  ",50,145000,"XL"]
[null,null,null,"قميص كم طويل-بنين(لون رمادي)للقسم المتوسط والثانوي   Total",{"$f":"SUBTOTAL(9,E19:E24)","v":850}]
["N5","C34-F-LS","C34-F-LS-14","قميص كم طويل-بنات (لون موف)للقسم المتوسط والثانوي",200,145000,14]
["N5","C34-F-LS","C34-F-LS-16","قميص كم طويل-بنات (لون موف)للقسم المتوسط والثانوي",200,145000,16]
["N5","C34-F-LS","C34-F-LS-S","قميص كم طويل-بنات (لون موف)للقسم المتوسط والثانوي",150,145000,"S"]
["N5","C34-F-LS","C34-F-LS-M","قميص كم طويل-بنات (لون موف)للقسم المتوسط والثانوي",150,145000,"M"]
["N5","C34-F-LS","C34-F-LS-L","قميص كم طويل-بنات (لون موف)للقسم المتوسط والثانوي",100,145000,"L"]
["N5","C34-F-LS","C34-F-LS-XL","قميص كم طويل-بنات (لون موف)للقسم المتوسط والثانوي",50,145000,"XL"]
[null,null,null,"قميص كم طويل-بنات (لون موف)للقسم المتوسط والثانوي Total",{"$f":"SUBTOTAL(9,E26:E31)","v":850}]
["N6","C12-M-SS","C12-M-SS-6","قميص كم قصير-بنين(لون أزرق)للقسم الإبتدائي ",150,125000,6,"6-7سنوات"]
["N6","C12-M-SS","C12-M-SS-8","قميص كم قصير-بنين(لون أزرق)للقسم الإبتدائي ",300,125000,8,"7-8سنوات"]
["N6","C12-M-SS","C12-M-SS-10","قميص كم قصير-بنين(لون أزرق)للقسم الإبتدائي ",300,125000,10,"8-9سنوات"]
["N6","C12-M-SS","C12-M-SS-12","قميص كم قصير-بنين(لون أزرق)للقسم الإبتدائي ",250,125000,12,"9-10سنوات"]
["N6","C12-M-SS","C12-M-SS-14","قميص كم قصير-بنين(لون أزرق)للقسم الإبتدائي ",200,125000,14,"10-12سنة "]
[null,null,null,"قميص كم قصير-بنين(لون أزرق)للقسم الإبتدائي  Total",{"$f":"SUBTOTAL(9,E33:E37)","v":1200}]
["N7","C12-F-SS","C12-F-SS-6","قميص كم قصير –بنات (لون زهري )للقسم الإبتدائي",150,125000,6,"6-7 سنوات"]
["N7","C12-F-SS","C12-F-SS-8","قميص كم قصير –بنات (لون زهري )للقسم الإبتدائي",300,125000,8,"7-8 سنوات"]
["N7","C12-F-SS","C12-F-SS-10","قميص كم قصير –بنات (لون زهري )للقسم الإبتدائي",300,125000,10,"8-9 سنوات"]
["N7","C12-F-SS","C12-F-SS-12","قميص كم قصير –بنات (لون زهري )للقسم الإبتدائي",250,125000,12,"9-10 سنوات "]
["N7","C12-F-SS","C12-F-SS-14","قميص كم قصير –بنات (لون زهري )للقسم الإبتدائي",200,125000,14,"10-12 سنة "]
[null,null,null,"قميص كم قصير –بنات (لون زهري )للقسم الإبتدائي Total",{"$f":"SUBTOTAL(9,E39:E43)","v":1200}]
["N8","C34-M-SS","C34-M-SS-14","قميص كم قصير-بنين(لون رمادي) للقسم المتوسط والثانوي",200,125000,14]
["N8","C34-M-SS","C34-M-SS-16","قميص كم قصير-بنين(لون رمادي) للقسم المتوسط والثانوي",200,125000,16]
["N8","C34-M-SS","C34-M-SS-S","قميص كم قصير-بنين(لون رمادي) للقسم المتوسط والثانوي",150,125000,"S"]
["N8","C34-M-SS","C34-M-SS-M","قميص كم قصير-بنين(لون رمادي) للقسم المتوسط والثانوي",150,125000,"M"]
["N8","C34-M-SS","C34-M-SS-L","قميص كم قصير-بنين(لون رمادي) للقسم المتوسط والثانوي",100,125000,"L"]
["N8","C34-M-SS","C34-M-SS-XL","قميص كم قصير-بنين(لون رمادي) للقسم المتوسط والثانوي",50,125000,"XL"]
[null,null,null,"قميص كم قصير-بنين(لون رمادي) للقسم المتوسط والثانوي Total",{"$f":"SUBTOTAL(9,E45:E50)","v":850}]
["N9","C34-F-SS","C34-F-SS-14","قميص كم قصير-بنات (لون موف)للقسم المتوسط والثانوي  ",200,125000,14]
["N9","C34-F-SS","C34-F-SS-16","قميص كم قصير-بنات (لون موف)للقسم المتوسط والثانوي  ",200,125000,16]
["N9","C34-F-SS","C34-F-SS-S","قميص كم قصير-بنات (لون موف)للقسم المتوسط والثانوي  ",150,125000,"S"]
["N9","C34-F-SS","C34-F-SS-M","قميص كم قصير-بنات (لون موف)للقسم المتوسط والثانوي  ",150,125000,"M"]
["N9","C34-F-SS","C34-F-SS-L","قميص كم قصير-بنات (لون موف)للقسم المتوسط والثانوي  ",100,125000,"L"]
["N9","C34-F-SS","C34-F-SS-XL","قميص كم قصير-بنات (لون موف)للقسم المتوسط والثانوي  ",50,125000,"XL"]
[null,null,null,"قميص كم قصير-بنات (لون موف)للقسم المتوسط والثانوي   Total",{"$f":"SUBTOTAL(9,E52:E57)","v":850}]
["N10","CA-Jacket","CA-Jacket-14","جاكيت لون كحلي (70%قطن-30% بوليستر)",100,110000,14]
["N10","CA-Jacket","CA-Jacket-16","جاكيت لون كحلي (70%قطن-30% بوليستر)",100,110000,16]
[null,null,null,"جاكيت لون كحلي (70%قطن-30% بوليستر) Total",{"$f":"SUBTOTAL(9,E59:E60)","v":200}]
["N11","CA-Gilet","CA-Gilet-6","جيلية صوف نوعية ممتازة مع تطريز –خيط تركي (50%صوف-50%أكريليك)",100,145000,6]
["N11","CA-Gilet","CA-Gilet-8","جيلية صوف نوعية ممتازة مع تطريز –خيط تركي (50%صوف-50%أكريليك)",300,145000,8]
["N11","CA-Gilet","CA-Gilet-10","جيلية صوف نوعية ممتازة مع تطريز –خيط تركي (50%صوف-50%أكريليك)",300,145000,10]
["N11","CA-Gilet","CA-Gilet-12","جيلية صوف نوعية ممتازة مع تطريز –خيط تركي (50%صوف-50%أكريليك)",300,145000,12]
["N11","CA-Gilet","CA-Gilet-14","جيلية صوف نوعية ممتازة مع تطريز –خيط تركي (50%صوف-50%أكريليك)",250,145000,14]
["N11","CA-Gilet","CA-Gilet-16","جيلية صوف نوعية ممتازة مع تطريز –خيط تركي (50%صوف-50%أكريليك)",250,145000,16]
["N11","CA-Gilet","CA-Gilet-S","جيلية صوف نوعية ممتازة مع تطريز –خيط تركي (50%صوف-50%أكريليك)",200,145000,"S"]
["N11","CA-Gilet","CA-Gilet-M","جيلية صوف نوعية ممتازة مع تطريز –خيط تركي (50%صوف-50%أكريليك)",150,145000,"M"]
["N11","CA-Gilet","CA-Gilet-L","جيلية صوف نوعية ممتازة مع تطريز –خيط تركي (50%صوف-50%أكريليك)",100,145000,"L"]
["N11","CA-Gilet","CA-Gilet-XL","جيلية صوف نوعية ممتازة مع تطريز –خيط تركي (50%صوف-50%أكريليك)",50,145000,"XL"]
[null,null,null,"جيلية صوف نوعية ممتازة مع تطريز –خيط تركي (50%صوف-50%أكريليك) Total",{"$f":"SUBTOTAL(9,E62:E71)","v":2000}]
["N12","C34-F-LS-Hijab","C34-F-LS-Hijab-14","قميص كم طويل للمخجبات-بنات(لون موف)للقسم المتوسط والثانوي ",35,145000,14]
["N12","C34-F-LS-Hijab","C34-F-LS-Hijab-16","قميص كم طويل للمخجبات-بنات(لون موف)للقسم المتوسط والثانوي ",35,145000,16]
["N12","C34-F-LS-Hijab","C34-F-LS-Hijab-S","قميص كم طويل للمخجبات-بنات(لون موف)للقسم المتوسط والثانوي ",35,145000,"S"]
["N12","C34-F-LS-Hijab","C34-F-LS-Hijab-M","قميص كم طويل للمخجبات-بنات(لون موف)للقسم المتوسط والثانوي ",25,145000,"M"]
["N12","C34-F-LS-Hijab","C34-F-LS-Hijab-L","قميص كم طويل للمخجبات-بنات(لون موف)للقسم المتوسط والثانوي ",20,145000,"L"]
["N12","C34-F-LS-Hijab","C34-F-LS-Hijab-XL","قميص كم طويل للمخجبات-بنات(لون موف)للقسم المتوسط والثانوي ",10,145000,"XL"]
[null,null,null,"قميص كم طويل للمخجبات-بنات(لون موف)للقسم المتوسط والثانوي  Total",{"$f":"SUBTOTAL(9,E73:E78)","v":160}]
[null,null,null,"Grand Total",{"$f":"SUBTOTAL(9,E2:E78)","v":11660}]